Workbook

Sheet INICIO
N4: F
E39: *REQUERIMIENTOS: EXCEL 2013 EN ADELANTE

Sheet AVISO (hidden)
E28: LEER | F28: IMPORTANTE: Este programa educativo se elaboró exclusivamente con fines de mejoramiento educativo. Sugerimos no hacer otro tipo de uso diferente, sobre todo aquél que perjudique a cualquier integrante de las comunidades escolares, como estudiantes, padres de familia, docentes, directivos, etc.

Sheet ÍNDICE 1 (hidden)
A3: LEER ANTES DE COMENZAR
B30: NOTA: La información que se muestra en este prorgama proviene de tres fuentes: SEP, INEE y SEECH. El INEE aplicó PLANEA 17 en algunas secundarias como parte de una muestra. Estas escuelas cuentan con los datos de niveles de desempeño (4), pero no informa en su base de datos sobre el desempeño de los estudiantes en cada unidad de diagnóstico. Esa es la razón por la que algunas de estas escuelas, el análisis se verá un tanto limitado.

Sheet ÍNDICE 2 (hidden)

Sheet PLANEA_15_17 (hidden)
A5: CAMBIOS EN MATEMÁTICAS ENTRE EL 2015 Y 2017
A6: 1 | J6: 2 | S6: 3 | AB6: 4 | AI6: 5
A28: CAMBIOS EN LENGUAJE Y COMUNICACIÓN ENTRE EL 2015 Y 2017
A29: 1 | J29: 2 | S29: 3 | AA29: 4 | AI29: 5

Sheet SELECCIÓN_ZONA (hidden)
A5: SELECCIONE EL SUBSISTEMA Y LA ZONA QUE DESEE ANALIZAR
E10: F | F10: PASO 1 | K10: F
E16: F | F16: PASO 2

Sheet CTX_ZONA (hidden)
B3: CONTEXTO ESCOLAR GENERAL (escuelas por zona escolar)
A4: ZONA ESCOLAR | B4: 001 | C4: En esta sección se presentan algunas carácterísticas de las escuelas que integran la zona seleccionada. Para comprender con más profunidad los resultados de esta evaluación, considere algunos de estos factores.
A5: MUNICIPIO | B5: 037 JUÁREZ
A6: LOCALIDAD | B6: 0001 JUÁREZ
A7: NOMBRE DE LA ESCUELA | B7: SECUNDARIA TECNICA 1
A8: DIRECCIÓN | B8: EMILIO CARRANZA Y GUADALUPE VICTORIA
A9: CLAVE Y TURNO | B9: 08DST0001Z MATUTINO | D9: CONTINÚE CON EL ANÁLISIS
A10: MODALIDAD | B10: Técnica Pública
A11: SOSTENIMIENTO | B11: SECUNDARIA TECNICA INDUSTRIAL FEDERAL TRANSFERIDO
A12: GRADO DE MARGINALIDAD | B12: Media
A13: TIPO DE ESCUELA EN EL PAÍS | B13: Técnicas públicas de Chihuahua en localidades de media marginación
A14: CONVOCADOS | B14: 80
A15: ASISTENTES LENGUAJE Y COMUNICACIÓN | B15: 72
A16: ASISTENTES MATEMÁTICAS | B16: 72 | D16: LENGUAJE Y COMUNICACIÓN Seleccione el área académica que se desa analizar. MATEMÁTICAS
A17: REPRESENTATIVO LYC | B17: SI
A18: REPRESENTATIVO MAT | B18: SI
B19: 08DST0001Z VESPERTINO
B20: Técnica Pública
B21: SECUNDARIA TECNICA INDUSTRIAL FEDERAL TRANSFERIDO
B22: Media
B23: Técnicas públicas de Chihuahua en localidades de media marginación
B24: 80
B25: 66
B26: 58
B27: SI
B28: SI
B29: SECUNDARIA TECNICA 33
B30: RANCHO MATANUCO Y LAS PAMPAS
B31: 08DST0041A MATUTINO
B32: Técnica Pública
B33: SECUNDARIA TECNICA INDUSTRIAL FEDERAL TRANSFERIDO
B34: Baja y Muy baja
B35: Técnicas públicas de Chihuahua en localidades de baja y muy baja marginación
B36: 80
B37: 77
B38: 75
B39: SI
B40: SI
B41: 08DST0041A VESPERTINO
B42: Técnica Pública
B43: SECUNDARIA TECNICA INDUSTRIAL FEDERAL TRANSFERIDO
B44: Baja y Muy baja
B45: Técnicas públicas de Chihuahua en localidades de baja y muy baja marginación
B46: 80
B47: 75
B48: 70
B49: SI
B50: SI
B51: SECUNDARIA TECNICA 38
B52: IMPRESORES S/N
B53: 08DST0038N MATUTINO
B54: Técnica Pública
B55: SECUNDARIA TECNICA INDUSTRIAL FEDERAL TRANSFERIDO
B56: Baja y Muy baja
B57: Técnicas públicas de Chihuahua en localidades de baja y muy baja marginación
B58: 80
B59: 71
B60: 71
B61: SI
B62: SI
B63: SECUNDARIA TECNICA 47
B64: GABRIEL GARCIA MARQUEZ Y V. FUENTES
B65: 08DST0047V MATUTINO
B66: Técnica Pública
B67: SECUNDARIA TECNICA INDUSTRIAL FEDERAL TRANSFERIDO
B68: Baja y Muy baja
B69: Técnicas públicas de Chihuahua en localidades de baja y muy baja marginación
B70: 80
B71: 75
B72: 75
B73: SI
B74: SI
B75: 08DST0047V VESPERTINO
B76: Técnica Pública
B77: SECUNDARIA TECNICA INDUSTRIAL FEDERAL TRANSFERIDO
B78: Baja y Muy baja
B79: Técnicas públicas de Chihuahua en localidades de baja y muy baja marginación
B80: 80
B81: 67
B82: 68
B83: SI
B84: SI
B85: SECUNDARIA TECNICA 86
B86: FERVOR PATRIO 6412
B87: 08DST0086X MATUTINO
B88: Técnica Pública
B89: SECUNDARIA TECNICA INDUSTRIAL FEDERAL TRANSFERIDO
B90: Baja y Muy baja
B91: Técnicas públicas de Chihuahua en localidades de baja y muy baja marginación
B92: 80
B93: 65
B94: 64
B95: SI
B96: SI

Sheet NIV_LYC_ZONA (hidden)
A1: PORCENTAJES DE DESEMPEÑO POR ZONA ESCOLAR EN CADA NIVEL (LENGUAJE Y COMUNICACIÓN)
R2: Esta hoja contiene dos gráficos. El de arriba muestra los porcentajes globales como promedio de todas las escuelas de la zona. El gráfico de abajo desagrega cada una de las escuelas en cada nivel de desempeño.
I3: ZONA | J3: NILyC | K3: NIILyC | L3: NIIILyC | M3: NIVLyC
I4: 001 | J4: 29.55 | K4: 35.1 | L4: 19.35 | M4: 16.025
O6: CONTINÚE CON EL ANÁLISIS
S26: O BIEN AL ANÁLISIS DE MATEMÁTICAS
D29: NIVELES DE DESEMPEÑO EN LAS ESCUELAS DE LA ZONA SELECCIONADA

Sheet %NIV_MAT (hidden)
A1: PORCENTAJES DE DESEMPEÑO POR ESCUELA EN CADA NIVEL DE DESEMPEÑO EN PLANEA 2017 (MATEMÁTICAS)
C3: % | I3: ZONA
I4: 002
I5: ALTAVISTA
I6: ALVARO OBREGON
I7: COLEGIO MEXICO LIBRE
I8: EMILIANO ZAPATA
I9: ESCUADRON 201
I10: ESCUELA SECUNDARIA FEDERAL NO. 21
I11: FRANCISCO I. MADERO
I12: FRANCISCO VILLA
I13: JOSEFINA VEGA ORTIZ
I14: LAZARO CARDENAS DEL RIO
I15: LUIS DONALDO COLOSIO MURRIETA
I16: OCTAVIO PAZ
I17: RAFAEL RAMIREZ
I18: ROSARIO CASTELLANOS
I19: SECUNDARIA GENERAL ES-23
I20: SECUNDARIA GENERAL NO.1
I21: SECUNDARIA TECNICA 44
I22: SECUNDARIA TECNICA 56
I23: SECUNDARIA TECNICA 64
I24: SECUNDARIA TECNICA 73
I25: SECUNDARIA TECNICA 95
I26: TELESECUNDARIA 6209
I27: TELESECUNDARIA FEDERAL
I28: TELESECUNDARIA FEDERALIZADA

Sheet UD_LYC_ZONA (hidden)
A1: PORCENTAJE DE ACIERTOS POR CADA UNIDAD DE DIAGNÓSTICO (GLOBAL ZONA) LENGUAJE Y LITERATURA
U10: Esta hoja contiene dos gráficos. El de arriba muestra los porcentajes globales como promedio de todas las escuelas de la zona EN LAS UNIDADES DE DIAGNÓSTICO. El gráfico de abajo desagrega cada una de las escuelas en cada UNIDAD DE DIAGNÓSTICO.
B30: PORCENTAJE DE ACIERTOS EN CADA UNIDAD DE DIAGNÓSTICO EN LENGUAJE Y LITERATURA | S30: CONTINÚE AQUÍ SI DESEA ANALILZAR OTRA ZONA, PARA IR A MATEMÁTICAS O SALIR DE ESTA SECCIÓN

Sheet CTX_ESC (hidden)
B3: CONTEXTO DE LA ESCUELA EN PLANEA 2017
A4: MUNICIPIO
A5: LOCALIDAD
A6: ZONA ESCOLAR
A7: NOMBRE DE LA ESCUELA
A8: DIRECCIÓN
A9: TURNO
A10: MODALIDAD
A11: SOSTENIMIENTO
A12: GRADO DE MARGINALIDAD
A13: TIPO DE ESCUELA EN EL PAÍS
A14: CONVOCADOS
A15: ASISTENTES LENGUAJE Y COMUNICACIÓN
A16: ASISTENTES MATEMÁTICAS
A17: REPRESENTATIVO LYC
A18: REPRESENTATIVO MAT

Sheet NIV_MAT_ZONA (hidden)
A1: PORCENTAJES DE DESEMPEÑO POR ZONA ESCOLAR EN CADA NIVEL DE PLANEA 2017 (MATEMÁTICAS)
P21: Esta hoja contiene dos gráficos. El de arriba muestra los porcentajes globales como promedio de todas las escuelas de la zona. El gráfico de abajo desagrega cada una de las escuelas en cada nivel de desempeño.
N23: CONTINÚE EL ANÁLISIS
D31: PORCENTAJE DE ACIERTOS EN UNIDADES DE DIAGNÓSTICO EN MATEMÁTICAS

Sheet UD_MAT_ZONA (hidden)
A1: UNIDADES DE DIAGNÓSTICO EN CADA UNIDAD DE DIAGNÓSTICO (GLOBAL ZONA)
R7: Esta hoja contiene dos gráficos. El de arriba muestra los porcentajes globales como promedio de todas las escuelas de la zona EN LAS UNIDADES DE DIAGNÓSTICO. El gráfico de abajo desagrega cada una de las escuelas en cada UNIDAD DE DIAGNÓSTICO.
Q25: CONTINÚE AQUÍ SI DESEA ANALILZAR OTRA ZONA O SALIR DE ESTA SECCIÓN
D29: PORCENTAJE DE ACIERTOS EN CADA UNIDAD DE DIAGNÓSTICO (ESCUELAS DE LA ZONA)

Sheet NIV_LYC_ESC (hidden)
A1: ESCUELAS DE LA ZONA ESCOLAR | E1: NIVEL DE DESEMPEÑO EN LENGUAJE Y COMUNICACIÓN POR CADA ESCUELA DE LA ZONA ESCOLAR
D4: NIVELES EN LENGUAJE Y COMUNICACIÓN | N4: NIVELES DE DESEMPEÑO EN MATEMÁTICAS
A10: ANTES DE CONTINUAR POR FAVOR SELECCIONE UNA ESCUELA | D10: UNIDADES DE DESEMPEÑO EN LENGUAJE Y COMUNICACIÓN

Sheet UD_LYC_ESC (hidden)
A1: UNIDADES DE DIAGNÓSTICO EN LENGUAJE Y COMUNICACIÓN
K26: NIV_LYC_ESC
A29: ANALICE E INTREPRETE LOS DATOS DEL GRÁFICO. EMITA Y ESCRIBA UN COMENTARIO BREVE AL RESPECTO.

Sheet NIV_MAT_ESC (hidden)
A1: NIVEL DE DESEMPEÑO EN MATEMÁTICAS

Sheet UD_MAT_ESC (hidden)
A1: UNIDADES DE DIAGNÓSTICO EN MATEMÁTICAS

Sheet SELECCION_ESC (hidden)
B4: SELECCIONE LA ESCUELA QUE DESEE ANALIZAR
E10: F
I12: ok | J12: CONFIRM
F19: SE OCULTA

Sheet CONFIRM (hidden)
F3: PASO 1: SELECCIONAR LA MODALIDAD
B6: ES NECESARIO CONFIRMAR LA MODALIDAD, LA CCT Y EL TURNO DE LA ESCUELA F
F10: *LOS DATOS DE LA ESCUELA NO APRECERÁN SI ANTES NO SE SELECCIONA UNA.
F17: PASO 2: SELECCIONAR LA ESCUELA
F27: Observar el turno de la escuela

Sheet UD_LYC_1 (hidden)
P3: LYC2 | Q3: Identificar una definición.
P4: LYC3 | Q4: Identificar una explicación.
P5: LYC6 | Q5: Identificar las características de un mensaje publicitario.
P6: LYC9 | Q6: Identificar la función de algunos recursos visuales en un mensaje publicitario.
P7: LYC13 | Q7: Identificar las formas de tratar un mismo tema en dos relatos míticos de culturas diferentes.
P8: LYC30 | Q8: Reconocer el (los) argumento(s) que apoyen el hecho X.
P9: LYC32 | Q9: Analizar las descripciones que se establecen frente a los hechos.
P10: LYC35 | Q10: Elegir los contenidos que podría tener un programa de radio.
P11: LYC36 | Q11: Elegir los contenidos que deben presentarse en una sección.
P12: LYC42 | Q12: Seleccionar el fragmento de información que ejemplifica el concepto X en la monografía.
N13: F | P13: LYC43 | Q13: Identificar la relación causal que existe entre un hecho y su explicación en texto monográfico.
P14: LYC44 | Q14: Interpretar gráficas, diagramas o esquemas.
A27: ANALICE E INTREPRETE LOS DATOS DEL GRÁFICO. EMITA Y ESCRIBA UN COMENTARIO BREVE AL RESPECTO.

Sheet UD_LYC_2 (hidden)
P4: LYC4 | Q4: Seleccionar un enunciado que captura la esencia del texto a manera de oración temática no explicita en el texto.
P5: LYC7 | Q5: Identificar la función de un mensaje publicitario.
P6: LYC10 | Q6: Reconocer características de los personajes míticos.
P7: LYC11 | Q7: Reconocer los hechos recurrentes en dos mitos con el mismo tema.
P8: LYC22 | Q8: Identificar el tema de la secuencia (unidad temática).
P9: LYC26 | Q9: Reconstruir la trama.
P10: LYC29 | Q10: Identificar las circunstancias sociales de la época.
P11: LYC37 | Q11: Identificar la trama de cuento.
P12: LYC38 | Q12: Reconstruir las características de un personaje.
P13: LYC39 | Q13: Identificar el estilo de vida, costumbres, tradiciones de la época.
A28: ANALICE E INTREPRETE LOS DATOS DEL GRÁFICO. EMITA Y ESCRIBA UN COMENTARIO BREVE AL RESPECTO.

Sheet UD_LYC_3 (hidden)
Q5: LYC19 | R5: Identificar preguntas pertinentes y no pertinentes de acuerdo al objetivo de una encuesta.
Q6: LYC21 | R6: Seleccionar la pregunta que permite obtener información específica.
Q7: LYC23 | R7: Interpretar las acciones de un personaje en relación con las acciones de los otros personajes.
Q8: LYC27 | R8: Identificar el ambiente de un fragmento de una obra de teatro.
Q9: LYC33 | R9: Resolver un problema interpretando la información de una gráfica (diagrama o esquema) que acompaña al texto.
Q10: LYC41 | R10: Distinguir ideas que resulten relevantes de acuerdo con los propósitos de búsqueda.
Q11: LYC45 | R11: Elegir la pregunta que sirvió de base para construir la gráfica.
Q12: LYC46 | R12: Elegir los datos adecuados para la organización de una tabla a partir de la lectura de una gráfica.
Q13: LYC47 | R13: Identificar la información que añade un dato específico a una gráfica.
A29: ANALICE E INTREPRETE LOS DATOS DEL GRÁFICO. EMITA Y ESCRIBA UN COMENTARIO BREVE AL RESPECTO.

Sheet UD_LYC_4 (hidden)
P7: LYC1 | Q7: Reconocer una pregunta relevante a investigar dado un tema y un propósito específico de estudio.
P8: LYC12 | Q8: Identificar los valores que representan dos mitos con el mismo tema.
P9: LYC14 | Q9: Valorar las estrategias discursivas utilizadas en el debate.
P10: LYC15 | Q10: Evaluar las secuencias argumentativas de todo el debate.
P11: LYC17 | Q11: Seleccionar la opción que contenga la garantía que existe entre punto de vista y justificación.
P12: LYC18 | Q12: Seleccionar de un listado de preguntas la pertinente a un propósito específico.
P13: LYC31 | Q13: Evaluar los argumentos utilizados para apoyar una aserción.
P14: LYC48 | Q14: Seleccionar las razones por las cuales la diversidad lingüística de México es una riqueza.
P15: LYC49 | Q15: Identificar las ventajas de hablar más de una lengua.
P16: LYC50 | Q16: Valorar la riqueza en las formas de hablar de distintos grupos hispanohablantes.
A27: ANALICE E INTREPRETE LOS DATOS DEL GRÁFICO. EMITA Y ESCRIBA UN COMENTARIO BREVE AL RESPECTO.

Sheet UD_LYC_5 (hidden)
N7: LYC5 | O7: Identificar los significados de una misma palabra en diferentes regiones.
N8: LYC8 | O8: Identificar las características de algunos recursos lingüísticos usados en mensajes publicitarios.
N9: LYC16 | O9: Seleccionar las conexiones lógicas que organizan un argumento diferente al anterior.
N10: LYC40 | O10: Identificar en un fragmento de cuento indigenismos o regionalismos o extranjerismo.
N11: LYC24 | O11: Identificar los diálogos rimados de la obra.
A20: ANALICE E INTREPRETE LOS DATOS DEL GRÁFICO. EMITA Y ESCRIBA UN COMENTARIO BREVE AL RESPECTO.

Sheet OPCION_RESP_LyC (hidden)
AV1: PORCENTAJES POR CADA OPCIÓN DE RESUPUESTA EN CADA REACTIVO DE LENGUAJE Y COMUNICACIÓN
A4: LYC_RESP_1 | B4: LYC_RESP_2 | C4: LYC_RESP_3 | D4: LYC_RESP_4 | E4: LYC_RESP_5 | F4: LYC_RESP_6 | G4: LYC_RESP_7 | H4: LYC_RESP_8 | I4: LYC_RESP_9 | J4: LYC_RESP_10 | K4: LYC_RESP_11 | L4: LYC_RESP_12 | M4: LYC_RESP_13 | N4: LYC_RESP_14 | O4: LYC_RESP_15 | P4: LYC_RESP_16 | Q4: LYC_RESP_17 | R4: LYC_RESP_18 | S4: LYC_RESP_19 | T4: LYC_RESP_21 | U4: LYC_RESP_22 | V4: LYC_RESP_23 | W4: LYC_RESP_24 | X4: LYC_RESP_26 | Y4: LYC_RESP_27 | Z4: LYC_RESP_29 | AA4: LYC_RESP_30 | AB4: LYC_RESP_31 | AC4: LYC_RESP_32 | AD4: LYC_RESP_33 | AE4: LYC_RESP_34 | AF4: LYC_RESP_35 | AG4: LYC_RESP_36 | AH4: LYC_RESP_37 | AI4: LYC_RESP_38 | AJ4: LYC_RESP_39 | AK4: LYC_RESP_40 | AL4: LYC_RESP_41 | AM4: LYC_RESP_42 | AN4: LYC_RESP_43 | AO4: LYC_RESP_44 | AP4: LYC_RESP_45 | AQ4: LYC_RESP_46 | AR4: LYC_RESP_47 | AS4: LYC_RESP_48 | AT4: LYC_RESP_49 | AU4: LYC_RESP_50 | AW4: A | AX4: B | AY4: C | AZ4: D | BC4: A | BD4: B | BE4: C | BF4: D | BG4: C | BH4: El color verde en la tabla indica que es la opción correcta
A5: (en blanco) | B5: (en blanco) | C5: (en blanco) | D5: (en blanco) | E5: (en blanco) | F5: (en blanco) | G5: (en blanco) | H5: (en blanco) | I5: (en blanco) | J5: (en blanco) | K5: (en blanco) | L5: (en blanco) | M5: (en blanco) | N5: (en blanco) | O5: (en blanco) | P5: (en blanco) | Q5: (en blanco) | R5: (en blanco) | S5: (en blanco) | T5: (en blanco) | U5: (en blanco) | V5: (en blanco) | W5: (en blanco) | X5: (en blanco) | Y5: (en blanco) | Z5: (en blanco) | AA5: (en blanco) | AB5: (en blanco) | AC5: (en blanco) | AD5: (en blanco) | AE5: (en blanco) | AF5: (en blanco) | AG5: (en blanco) | AH5: (en blanco) | AI5: (en blanco) | AJ5: (en blanco) | AK5: (en blanco) | AL5: (en blanco) | AM5: (en blanco) | AN5: (en blanco) | AO5: (en blanco) | AP5: (en blanco) | AQ5: (en blanco) | AR5: (en blanco) | AS5: (en blanco) | AT5: (en blanco) | AU5: (en blanco) | AV5: NÚMERO DE REACTIVO | AW5: CANTIDAD | BA5: SELECCIONE AQUÍ LOS REACTIVOS | BC5: PORCENTAJES DE RESPUESTA POR CADA REACTIVO
A6: (en blanco) | B6: (en blanco) | C6: (en blanco) | D6: (en blanco) | E6: 3 | F6: 1 | G6: 3 | H6: 2 | I6: 2 | J6: 3 | K6: 2 | L6: 2 | M6: 4 | N6: 2 | O6: 4 | P6: 4 | Q6: 3 | R6: 4 | S6: 2 | T6: 2 | U6: 2 | V6: 2 | W6: 3 | X6: 1 | Y6: 4 | Z6: 4 | AA6: 1 | AB6: 3 | AC6: 4 | AD6: 3 | AE6: 1 | AF6: 4 | AG6: (en blanco) | AH6: 4 | AI6: 3 | AJ6: 1 | AK6: 4 | AL6: 2 | AM6: 3 | AN6: 4 | AO6: 3 | AP6: 4 | AQ6: 1 | AR6: 2 | AS6: 3 | AT6: 4 | AU6: 3 | AW6: 1 | AX6: 2 | AY6: 3 | AZ6: 4 | BA6: SUMA | BC6: A | BD6: B | BE6: C | BF6: D
A7: (en blanco) | B7: 1 | C7: (en blanco) | D7: 4 | E7: 3 | F7: 1 | G7: 4 | H7: 2 | I7: 2 | J7: 3 | K7: 3 | L7: 4 | M7: 1 | N7: 1 | O7: 3 | P7: 2 | Q7: 4 | R7: 1 | S7: 2 | T7: 1 | U7: 3 | V7: 3 | W7: 3 | X7: 2 | Y7: 1 | Z7: 4 | AA7: 1 | AB7: 3 | AC7: 4 | AD7: 4 | AE7: 2 | AF7: 1 | AG7: 3 | AH7: 2 | AI7: 4 | AJ7: 1 | AK7: 1 | AL7: 1 | AM7: 4 | AN7: 4 | AO7: 3 | AP7: 4 | AQ7: 1 | AR7: 2 | AS7: 4 | AT7: 2 | AU7: 3 | AV7: P1 | AW7: =COUNTIF($A:$A,$AW$6) -> 559 | AX7: =COUNTIF($A:$A,$AX$6) -> 3086 | AY7: =COUNTIF($A:$A,$AY$6) -> 596 | AZ7: =COUNTIF($A:$A,$AZ$6) -> 650 | BA7: =SUM(AW7:AZ7) -> 4891 | BB7: P1 | BC7: =(AW7*100)/BA7 -> 11.42915559 | BD7: =(AX7*100)/BA7 -> 63.0954815 | BE7: =(AY7*100)/BA7 -> 12.18564711 | BF7: =(AZ7*100)/BA7 -> 13.2897158
A8: (en blanco) | B8: 1 | C8: 1 | D8: 3 | E8: 1 | F8: 1 | G8: 3 | H8: 2 | I8: 1 | J8: 3 | K8: 2 | L8: 1 | M8: 1 | N8: 1 | O8: 2 | P8: 3 | Q8: 2 | R8: 1 | S8: 2 | T8: 2 | U8: 3 | V8: 1 | W8: 1 | X8: 3 | Y8: 2 | Z8: 1 | AA8: 1 | AB8: 3 | AC8: 2 | AD8: 3 | AE8: 2 | AF8: 4 | AG8: 4 | AH8: 2 | AI8: 4 | AJ8: 1 | AK8: 3 | AL8: 2 | AM8: 1 | AN8: 2 | AO8: 1 | AP8: 2 | AQ8: 3 | AR8: 2 | AS8: 2 | AT8: 4 | AU8: 2 | AV8: P2 | AW8: =COUNTIF($B:$B,$AW$6) -> 4054 | AX8: =COUNTIF($B:$B,$AX$6) -> 168 | AY8: =COUNTIF($B:$B,$AY$6) -> 337 | AZ8: =COUNTIF($B:$B,$AZ$6) -> 333 | BA8: =SUM(AW8:AZ8) -> 4892 | BB8: P2 | BC8: =(AW8*100)/BA8 -> 82.86999182 | BD8: =(AX8*100)/BA8 -> 3.43417825 | BE8: =(AY8*100)/BA8 -> 6.888798038 | BF8: =(AZ8*100)/BA8 -> 6.807031889
A9: (en blanco) | B9: 1 | C9: 1 | D9: 4 | E9: 3 | F9: 1 | G9: 3 | H9: 2 | I9: 2 | J9: 3 | K9: 2 | L9: 2 | M9: 1 | N9: 2 | O9: 4 | P9: 2 | Q9: 1 | R9: 4 | S9: 2 | T9: 1 | U9: 4 | V9: 2 | W9: 3 | X9: 4 | Y9: 3 | Z9: 1 | AA9: 3 | AB9: 3 | AC9: 2 | AD9: 2 | AE9: 1 | AF9: 4 | AG9: 3 | AH9: 3 | AI9: 4 | AJ9: 3 | AK9: 4 | AL9: 1 | AM9: 4 | AN9: 2 | AO9: 3 | AP9: 4 | AQ9: 1 | AR9: 2 | AS9: 2 | AT9: 3 | AU9: 3 | AV9: P3 | AW9: =COUNTIF($C:$C,$AW$6) -> 1019 | AX9: =COUNTIF($C:$C,$AX$6) -> 343 | AY9: =COUNTIF($C:$C,$AY$6) -> 3303 | AZ9: =COUNTIF($C:$C,$AZ$6) -> 223 | BA9: 4888 | BB9: P3 | BC9: 20.84697218 | BD9: 7.017184943 | BE9: 67.57364975 | BF9: 4.562193126
A10: (en blanco) | B10: 1 | C10: 3 | D10: (en blanco) | E10: (en blanco) | F10: 1 | G10: 3 | H10: 2 | I10: 2 | J10: 3 | K10: 2 | L10: 1 | M10: 1 | N10: 2 | O10: 4 | P10: 2 | Q10: 1 | R10: 3 | S10: 2 | T10: 1 | U10: 4 | V10: 2 | W10: 3 | X10: 3 | Y10: 3 | Z10: 4 | AA10: 1 | AB10: 2 | AC10: 3 | AD10: 1 | AE10: 3 | AF10: 4 | AG10: 2 | AH10: 3 | AI10: 4 | AJ10: 1 | AK10: 1 | AL10: 4 | AM10: 4 | AN10: 3 | AO10: 3 | AP10: 4 | AQ10: 1 | AR10: 2 | AS10: 2 | AT10: 2 | AU10: 3 | AV10: P4 | AW10: =COUNTIF($D:$D,$AW$6) -> 277 | AX10: =COUNTIF($D:$D,$AX$6) -> 309 | AY10: =COUNTIF($D:$D,$AY$6) -> 529 | AZ10: =COUNTIF($D:$D,$AZ$6) -> 3773 | BA10: 4888 | BB10: P4 | BC10: 5.666939444 | BD10: 6.321603928 | BE10: 10.82242226 | BF10: 77.18903437
A11: (en blanco) | B11: 1 | C11: 3 | D11: 2 | E11: 1 | F11: 1 | G11: 3 | H11: 2 | I11: 2 | J11: 3 | K11: 1 | L11: 4 | M11: 1 | N11: 2 | O11: 2 | P11: 2 | Q11: 4 | R11: 4 | S11: 3 | T11: 1 | U11: 3 | V11: 1 | W11: 4 | X11: 2 | Y11: 3 | Z11: 1 | AA11: (en blanco) | AB11: 1 | AC11: 2 | AD11: 4 | AE11: 2 | AF11: 4 | AG11: 3 | AH11: 4 | AI11: 3 | AJ11: 2 | AK11: 1 | AL11: 3 | AM11: 1 | AN11: 2 | AO11: 3 | AP11: 4 | AQ11: 1 | AR11: 2 | AS11: 2 | AT11: 2 | AU11: 1 | AV11: P5 | AW11: =COUNTIF($E:$E,$AW$6) -> 720 | AX11: =COUNTIF($E:$E,$AX$6) -> 769 | AY11: =COUNTIF($E:$E,$AY$6) -> 2962 | AZ11: =COUNTIF($E:$E,$AZ$6) -> 433 | BA11: 4884 | BB11: P5 | BC11: 14.74201474 | BD11: 15.74529075 | BE11: 60.64701065 | BF11: 8.865683866
A12: (en blanco) | B12: 1 | C12: 3 | D12: 4 | E12: 2 | F12: 1 | G12: 2 | H12: 2 | I12: 2 | J12: 3 | K12: 2 | L12: 1 | M12: 1 | N12: 2 | O12: 4 | P12: 1 | Q12: 1 | R12: 2 | S12: 2 | T12: 1 | U12: 4 | V12: 2 | W12: 3 | X12: 4 | Y12: 3 | Z12: 1 | AA12: 3 | AB12: (en blanco) | AC12: 4 | AD12: 1 | AE12: 3 | AF12: 4 | AG12: 1 | AH12: 2 | AI12: 4 | AJ12: 1 | AK12: 1 | AL12: 1 | AM12: 4 | AN12: 4 | AO12: 3 | AP12: 4 | AQ12: 2 | AR12: 1 | AS12: 3 | AT12: 1 | AU12: 1 | AV12: P6 | AW12: =COUNTIF($F:$F,$AW$6) -> 3785 | AX12: =COUNTIF($F:$F,$AX$6) -> 894 | AY12: =COUNTIF($F:$F,$AY$6) -> 49 | AZ12: =COUNTIF($F:$F,$AZ$6) -> 162 | BA12: 4890 | BB12: P6 | BC12: 77.40286299 | BD12: 18.28220859 | BE12: 1.00204499 | BF12: 3.312883436
A13: (en blanco) | B13: 1 | C13: 3 | D13: 4 | E13: 3 | F13: 1 | G13: 3 | H13: 2 | I13: 2 | J13: 3 | K13: 2 | L13: 1 | M13: 1 | N13: 2 | O13: 4 | P13: 3 | Q13: 1 | R13: 4 | S13: 2 | T13: 2 | U13: 4 | V13: 2 | W13: 3 | X13: 4 | Y13: 3 | Z13: 1 | AA13: 1 | AB13: 3 | AC13: 4 | AD13: 1 | AE13: 3 | AF13: 3 | AG13: 1 | AH13: 1 | AI13: 4 | AJ13: 1 | AK13: 4 | AL13: 3 | AM13: 4 | AN13: 4 | AO13: 2 | AP13: 4 | AQ13: 1 | AR13: 2 | AS13: 3 | AT13: 2 | AU13: 3 | AV13: P7 | AW13: =COUNTIF($G:$G,$AW$6) -> 195 | AX13: =COUNTIF($G:$G,$AX$6) -> 1040 | AY13: =COUNTIF($G:$G,$AY$6) -> 3385 | AZ13: =COUNTIF($G:$G,$AZ$6) -> 273 | BA13: 4893 | BB13: P7 | BC13: 3.985285101 | BD13: 21.25485387 | BE13: 69.18046188 | BF13: 5.579399142
A14: (en blanco) | B14: 1 | C14: 3 | D14: 4 | E14: 3 | F14: 2 | G14: 3 | H14: 2 | I14: 2 | J14: 3 | K14: 4 | L14: 1 | M14: 1 | N14: 2 | O14: 4 | P14: 1 | Q14: 1 | R14: 4 | S14: 1 | T14: 2 | U14: 4 | V14: 2 | W14: 3 | X14: 4 | Y14: 4 | Z14: 4 | AA14: 2 | AB14: 1 | AC14: 4 | AD14: 4 | AE14: 3 | AF14: 2 | AG14: 1 | AH14: 3 | AI14: 2 | AJ14: 1 | AK14: 1 | AL14: 2 | AM14: 3 | AN14: 1 | AO14: 4 | AP14: 4 | AQ14: 1 | AR14: 3 | AS14: 2 | AT14: 2 | AU14: 1 | AV14: P8 | AW14: =COUNTIF($H:$H,$AW$6) -> 366 | AX14: =COUNTIF($H:$H,$AX$6) -> 4250 | AY14: =COUNTIF($H:$H,$AY$6) -> 242 | AZ14: =COUNTIF($H:$H,$AZ$6) -> 40 | BA14: 4898 | BB14: P8 | BC14: 7.47243773 | BD14: 86.77011025 | BE14: 4.94079216 | BF14: 0.8166598612
A15: 1 | B15: (en blanco) | C15: 3 | D15: 1 | E15: 3 | F15: 1 | G15: 2 | H15: 1 | I15: 2 | J15: 3 | K15: 2 | L15: 4 | M15: 1 | N15: 2 | O15: 2 | P15: 4 | Q15: 1 | R15: 4 | S15: 2 | T15: 2 | U15: 4 | V15: 2 | W15: 3 | X15: 1 | Y15: 4 | Z15: 1 | AA15: 2 | AB15: 1 | AC15: 2 | AD15: 2 | AE15: 1 | AF15: 4 | AG15: 2 | AH15: 1 | AI15: 2 | AJ15: 1 | AK15: 1 | AL15: 3 | AM15: 3 | AN15: 4 | AO15: 3 | AP15: 4 | AQ15: 1 | AR15: 1 | AS15: 2 | AT15: 4 | AU15: 3 | AV15: P9 | AW15: =COUNTIF($I:$I,$AW$6) -> 102 | AX15: =COUNTIF($I:$I,$AX$6) -> 4481 | AY15: =COUNTIF($I:$I,$AY$6) -> 123 | AZ15: =COUNTIF($I:$I,$AZ$6) -> 193 | BA15: 4899 | BB15: P9 | BC15: 2.082057563 | BD15: 91.46764646 | BE15: 2.510716473 | BF15: 3.939579506
A16: 1 | B16: (en blanco) | C16: 4 | D16: 4 | E16: 1 | F16: 2 | G16: 3 | H16: 2 | I16: 2 | J16: 3 | K16: 1 | L16: 1 | M16: 4 | N16: 1 | O16: 3 | P16: 3 | Q16: 2 | R16: 2 | S16: 1 | T16: 4 | U16: 3 | V16: 1 | W16: 3 | X16: 4 | Y16: 4 | Z16: 2 | AA16: 2 | AB16: 1 | AC16: 1 | AD16: 3 | AE16: 3 | AF16: 4 | AG16: 1 | AH16: 3 | AI16: 4 | AJ16: 1 | AK16: 1 | AL16: 2 | AM16: 3 | AN16: 1 | AO16: 4 | AP16: 3 | AQ16: 1 | AR16: 2 | AS16: 4 | AT16: 3 | AU16: 3 | AV16: P10 | AW16: =COUNTIF($J:$J,$AW$6) -> 162 | AX16: =COUNTIF($J:$J,$AX$6) -> 285 | AY16: =COUNTIF($J:$J,$AY$6) -> 4172 | AZ16: =COUNTIF($J:$J,$AZ$6) -> 278 | BA16: 4897 | BB16: P10 | BC16: 3.308147846 | BD16: 5.819889728 | BE16: 85.19501736 | BF16: 5.676945068
A17: 1 | B17: 1 | C17: 1 | D17: 1 | E17: 1 | F17: 1 | G17: 3 | H17: 2 | I17: 2 | J17: 3 | K17: 3 | L17: 1 | M17: 1 | N17: 2 | O17: 4 | P17: 1 | Q17: 4 | R17: 4 | S17: 2 | T17: 3 | U17: 4 | V17: 4 | W17: 2 | X17: 2 | Y17: 4 | Z17: 4 | AA17: 1 | AB17: 4 | AC17: 1 | AD17: 3 | AE17: 1 | AF17: 3 | AG17: 4 | AH17: 3 | AI17: 4 | AJ17: 1 | AK17: 1 | AL17: 1 | AM17: 1 | AN17: 4 | AO17: 1 | AP17: 4 | AQ17: 1 | AR17: 1 | AS17: 4 | AT17: 2 | AU17: 4 | AV17: P11 | AW17: =COUNTIF($K:$K,$AW$6) -> 996 | AX17: =COUNTIF($K:$K,$AX$6) -> 3065 | AY17: =COUNTIF($K:$K,$AY$6) -> 444 | AZ17: =COUNTIF($K:$K,$AZ$6) -> 386 | BA17: 4891 | BB17: P11 | BC17: 20.36393376 | BD17: 62.66612145 | BE17: 9.07789818 | BF17: 7.892046616
A18: 1 | B18: 1 | C18: 1 | D18: 1 | E18: 1 | F18: 2 | G18: 1 | H18: 2 | I18: 2 | J18: 2 | K18: 1 | L18: 3 | M18: 3 | N18: 2 | O18: 3 | P18: 3 | Q18: 3 | R18: 4 | S18: 4 | T18: 1 | U18: 3 | V18: 1 | W18: 3 | X18: 1 | Y18: 4 | Z18: 3 | AA18: 3 | AB18: 1 | AC18: 3 | AD18: 1 | AE18: 4 | AF18: 4 | AG18: 2 | AH18: 2 | AI18: 2 | AJ18: 4 | AK18: 3 | AL18: 4 | AM18: 3 | AN18: 2 | AO18: 1 | AP18: 2 | AQ18: 3 | AR18: 3 | AS18: 1 | AT18: 4 | AU18: 2 | AV18: P12 | AW18: =COUNTIF($L:$L,$AW$6) -> 3335 | AX18: =COUNTIF($L:$L,$AX$6) -> 717 | AY18: =COUNTIF($L:$L,$AY$6) -> 556 | AZ18: =COUNTIF($L:$L,$AZ$6) -> 288 | BA18: 4896 | BB18: P12 | BC18: 68.11683007 | BD18: 14.64460784 | BE18: 11.35620915 | BF18: 5.882352941
A19: 1 | B19: 1 | C19: 1 | D19: 1 | E19: 2 | F19: 1 | G19: 2 | H19: 1 | I19: 2 | J19: 4 | K19: 2 | L19: 1 | M19: 1 | N19: 2 | O19: 1 | P19: 1 | Q19: 1 | R19: 4 | S19: 2 | T19: 2 | U19: 2 | V19: 1 | W19: 3 | X19: 3 | Y19: 4 | Z19: 4 | AA19: 3 | AB19: 1 | AC19: 2 | AD19: 1 | AE19: 1 | AF19: 2 | AG19: 2 | AH19: 2 | AI19: 4 | AJ19: 3 | AK19: 1 | AL19: 3 | AM19: 4 | AN19: 3 | AO19: 3 | AP19: 2 | AQ19: 4 | AR19: 3 | AS19: 2 | AT19: 2 | AU19: 4 | AV19: P13 | AW19: =COUNTIF($M:$M,$AW$6) -> 3625 | AX19: =COUNTIF($M:$M,$AX$6) -> 357 | AY19: =COUNTIF($M:$M,$AY$6) -> 331 | AZ19: =COUNTIF($M:$M,$AZ$6) -> 584 | BA19: 4897 | BB19: P13 | BC19: 74.02491321 | BD19: 7.29017766 | BE19: 6.759240351 | BF19: 11.92566878
A20: 1 | B20: 1 | C20: 1 | D20: 1 | E20: 2 | F20: 2 | G20: 3 | H20: 2 | I20: 2 | J20: 3 | K20: 2 | L20: 1 | M20: 1 | N20: 2 | O20: 4 | P20: 1 | Q20: 1 | R20: 4 | S20: 2 | T20: 2 | U20: 2 | V20: 2 | W20: 3 | X20: 4 | Y20: 4 | Z20: 1 | AA20: 1 | AB20: 1 | AC20: 4 | AD20: 1 | AE20: 1 | AF20: 3 | AG20: 2 | AH20: 1 | AI20: 3 | AJ20: 4 | AK20: 2 | AL20: 1 | AM20: 1 | AN20: 3 | AO20: 3 | AP20: 4 | AQ20: 2 | AR20: 1 | AS20: 4 | AT20: 1 | AU20: 3 | AV20: P14 | AW20: =COUNTIF($N:$N,$AW$6) -> 584 | AX20: =COUNTIF($N:$N,$AX$6) -> 3642 | AY20: =COUNTIF($N:$N,$AY$6) -> 401 | AZ20: =COUNTIF($N:$N,$AZ$6) -> 268 | BA20: 4895 | BB20: P14 | BC20: 11.93054137 | BD20: 74.40245148 | BE20: 8.192032686 | BF20: 5.474974464
A21: 1 | B21: 1 | C21: 1 | D21: 1 | E21: 2 | F21: 4 | G21: 2 | H21: 2 | I21: 2 | J21: 1 | K21: 1 | L21: 2 | M21: 2 | N21: 2 | O21: 1 | P21: 2 | Q21: 1 | R21: 3 | S21: 4 | T21: 1 | U21: 4 | V21: 3 | W21: 2 | X21: 1 | Y21: 1 | Z21: 4 | AA21: 2 | AB21: 1 | AC21: 4 | AD21: 2 | AE21: 3 | AF21: 1 | AG21: 3 | AH21: 1 | AI21: 3 | AJ21: 4 | AK21: 2 | AL21: 2 | AM21: 4 | AN21: 1 | AO21: 2 | AP21: 4 | AQ21: 2 | AR21: 3 | AS21: 1 | AT21: 1 | AU21: 4 | AV21: P15 | AW21: =COUNTIF($O:$O,$AW$6) -> 472 | AX21: =COUNTIF($O:$O,$AX$6) -> 796 | AY21: =COUNTIF($O:$O,$AY$6) -> 557 | AZ21: =COUNTIF($O:$O,$AZ$6) -> 3067 | BA21: 4892 | BB21: P15 | BC21: 9.64840556 | BD21: 16.27146361 | BE21: 11.38593622 | BF21: 62.6941946
A22: 1 | B22: 1 | C22: 1 | D22: 1 | E22: 3 | F22: 1 | G22: 3 | H22: 2 | I22: 3 | J22: 3 | K22: 2 | L22: 3 | M22: 4 | N22: 3 | O22: 2 | P22: 1 | Q22: 4 | R22: 2 | S22: 1 | T22: 2 | U22: 3 | V22: 2 | W22: 3 | X22: 2 | Y22: 4 | Z22: 1 | AA22: 3 | AB22: 3 | AC22: 2 | AD22: 1 | AE22: 3 | AF22: 1 | AG22: 3 | AH22: 2 | AI22: 2 | AJ22: 3 | AK22: 4 | AL22: 1 | AM22: 1 | AN22: 3 | AO22: 2 | AP22: 1 | AQ22: (en blanco) | AR22: 3 | AS22: 2 | AT22: 2 | AU22: 1 | AV22: P16 | AW22: =COUNTIF($P:$P,$AW$6) -> 1063 | AX22: =COUNTIF($P:$P,$AX$6) -> 1130 | AY22: =COUNTIF($P:$P,$AY$6) -> 2201 | AZ22: =COUNTIF($P:$P,$AZ$6) -> 499 | BA22: 4893 | BB22: P16 | BC22: 21.72491314 | BD22: 23.09421623 | BE22: 44.98262824 | BF22: 10.19824239
A23: 1 | B23: 1 | C23: 1 | D23: 1 | E23: 3 | F23: 1 | G23: 4 | H23: 2 | I23: 2 | J23: 3 | K23: 2 | L23: 1 | M23: 1 | N23: 2 | O23: 4 | P23: 4 | Q23: 1 | R23: 4 | S23: 2 | T23: 1 | U23: 4 | V23: 1 | W23: 3 | X23: 4 | Y23: 4 | Z23: 4 | AA23: 1 | AB23: 3 | AC23: 4 | AD23: 2 | AE23: 3 | AF23: 1 | AG23: 2 | AH23: 3 | AI23: 4 | AJ23: 3 | AK23: 1 | AL23: 3 | AM23: 4 | AN23: 2 | AO23: 2 | AP23: 4 | AQ23: 2 | AR23: 2 | AS23: 1 | AT23: 3 | AU23: 2 | AV23: P17 | AW23: =COUNTIF($Q:$Q,$AW$6) -> 3339 | AX23: =COUNTIF($Q:$Q,$AX$6) -> 675 | AY23: =COUNTIF($Q:$Q,$AY$6) -> 354 | AZ23: =COUNTIF($Q:$Q,$AZ$6) -> 526 | BA23: 4894 | BB23: P17 | BC23: 68.22639967 | BD23: 13.79239886 | BE23: 7.233346955 | BF23: 10.74785452
A24: 1 | B24: 1 | C24: 1 | D24: 1 | E24: 4 | F24: 1 | G24: 4 | H24: 3 | I24: 2 | J24: 3 | K24: 2 | L24: 1 | M24: 1 | N24: 2 | O24: 3 | P24: 1 | Q24: 1 | R24: 1 | S24: 1 | T24: 4 | U24: 1 | V24: 2 | W24: 3 | X24: 2 | Y24: 4 | Z24: 2 | AA24: 1 | AB24: 3 | AC24: 1 | AD24: 2 | AE24: 4 | AF24: 4 | AG24: 1 | AH24: 3 | AI24: 2 | AJ24: 1 | AK24: 2 | AL24: 1 | AM24: 2 | AN24: 1 | AO24: 2 | AP24: 4 | AQ24: 4 | AR24: 2 | AS24: 3 | AT24: 2 | AU24: 2 | AV24: P18 | AW24: =COUNTIF($R:$R,$AW$6) -> 811 | AX24: =COUNTIF($R:$R,$AX$6) -> 314 | AY24: =COUNTIF($R:$R,$AY$6) -> 220 | AZ24: =COUNTIF($R:$R,$AZ$6) -> 3553 | BA24: 4898 | BB24: P18 | BC24: 16.55777869 | BD24: 6.41077991 | BE24: 4.491629236 | BF24: 72.53981217
A25: 1 | B25: 1 | C25: 1 | D25: 2 | E25: 1 | F25: 1 | G25: 2 | H25: 2 | I25: 3 | J25: 4 | K25: 2 | L25: 3 | M25: 4 | N25: 3 | O25: 2 | P25: 3 | Q25: 4 | R25: 1 | S25: 1 | T25: 2 | U25: 3 | V25: 2 | W25: 1 | X25: 3 | Y25: 4 | Z25: 2 | AA25: 3 | AB25: 2 | AC25: 1 | AD25: 2 | AE25: 1 | AF25: 4 | AG25: 2 | AH25: 3 | AI25: 1 | AJ25: 3 | AK25: 4 | AL25: 1 | AM25: 2 | AN25: 3 | AO25: 4 | AP25: 3 | AQ25: 3 | AR25: 4 | AS25: 3 | AT25: 1 | AU25: 4 | AV25: P19 | AW25: =COUNTIF($S:$S,$AW$6) -> 554 | AX25: =COUNTIF($S:$S,$AX$6) -> 3647 | AY25: =COUNTIF($S:$S,$AY$6) -> 330 | AZ25: =COUNTIF($S:$S,$AZ$6) -> 369 | BA25: 4900 | BB25: P19 | BC25: 11.30612245 | BD25: 74.42857143 | BE25: 6.734693878 | BF25: 7.530612245
A26: 1 | B26: 1 | C26: 1 | D26: 2 | E26: 1 | F26: 1 | G26: 3 | H26: 1 | I26: 2 | J26: 3 | K26: 3 | L26: 3 | M26: 1 | N26: 2 | O26: 4 | P26: 3 | Q26: 2 | R26: 4 | S26: 2 | T26: 1 | U26: 4 | V26: 1 | W26: 3 | X26: 2 | Y26: 4 | Z26: 4 | AA26: 1 | AB26: 3 | AC26: 1 | AD26: 1 | AE26: 3 | AF26: 1 | AG26: 2 | AH26: 3 | AI26: 4 | AJ26: 1 | AK26: 1 | AL26: 2 | AM26: 4 | AN26: 4 | AO26: 3 | AP26: 4 | AQ26: 1 | AR26: 2 | AS26: 3 | AT26: 2 | AU26: 3 | AV26: P21 | AW26: =COUNTIF($T:$T,$AW$6) -> 2653 | AX26: =COUNTIF($T:$T,$AX$6) -> 1071 | AY26: =COUNTIF($T:$T,$AY$6) -> 627 | AZ26: =COUNTIF($T:$T,$AZ$6) -> 543 | BA26: 4894 | BB26: P21 | BC26: 54.2092358 | BD26: 21.88393952 | BE26: 12.81160605 | BF26: 11.09521864
A27: 1 | B27: 1 | C27: 1 | D27: 2 | E27: 1 | F27: 2 | G27: 2 | H27: 2 | I27: 2 | J27: 2 | K27: 2 | L27: 2 | M27: 1 | N27: 3 | O27: 2 | P27: 2 | Q27: 1 | R27: 3 | S27: 2 | T27: 3 | U27: 1 | V27: 2 | W27: 2 | X27: 4 | Y27: 3 | Z27: 1 | AA27: 1 | AB27: 2 | AC27: 3 | AD27: 1 | AE27: 1 | AF27: 2 | AG27: 1 | AH27: 1 | AI27: 2 | AJ27: 2 | AK27: 1 | AL27: 2 | AM27: 2 | AN27: 2 | AO27: 3 | AP27: 1 | AQ27: 1 | AR27: 1 | AS27: 2 | AT27: 2 | AU27: 2 | AV27: P22 | AW27: =COUNTIF($U:$U,$AW$6) -> 665 | AX27: =COUNTIF($U:$U,$AX$6) -> 818 | AY27: =COUNTIF($U:$U,$AY$6) -> 839 | AZ27: =COUNTIF($U:$U,$AZ$6) -> 2572 | BA27: 4894 | BB27: P22 | BC27: 13.58806702 | BD27: 16.71434409 | BE27: 17.14344095 | BF27: 52.55414794
A28: 1 | B28: 1 | C28: 1 | D28: 2 | E28: 1 | F28: 2 | G28: 2 | H28: 2 | I28: 2 | J28: 3 | K28: 2 | L28: 1 | M28: 2 | N28: 3 | O28: 2 | P28: 1 | Q28: 1 | R28: 4 | S28: 1 | T28: 2 | U28: 4 | V28: 4 | W28: 3 | X28: 2 | Y28: 2 | Z28: 3 | AA28: 4 | AB28: 4 | AC28: 1 | AD28: 3 | AE28: 2 | AF28: 1 | AG28: 3 | AH28: 1 | AI28: 3 | AJ28: 2 | AK28: 1 | AL28: 2 | AM28: 3 | AN28: 1 | AO28: 2 | AP28: 1 | AQ28: 2 | AR28: 3 | AS28: 1 | AT28: 4 | AU28: 3 | AV28: P23 | AW28: =COUNTIF($V:$V,$AW$6) -> 692 | AX28: =COUNTIF($V:$V,$AX$6) -> 2855 | AY28: =COUNTIF($V:$V,$AY$6) -> 692 | AZ28: =COUNTIF($V:$V,$AZ$6) -> 647 | BA28: 4886 | BB28: P23 | BC28: 14.16291445 | BD28: 58.43225542 | BE28: 14.16291445 | BF28: 13.24191568
A29: 1 | B29: 1 | C29: 1 | D29: 2 | E29: 1 | F29: 2 | G29: 3 | H29: 2 | I29: 2 | J29: 3 | K29: 3 | L29: 2 | M29: 1 | N29: 1 | O29: 2 | P29: 3 | Q29: 2 | R29: 1 | S29: 2 | T29: 1 | U29: 1 | V29: 2 | W29: 2 | X29: 3 | Y29: 4 | Z29: 2 | AA29: 1 | AB29: 2 | AC29: 3 | AD29: 2 | AE29: 1 | AF29: 2 | AG29: 4 | AH29: 2 | AI29: 4 | AJ29: 2 | AK29: 1 | AL29: 1 | AM29: 4 | AN29: 2 | AO29: 3 | AP29: 1 | AQ29: 4 | AR29: 2 | AS29: 2 | AT29: 4 | AU29: 3 | AV29: P24 | AW29: =COUNTIF($W:$W,$AW$6) -> 262 | AX29: =COUNTIF($W:$W,$AX$6) -> 463 | AY29: =COUNTIF($W:$W,$AY$6) -> 3669 | AZ29: =COUNTIF($W:$W,$AZ$6) -> 503 | BA29: 4897 | BB29: P24 | BC29: 5.350214417 | BD29: 9.454768225 | BE29: 74.9234225 | BF29: 10.27159485
A30: 1 | B30: 1 | C30: 1 | D30: 2 | E30: 1 | F30: 4 | G30: 2 | H30: 1 | I30: 1 | J30: 3 | K30: 1 | L30: 1 | M30: 1 | N30: 2 | O30: 2 | P30: 2 | Q30: 1 | R30: 2 | S30: 2 | T30: 4 | U30: 2 | V30: 1 | W30: 3 | X30: 1 | Y30: 1 | Z30: 1 | AA30: 1 | AB30: 3 | AC30: 2 | AD30: 1 | AE30: 3 | AF30: 1 | AG30: 2 | AH30: 1 | AI30: 2 | AJ30: 3 | AK30: 1 | AL30: 4 | AM30: 3 | AN30: 3 | AO30: 3 | AP30: 4 | AQ30: 4 | AR30: 3 | AS30: 3 | AT30: 2 | AU30: 1 | AV30: P26 | AW30: =COUNTIF($X:$X,$AW$6) -> 643 | AX30: =COUNTIF($X:$X,$AX$6) -> 858 | AY30: =COUNTIF($X:$X,$AY$6) -> 622 | AZ30: =COUNTIF($X:$X,$AZ$6) -> 2771 | BA30: 4894 | BB30: P26 | BC30: 13.13853698 | BD30: 17.53167143 | BE30: 12.70944013 | BF30: 56.62035145
A31: 1 | B31: 1 | C31: 1 | D31: 2 | E31: 2 | F31: 1 | G31: 3 | H31: 2 | I31: 2 | J31: 3 | K31: 1 | L31: 2 | M31: 3 | N31: 4 | O31: 4 | P31: 3 | Q31: 2 | R31: 4 | S31: 2 | T31: 2 | U31: 3 | V31: 4 | W31: 3 | X31: 3 | Y31: 4 | Z31: 4 | AA31: 4 | AB31: 2 | AC31: 4 | AD31: 3 | AE31: 3 | AF31: 4 | AG31: 1 | AH31: 3 | AI31: 3 | AJ31: 1 | AK31: 1 | AL31: 2 | AM31: 4 | AN31: 4 | AO31: 2 | AP31: 4 | AQ31: 4 | AR31: 4 | AS31: 4 | AT31: 2 | AU31: 2 | AV31: P27 | AW31: =COUNTIF($Y:$Y,$AW$6) -> 669 | AX31: =COUNTIF($Y:$Y,$AX$6) -> 413 | AY31: =COUNTIF($Y:$Y,$AY$6) -> 1111 | AZ31: =COUNTIF($Y:$Y,$AZ$6) -> 2703 | BA31: 4896 | BB31: P27 | BC31: 13.66421569 | BD31: 8.435457516 | BE31: 22.69199346 | BF31: 55.20833333
A32: 1 | B32: 1 | C32: 1 | D32: 2 | E32: 2 | F32: 1 | G32: 3 | H32: 2 | I32: 2 | J32: 3 | K32: 2 | L32: 3 | M32: 3 | N32: 2 | O32: 1 | P32: 2 | Q32: 1 | R32: 4 | S32: 2 | T32: 2 | U32: 2 | V32: 2 | W32: 3 | X32: 4 | Y32: 4 | Z32: 4 | AA32: 3 | AB32: 1 | AC32: 1 | AD32: 1 | AE32: 3 | AF32: 1 | AG32: 3 | AH32: 3 | AI32: 2 | AJ32: 2 | AK32: 1 | AL32: 2 | AM32: 4 | AN32: 1 | AO32: 4 | AP32: 4 | AQ32: 1 | AR32: 1 | AS32: 4 | AT32: 2 | AU32: 3 | AV32: P29 | AW32: =COUNTIF($Z:$Z,$AW$6) -> 1011 | AX32: =COUNTIF($Z:$Z,$AX$6) -> 645 | AY32: =COUNTIF($Z:$Z,$AY$6) -> 529 | AZ32: =COUNTIF($Z:$Z,$AZ$6) -> 2709 | BA32: 4894 | BB32: P29 | BC32: 20.65794851 | BD32: 13.17940335 | BE32: 10.80915407 | BF32: 55.35349407
A33: 1 | B33: 1 | C33: 1 | D33: 2 | E33: 2 | F33: 2 | G33: 3 | H33: 2 | I33: 2 | J33: 3 | K33: 3 | L33: 1 | M33: 2 | N33: 2 | O33: 3 | P33: 3 | Q33: 2 | R33: 4 | S33: 1 | T33: 2 | U33: 4 | V33: 2 | W33: 4 | X33: 3 | Y33: 4 | Z33: 1 | AA33: 1 | AB33: 1 | AC33: 3 | AD33: 1 | AE33: 4 | AF33: 4 | AG33: 1 | AH33: 3 | AI33: 4 | AJ33: 2 | AK33: 4 | AL33: 2 | AM33: 4 | AN33: 1 | AO33: 3 | AP33: 2 | AQ33: 1 | AR33: 3 | AS33: 1 | AT33: 2 | AU33: 4 | AV33: P30 | AW33: =COUNTIF($AA:$AA,$AW$6) -> 3046 | AX33: =COUNTIF($AA:$AA,$AX$6) -> 612 | AY33: =COUNTIF($AA:$AA,$AY$6) -> 773 | AZ33: =COUNTIF($AA:$AA,$AZ$6) -> 453 | BA33: 4884 | BB33: P30 | BC33: 62.36691237 | BD33: 12.53071253 | BE33: 15.82719083 | BF33: 9.275184275
A34: 1 | B34: 1 | C34: 1 | D34: 2 | E34: 3 | F34: 1 | G34: 3 | H34: 2 | I34: 2 | J34: 3 | K34: 2 | L34: 1 | M34: 1 | N34: 2 | O34: 4 | P34: 4 | Q34: 2 | R34: 4 | S34: 2 | T34: 3 | U34: 4 | V34: 2 | W34: 4 | X34: 2 | Y34: 3 | Z34: 3 | AA34: 4 | AB34: 1 | AC34: 2 | AD34: 2 | AE34: 2 | AF34: 4 | AG34: 3 | AH34: 3 | AI34: 4 | AJ34: 1 | AK34: 4 | AL34: 2 | AM34: 3 | AN34: 4 | AO34: 2 | AP34: 1 | AQ34: 3 | AR34: 2 | AS34: 2 | AT34: 1 | AU34: 1 | AV34: P31 | AW34: =COUNTIF($AB:$AB,$AW$6) -> 769 | AX34: =COUNTIF($AB:$AB,$AX$6) -> 690 | AY34: =COUNTIF($AB:$AB,$AY$6) -> 2502 | AZ34: =COUNTIF($AB:$AB,$AZ$6) -> 929 | BA34: 4890 | BB34: P31 | BC34: 15.72597137 | BD34: 14.11042945 | BE34: 51.16564417 | BF34: 18.99795501
A35: 1 | B35: 1 | C35: 1 | D35: 2 | E35: 3 | F35: 1 | G35: 3 | H35: 2 | I35: 2 | J35: 3 | K35: 2 | L35: 1 | M35: 4 | N35: 2 | O35: 4 | P35: 4 | Q35: 1 | R35: 1 | S35: 2 | T35: 2 | U35: 4 | V35: 4 | W35: 3 | X35: 4 | Y35: 4 | Z35: 4 | AA35: 1 | AB35: 3 | AC35: 1 | AD35: 1 | AE35: 2 | AF35: 4 | AG35: 1 | AH35: 3 | AI35: 2 | AJ35: 1 | AK35: 3 | AL35: 2 | AM35: 4 | AN35: 2 | AO35: 4 | AP35: 4 | AQ35: 1 | AR35: 2 | AS35: 3 | AT35: 2 | AU35: 3 | AV35: P32 | AW35: =COUNTIF($AC:$AC,$AW$6) -> 983 | AX35: =COUNTIF($AC:$AC,$AX$6) -> 767 | AY35: =COUNTIF($AC:$AC,$AY$6) -> 491 | AZ35: =COUNTIF($AC:$AC,$AZ$6) -> 2650 | BA35: 4891 | BB35: P32 | BC35: 20.09813944 | BD35: 15.68186465 | BE35: 10.03884686 | BF35: 54.18114905
A36: 1 | B36: 1 | C36: 1 | D36: 2 | E36: 3 | F36: 1 | G36: 3 | H36: 2 | I36: 2 | J36: 3 | K36: 2 | L36: 3 | M36: 1 | N36: 1 | O36: 1 | P36: 2 | Q36: 3 | R36: 4 | S36: 2 | T36: 4 | U36: 1 | V36: 3 | W36: 3 | X36: 4 | Y36: 4 | Z36: 4 | AA36: 1 | AB36: 3 | AC36: 4 | AD36: 2 | AE36: 2 | AF36: 2 | AG36: 1 | AH36: 3 | AI36: 4 | AJ36: 3 | AK36: 1 | AL36: 2 | AM36: 4 | AN36: 2 | AO36: 3 | AP36: 1 | AQ36: 4 | AR36: 2 | AS36: 3 | AT36: 2 | AU36: 1 | AV36: P33 | AW36: =COUNTIF($AD:$AD,$AW$6) -> 1355 | AX36: =COUNTIF($AD:$AD,$AX$6) -> 2537 | AY36: =COUNTIF($AD:$AD,$AY$6) -> 621 | AZ36: =COUNTIF($AD:$AD,$AZ$6) -> 379 | BA36: 4892 | BB36: P33 | BC36: 27.69828291 | BD36: 51.86017989 | BE36: 12.6941946 | BF36: 7.7473426
A37: 1 | B37: 1 | C37: 1 | D37: 2 | E37: 3 | F37: 1 | G37: 3 | H37: 2 | I37: 2 | J37: 4 | K37: 4 | L37: 3 | M37: 3 | N37: 2 | O37: 2 | P37: 1 | Q37: 3 | R37: 1 | S37: 1 | T37: 3 | U37: 3 | V37: 2 | W37: 3 | X37: 3 | Y37: 3 | Z37: 4 | AA37: 1 | AB37: 2 | AC37: 4 | AD37: 2 | AE37: 3 | AF37: 2 | AG37: 3 | AH37: 1 | AI37: 1 | AJ37: 2 | AK37: 3 | AL37: 2 | AM37: 2 | AN37: 2 | AO37: 3 | AP37: 2 | AQ37: 1 | AR37: 2 | AS37: 3 | AT37: 2 | AU37: 3 | AV37: P34 | AW37: =COUNTIF($AE:$AE,$AW$6) -> 708 | AX37: =COUNTIF($AE:$AE,$AX$6) -> 1276 | AY37: =COUNTIF($AE:$AE,$AY$6) -> 2468 | AZ37: =COUNTIF($AE:$AE,$AZ$6) -> 432 | BA37: 4884 | BB37: P34 | BC37: 14.4963145 | BD37: 26.12612613 | BE37: 50.53235053 | BF37: 8.845208845
A38: 1 | B38: 1 | C38: 1 | D38: 2 | E38: 3 | F38: 1 | G38: 3 | H38: 3 | I38: 2 | J38: 1 | K38: 3 | L38: 2 | M38: 3 | N38: 4 | O38: 4 | P38: 2 | Q38: 4 | R38: 1 | S38: 4 | T38: 1 | U38: 4 | V38: 2 | W38: 4 | X38: 3 | Y38: 3 | Z38: 3 | AA38: 4 | AB38: 1 | AC38: 1 | AD38: 2 | AE38: 1 | AF38: 2 | AG38: 4 | AH38: 3 | AI38: 1 | AJ38: 1 | AK38: 1 | AL38: 4 | AM38: 4 | AN38: 4 | AO38: 3 | AP38: 4 | AQ38: 1 | AR38: 2 | AS38: 4 | AT38: 2 | AU38: 3 | AV38: P35 | AW38: =COUNTIF($AF:$AF,$AW$6) -> 1361 | AX38: =COUNTIF($AF:$AF,$AX$6) -> 608 | AY38: =COUNTIF($AF:$AF,$AY$6) -> 618 | AZ38: =COUNTIF($AF:$AF,$AZ$6) -> 2307 | BA38: 4894 | BB38: P35 | BC38: 27.80956273 | BD38: 12.42337556 | BE38: 12.6277074 | BF38: 47.13935431
A39: 1 | B39: 1 | C39: 1 | D39: 2 | E39: 3 | F39: 4 | G39: 2 | H39: 2 | I39: 2 | J39: 4 | K39: 3 | L39: 2 | M39: 1 | N39: 2 | O39: 4 | P39: 3 | Q39: 4 | R39: 4 | S39: 2 | T39: 1 | U39: 2 | V39: 2 | W39: 3 | X39: 4 | Y39: 4 | Z39: 3 | AA39: 1 | AB39: 3 | AC39: 4 | AD39: 2 | AE39: 3 | AF39: 1 | AG39: 1 | AH39: 3 | AI39: 4 | AJ39: 1 | AK39: 1 | AL39: 4 | AM39: 4 | AN39: 3 | AO39: 4 | AP39: 4 | AQ39: 1 | AR39: 2 | AS39: 3 | AT39: 4 | AU39: 3 | AV39: P36 | AW39: =COUNTIF($AG:$AG,$AW$6) -> 2396 | AX39: =COUNTIF($AG:$AG,$AX$6) -> 1131 | AY39: =COUNTIF($AG:$AG,$AY$6) -> 807 | AZ39: =COUNTIF($AG:$AG,$AZ$6) -> 560 | BA39: 4894 | BB39: P36 | BC39: 48.95790764 | BD39: 23.10993053 | BE39: 16.48957908 | BF39: 11.44258275
A40: 1 | B40: 1 | C40: 1 | D40: 2 | E40: 4 | F40: 1 | G40: 3 | H40: 2 | I40: 2 | J40: 3 | K40: 2 | L40: 1 | M40: 1 | N40: 1 | O40: 4 | P40: 2 | Q40: 1 | R40: 4 | S40: 2 | T40: 3 | U40: 4 | V40: 3 | W40: 2 | X40: 2 | Y40: 1 | Z40: 2 | AA40: 1 | AB40: 2 | AC40: 4 | AD40: 1 | AE40: 2 | AF40: 1 | AG40: 2 | AH40: 4 | AI40: 2 | AJ40: 1 | AK40: 1 | AL40: 2 | AM40: 4 | AN40: 4 | AO40: 3 | AP40: 2 | AQ40: 1 | AR40: 2 | AS40: 3 | AT40: 2 | AU40: 3 | AV40: P37 | AW40: =COUNTIF($AH:$AH,$AW$6) -> 431 | AX40: =COUNTIF($AH:$AH,$AX$6) -> 622 | AY40: =COUNTIF($AH:$AH,$AY$6) -> 3238 | AZ40: =COUNTIF($AH:$AH,$AZ$6) -> 600 | BA40: 4891 | BB40: P37 | BC40: 8.812103864 | BD40: 12.71723574 | BE40: 66.20323042 | BF40: 12.26742997
A41: 1 | B41: 1 | C41: 1 | D41: 2 | E41: 4 | F41: 1 | G41: 4 | H41: 2 | I41: 2 | J41: 3 | K41: 3 | L41: 1 | M41: 1 | N41: 2 | O41: 4 | P41: 3 | Q41: 2 | R41: 1 | S41: 2 | T41: 2 | U41: 3 | V41: 1 | W41: 1 | X41: 2 | Y41: 4 | Z41: 1 | AA41: 3 | AB41: 2 | AC41: (en blanco) | AD41: 1 | AE41: 3 | AF41: 4 | AG41: 3 | AH41: 1 | AI41: 1 | AJ41: 3 | AK41: 1 | AL41: 3 | AM41: 2 | AN41: 3 | AO41: 3 | AP41: 2 | AQ41: 1 | AR41: 3 | AS41: 2 | AT41: 1 | AU41: 3 | AV41: P38 | AW41: =COUNTIF($AI:$AI,$AW$6) -> 366 | AX41: =COUNTIF($AI:$AI,$AX$6) -> 983 | AY41: =COUNTIF($AI:$AI,$AY$6) -> 337 | AZ41: =COUNTIF($AI:$AI,$AZ$6) -> 3199 | BA41: 4885 | BB41: P38 | BC41: 7.492323439 | BD41: 20.12282497 | BE41: 6.898669396 | BF41: 65.48618219
A42: 1 | B42: 1 | C42: 1 | D42: 3 | E42: 1 | F42: 1 | G42: 2 | H42: 2 | I42: 3 | J42: 3 | K42: 1 | L42: 2 | M42: 1 | N42: 1 | O42: 3 | P42: 2 | Q42: 1 | R42: 1 | S42: 2 | T42: 1 | U42: 2 | V42: 2 | W42: 3 | X42: 3 | Y42: 4 | Z42: 4 | AA42: 1 | AB42: 3 | AC42: 1 | AD42: 2 | AE42: 3 | AF42: 1 | AG42: 2 | AH42: 3 | AI42: 2 | AJ42: 1 | AK42: 1 | AL42: 2 | AM42: 4 | AN42: 3 | AO42: 3 | AP42: 1 | AQ42: 2 | AR42: 2 | AS42: 1 | AT42: 2 | AU42: 3 | AV42: P39 | AW42: =COUNTIF($AJ:$AJ,$AW$6) -> 3351 | AX42: =COUNTIF($AJ:$AJ,$AX$6) -> 411 | AY42: =COUNTIF($AJ:$AJ,$AY$6) -> 840 | AZ42: =COUNTIF($AJ:$AJ,$AZ$6) -> 282 | BA42: 4884 | BB42: P39 | BC42: 68.61179361 | BD42: 8.415233415 | BE42: 17.1990172 | BF42: 5.773955774
A43: 1 | B43: 1 | C43: 1 | D43: 3 | E43: 1 | F43: 1 | G43: 3 | H43: 2 | I43: 2 | J43: 3 | K43: 2 | L43: 1 | M43: 1 | N43: 3 | O43: 2 | P43: 3 | Q43: 1 | R43: 4 | S43: 2 | T43: 2 | U43: 3 | V43: 2 | W43: 3 | X43: 1 | Y43: 4 | Z43: 3 | AA43: 1 | AB43: 3 | AC43: 2 | AD43: 2 | AE43: 3 | AF43: 3 | AG43: 1 | AH43: 3 | AI43: 4 | AJ43: 1 | AK43: 1 | AL43: 4 | AM43: 3 | AN43: 4 | AO43: 3 | AP43: 4 | AQ43: 4 | AR43: 2 | AS43: 2 | AT43: 1 | AU43: 1 | AV43: P40 | AW43: =COUNTIF($AK:$AK,$AW$6) -> 3201 | AX43: =COUNTIF($AK:$AK,$AX$6) -> 262 | AY43: =COUNTIF($AK:$AK,$AY$6) -> 479 | AZ43: =COUNTIF($AK:$AK,$AZ$6) -> 954 | BA43: 4896 | BB43: P40 | BC43: 65.37990196 | BD43: 5.35130719 | BE43: 9.783496732 | BF43: 19.48529412
A44: 1 | B44: 1 | C44: 1 | D44: 3 | E44: 1 | F44: 2 | G44: 3 | H44: 2 | I44: 2 | J44: 3 | K44: 2 | L44: 1 | M44: 4 | N44: 2 | O44: 3 | P44: 2 | Q44: 4 | R44: 4 | S44: 3 | T44: 2 | U44: 3 | V44: 1 | W44: 3 | X44: 4 | Y44: 1 | Z44: 1 | AA44: 2 | AB44: 1 | AC44: 3 | AD44: 2 | AE44: 3 | AF44: 4 | AG44: 1 | AH44: 4 | AI44: 3 | AJ44: 3 | AK44: 2 | AL44: 1 | AM44: 3 | AN44: 1 | AO44: 1 | AP44: 1 | AQ44: 2 | AR44: 3 | AS44: 2 | AT44: 2 | AU44: 1 | AV44: P41 | AW44: =COUNTIF($AL:$AL,$AW$6) -> 727 | AX44: =COUNTIF($AL:$AL,$AX$6) -> 1241 | AY44: =COUNTIF($AL:$AL,$AY$6) -> 1893 | AZ44: =COUNTIF($AL:$AL,$AZ$6) -> 1023 | BA44: 4884 | BB44: P41 | BC44: 14.88533989 | BD44: 25.40950041 | BE44: 38.75921376 | BF44: 20.94594595
A45: 1 | B45: 1 | C45: 1 | D45: 3 | E45: 2 | F45: 1 | G45: 3 | H45: 2 | I45: 2 | J45: 3 | K45: 2 | L45: 1 | M45: 1 | N45: 2 | O45: 2 | P45: 2 | Q45: 2 | R45: 3 | S45: 2 | T45: 2 | U45: 1 | V45: 2 | W45: 3 | X45: 2 | Y45: 1 | Z45: 3 | AA45: 2 | AB45: 1 | AC45: 1 | AD45: 3 | AE45: 3 | AF45: 2 | AG45: 2 | AH45: 3 | AI45: 4 | AJ45: 1 | AK45: 1 | AL45: 2 | AM45: 1 | AN45: 3 | AO45: 2 | AP45: 4 | AQ45: 2 | AR45: 2 | AS45: 3 | AT45: 2 | AU45: 4 | AV45: P42 | AW45: =COUNTIF($AM:$AM,$AW$6) -> 412 | AX45: =COUNTIF($AM:$AM,$AX$6) -> 668 | AY45: =COUNTIF($AM:$AM,$AY$6) -> 1038 | AZ45: =COUNTIF($AM:$AM,$AZ$6) -> 2763 | BA45: 4881 | BB45: P42 | BC45: 8.44089326 | BD45: 13.68572014 | BE45: 21.26613399 | BF45: 56.60725261
A46: 1 | B46: 1 | C46: 1 | D46: 3 | E46: 2 | F46: 1 | G46: 3 | H46: 2 | I46: 2 | J46: 3 | K46: 3 | L46: 1 | M46: 4 | N46: 2 | O46: 2 | P46: 3 | Q46: 1 | R46: 4 | S46: 4 | T46: 2 | U46: 1 | V46: 1 | W46: 2 | X46: 3 | Y46: 3 | Z46: 3 | AA46: 3 | AB46: 1 | AC46: 1 | AD46: 2 | AE46: 3 | AF46: 1 | AG46: 4 | AH46: 3 | AI46: 4 | AJ46: 1 | AK46: 1 | AL46: 2 | AM46: 2 | AN46: 1 | AO46: 3 | AP46: 4 | AQ46: 1 | AR46: 2 | AS46: 1 | AT46: 4 | AU46: 3 | AV46: P43 | AW46: =COUNTIF($AN:$AN,$AW$6) -> 1057 | AX46: =COUNTIF($AN:$AN,$AX$6) -> 1526 | AY46: =COUNTIF($AN:$AN,$AY$6) -> 950 | AZ46: =COUNTIF($AN:$AN,$AZ$6) -> 1349 | BA46: 4882 | BB46: P43 | BC46: 21.65096272 | BD46: 31.25768128 | BE46: 19.45923802 | BF46: 27.63211798
A47: 1 | B47: 1 | C47: 1 | D47: 3 | E47: 2 | F47: 1 | G47: 3 | H47: 2 | I47: 4 | J47: 3 | K47: 2 | L47: 1 | M47: 1 | N47: 2 | O47: 4 | P47: 2 | Q47: 1 | R47: 2 | S47: 2 | T47: 1 | U47: 2 | V47: 2 | W47: 3 | X47: 4 | Y47: 4 | Z47: 4 | AA47: 1 | AB47: 4 | AC47: 3 | AD47: 2 | AE47: 2 | AF47: 4 | AG47: 2 | AH47: 3 | AI47: 4 | AJ47: 1 | AK47: 1 | AL47: 3 | AM47: 4 | AN47: 2 | AO47: 3 | AP47: 1 | AQ47: 1 | AR47: 2 | AS47: 3 | AT47: 2 | AU47: 3 | AV47: P44 | AW47: =COUNTIF($AO:$AO,$AW$6) -> 444 | AX47: =COUNTIF($AO:$AO,$AX$6) -> 702 | AY47: =COUNTIF($AO:$AO,$AY$6) -> 3023 | AZ47: =COUNTIF($AO:$AO,$AZ$6) -> 718 | BA47: 4887 | BB47: P44 | BC47: 9.085328422 | BD47: 14.36464088 | BE47: 61.85799059 | BF47: 14.69204011
A48: 1 | B48: 1 | C48: 1 | D48: 3 | E48: 2 | F48: 1 | G48: 4 | H48: 2 | I48: 2 | J48: 3 | K48: 1 | L48: 3 | M48: 1 | N48: 4 | O48: 2 | P48: 3 | Q48: 2 | R48: 2 | S48: 3 | T48: 2 | U48: 4 | V48: 2 | W48: 3 | X48: 3 | Y48: 1 | Z48: 1 | AA48: 3 | AB48: 2 | AC48: 4 | AD48: 1 | AE48: 1 | AF48: 1 | AG48: 3 | AH48: 4 | AI48: 2 | AJ48: 3 | AK48: 1 | AL48: 3 | AM48: 3 | AN48: 1 | AO48: 3 | AP48: 4 | AQ48: 2 | AR48: 3 | AS48: 2 | AT48: 4 | AU48: 1 | AV48: P45 | AW48: =COUNTIF($AP:$AP,$AW$6) -> 730 | AX48: =COUNTIF($AP:$AP,$AX$6) -> 620 | AY48: =COUNTIF($AP:$AP,$AX$6) -> 620 | AZ48: =COUNTIF($AP:$AP,$AZ$6) -> 3072 | BA48: 5042 | BB48: P45 | BC48: 14.47838159 | BD48: 12.29670766 | BE48: 12.29670766 | BF48: 60.92820309
A49: 1 | B49: 1 | C49: 1 | D49: 3 | E49: 2 | F49: 1 | G49: 4 | H49: 2 | I49: 2 | J49: 3 | K49: 1 | L49: 4 | M49: 1 | N49: 2 | O49: 1 | P49: 2 | Q49: 1 | R49: 4 | S49: 4 | T49: 2 | U49: 2 | V49: 1 | W49: 4 | X49: 3 | Y49: 1 | Z49: 3 | AA49: 1 | AB49: 3 | AC49: 4 | AD49: 1 | AE49: 3 | AF49: 4 | AG49: 1 | AH49: 4 | AI49: 3 | AJ49: 1 | AK49: 2 | AL49: 3 | AM49: 2 | AN49: 2 | AO49: 1 | AP49: 4 | AQ49: 2 | AR49: 4 | AS49: 1 | AT49: 3 | AU49: 1 | AV49: P46 | AW49: =COUNTIF($AQ:$AQ,$AW$6) -> 3228 | AX49: =COUNTIF($AQ:$AQ,$AX$6) -> 499 | AY49: =COUNTIF($AQ:$AQ,$AY$6) -> 414 | AZ49: =COUNTIF($AQ:$AQ,$AZ$6) -> 739 | BA49: 4880 | BB49: P46 | BC49: 66.14754098 | BD49: 10.22540984 | BE49: 8.483606557 | BF49: 15.14344262
A50: 1 | B50: 1 | C50: 1 | D50: 3 | E50: 2 | F50: 2 | G50: 2 | H50: 2 | I50: 1 | J50: 3 | K50: 2 | L50: 1 | M50: 4 | N50: 1 | O50: 3 | P50: 1 | Q50: 1 | R50: 1 | S50: 4 | T50: 3 | U50: 2 | V50: 2 | W50: 1 | X50: 2 | Y50: 1 | Z50: 1 | AA50: 3 | AB50: 1 | AC50: 3 | AD50: 1 | AE50: 1 | AF50: 2 | AG50: 4 | AH50: 2 | AI50: 4 | AJ50: 1 | AK50: 1 | AL50: 3 | AM50: 2 | AN50: 1 | AO50: 1 | AP50: 3 | AQ50: 1 | AR50: 3 | AS50: 1 | AT50: 2 | AU50: 1 | AV50: P47 | AW50: =COUNTIF($AR:$AR,$AW$6) -> 700 | AX50: =COUNTIF($AR:$AR,$AX$6) -> 3186 | AY50: =COUNTIF($AR:$AR,$AY$6) -> 667 | AZ50: =COUNTIF($AR:$AR,$AZ$6) -> 329 | BA50: 4882 | BB50: P47 | BC50: 14.33838591 | BD50: 65.26013929 | BE50: 13.66243343 | BF50: 6.739041376
A51: 1 | B51: 1 | C51: 1 | D51: 3 | E51: 2 | F51: 2 | G51: 2 | H51: 2 | I51: 2 | J51: 3 | K51: 1 | L51: 1 | M51: 2 | N51: 1 | O51: 1 | P51: 4 | Q51: 4 | R51: 1 | S51: 2 | T51: 3 | U51: 4 | V51: 2 | W51: 3 | X51: 3 | Y51: 2 | Z51: 1 | AA51: 2 | AB51: 2 | AC51: 1 | AD51: 1 | AE51: 1 | AF51: 1 | AG51: 2 | AH51: 3 | AI51: 4 | AJ51: 3 | AK51: 2 | AL51: 2 | AM51: 1 | AN51: 4 | AO51: 2 | AP51: 4 | AQ51: 3 | AR51: 2 | AS51: 1 | AT51: 3 | AU51: 1 | AV51: P48 | AW51: =COUNTIF($AS:$AS,$AW$6) -> 459 | AX51: =COUNTIF($AS:$AS,$AX$6) -> 985 | AY51: =COUNTIF($AS:$AS,$AY$6) -> 2850 | AZ51: =COUNTIF($AS:$AS,$AZ$6) -> 592 | BA51: 4886 | BB51: P48 | BC51: 9.394187474 | BD51: 20.15963979 | BE51: 58.32992223 | BF51: 12.11625051
A52: 1 | B52: 1 | C52: 1 | D52: 3 | E52: 2 | F52: 2 | G52: 2 | H52: 3 | I52: 2 | J52: 3 | K52: 2 | L52: 1 | M52: 1 | N52: 1 | O52: 2 | P52: 2 | Q52: 4 | R52: 1 | S52: 1 | T52: 2 | U52: 4 | V52: 3 | W52: 4 | X52: 4 | Y52: 4 | Z52: 4 | AA52: 3 | AB52: 3 | AC52: 4 | AD52: 2 | AE52: 2 | AF52: 2 | AG52: 4 | AH52: 2 | AI52: 4 | AJ52: 1 | AK52: 1 | AL52: 4 | AM52: 2 | AN52: 3 | AO52: 3 | AP52: 4 | AQ52: 1 | AR52: 2 | AS52: 3 | AT52: 2 | AU52: 3 | AV52: P49 | AW52: =COUNTIF($AT:$AT,$AW$6) -> 406 | AX52: =COUNTIF($AT:$AT,$AX$6) -> 2736 | AY52: =COUNTIF($AT:$AT,$AY$6) -> 627 | AZ52: =COUNTIF($AT:$AT,$AZ$6) -> 1115 | BA52: 4884 | BB52: P49 | BC52: 8.312858313 | BD52: 56.01965602 | BE52: 12.83783784 | BF52: 22.82964783
A53: 1 | B53: 1 | C53: 1 | D53: 3 | E53: 2 | F53: 2 | G53: 3 | H53: 2 | I53: 2 | J53: 1 | K53: 2 | L53: 1 | M53: 1 | N53: 2 | O53: 4 | P53: 2 | Q53: 1 | R53: 1 | S53: 1 | T53: 1 | U53: 4 | V53: 1 | W53: 2 | X53: 3 | Y53: 3 | Z53: 2 | AA53: 4 | AB53: 4 | AC53: 3 | AD53: 1 | AE53: 1 | AF53: 4 | AG53: 1 | AH53: 3 | AI53: 4 | AJ53: 1 | AK53: 1 | AL53: 2 | AM53: 3 | AN53: 1 | AO53: 2 | AP53: 1 | AQ53: 2 | AR53: 2 | AS53: 1 | AT53: 2 | AU53: 3 | AV53: P50 | AW53: =COUNTIF($AU:$AU,$AW$6) -> 641 | AX53: =COUNTIF($AU:$AU,$AX$6) -> 565 | AY53: =COUNTIF($AU:$AU,$AY$6) -> 3130 | AZ53: =COUNTIF($AU:$AU,$AZ$6) -> 548 | BA53: 4884 | BB53: P50 | BC53: 13.12448812 | BD53: 11.56838657 | BE53: 64.08681409 | BF53: 11.22031122
A54: 1 | B54: 1 | C54: 1 | D54: 3 | E54: 2 | F54: 2 | G54: 4 | H54: 2 | I54: 2 | J54: 2 | K54: 1 | L54: 3 | M54: 4 | N54: 2 | O54: 1 | P54: 3 | Q54: 1 | R54: 2 | S54: 4 | T54: 1 | U54: 2 | V54: 4 | W54: 4 | X54: 1 | Y54: 2 | Z54: 4 | AA54: 2 | AB54: 4 | AC54: 1 | AD54: 4 | AE54: 2 | AF54: 1 | AG54: 3 | AH54: 4 | AI54: 2 | AJ54: 2 | AK54: 1 | AL54: 2 | AM54: 3 | AN54: 4 | AO54: 1 | AP54: 3 | AQ54: 1 | AR54: 2 | AS54: 3 | AT54: 1 | AU54: 4
A55: 1 | B55: 1 | C55: 1 | D55: 3 | E55: 3 | F55: 1 | G55: 2 | H55: 2 | I55: 2 | J55: 3 | K55: 1 | L55: 1 | M55: 3 | N55: 2 | O55: 2 | P55: 1 | Q55: 2 | R55: 3 | S55: 1 | T55: 2 | U55: 2 | V55: 1 | W55: 2 | X55: 1 | Y55: 1 | Z55: 1 | AA55: 1 | AB55: 2 | AC55: 2 | AD55: 3 | AE55: 1 | AF55: 1 | AG55: 2 | AH55: 1 | AI55: 1 | AJ55: 1 | AK55: 3 | AL55: 1 | AM55: 3 | AN55: 3 | AO55: 1 | AP55: 1 | AQ55: 1 | AR55: 1 | AS55: 2 | AT55: 2 | AU55: 3
A56: 1 | B56: 1 | C56: 1 | D56: 3 | E56: 3 | F56: 1 | G56: 2 | H56: 3 | I56: 2 | J56: 3 | K56: 2 | L56: 3 | M56: 4 | N56: 1 | O56: 1 | P56: 2 | Q56: 2 | R56: 1 | S56: 4 | T56: 2 | U56: 3 | V56: 1 | W56: 3 | X56: 4 | Y56: 2 | Z56: 3 | AA56: 1 | AB56: 2 | AC56: 3 | AD56: 4 | AE56: 1 | AF56: 1 | AG56: 2 | AH56: 2 | AI56: 3 | AJ56: 4 | AK56: 1 | AL56: 2 | AM56: 2 | AN56: 3 | AO56: 1 | AP56: 3 | AQ56: 2 | AR56: 4 | AS56: 1 | AT56: 3 | AU56: 4
A57: 1 | B57: 1 | C57: 1 | D57: 3 | E57: 3 | F57: 1 | G57: 3 | H57: 2 | I57: 2 | J57: 2 | K57: 2 | L57: 1 | M57: 1 | N57: 2 | O57: 2 | P57: (en blanco) | Q57: 1 | R57: 4 | S57: 2 | T57: 1 | U57: 4 | V57: 4 | W57: 3 | X57: 2 | Y57: 4 | Z57: 4 | AA57: 1 | AB57: 1 | AC57: 4 | AD57: 2 | AE57: 3 | AF57: 1 | AG57: 1 | AH57: 2 | AI57: 2 | AJ57: 4 | AK57: 1 | AL57: 2 | AM57: 3 | AN57: 1 | AO57: 3 | AP57: 4 | AQ57: 1 | AR57: 2 | AS57: 3 | AT57: 2 | AU57: 3
A58: 1 | B58: 1 | C58: 1 | D58: 3 | E58: 3 | F58: 1 | G58: 3 | H58: 2 | I58: 2 | J58: 3 | K58: 1 | L58: 1 | M58: 1 | N58: 2 | O58: 2 | P58: 1 | Q58: 2 | R58: 1 | S58: 3 | T58: 1 | U58: 4 | V58: 1 | W58: 3 | X58: 4 | Y58: 4 | Z58: 4 | AA58: 1 | AB58: 3 | AC58: 4 | AD58: 2 | AE58: 3 | AF58: 3 | AG58: 2 | AH58: 3 | AI58: 4 | AJ58: 3 | AK58: 1 | AL58: 1 | AM58: 4 | AN58: 3 | AO58: 3 | AP58: 4 | AQ58: 1 | AR58: 2 | AS58: 3 | AT58: 2 | AU58: 3
A59: 1 | B59: 1 | C59: 1 | D59: 3 | E59: 3 | F59: 1 | G59: 3 | H59: 2 | I59: 2 | J59: 3 | K59: 2 | L59: 1 | M59: 1 | N59: 1 | O59: 4 | P59: 3 | Q59: 1 | R59: 4 | S59: 2 | T59: 4 | U59: 4 | V59: 2 | W59: 3 | X59: 4 | Y59: 4 | Z59: 4 | AA59: 4 | AB59: 3 | AC59: 4 | AD59: 2 | AE59: 3 | AF59: 3 | AG59: 1 | AH59: 3 | AI59: 4 | AJ59: 1 | AK59: 4 | AL59: 2 | AM59: 1 | AN59: 2 | AO59: 3 | AP59: 4 | AQ59: 1 | AR59: 1 | AS59: 2 | AT59: 2 | AU59: 3
A60: 1 | B60: 1 | C60: 1 | D60: 3 | E60: 3 | F60: 1 | G60: 3 | H60: 2 | I60: 2 | J60: 4 | K60: 3 | L60: 1 | M60: 4 | N60: 3 | O60: 2 | P60: 1 | Q60: 2 | R60: 1 | S60: 2 | T60: 4 | U60: 3 | V60: 2 | W60: 1 | X60: 3 | Y60: 4 | Z60: 2 | AA60: 1 | AB60: 2 | AC60: 3 | AD60: 4 | AE60: 3 | AF60: 2 | AG60: 2 | AH60: 2 | AI60: 1 | AJ60: 2 | AK60: 1 | AL60: 1 | AM60: 3 | AN60: 2 | AO60: 4 | AP60: 1 | AQ60: 3 | AR60: 2 | AS60: 4 | AT60: 1 | AU60: 2
A61: 1 | B61: 1 | C61: 1 | D61: 3 | E61: 3 | F61: 2 | G61: 3 | H61: 2 | I61: 2 | J61: 1 | K61: 2 | L61: 3 | M61: 2 | N61: 2 | O61: 2 | P61: 1 | Q61: 2 | R61: 4 | S61: 1 | T61: 4 | U61: 2 | V61: 1 | W61: 3 | X61: 3 | Y61: 2 | Z61: 4 | AA61: 3 | AB61: 3 | AC61: 4 | AD61: 2 | AE61: 3 | AF61: 3 | AG61: 2 | AH61: 3 | AI61: 4 | AJ61: 3 | AK61: 1 | AL61: 1 | AM61: 4 | AN61: 3 | AO61: 3 | AP61: 4 | AQ61: 1 | AR61: 2 | AS61: 3 | AT61: 2 | AU61: 3
A62: 1 | B62: 1 | C62: 1 | D62: 3 | E62: 4 | F62: 1 | G62: 2 | H62: 2 | I62: 2 | J62: 3 | K62: 2 | L62: 2 | M62: 1 | N62: 2 | O62: 2 | P62: 4 | Q62: 1 | R62: 4 | S62: 3 | T62: 2 | U62: 4 | V62: 1 | W62: 3 | X62: 4 | Y62: 4 | Z62: 1 | AA62: 1 | AB62: 1 | AC62: 2 | AD62: 2 | AE62: 3 | AF62: 1 | AG62: 1 | AH62: 3 | AI62: 4 | AJ62: 1 | AK62: 3 | AL62: 4 | AM62: 3 | AN62: 1 | AO62: 1 | AP62: 4 | AQ62: 3 | AR62: 2 | AS62: 4 | AT62: 4 | AU62: 3
A63: 1 | B63: 1 | C63: 1 | D63: 3 | E63: 4 | F63: 1 | G63: 3 | H63: 2 | I63: 2 | J63: 3 | K63: 2 | L63: 1 | M63: 1 | N63: 2 | O63: 4 | P63: 1 | Q63: 1 | R63: 4 | S63: 2 | T63: 4 | U63: 4 | V63: 2 | W63: 3 | X63: 4 | Y63: 4 | Z63: 4 | AA63: 2 | AB63: 2 | AC63: 1 | AD63: 1 | AE63: 3 | AF63: 4 | AG63: 1 | AH63: 3 | AI63: 4 | AJ63: 1 | AK63: 1 | AL63: 2 | AM63: 1 | AN63: 2 | AO63: 2 | AP63: 3 | AQ63: 4 | AR63: 4 | AS63: 2 | AT63: 1 | AU63: 3
A64: 1 | B64: 1 | C64: 1 | D64: 3 | E64: 4 | F64: 2 | G64: 1 | H64: 2 | I64: 2 | J64: 4 | K64: 3 | L64: 3 | M64: 4 | N64: 1 | O64: 4 | P64: 3 | Q64: 1 | R64: 2 | S64: 3 | T64: 2 | U64: 4 | V64: 2 | W64: 3 | X64: 1 | Y64: 1 | Z64: 3 | AA64: 2 | AB64: 4 | AC64: 2 | AD64: 3 | AE64: 2 | AF64: 1 | AG64: 4 | AH64: 2 | AI64: 3 | AJ64: 4 | AK64: 4 | AL64: 1 | AM64: 3 | AN64: 3 | AO64: 3 | AP64: 4 | AQ64: 1 | AR64: 1 | AS64: 2 | AT64: 4 | AU64: 2
A65: 1 | B65: 1 | C65: 1 | D65: 3 | E65: 4 | F65: 2 | G65: 2 | H65: 1 | I65: 2 | J65: 3 | K65: 1 | L65: 1 | M65: 1 | N65: 3 | O65: 1 | P65: 4 | Q65: 3 | R65: 1 | S65: 1 | T65: 2 | U65: 4 | V65: 2 | W65: 3 | X65: 1 | Y65: 2 | Z65: 1 | AA65: 1 | AB65: 3 | AC65: 2 | AD65: 3 | AE65: 1 | AF65: 2 | AG65: 1 | AH65: 1 | AI65: 4 | AJ65: 1 | AK65: 2 | AL65: 1 | AM65: 3 | AN65: 4 | AO65: 3 | AP65: 4 | AQ65: 4 | AR65: 2 | AS65: 2 | AT65: 2 | AU65: 1
A66: 1 | B66: 1 | C66: 1 | D66: 3 | E66: 4 | F66: 2 | G66: 2 | H66: 2 | I66: 2 | J66: 1 | K66: 2 | L66: 4 | M66: 3 | N66: 3 | O66: 4 | P66: 3 | Q66: 1 | R66: 2 | S66: 2 | T66: 1 | U66: 1 | V66: 2 | W66: 1 | X66: 3 | Y66: 1 | Z66: 1 | AA66: 2 | AB66: 3 | AC66: 3 | AD66: 1 | AE66: 1 | AF66: 1 | AG66: 2 | AH66: 3 | AI66: 4 | AJ66: 1 | AK66: 2 | AL66: 4 | AM66: 4 | AN66: 1 | AO66: 2 | AP66: 2 | AQ66: 1 | AR66: 3 | AS66: 4 | AT66: 1 | AU66: 3
A67: 1 | B67: 1 | C67: 1 | D67: 3 | E67: 4 | F67: 2 | G67: 3 | H67: 2 | I67: 2 | J67: 4 | K67: 1 | L67: 3 | M67: 2 | N67: 2 | O67: 1 | P67: 1 | Q67: 1 | R67: 4 | S67: 2 | T67: 1 | U67: 3 | V67: 2 | W67: 4 | X67: 3 | Y67: 3 | Z67: 4 | AA67: 2 | AB67: 3 | AC67: 4 | AD67: 2 | AE67: 1 | AF67: 2 | AG67: 2 | AH67: 3 | AI67: 4 | AJ67: 2 | AK67: 4 | AL67: 2 | AM67: 3 | AN67: 2 | AO67: 1 | AP67: 4 | AQ67: 3 | AR67: 1 | AS67: 2 | AT67: 2 | AU67: 3
A68: 1 | B68: 1 | C68: 1 | D68: 4 | E68: 1 | F68: 1 | G68: 2 | H68: 1 | I68: 2 | J68: 1 | K68: 2 | L68: 4 | M68: 2 | N68: 2 | O68: 3 | P68: 1 | Q68: 2 | R68: 3 | S68: 2 | T68: 3 | U68: 1 | V68: 3 | W68: 2 | X68: 2 | Y68: 3 | Z68: 1 | AA68: 2 | AB68: 3 | AC68: 2 | AD68: 3 | AE68: 2 | AF68: 1 | AG68: 3 | AH68: 2 | AI68: 3 | AJ68: 2 | AK68: 3 | AL68: 2 | AM68: 3 | AN68: 2 | AO68: 3 | AP68: 2 | AQ68: 4 | AR68: 3 | AS68: 2 | AT68: 3 | AU68: 2
A69: 1 | B69: 1 | C69: 1 | D69: 4 | E69: 1 | F69: 1 | G69: 2 | H69: 2 | I69: 2 | J69: 3 | K69: 1 | L69: 2 | M69: 4 | N69: 1 | O69: 1 | P69: 2 | Q69: 1 | R69: 1 | S69: 1 | T69: 4 | U69: 1 | V69: 2 | W69: 3 | X69: 1 | Y69: 2 | Z69: 2 | AA69: 1 | AB69: 4 | AC69: 4 | AD69: 1 | AE69: 2 | AF69: 3 | AG69: 1 | AH69: 3 | AI69: 1 | AJ69: 3 | AK69: 4 | AL69: 2 | AM69: 4 | AN69: 3 | AO69: 1 | AP69: 1 | AQ69: 2 | AR69: 1 | AS69: 4 | AT69: 4 | AU69: 4
A70: 1 | B70: 1 | C70: 1 | D70: 4 | E70: 1 | F70: 1 | G70: 2 | H70: 2 | I70: 2 | J70: 3 | K70: 2 | L70: 1 | M70: 1 | N70: 2 | O70: 4 | P70: 2 | Q70: 4 | R70: 4 | S70: 2 | T70: 1 | U70: 4 | V70: 2 | W70: 3 | X70: 4 | Y70: 4 | Z70: 4 | AA70: 1 | AB70: 3 | AC70: 4 | AD70: 1 | AE70: 3 | AF70: 1 | AG70: 1 | AH70: 3 | AI70: 4 | AJ70: 1 | AK70: 4 | AL70: 4 | AM70: 3 | AN70: 1 | AO70: 3 | AP70: 4 | AQ70: 1 | AR70: 2 | AS70: 3 | AT70: 4 | AU70: 3 | BW70: SELECCIONAR OTRA ESCUELA PARA EL ANÁLISIS O IR AL ANÁLISIS DE MATEMÁTICAS
A71: 1 | B71: 1 | C71: 1 | D71: 4 | E71: 1 | F71: 1 | G71: 3 | H71: 2 | I71: 2 | J71: 3 | K71: 3 | L71: 1 | M71: 1 | N71: 4 | O71: 4 | P71: 3 | Q71: 1 | R71: 4 | S71: 2 | T71: 1 | U71: 4 | V71: 2 | W71: 3 | X71: 4 | Y71: 3 | Z71: 2 | AA71: 1 | AB71: 3 | AC71: 4 | AD71: 2 | AE71: 2 | AF71: 2 | AG71: 4 | AH71: 1 | AI71: 4 | AJ71: 1 | AK71: 1 | AL71: 3 | AM71: 4 | AN71: 4 | AO71: 3 | AP71: 2 | AQ71: 1 | AR71: 2 | AS71: 2 | AT71: 2 | AU71: 4
A72: 1 | B72: 1 | C72: 1 | D72: 4 | E72: 1 | F72: 1 | G72: 3 | H72: 2 | I72: 2 | J72: 3 | K72: 4 | L72: 1 | M72: 1 | N72: 2 | O72: 4 | P72: 3 | Q72: 1 | R72: 1 | S72: 2 | T72: 1 | U72: 4 | V72: 2 | W72: 3 | X72: 4 | Y72: 4 | Z72: 4 | AA72: 1 | AB72: 3 | AC72: 3 | AD72: 2 | AE72: 1 | AF72: 4 | AG72: 1 | AH72: 3 | AI72: 4 | AJ72: 1 | AK72: 1 | AL72: 3 | AM72: 4 | AN72: 2 | AO72: 3 | AP72: 4 | AQ72: 1 | AR72: 2 | AS72: 3 | AT72: 2 | AU72: 3
A73: 1 | B73: 1 | C73: 1 | D73: 4 | E73: 1 | F73: 1 | G73: 3 | H73: 2 | I73: 2 | J73: 3 | K73: 4 | L73: 1 | M73: 4 | N73: 2 | O73: 2 | P73: 4 | Q73: 3 | R73: 1 | S73: 4 | T73: 3 | U73: 4 | V73: 4 | W73: 3 | X73: 2 | Y73: 3 | Z73: 4 | AA73: 4 | AB73: 1 | AC73: 3 | AD73: 4 | AE73: 2 | AF73: 1 | AG73: 4 | AH73: 3 | AI73: 4 | AJ73: 1 | AK73: 4 | AL73: 3 | AM73: 3 | AN73: 4 | AO73: 3 | AP73: 2 | AQ73: 1 | AR73: 3 | AS73: 3 | AT73: 4 | AU73: 3
A74: 1 | B74: 1 | C74: 1 | D74: 4 | E74: 1 | F74: 1 | G74: 3 | H74: 3 | I74: 2 | J74: 3 | K74: 4 | L74: 1 | M74: 3 | N74: 3 | O74: 4 | P74: 2 | Q74: 4 | R74: 2 | S74: 2 | T74: 4 | U74: 3 | V74: 2 | W74: 4 | X74: 4 | Y74: 2 | Z74: 2 | AA74: 2 | AB74: 4 | AC74: 1 | AD74: 1 | AE74: 1 | AF74: 4 | AG74: 2 | AH74: 2 | AI74: 4 | AJ74: 3 | AK74: 3 | AL74: 2 | AM74: 4 | AN74: 1 | AO74: 3 | AP74: 1 | AQ74: 2 | AR74: 1 | AS74: 4 | AT74: 3 | AU74: 3
A75: 1 | B75: 1 | C75: 1 | D75: 4 | E75: 1 | F75: 2 | G75: 1 | H75: 2 | I75: 2 | J75: 1 | K75: 1 | L75: 2 | M75: 3 | N75: 3 | O75: 2 | P75: 2 | Q75: 1 | R75: 1 | S75: 4 | T75: 4 | U75: 1 | V75: 1 | W75: 4 | X75: 2 | Y75: 1 | Z75: 1 | AA75: 3 | AB75: (en blanco) | AC75: 2 | AD75: 3 | AE75: 2 | AF75: 1 | AG75: 4 | AH75: 1 | AI75: 1 | AJ75: 3 | AK75: 1 | AL75: 3 | AM75: 1 | AN75: 4 | AO75: 1 | AP75: 1 | AQ75: 1 | AR75: 2 | AS75: 4 | AT75: 4 | AU75: 1
A76: 1 | B76: 1 | C76: 1 | D76: 4 | E76: 1 | F76: 2 | G76: 1 | H76: 2 | I76: 2 | J76: 3 | K76: 1 | L76: 3 | M76: 1 | N76: 1 | O76: 4 | P76: 3 | Q76: 1 | R76: 1 | S76: 2 | T76: 2 | U76: 1 | V76: 1 | W76: 3 | X76: 1 | Y76: 1 | Z76: 1 | AA76: 1 | AB76: 2 | AC76: 1 | AD76: 2 | AE76: 1 | AF76: 4 | AG76: 1 | AH76: 3 | AI76: 2 | AJ76: 1 | AK76: 1 | AL76: 1 | AM76: 3 | AN76: 4 | AO76: 3 | AP76: 1 | AQ76: 1 | AR76: 1 | AS76: 2 | AT76: 3 | AU76: 1
A77: 1 | B77: 1 | C77: 1 | D77: 4 | E77: 1 | F77: 2 | G77: 3 | H77: 1 | I77: 2 | J77: 3 | K77: 3 | L77: 2 | M77: 1 | N77: 1 | O77: 1 | P77: 4 | Q77: 2 | R77: 4 | S77: 2 | T77: 2 | U77: 4 | V77: 2 | W77: 3 | X77: 3 | Y77: 4 | Z77: 4 | AA77: 1 | AB77: 2 | AC77: 2 | AD77: 2 | AE77: 2 | AF77: 2 | AG77: 1 | AH77: 3 | AI77: 4 | AJ77: 3 | AK77: 4 | AL77: 1 | AM77: 2 | AN77: 4 | AO77: 2 | AP77: 2 | AQ77: 1 | AR77: 4 | AS77: 2 | AT77: 2 | AU77: 3
A78: 1 | B78: 1 | C78: 1 | D78: 4 | E78: 1 | F78: 2 | G78: 3 | H78: 2 | I78: 2 | J78: 3 | K78: 2 | L78: 3 | M78: 1 | N78: 2 | O78: 4 | P78: 2 | Q78: 1 | R78: 4 | S78: 4 | T78: 2 | U78: 1 | V78: 1 | W78: 3 | X78: 1 | Y78: 3 | Z78: 3 | AA78: 2 | AB78: 2 | AC78: 1 | AD78: 3 | AE78: 3 | AF78: 3 | AG78: 2 | AH78: 3 | AI78: 2 | AJ78: 3 | AK78: 1 | AL78: 3 | AM78: 2 | AN78: 4 | AO78: 3 | AP78: 3 | AQ78: 4 | AR78: 3 | AS78: 2 | AT78: 2 | AU78: 3
A79: 1 | B79: 1 | C79: 1 | D79: 4 | E79: 1 | F79: 2 | G79: 3 | H79: 2 | I79: 2 | J79: 4 | K79: 4 | L79: 1 | M79: 1 | N79: 1 | O79: 1 | P79: 3 | Q79: 3 | R79: 4 | S79: 2 | T79: 2 | U79: 4 | V79: 2 | W79: 3 | X79: 4 | Y79: 4 | Z79: 4 | AA79: 2 | AB79: 3 | AC79: 4 | AD79: 1 | AE79: 3 | AF79: 4 | AG79: 1 | AH79: 1 | AI79: 4 | AJ79: 1 | AK79: 1 | AL79: 3 | AM79: 2 | AN79: 4 | AO79: 1 | AP79: 1 | AQ79: 1 | AR79: 1 | AS79: 1 | AT79: 2 | AU79: 3
A80: 1 | B80: 1 | C80: 1 | D80: 4 | E80: 1 | F80: 2 | G80: 4 | H80: 2 | I80: 1 | J80: 3 | K80: 1 | L80: 3 | M80: 2 | N80: 4 | O80: 1 | P80: 4 | Q80: 2 | R80: 2 | S80: 1 | T80: 4 | U80: 2 | V80: 1 | W80: 4 | X80: 1 | Y80: 3 | Z80: 2 | AA80: 4 | AB80: 1 | AC80: 2 | AD80: 3 | AE80: 1 | AF80: 2 | AG80: 1 | AH80: 2 | AI80: 3 | AJ80: 4 | AK80: 4 | AL80: 1 | AM80: 2 | AN80: 4 | AO80: 1 | AP80: 1 | AQ80: 3 | AR80: 2 | AS80: 4 | AT80: 4 | AU80: 2
A81: 1 | B81: 1 | C81: 1 | D81: 4 | E81: 1 | F81: 4 | G81: 1 | H81: 2 | I81: 2 | J81: 3 | K81: 4 | L81: 2 | M81: 1 | N81: 2 | O81: 3 | P81: 4 | Q81: 1 | R81: 3 | S81: 1 | T81: 1 | U81: 2 | V81: 3 | W81: 2 | X81: 2 | Y81: 1 | Z81: 4 | AA81: 2 | AB81: 3 | AC81: 4 | AD81: 2 | AE81: 4 | AF81: 2 | AG81: 1 | AH81: 4 | AI81: 4 | AJ81: 1 | AK81: 1 | AL81: 2 | AM81: 3 | AN81: 4 | AO81: 1 | AP81: 3 | AQ81: 1 | AR81: 2 | AS81: 3 | AT81: 4 | AU81: 2
A82: 1 | B82: 1 | C82: 1 | D82: 4 | E82: 2 | F82: 1 | G82: 2 | H82: 2 | I82: 2 | J82: 1 | K82: 2 | L82: 1 | M82: 1 | N82: 1 | O82: 2 | P82: 2 | Q82: 1 | R82: 3 | S82: 1 | T82: 1 | U82: 4 | V82: 2 | W82: 3 | X82: 4 | Y82: 4 | Z82: 1 | AA82: 1 | AB82: 3 | AC82: 1 | AD82: 3 | AE82: 1 | AF82: 1 | AG82: 3 | AH82: 2 | AI82: 4 | AJ82: 1 | AK82: 3 | AL82: 1 | AM82: 2 | AN82: 3 | AO82: 1 | AP82: 2 | AQ82: 3 | AR82: 2 | AS82: 1 | AT82: 4 | AU82: 2
A83: 1 | B83: 1 | C83: 1 | D83: 4 | E83: 2 | F83: 1 | G83: 3 | H83: 1 | I83: 4 | J83: 2 | K83: 2 | L83: 3 | M83: 2 | N83: 1 | O83: 4 | P83: 3 | Q83: 1 | R83: 4 | S83: 2 | T83: 2 | U83: 3 | V83: 3 | W83: 3 | X83: 1 | Y83: 3 | Z83: 1 | AA83: 2 | AB83: 4 | AC83: 3 | AD83: 1 | AE83: 3 | AF83: 2 | AG83: 1 | AH83: 2 | AI83: 1 | AJ83: 4 | AK83: 4 | AL83: 1 | AM83: 3 | AN83: 2 | AO83: 1 | AP83: 2 | AQ83: 4 | AR83: 1 | AS83: 2 | AT83: 1 | AU83: 4
A84: 1 | B84: 1 | C84: 1 | D84: 4 | E84: 2 | F84: 1 | G84: 3 | H84: 2 | I84: 2 | J84: 3 | K84: 2 | L84: 1 | M84: 1 | N84: 3 | O84: 4 | P84: 2 | Q84: 4 | R84: 4 | S84: 2 | T84: 1 | U84: 4 | V84: 2 | W84: 3 | X84: 4 | Y84: 4 | Z84: 2 | AA84: 1 | AB84: 3 | AC84: 2 | AD84: 1 | AE84: 3 | AF84: 1 | AG84: 1 | AH84: 3 | AI84: 4 | AJ84: 1 | AK84: 4 | AL84: 4 | AM84: 3 | AN84: 1 | AO84: 3 | AP84: 4 | AQ84: 1 | AR84: 2 | AS84: 3 | AT84: 4 | AU84: 3
A85: 1 | B85: 1 | C85: 1 | D85: 4 | E85: 2 | F85: 1 | G85: 3 | H85: 2 | I85: 4 | J85: 3 | K85: 1 | L85: 1 | M85: 1 | N85: 2 | O85: 1 | P85: 2 | Q85: 3 | R85: 1 | S85: 4 | T85: 1 | U85: 1 | V85: 4 | W85: 3 | X85: 3 | Y85: 2 | Z85: 2 | AA85: 1 | AB85: 3 | AC85: 2 | AD85: 2 | AE85: 4 | AF85: 2 | AG85: 1 | AH85: 2 | AI85: 3 | AJ85: 1 | AK85: 1 | AL85: 3 | AM85: 4 | AN85: 4 | AO85: 2 | AP85: 3 | AQ85: 1 | AR85: 3 | AS85: 2 | AT85: 4 | AU85: 4
A86: 1 | B86: 1 | C86: 1 | D86: 4 | E86: 2 | F86: 1 | G86: 3 | H86: 4 | I86: 2 | J86: 3 | K86: 2 | L86: 1 | M86: 4 | N86: 2 | O86: 3 | P86: 4 | Q86: 1 | R86: 4 | S86: 2 | T86: 2 | U86: 4 | V86: 4 | W86: 3 | X86: 2 | Y86: 3 | Z86: 1 | AA86: 4 | AB86: 3 | AC86: 4 | AD86: 2 | AE86: 2 | AF86: 4 | AG86: 1 | AH86: 3 | AI86: 4 | AJ86: 1 | AK86: 1 | AL86: 3 | AM86: 4 | AN86: 3 | AO86: 3 | AP86: 4 | AQ86: 1 | AR86: 3 | AS86: 4 | AT86: 2 | AU86: 3
A87: 1 | B87: 1 | C87: 1 | D87: 4 | E87: 2 | F87: 1 | G87: 4 | H87: 2 | I87: 2 | J87: 3 | K87: 4 | L87: 2 | M87: 2 | N87: 4 | O87: 4 | P87: 3 | Q87: 1 | R87: 4 | S87: 2 | T87: 3 | U87: 2 | V87: 1 | W87: 3 | X87: 4 | Y87: 4 | Z87: 2 | AA87: 1 | AB87: 1 | AC87: 2 | AD87: 1 | AE87: 2 | AF87: 3 | AG87: 1 | AH87: 4 | AI87: 4 | AJ87: 1 | AK87: 1 | AL87: 3 | AM87: 1 | AN87: 3 | AO87: 3 | AP87: 4 | AQ87: 1 | AR87: 2 | AS87: 2 | AT87: 1 | AU87: 3
A88: 1 | B88: 1 | C88: 1 | D88: 4 | E88: 2 | F88: 2 | G88: 1 | H88: 2 | I88: 2 | J88: 3 | K88: 1 | L88: 1 | M88: 1 | N88: 1 | O88: 4 | P88: 4 | Q88: 1 | R88: 1 | S88: 4 | T88: 2 | U88: 4 | V88: 1 | W88: 2 | X88: 1 | Y88: 1 | Z88: 3 | AA88: 3 | AB88: 4 | AC88: 1 | AD88: 2 | AE88: 1 | AF88: 1 | AG88: 1 | AH88: 4 | AI88: 2 | AJ88: 1 | AK88: 1 | AL88: 3 | AM88: 2 | AN88: 1 | AO88: 1 | AP88: 1 | AQ88: 4 | AR88: 3 | AS88: 3 | AT88: 3 | AU88: 2
A89: 1 | B89: 1 | C89: 1 | D89: 4 | E89: 2 | F89: 2 | G89: 2 | H89: 1 | I89: 2 | J89: 3 | K89: 1 | L89: 1 | M89: 1 | N89: 2 | O89: 2 | P89: 3 | Q89: 2 | R89: 1 | S89: 2 | T89: 4 | U89: 4 | V89: 3 | W89: 3 | X89: 1 | Y89: 4 | Z89: 3 | AA89: 1 | AB89: 4 | AC89: 4 | AD89: 2 | AE89: 2 | AF89: 3 | AG89: 2 | AH89: 3 | AI89: 4 | AJ89: 1 | AK89: 1 | AL89: 4 | AM89: 4 | AN89: 3 | AO89: 3 | AP89: 1 | AQ89: 1 | AR89: 2 | AS89: 1 | AT89: 4 | AU89: 3
A90: 1 | B90: 1 | C90: 1 | D90: 4 | E90: 2 | F90: 2 | G90: 2 | H90: 2 | I90: 2 | J90: 2 | K90: 2 | L90: 1 | M90: 3 | N90: 2 | O90: 4 | P90: 1 | Q90: 3 | R90: 4 | S90: 4 | T90: 2 | U90: 4 | V90: 3 | W90: 2 | X90: 2 | Y90: 1 | Z90: 2 | AA90: 1 | AB90: 3 | AC90: 2 | AD90: 2 | AE90: 1 | AF90: 1 | AG90: 1 | AH90: 4 | AI90: 4 | AJ90: 1 | AK90: 1 | AL90: 1 | AM90: 4 | AN90: 4 | AO90: 1 | AP90: 4 | AQ90: 1 | AR90: 2 | AS90: 2 | AT90: 2 | AU90: 2
A91: 1 | B91: 1 | C91: 1 | D91: 4 | E91: 2 | F91: 2 | G91: 2 | H91: 2 | I91: 2 | J91: 3 | K91: 1 | L91: 1 | M91: 4 | N91: 3 | O91: 1 | P91: 3 | Q91: 4 | R91: 4 | S91: 4 | T91: 3 | U91: 2 | V91: 2 | W91: 3 | X91: 3 | Y91: 1 | Z91: 1 | AA91: 1 | AB91: 4 | AC91: 1 | AD91: 2 | AE91: 2 | AF91: 4 | AG91: 1 | AH91: 3 | AI91: 4 | AJ91: 1 | AK91: 4 | AL91: 1 | AM91: 2 | AN91: 1 | AO91: 3 | AP91: 1 | AQ91: 3 | AR91: 2 | AS91: 1 | AT91: 4 | AU91: 3
A92: 1 | B92: 1 | C92: 1 | D92: 4 | E92: 2 | F92: 2 | G92: 2 | H92: 2 | I92: 3 | J92: 3 | K92: 4 | L92: 2 | M92: 3 | N92: 4 | O92: 4 | P92: 1 | Q92: 4 | R92: 4 | S92: 2 | T92: 4 | U92: 4 | V92: 4 | W92: 3 | X92: 4 | Y92: 3 | Z92: 1 | AA92: 4 | AB92: 3 | AC92: 1 | AD92: 1 | AE92: 3 | AF92: 2 | AG92: 1 | AH92: 3 | AI92: 4 | AJ92: 2 | AK92: 4 | AL92: 2 | AM92: 1 | AN92: 4 | AO92: 4 | AP92: 4 | AQ92: 3 | AR92: 1 | AS92: 3 | AT92: 3 | AU92: 3
A93: 1 | B93: 1 | C93: 1 | D93: 4 | E93: 2 | F93: 2 | G93: 2 | H93: 3 | I93: 2 | J93: 3 | K93: 2 | L93: 1 | M93: 1 | N93: 1 | O93: 4 | P93: 3 | Q93: 1 | R93: 1 | S93: 2 | T93: 1 | U93: 3 | V93: 4 | W93: 3 | X93: 2 | Y93: 4 | Z93: 1 | AA93: 4 | AB93: 1 | AC93: 3 | AD93: 1 | AE93: 1 | AF93: 1 | AG93: 4 | AH93: 1 | AI93: 4 | AJ93: 3 | AK93: 2 | AL93: 3 | AM93: 2 | AN93: 1 | AO93: 3 | AP93: 2 | AQ93: (en blanco) | AR93: 4 | AS93: 3 | AT93: 3 | AU93: 3
A94: 1 | B94: 1 | C94: 1 | D94: 4 | E94: 2 | F94: 2 | G94: 3 | H94: 2 | I94: 2 | J94: 2 | K94: 3 | L94: 4 | M94: 3 | N94: 1 | O94: 4 | P94: 2 | Q94: 3 | R94: 4 | S94: 2 | T94: 4 | U94: 3 | V94: 2 | W94: 3 | X94: 4 | Y94: 4 | Z94: 4 | AA94: 3 | AB94: 3 | AC94: 4 | AD94: 2 | AE94: 1 | AF94: 4 | AG94: 1 | AH94: 3 | AI94: 4 | AJ94: 3 | AK94: 1 | AL94: 2 | AM94: 4 | AN94: 4 | AO94: 3 | AP94: 3 | AQ94: 1 | AR94: 2 | AS94: 4 | AT94: 2 | AU94: 3
A95: 1 | B95: 1 | C95: 1 | D95: 4 | E95: 2 | F95: 2 | G95: 3 | H95: 2 | I95: 2 | J95: 3 | K95: 1 | L95: 1 | M95: 1 | N95: 2 | O95: 2 | P95: 2 | Q95: 1 | R95: 4 | S95: 2 | T95: 3 | U95: 2 | V95: 3 | W95: 3 | X95: 3 | Y95: 4 | Z95: 4 | AA95: 1 | AB95: 1 | AC95: 2 | AD95: 1 | AE95: 1 | AF95: 4 | AG95: 2 | AH95: 3 | AI95: 3 | AJ95: 2 | AK95: 1 | AL95: 3 | AM95: 4 | AN95: 4 | AO95: 4 | AP95: 4 | AQ95: 4 | AR95: 2 | AS95: 1 | AT95: 1 | AU95: 3
A96: 1 | B96: 1 | C96: 1 | D96: 4 | E96: 2 | F96: 2 | G96: 3 | H96: 2 | I96: 2 | J96: 3 | K96: 2 | L96: 1 | M96: 1 | N96: 2 | O96: 4 | P96: 3 | Q96: 1 | R96: 1 | S96: 1 | T96: 2 | U96: 1 | V96: 2 | W96: 3 | X96: 4 | Y96: 4 | Z96: 1 | AA96: 1 | AB96: 3 | AC96: 4 | AD96: 4 | AE96: 3 | AF96: 4 | AG96: 1 | AH96: 2 | AI96: 2 | AJ96: 1 | AK96: 1 | AL96: 4 | AM96: 3 | AN96: 3 | AO96: 3 | AP96: 1 | AQ96: 1 | AR96: 2 | AS96: 2 | AT96: 4 | AU96: 4
A97: 1 | B97: 1 | C97: 1 | D97: 4 | E97: 3 | F97: 1 | G97: 1 | H97: 2 | I97: 2 | J97: 4 | K97: 2 | L97: 3 | M97: 1 | N97: 2 | O97: 2 | P97: 4 | Q97: 1 | R97: 4 | S97: 2 | T97: 2 | U97: 2 | V97: 4 | W97: 3 | X97: 4 | Y97: 4 | Z97: 4 | AA97: 4 | AB97: 3 | AC97: 3 | AD97: 2 | AE97: 2 | AF97: 1 | AG97: 4 | AH97: 2 | AI97: 4 | AJ97: 1 | AK97: 1 | AL97: 3 | AM97: 4 | AN97: 4 | AO97: 3 | AP97: 4 | AQ97: 1 | AR97: 2 | AS97: 4 | AT97: 2 | AU97: 3
A98: 1 | B98: 1 | C98: 1 | D98: 4 | E98: 3 | F98: 1 | G98: 2 | H98: 2 | I98: 2 | J98: 2 | K98: 1 | L98: 1 | M98: 1 | N98: 2 | O98: 2 | P98: 3 | Q98: 2 | R98: 4 | S98: 2 | T98: 1 | U98: 3 | V98: 2 | W98: 3 | X98: 2 | Y98: 3 | Z98: 1 | AA98: 2 | AB98: 3 | AC98: 4 | AD98: 1 | AE98: 3 | AF98: 4 | AG98: 1 | AH98: 3 | AI98: 2 | AJ98: 1 | AK98: 4 | AL98: 3 | AM98: 3 | AN98: 2 | AO98: 3 | AP98: 1 | AQ98: 1 | AR98: 2 | AS98: 3 | AT98: 2 | AU98: 4
A99: 1 | B99: 1 | C99: 1 | D99: 4 | E99: 3 | F99: 1 | G99: 2 | H99: 2 | I99: 2 | J99: 3 | K99: 1 | L99: 2 | M99: 1 | N99: 2 | O99: 4 | P99: 3 | Q99: 1 | R99: 4 | S99: 2 | T99: 1 | U99: 3 | V99: 1 | W99: 2 | X99: 4 | Y99: 4 | Z99: 1 | AA99: 1 | AB99: 1 | AC99: 1 | AD99: 2 | AE99: 3 | AF99: 3 | AG99: 2 | AH99: 1 | AI99: 1 | AJ99: 1 | AK99: 1 | AL99: 2 | AM99: 3 | AN99: 1 | AO99: 2 | AP99: 4 | AQ99: 1 | AR99: 2 | AS99: 3 | AT99: 2 | AU99: 1
A100: 1 | B100: 1 | C100: 1 | D100: 4 | E100: 3 | F100: 1 | G100: 2 | H100: 2 | I100: 2 | J100: 3 | K100: 2 | L100: 1 | M100: 1 | N100: 4 | O100: 2 | P100: 2 | Q100: 1 | R100: 4 | S100: 2 | T100: 2 | U100: 4 | V100: 3 | W100: 3 | X100: 4 | Y100: 4 | Z100: 4 | AA100: 1 | AB100: 2 | AC100: 4 | AD100: 1 | AE100: 1 | AF100: 4 | AG100: 1 | AH100: 2 | AI100: 3 | AJ100: 1 | AK100: 1 | AL100: 2 | AM100: 4 | AN100: 2 | AO100: 4 | AP100: 4 | AQ100: 1 | AR100: 2 | AS100: 3 | AT100: 2 | AU100: 3
A101: 1 | B101: 1 | C101: 1 | D101: 4 | E101: 3 | F101: 1 | G101: 2 | H101: 2 | I101: 2 | J101: 3 | K101: 2 | L101: 1 | M101: 2 | N101: 3 | O101: 2 | P101: 4 | Q101: 1 | R101: 4 | S101: 2 | T101: 2 | U101: 1 | V101: 1 | W101: 3 | X101: 4 | Y101: 2 | Z101: 1 | AA101: 3 | AB101: 2 | AC101: 3 | AD101: 4 | AE101: 3 | AF101: 2 | AG101: 3 | AH101: 1 | AI101: 2 | AJ101: 4 | AK101: 3 | AL101: 1 | AM101: 3 | AN101: 4 | AO101: 1 | AP101: 2 | AQ101: 3 | AR101: 1 | AS101: 2 | AT101: 1 | AU101: 4
A102: 1 | B102: 1 | C102: 1 | D102: 4 | E102: 3 | F102: 1 | G102: 2 | H102: 2 | I102: 2 | J102: 3 | K102: 4 | L102: 3 | M102: 1 | N102: 2 | O102: 2 | P102: 1 | Q102: 2 | R102: 4 | S102: 1 | T102: 1 | U102: 3 | V102: 3 | W102: 3 | X102: 3 | Y102: 4 | Z102: 4 | AA102: 3 | AB102: 1 | AC102: 4 | AD102: 2 | AE102: 1 | AF102: 1 | AG102: 1 | AH102: 2 | AI102: 3 | AJ102: 1 | AK102: 1 | AL102: 3 | AM102: 4 | AN102: 3 | AO102: 3 | AP102: 2 | AQ102: 4 | AR102: 3 | AS102: 1 | AT102: 1 | AU102: 4
A103: 1 | B103: 1 | C103: 1 | D103: 4 | E103: 3 | F103: 1 | G103: 3 | H103: 2 | I103: 1 | J103: 3 | K103: 1 | L103: 3 | M103: 2 | N103: 2 | O103: 4 | P103: 2 | Q103: 1 | R103: 3 | S103: 2 | T103: 4 | U103: 4 | V103: 3 | W103: 3 | X103: 4 | Y103: 4 | Z103: 4 | AA103: 4 | AB103: 3 | AC103: 4 | AD103: 1 | AE103: 3 | AF103: 4 | AG103: 1 | AH103: 3 | AI103: 4 | AJ103: 1 | AK103: 1 | AL103: 3 | AM103: 4 | AN103: 4 | AO103: 2 | AP103: 4 | AQ103: 2 | AR103: 2 | AS103: 2 | AT103: 4 | AU103: 3
A104: 1 | B104: 1 | C104: 1 | D104: 4 | E104: 3 | F104: 1 | G104: 3 | H104: 2 | I104: 2 | J104: 1 | K104: 2 | L104: 1 | M104: 1 | N104: 3 | O104: 1 | P104: 2 | Q104: 2 | R104: 4 | S104: 4 | T104: 4 | U104: 1 | V104: 4 | W104: 3 | X104: 4 | Y104: 4 | Z104: 4 | AA104: 4 | AB104: 3 | AC104: 4 | AD104: 1 | AE104: 3 | AF104: 4 | AG104: 3 | AH104: 3 | AI104: 2 | AJ104: 1 | AK104: 4 | AL104: 3 | AM104: 4 | AN104: 1 | AO104: 3 | AP104: 4 | AQ104: 1 | AR104: 4 | AS104: 1 | AT104: 4 | AU104: 3
A105: 1 | B105: 1 | C105: 1 | D105: 4 | E105: 3 | F105: 1 | G105: 3 | H105: 2 | I105: 2 | J105: 2 | K105: 1 | L105: 1 | M105: 1 | N105: 2 | O105: 3 | P105: 2 | Q105: 1 | R105: 1 | S105: 4 | T105: 2 | U105: 4 | V105: 4 | W105: 4 | X105: 4 | Y105: 4 | Z105: 4 | AA105: 1 | AB105: 3 | AC105: 4 | AD105: 3 | AE105: 3 | AF105: 4 | AG105: 1 | AH105: 4 | AI105: 2 | AJ105: 3 | AK105: 1 | AL105: 2 | AM105: 4 | AN105: 3 | AO105: 2 | AP105: 4 | AQ105: 1 | AR105: 3 | AS105: 4 | AT105: 2 | AU105: 3
A106: 1 | B106: 1 | C106: 1 | D106: 4 | E106: 3 | F106: 1 | G106: 3 | H106: 2 | I106: 2 | J106: 2 | K106: 1 | L106: 1 | M106: 4 | N106: 2 | O106: 4 | P106: 3 | Q106: 2 | R106: 4 | S106: 2 | T106: 1 | U106: 4 | V106: 1 | W106: 3 | X106: 3 | Y106: 4 | Z106: 3 | AA106: 3 | AB106: 2 | AC106: 4 | AD106: 3 | AE106: 2 | AF106: 3 | AG106: 2 | AH106: 3 | AI106: 4 | AJ106: 3 | AK106: 3 | AL106: 1 | AM106: 2 | AN106: 4 | AO106: 4 | AP106: 4 | AQ106: 4 | AR106: 1 | AS106: 2 | AT106: 2 | AU106: 1
A107: 1 | B107: 1 | C107: 1 | D107: 4 | E107: 3 | F107: 1 | G107: 3 | H107: 2 | I107: 2 | J107: 3 | K107: 1 | L107: 1 | M107: 4 | N107: 2 | O107: 4 | P107: 3 | Q107: 1 | R107: 4 | S107: 2 | T107: 1 | U107: 4 | V107: 2 | W107: 3 | X107: 4 | Y107: 3 | Z107: 4 | AA107: 2 | AB107: 1 | AC107: 2 | AD107: 3 | AE107: 3 | AF107: 1 | AG107: 1 | AH107: 4 | AI107: 4 | AJ107: 1 | AK107: 1 | AL107: 1 | AM107: 4 | AN107: 1 | AO107: 3 | AP107: 4 | AQ107: 1 | AR107: 2 | AS107: 3 | AT107: 3 | AU107: 3
A108: 1 | B108: 1 | C108: 1 | D108: 4 | E108: 3 | F108: 1 | G108: 3 | H108: 2 | I108: 2 | J108: 3 | K108: 2 | L108: 1 | M108: 1 | N108: 1 | O108: 4 | P108: 1 | Q108: 1 | R108: 4 | S108: 2 | T108: 1 | U108: 4 | V108: 2 | W108: 3 | X108: 4 | Y108: 4 | Z108: 4 | AA108: 1 | AB108: 3 | AC108: 4 | AD108: 2 | AE108: 3 | AF108: 4 | AG108: 1 | AH108: 3 | AI108: 4 | AJ108: 1 | AK108: 1 | AL108: 2 | AM108: 4 | AN108: 2 | AO108: 3 | AP108: 4 | AQ108: 1 | AR108: 2 | AS108: 2 | AT108: 2 | AU108: 3
A109: 1 | B109: 1 | C109: 1 | D109: 4 | E109: 3 | F109: 1 | G109: 3 | H109: 2 | I109: 2 | J109: 3 | K109: 2 | L109: 1 | M109: 1 | N109: 2 | O109: 4 | P109: 2 | Q109: 4 | R109: 4 | S109: 2 | T109: 1 | U109: 1 | V109: 3 | W109: 3 | X109: 4 | Y109: 4 | Z109: 4 | AA109: 2 | AB109: 1 | AC109: 4 | AD109: 1 | AE109: 3 | AF109: 2 | AG109: 1 | AH109: 3 | AI109: 4 | AJ109: 1 | AK109: 1 | AL109: 4 | AM109: 3 | AN109: 2 | AO109: 3 | AP109: 4 | AQ109: 1 | AR109: 3 | AS109: 3 | AT109: 2 | AU109: 3
A110: 1 | B110: 1 | C110: 1 | D110: 4 | E110: 3 | F110: 1 | G110: 3 | H110: 2 | I110: 2 | J110: 3 | K110: 2 | L110: 1 | M110: 1 | N110: 2 | O110: 4 | P110: 3 | Q110: 1 | R110: 4 | S110: 3 | T110: 1 | U110: 4 | V110: 2 | W110: 3 | X110: 4 | Y110: 4 | Z110: 4 | AA110: 1 | AB110: 3 | AC110: 4 | AD110: 2 | AE110: 3 | AF110: 4 | AG110: 1 | AH110: 3 | AI110: 4 | AJ110: 1 | AK110: 1 | AL110: 4 | AM110: 4 | AN110: 4 | AO110: 4 | AP110: 4 | AQ110: 1 | AR110: 2 | AS110: 2 | AT110: 2 | AU110: 3
A111: 1 | B111: 1 | C111: 1 | D111: 4 | E111: 3 | F111: 1 | G111: 3 | H111: 2 | I111: 2 | J111: 3 | K111: 2 | L111: 1 | M111: 1 | N111: 3 | O111: 2 | P111: 2 | Q111: 4 | R111: 1 | S111: 2 | T111: 4 | U111: 3 | V111: 2 | W111: 3 | X111: 1 | Y111: 4 | Z111: 2 | AA111: 2 | AB111: 4 | AC111: 4 | AD111: 2 | AE111: 3 | AF111: 2 | AG111: 1 | AH111: 3 | AI111: 4 | AJ111: 3 | AK111: 1 | AL111: 3 | AM111: 2 | AN111: 1 | AO111: 3 | AP111: 1 | AQ111: 4 | AR111: 2 | AS111: 3 | AT111: 2 | AU111: 3
A112: 1 | B112: 1 | C112: 1 | D112: 4 | E112: 3 | F112: 1 | G112: 3 | H112: 2 | I112: 2 | J112: 3 | K112: 2 | L112: 2 | M112: 1 | N112: 2 | O112: 3 | P112: 3 | Q112: 1 | R112: 4 | S112: 2 | T112: 1 | U112: 3 | V112: 2 | W112: 3 | X112: 4 | Y112: 4 | Z112: 1 | AA112: 1 | AB112: 4 | AC112: 4 | AD112: 1 | AE112: 3 | AF112: 1 | AG112: 2 | AH112: 3 | AI112: 4 | AJ112: 1 | AK112: 1 | AL112: 4 | AM112: 4 | AN112: 3 | AO112: 3 | AP112: 4 | AQ112: 1 | AR112: 1 | AS112: 3 | AT112: 4 | AU112: 3
A113: 1 | B113: 1 | C113: 1 | D113: 4 | E113: 3 | F113: 1 | G113: 3 | H113: 2 | I113: 2 | J113: 3 | K113: 2 | L113: 2 | M113: 1 | N113: 2 | O113: 4 | P113: 1 | Q113: 1 | R113: 2 | S113: 1 | T113: 4 | U113: 4 | V113: 1 | W113: 2 | X113: 1 | Y113: 4 | Z113: 1 | AA113: 3 | AB113: 4 | AC113: 3 | AD113: 2 | AE113: 1 | AF113: 3 | AG113: 1 | AH113: 1 | AI113: 4 | AJ113: 3 | AK113: 1 | AL113: 2 | AM113: 1 | AN113: 3 | AO113: 2 | AP113: 1 | AQ113: 3 | AR113: 4 | AS113: 2 | AT113: 1 | AU113: 3
A114: 1 | B114: 1 | C114: 1 | D114: 4 | E114: 3 | F114: 1 | G114: 3 | H114: 2 | I114: 2 | J114: 3 | K114: 3 | L114: 2 | M114: 1 | N114: 2 | O114: 4 | P114: 2 | Q114: 1 | R114: 1 | S114: 2 | T114: 1 | U114: 1 | V114: 4 | W114: 3 | X114: 4 | Y114: 4 | Z114: 1 | AA114: 4 | AB114: 3 | AC114: 4 | AD114: 2 | AE114: 3 | AF114: 4 | AG114: 1 | AH114: 3 | AI114: 4 | AJ114: 1 | AK114: 4 | AL114: 4 | AM114: 4 | AN114: 2 | AO114: 3 | AP114: 4 | AQ114: 1 | AR114: 2 | AS114: 4 | AT114: 2 | AU114: 3
A115: 1 | B115: 1 | C115: 1 | D115: 4 | E115: 3 | F115: 1 | G115: 3 | H115: 2 | I115: 2 | J115: 3 | K115: 3 | L115: 4 | M115: 1 | N115: 2 | O115: 4 | P115: 3 | Q115: 1 | R115: 4 | S115: 2 | T115: 3 | U115: 2 | V115: 3 | W115: 1 | X115: 1 | Y115: 3 | Z115: 1 | AA115: 1 | AB115: 3 | AC115: 4 | AD115: 3 | AE115: 2 | AF115: 2 | AG115: 1 | AH115: 1 | AI115: 3 | AJ115: 4 | AK115: 3 | AL115: 2 | AM115: 3 | AN115: 2 | AO115: 2 | AP115: 1 | AQ115: 1 | AR115: 2 | AS115: 1 | AT115: 3 | AU115: 2
A116: 1 | B116: 1 | C116: 1 | D116: 4 | E116: 3 | F116: 1 | G116: 3 | H116: 2 | I116: 2 | J116: 3 | K116: 4 | L116: 2 | M116: 1 | N116: 2 | O116: 3 | P116: 1 | Q116: 1 | R116: 1 | S116: 4 | T116: 3 | U116: 2 | V116: 1 | W116: 3 | X116: 1 | Y116: 4 | Z116: 3 | AA116: 4 | AB116: 2 | AC116: 1 | AD116: 1 | AE116: 3 | AF116: 4 | AG116: 2 | AH116: 3 | AI116: 4 | AJ116: 1 | AK116: 1 | AL116: 3 | AM116: 2 | AN116: 3 | AO116: 1 | AP116: 1 | AQ116: 1 | AR116: 3 | AS116: 1 | AT116: 3 | AU116: 4
A117: 1 | B117: 1 | C117: 1 | D117: 4 | E117: 3 | F117: 1 | G117: 3 | H117: 2 | I117: 2 | J117: 4 | K117: 2 | L117: 1 | M117: 1 | N117: 2 | O117: 4 | P117: 1 | Q117: 2 | R117: 4 | S117: 1 | T117: 1 | U117: 3 | V117: 1 | W117: 3 | X117: 4 | Y117: 3 | Z117: 4 | AA117: 1 | AB117: 1 | AC117: 1 | AD117: 1 | AE117: 1 | AF117: 4 | AG117: 1 | AH117: 3 | AI117: 2 | AJ117: 3 | AK117: 1 | AL117: 3 | AM117: 4 | AN117: 3 | AO117: 4 | AP117: 4 | AQ117: 1 | AR117: 2 | AS117: 2 | AT117: 3 | AU117: 3
A118: 1 | B118: 1 | C118: 1 | D118: 4 | E118: 3 | F118: 1 | G118: 3 | H118: 2 | I118: 4 | J118: 3 | K118: 2 | L118: 1 | M118: 1 | N118: 2 | O118: 3 | P118: 3 | Q118: 4 | R118: 4 | S118: 2 | T118: 1 | U118: 1 | V118: 1 | W118: 3 | X118: 2 | Y118: 4 | Z118: 4 | AA118: 1 | AB118: 1 | AC118: 3 | AD118: 2 | AE118: 3 | AF118: 4 | AG118: 4 | AH118: 4 | AI118: 3 | AJ118: 1 | AK118: 1 | AL118: 4 | AM118: 3 | AN118: 2 | AO118: 3 | AP118: 4 | AQ118: 4 | AR118: 2 | AS118: 3 | AT118: 2 | AU118: 3
A119: 1 | B119: 1 | C119: 1 | D119: 4 | E119: 3 | F119: 1 | G119: 3 | H119: 3 | I119: 2 | J119: 3 | K119: 1 | L119: 1 | M119: 1 | N119: 2 | O119: 4 | P119: 2 | Q119: 1 | R119: 1 | S119: 2 | T119: 3 | U119: 3 | V119: 1 | W119: 3 | X119: 2 | Y119: 3 | Z119: 1 | AA119: 1 | AB119: 4 | AC119: 1 | AD119: 1 | AE119: 3 | AF119: 4 | AG119: 1 | AH119: 4 | AI119: 2 | AJ119: 1 | AK119: 1 | AL119: 1 | AM119: 3 | AN119: 1 | AO119: 2 | AP119: 4 | AQ119: 1 | AR119: 1 | AS119: 1 | AT119: 4 | AU119: 3
A120: 1 | B120: 1 | C120: 1 | D120: 4 | E120: 3 | F120: 1 | G120: 3 | H120: 3 | I120: 2 | J120: 3 | K120: 1 | L120: 1 | M120: 4 | N120: 2 | O120: 4 | P120: 3 | Q120: 1 | R120: 4 | S120: 2 | T120: 1 | U120: 4 | V120: 2 | W120: 3 | X120: 4 | Y120: 4 | Z120: 4 | AA120: 1 | AB120: 4 | AC120: 4 | AD120: 1 | AE120: 2 | AF120: 1 | AG120: 2 | AH120: 3 | AI120: 2 | AJ120: 1 | AK120: 1 | AL120: 3 | AM120: 4 | AN120: 2 | AO120: 3 | AP120: 4 | AQ120: 1 | AR120: 2 | AS120: 3 | AT120: 2 | AU120: 3
A121: 1 | B121: 1 | C121: 1 | D121: 4 | E121: 3 | F121: 1 | G121: 4 | H121: 2 | I121: 3 | J121: 3 | K121: 2 | L121: 3 | M121: 4 | N121: 2 | O121: 4 | P121: 3 | Q121: 1 | R121: 4 | S121: 2 | T121: 1 | U121: 1 | V121: 2 | W121: 2 | X121: 4 | Y121: 4 | Z121: 1 | AA121: 1 | AB121: 3 | AC121: 4 | AD121: 1 | AE121: 4 | AF121: 2 | AG121: 1 | AH121: 3 | AI121: 2 | AJ121: 1 | AK121: 4 | AL121: 2 | AM121: 4 | AN121: 2 | AO121: 3 | AP121: 4 | AQ121: 1 | AR121: 2 | AS121: 3 | AT121: 1 | AU121: 4
A122: 1 | B122: 1 | C122: 1 | D122: 4 | E122: 3 | F122: 2 | G122: 2 | H122: 1 | I122: 2 | J122: 3 | K122: 2 | L122: 1 | M122: 4 | N122: 2 | O122: 2 | P122: 3 | Q122: 1 | R122: 4 | S122: 4 | T122: 4 | U122: 4 | V122: 2 | W122: 3 | X122: 2 | Y122: 2 | Z122: 2 | AA122: 1 | AB122: 3 | AC122: 4 | AD122: 1 | AE122: 2 | AF122: 1 | AG122: 3 | AH122: 3 | AI122: 4 | AJ122: 1 | AK122: 3 | AL122: 3 | AM122: 4 | AN122: 3 | AO122: 3 | AP122: 4 | AQ122: 1 | AR122: 2 | AS122: 3 | AT122: 2 | AU122: 4
A123: 1 | B123: 1 | C123: 1 | D123: 4 | E123: 3 | F123: 2 | G123: 2 | H123: 2 | I123: 2 | J123: 3 | K123: 2 | L123: 1 | M123: 4 | N123: 2 | O123: 3 | P123: 2 | Q123: 1 | R123: 4 | S123: 2 | T123: 1 | U123: 4 | V123: 2 | W123: 4 | X123: 4 | Y123: 3 | Z123: 4 | AA123: 2 | AB123: 3 | AC123: 4 | AD123: 3 | AE123: 3 | AF123: 3 | AG123: 2 | AH123: 3 | AI123: 4 | AJ123: 1 | AK123: 1 | AL123: 3 | AM123: 4 | AN123: 4 | AO123: 4 | AP123: 1 | AQ123: 1 | AR123: 2 | AS123: 3 | AT123: 2 | AU123: 3
A124: 1 | B124: 1 | C124: 1 | D124: 4 | E124: 3 | F124: 2 | G124: 3 | H124: 2 | I124: 2 | J124: 3 | K124: 2 | L124: 1 | M124: 1 | N124: 2 | O124: 2 | P124: 1 | Q124: 1 | R124: 1 | S124: 2 | T124: 2 | U124: 4 | V124: 1 | W124: 3 | X124: 4 | Y124: 4 | Z124: 1 | AA124: 3 | AB124: 3 | AC124: 4 | AD124: 2 | AE124: 3 | AF124: 4 | AG124: 3 | AH124: 3 | AI124: 4 | AJ124: 1 | AK124: 1 | AL124: 3 | AM124: 3 | AN124: 4 | AO124: 1 | AP124: 3 | AQ124: 2 | AR124: 4 | AS124: 2 | AT124: 3 | AU124: 3
A125: 1 | B125: 1 | C125: 1 | D125: 4 | E125: 3 | F125: 2 | G125: 3 | H125: 2 | I125: 2 | J125: 3 | K125: 2 | L125: 1 | M125: 1 | N125: 2 | O125: 2 | P125: 4 | Q125: 1 | R125: 2 | S125: 2 | T125: 4 | U125: 4 | V125: 2 | W125: 3 | X125: 4 | Y125: 4 | Z125: 4 | AA125: 4 | AB125: 1 | AC125: 4 | AD125: 1 | AE125: 3 | AF125: 4 | AG125: 1 | AH125: 3 | AI125: 4 | AJ125: 1 | AK125: 1 | AL125: 1 | AM125: 3 | AN125: 4 | AO125: 3 | AP125: 4 | AQ125: 1 | AR125: 1 | AS125: 2 | AT125: 3 | AU125: 3
A126: 1 | B126: 1 | C126: 1 | D126: 4 | E126: 3 | F126: 2 | G126: 3 | H126: 2 | I126: 2 | J126: 3 | K126: 2 | L126: 1 | M126: 1 | N126: 2 | O126: 4 | P126: 2 | Q126: 1 | R126: 1 | S126: 2 | T126: 1 | U126: 4 | V126: 1 | W126: 3 | X126: 2 | Y126: 4 | Z126: 4 | AA126: 1 | AB126: 3 | AC126: 4 | AD126: 2 | AE126: 2 | AF126: 4 | AG126: 1 | AH126: 3 | AI126: 3 | AJ126: 1 | AK126: 1 | AL126: 1 | AM126: 4 | AN126: 1 | AO126: 3 | AP126: 4 | AQ126: 1 | AR126: 2 | AS126: 3 | AT126: 2 | AU126: 3
A127: 1 | B127: 1 | C127: 1 | D127: 4 | E127: 3 | F127: 2 | G127: 3 | H127: 2 | I127: 2 | J127: 3 | K127: 2 | L127: 1 | M127: 1 | N127: 2 | O127: 4 | P127: 3 | Q127: 3 | R127: 4 | S127: 2 | T127: 2 | U127: 4 | V127: 2 | W127: 4 | X127: 1 | Y127: 3 | Z127: 2 | AA127: 1 | AB127: 3 | AC127: 4 | AD127: 1 | AE127: 3 | AF127: 4 | AG127: 1 | AH127: 3 | AI127: 4 | AJ127: 1 | AK127: 1 | AL127: 3 | AM127: 4 | AN127: 1 | AO127: 3 | AP127: 4 | AQ127: 1 | AR127: 2 | AS127: 3 | AT127: 2 | AU127: 4
A128: 1 | B128: 1 | C128: 1 | D128: 4 | E128: 3 | F128: 4 | G128: 2 | H128: 2 | I128: 2 | J128: 2 | K128: 1 | L128: 3 | M128: 4 | N128: 2 | O128: 4 | P128: 2 | Q128: 1 | R128: 1 | S128: 1 | T128: 4 | U128: 2 | V128: 1 | W128: 3 | X128: 3 | Y128: 2 | Z128: 4 | AA128: 3 | AB128: 2 | AC128: 3 | AD128: 2 | AE128: 4 | AF128: 1 | AG128: 2 | AH128: 3 | AI128: 3 | AJ128: 1 | AK128: 1 | AL128: 3 | AM128: 3 | AN128: 2 | AO128: 4 | AP128: 4 | AQ128: 1 | AR128: 2 | AS128: 3 | AT128: 2 | AU128: 3
A129: 1 | B129: 1 | C129: 1 | D129: 4 | E129: 3 | F129: 4 | G129: 3 | H129: 1 | I129: 1 | J129: 3 | K129: 2 | L129: 1 | M129: 1 | N129: 4 | O129: 4 | P129: 3 | Q129: 1 | R129: 4 | S129: 2 | T129: 4 | U129: 2 | V129: 2 | W129: 3 | X129: 1 | Y129: 4 | Z129: 1 | AA129: 3 | AB129: 2 | AC129: 4 | AD129: 2 | AE129: 2 | AF129: 1 | AG129: 2 | AH129: 4 | AI129: 4 | AJ129: 2 | AK129: 1 | AL129: 3 | AM129: 1 | AN129: 2 | AO129: 4 | AP129: 2 | AQ129: 3 | AR129: 1 | AS129: 1 | AT129: 2 | AU129: 4
A130: 1 | B130: 1 | C130: 1 | D130: 4 | E130: 3 | F130: 4 | G130: 3 | H130: 2 | I130: 2 | J130: 3 | K130: 2 | L130: 3 | M130: 1 | N130: 2 | O130: 3 | P130: 4 | Q130: 2 | R130: 4 | S130: 2 | T130: 2 | U130: 4 | V130: 2 | W130: 3 | X130: 4 | Y130: 4 | Z130: 2 | AA130: 2 | AB130: 3 | AC130: 4 | AD130: 1 | AE130: 3 | AF130: 1 | AG130: (en blanco) | AH130: 3 | AI130: 4 | AJ130: 1 | AK130: 1 | AL130: 3 | AM130: 4 | AN130: 3 | AO130: 2 | AP130: 4 | AQ130: 3 | AR130: 1 | AS130: 4 | AT130: 2 | AU130: 2
A131: 1 | B131: 1 | C131: 1 | D131: 4 | E131: 4 | F131: 1 | G131: 2 | H131: 3 | I131: 2 | J131: 3 | K131: 4 | L131: 1 | M131: 1 | N131: 2 | O131: 3 | P131: 4 | Q131: 1 | R131: 3 | S131: 2 | T131: 3 | U131: 4 | V131: 2 | W131: 2 | X131: 4 | Y131: 4 | Z131: 3 | AA131: 1 | AB131: 3 | AC131: 4 | AD131: 2 | AE131: 2 | AF131: 4 | AG131: 1 | AH131: 4 | AI131: 2 | AJ131: 1 | AK131: 1 | AL131: 1 | AM131: 4 | AN131: 3 | AO131: 3 | AP131: 1 | AQ131: 1 | AR131: 2 | AS131: 4 | AT131: 4 | AU131: 1
A132: 1 | B132: 1 | C132: 1 | D132: 4 | E132: 4 | F132: 1 | G132: 3 | H132: 2 | I132: 2 | J132: 3 | K132: 2 | L132: 1 | M132: 1 | N132: 2 | O132: 4 | P132: 1 | Q132: 3 | R132: 4 | S132: 2 | T132: 1 | U132: 4 | V132: 1 | W132: 3 | X132: 1 | Y132: 1 | Z132: 1 | AA132: 1 | AB132: 3 | AC132: 4 | AD132: 1 | AE132: 2 | AF132: 1 | AG132: 1 | AH132: 4 | AI132: 4 | AJ132: 1 | AK132: 4 | AL132: 4 | AM132: 2 | AN132: 3 | AO132: 4 | AP132: 4 | AQ132: 1 | AR132: 2 | AS132: 4 | AT132: 2 | AU132: 1
A133: 1 | B133: 1 | C133: 1 | D133: 4 | E133: 4 | F133: 1 | G133: 3 | H133: 2 | I133: 2 | J133: 3 | K133: 2 | L133: 1 | M133: 1 | N133: 2 | O133: 4 | P133: 3 | Q133: 4 | R133: 3 | S133: 2 | T133: 4 | U133: 4 | V133: 2 | W133: 2 | X133: 4 | Y133: 3 | Z133: 2 | AA133: 2 | AB133: 4 | AC133: 4 | AD133: 2 | AE133: 3 | AF133: 4 | AG133: 1 | AH133: 3 | AI133: 4 | AJ133: 1 | AK133: 4 | AL133: 1 | AM133: 2 | AN133: 4 | AO133: 3 | AP133: 3 | AQ133: 1 | AR133: 2 | AS133: 1 | AT133: 3 | AU133: 3
A134: 1 | B134: 1 | C134: 1 | D134: 4 | E134: 4 | F134: 1 | G134: 3 | H134: 2 | I134: 2 | J134: 3 | K134: 2 | L134: 1 | M134: 1 | N134: 3 | O134: 4 | P134: 2 | Q134: 1 | R134: 4 | S134: 1 | T134: 4 | U134: 4 | V134: 2 | W134: 4 | X134: 4 | Y134: 4 | Z134: 4 | AA134: 1 | AB134: 4 | AC134: 1 | AD134: 3 | AE134: 1 | AF134: 4 | AG134: 3 | AH134: 3 | AI134: 4 | AJ134: 1 | AK134: 3 | AL134: 2 | AM134: 4 | AN134: 4 | AO134: 3 | AP134: 1 | AQ134: 1 | AR134: 2 | AS134: 4 | AT134: 3 | AU134: 4
A135: 1 | B135: 1 | C135: 1 | D135: 4 | E135: 4 | F135: 1 | G135: 3 | H135: 2 | I135: 4 | J135: 3 | K135: 2 | L135: 1 | M135: 1 | N135: 1 | O135: 4 | P135: 2 | Q135: 1 | R135: 2 | S135: 4 | T135: 2 | U135: 3 | V135: 2 | W135: 4 | X135: 4 | Y135: 3 | Z135: 3 | AA135: 1 | AB135: 1 | AC135: 3 | AD135: 1 | AE135: 1 | AF135: 3 | AG135: 4 | AH135: 3 | AI135: 4 | AJ135: 1 | AK135: 1 | AL135: 2 | AM135: 1 | AN135: 3 | AO135: 1 | AP135: 1 | AQ135: 1 | AR135: 2 | AS135: 4 | AT135: 4 | AU135: 3
A136: 1 | B136: 1 | C136: 1 | D136: 4 | E136: 4 | F136: 2 | G136: 4 | H136: 2 | I136: 1 | J136: 3 | K136: 3 | L136: 3 | M136: 3 | N136: 2 | O136: 3 | P136: 4 | Q136: 4 | R136: 1 | S136: 3 | T136: 3 | U136: 4 | V136: 4 | W136: 3 | X136: 3 | Y136: 3 | Z136: 1 | AA136: 1 | AB136: 1 | AC136: 4 | AD136: 3 | AE136: 1 | AF136: 4 | AG136: 4 | AH136: 4 | AI136: 1 | AJ136: 3 | AK136: 3 | AL136: 2 | AM136: 3 | AN136: 4 | AO136: 3 | AP136: 1 | AQ136: 4 | AR136: 2 | AS136: 4 | AT136: 4 | AU136: 4
A137: 1 | B137: 1 | C137: 1 | D137: 4 | E137: 4 | F137: 2 | G137: 4 | H137: 2 | I137: 2 | J137: 3 | K137: 3 | L137: 1 | M137: 4 | N137: 2 | O137: 4 | P137: 4 | Q137: 3 | R137: 2 | S137: 1 | T137: 2 | U137: 3 | V137: 1 | W137: 3 | X137: 4 | Y137: 3 | Z137: 1 | AA137: 1 | AB137: 3 | AC137: 4 | AD137: 1 | AE137: 3 | AF137: 4 | AG137: 3 | AH137: 3 | AI137: 4 | AJ137: 1 | AK137: 1 | AL137: 4 | AM137: 3 | AN137: 1 | AO137: 3 | AP137: 4 | AQ137: 4 | AR137: 2 | AS137: 3 | AT137: 4 | AU137: 1
A138: 1 | B138: 1 | C138: 2 | D138: 1 | E138: 1 | F138: 4 | G138: 2 | H138: 2 | I138: 2 | J138: 3 | K138: 2 | L138: 4 | M138: 1 | N138: 1 | O138: 2 | P138: 4 | Q138: 3 | R138: 4 | S138: 2 | T138: 4 | U138: 1 | V138: 2 | W138: 3 | X138: 2 | Y138: 2 | Z138: 4 | AA138: 1 | AB138: 2 | AC138: 4 | AD138: 3 | AE138: 1 | AF138: 4 | AG138: 3 | AH138: 4 | AI138: 2 | AJ138: 2 | AK138: 4 | AL138: 4 | AM138: 4 | AN138: 4 | AO138: 3 | AP138: 1 | AQ138: 1 | AR138: 3 | AS138: 1 | AT138: 4 | AU138: 4
A139: 1 | B139: 1 | C139: 2 | D139: 2 | E139: 1 | F139: 1 | G139: 1 | H139: 2 | I139: 2 | J139: 2 | K139: 1 | L139: 1 | M139: 1 | N139: 2 | O139: 4 | P139: 3 | Q139: 1 | R139: 4 | S139: 1 | T139: 2 | U139: 1 | V139: 1 | W139: 3 | X139: 4 | Y139: 1 | Z139: 1 | AA139: 3 | AB139: 1 | AC139: 4 | AD139: 1 | AE139: 2 | AF139: 4 | AG139: 1 | AH139: 1 | AI139: 1 | AJ139: 3 | AK139: 1 | AL139: 1 | AM139: 1 | AN139: 1 | AO139: 3 | AP139: 1 | AQ139: 1 | AR139: 1 | AS139: 2 | AT139: 1 | AU139: 2
A140: 1 | B140: 1 | C140: 2 | D140: 3 | E140: 1 | F140: 1 | G140: 1 | H140: 2 | I140: 4 | J140: 3 | K140: 1 | L140: 1 | M140: 3 | N140: 2 | O140: 1 | P140: 4 | Q140: 1 | R140: 4 | S140: 2 | T140: 3 | U140: 4 | V140: 1 | W140: 3 | X140: 3 | Y140: 2 | Z140: 4 | AA140: 4 | AB140: 4 | AC140: 4 | AD140: 1 | AE140: 4 | AF140: 4 | AG140: 3 | AH140: 3 | AI140: 4 | AJ140: 1 | AK140: 4 | AL140: 2 | AM140: 4 | AN140: 1 | AO140: 3 | AP140: 1 | AQ140: 1 | AR140: 3 | AS140: 1 | AT140: 4 | AU140: 2
A141: 1 | B141: 1 | C141: 2 | D141: 3 | E141: 1 | F141: 1 | G141: 3 | H141: 2 | I141: 2 | J141: 4 | K141: 2 | L141: 1 | M141: 1 | N141: 2 | O141: 4 | P141: 1 | Q141: 1 | R141: 4 | S141: 2 | T141: 2 | U141: 4 | V141: 1 | W141: 3 | X141: 1 | Y141: 3 | Z141: 2 | AA141: 4 | AB141: 2 | AC141: 3 | AD141: 1 | AE141: 2 | AF141: 3 | AG141: 1 | AH141: 3 | AI141: 4 | AJ141: 3 | AK141: 1 | AL141: 3 | AM141: 2 | AN141: 4 | AO141: 3 | AP141: 1 | AQ141: 3 | AR141: 4 | AS141: 3 | AT141: 1 | AU141: 2
A142: 1 | B142: 1 | C142: 2 | D142: 3 | E142: 1 | F142: 2 | G142: 1 | H142: 3 | I142: 2 | J142: 1 | K142: 1 | L142: 2 | M142: 3 | N142: 4 | O142: 3 | P142: 3 | Q142: 2 | R142: 3 | S142: 4 | T142: 1 | U142: 2 | V142: 1 | W142: 2 | X142: 2 | Y142: 1 | Z142: 4 | AA142: 2 | AB142: 2 | AC142: 1 | AD142: 2 | AE142: 2 | AF142: 1 | AG142: 2 | AH142: 1 | AI142: 2 | AJ142: 1 | AK142: 1 | AL142: 2 | AM142: 1 | AN142: 2 | AO142: 4 | AP142: 2 | AQ142: 4 | AR142: 3 | AS142: 2 | AT142: 4 | AU142: 2
A143: 1 | B143: 1 | C143: 2 | D143: 3 | E143: 1 | F143: 2 | G143: 3 | H143: 4 | I143: 2 | J143: 3 | K143: 1 | L143: 2 | M143: 1 | N143: 4 | O143: 2 | P143: 3 | Q143: 3 | R143: 1 | S143: 2 | T143: 2 | U143: 1 | V143: 3 | W143: 3 | X143: 2 | Y143: 1 | Z143: 2 | AA143: 3 | AB143: 1 | AC143: 2 | AD143: 3 | AE143: 4 | AF143: 2 | AG143: (en blanco) | AH143: 4 | AI143: 3 | AJ143: 1 | AK143: 3 | AL143: 2 | AM143: 3 | AN143: 2 | AO143: 1 | AP143: 3 | AQ143: 2 | AR143: 3 | AS143: 2 | AT143: 3 | AU143: 4
A144: 1 | B144: 1 | C144: 2 | D144: 3 | E144: 2 | F144: 1 | G144: 3 | H144: 2 | I144: 2 | J144: 3 | K144: 1 | L144: 1 | M144: 4 | N144: 2 | O144: 4 | P144: 2 | Q144: 1 | R144: 4 | S144: 2 | T144: 1 | U144: 3 | V144: 3 | W144: 2 | X144: 4 | Y144: 3 | Z144: 1 | AA144: 3 | AB144: 1 | AC144: 2 | AD144: 4 | AE144: 3 | AF144: 3 | AG144: 4 | AH144: 1 | AI144: 2 | AJ144: 4 | AK144: 4 | AL144: 2 | AM144: 3 | AN144: 4 | AO144: 3 | AP144: 4 | AQ144: 1 | AR144: 2 | AS144: 4 | AT144: 3 | AU144: 2
A145: 1 | B145: 1 | C145: 2 | D145: 3 | E145: 2 | F145: 2 | G145: 3 | H145: 2 | I145: 2 | J145: 3 | K145: 2 | L145: 4 | M145: 1 | N145: 2 | O145: 3 | P145: 3 | Q145: 1 | R145: 4 | S145: 2 | T145: 3 | U145: 4 | V145: 2 | W145: 3 | X145: 4 | Y145: 4 | Z145: 4 | AA145: 1 | AB145: 3 | AC145: 4 | AD145: 1 | AE145: 2 | AF145: 1 | AG145: 2 | AH145: 3 | AI145: 4 | AJ145: 3 | AK145: 1 | AL145: 3 | AM145: 4 | AN145: 1 | AO145: 3 | AP145: 2 | AQ145: 2 | AR145: 3 | AS145: 2 | AT145: 4 | AU145: 2
A146: 1 | B146: 1 | C146: 2 | D146: 3 | E146: 2 | F146: 2 | G146: 4 | H146: 1 | I146: 4 | J146: 2 | K146: 3 | L146: 2 | M146: 1 | N146: 2 | O146: 4 | P146: 1 | Q146: 3 | R146: 1 | S146: 3 | T146: 4 | U146: 2 | V146: 2 | W146: 4 | X146: 2 | Y146: 1 | Z146: 4 | AA146: 2 | AB146: 2 | AC146: 1 | AD146: 3 | AE146: 1 | AF146: 1 | AG146: 3 | AH146: 2 | AI146: 3 | AJ146: 4 | AK146: 1 | AL146: 1 | AM146: 3 | AN146: 4 | AO146: 3 | AP146: 4 | AQ146: 1 | AR146: 3 | AS146: 1 | AT146: 3 | AU146: 4
A147: 1 | B147: 1 | C147: 2 | D147: 3 | E147: 4 | F147: 1 | G147: 3 | H147: 2 | I147: 2 | J147: 3 | K147: 2 | L147: 1 | M147: 1 | N147: 3 | O147: 4 | P147: 3 | Q147: 2 | R147: 1 | S147: 3 | T147: 3 | U147: 2 | V147: 4 | W147: 3 | X147: 1 | Y147: 2 | Z147: 2 | AA147: 1 | AB147: 4 | AC147: 4 | AD147: 2 | AE147: 3 | AF147: 4 | AG147: 3 | AH147: 3 | AI147: 4 | AJ147: 1 | AK147: 1 | AL147: 2 | AM147: 3 | AN147: 1 | AO147: 3 | AP147: 4 | AQ147: 2 | AR147: 1 | AS147: 3 | AT147: 2 | AU147: 3
A148: 1 | B148: 1 | C148: 2 | D148: 3 | E148: 4 | F148: 2 | G148: 3 | H148: 2 | I148: 2 | J148: 2 | K148: 3 | L148: 1 | M148: 3 | N148: 2 | O148: 4 | P148: 4 | Q148: 2 | R148: 4 | S148: 3 | T148: 2 | U148: 3 | V148: 2 | W148: 1 | X148: 2 | Y148: 3 | Z148: 4 | AA148: 2 | AB148: 1 | AC148: 4 | AD148: 2 | AE148: 4 | AF148: 2 | AG148: 1 | AH148: 3 | AI148: 1 | AJ148: 3 | AK148: 2 | AL148: 4 | AM148: 2 | AN148: 3 | AO148: 2 | AP148: 3 | AQ148: 4 | AR148: 2 | AS148: 3 | AT148: 2 | AU148: 3
A149: 1 | B149: 1 | C149: 2 | D149: 4 | E149: 1 | F149: 1 | G149: 2 | H149: 3 | I149: 2 | J149: 3 | K149: 4 | L149: 3 | M149: 2 | N149: 2 | O149: 4 | P149: 3 | Q149: 1 | R149: 1 | S149: 2 | T149: 4 | U149: 2 | V149: 4 | W149: 3 | X149: 1 | Y149: 4 | Z149: 4 | AA149: 2 | AB149: 1 | AC149: 1 | AD149: 3 | AE149: 4 | AF149: 4 | AG149: 3 | AH149: 2 | AI149: 2 | AJ149: 1 | AK149: 1 | AL149: 3 | AM149: 2 | AN149: 2 | AO149: 3 | AP149: 4 | AQ149: 1 | AR149: 3 | AS149: 1 | AT149: 2 | AU149: 4
A150: 1 | B150: 1 | C150: 2 | D150: 4 | E150: 1 | F150: 1 | G150: 4 | H150: 2 | I150: 2 | J150: 3 | K150: 1 | L150: 1 | M150: 3 | N150: 4 | O150: 2 | P150: 4 | Q150: 1 | R150: 4 | S150: 2 | T150: 3 | U150: 4 | V150: 4 | W150: 1 | X150: 1 | Y150: 4 | Z150: 3 | AA150: 1 | AB150: 1 | AC150: 2 | AD150: 1 | AE150: 4 | AF150: 3 | AG150: 1 | AH150: 2 | AI150: 2 | AJ150: 1 | AK150: 4 | AL150: 3 | AM150: 2 | AN150: 1 | AO150: 3 | AP150: 2 | AQ150: 4 | AR150: 1 | AS150: 2 | AT150: 1 | AU150: 4
A151: 1 | B151: 1 | C151: 2 | D151: 4 | E151: 1 | F151: 3 | G151: 2 | H151: 2 | I151: 2 | J151: 2 | K151: 3 | L151: 2 | M151: 3 | N151: 4 | O151: 3 | P151: 1 | Q151: 3 | R151: 1 | S151: 2 | T151: 1 | U151: 1 | V151: 4 | W151: 4 | X151: 2 | Y151: 3 | Z151: 4 | AA151: 3 | AB151: 1 | AC151: 1 | AD151: 2 | AE151: 3 | AF151: 1 | AG151: 1 | AH151: 2 | AI151: 3 | AJ151: 2 | AK151: 2 | AL151: 1 | AM151: 1 | AN151: 3 | AO151: 3 | AP151: 4 | AQ151: 3 | AR151: 1 | AS151: 2 | AT151: 1 | AU151: 3
A152: 1 | B152: 1 | C152: 2 | D152: 4 | E152: 2 | F152: 1 | G152: 3 | H152: 2 | I152: 2 | J152: 3 | K152: 1 | L152: 1 | M152: 1 | N152: 2 | O152: 4 | P152: 3 | Q152: 1 | R152: 4 | S152: 2 | T152: 1 | U152: 2 | V152: 1 | W152: 3 | X152: 4 | Y152: 4 | Z152: 1 | AA152: 1 | AB152: 3 | AC152: 1 | AD152: 2 | AE152: 3 | AF152: 2 | AG152: 1 | AH152: 4 | AI152: 4 | AJ152: 1 | AK152: 1 | AL152: 3 | AM152: 1 | AN152: 4 | AO152: 3 | AP152: 4 | AQ152: 2 | AR152: 4 | AS152: 1 | AT152: 3 | AU152: 2
A153: 1 | B153: 1 | C153: 2 | D153: 4 | E153: 2 | F153: 2 | G153: 2 | H153: 2 | I153: 4 | J153: 3 | K153: 4 | L153: 1 | M153: 1 | N153: 4 | O153: 4 | P153: 2 | Q153: 1 | R153: 1 | S153: 2 | T153: 1 | U153: 4 | V153: 2 | W153: 3 | X153: 4 | Y153: 3 | Z153: 4 | AA153: 3 | AB153: 4 | AC153: 2 | AD153: 2 | AE153: 3 | AF153: 4 | AG153: 4 | AH153: 2 | AI153: 4 | AJ153: 1 | AK153: 1 | AL153: 2 | AM153: 3 | AN153: 4 | AO153: 3 | AP153: 4 | AQ153: 2 | AR153: 2 | AS153: 3 | AT153: 4 | AU153: 2
A154: 1 | B154: 1 | C154: 2 | D154: 4 | E154: 3 | F154: 1 | G154: 2 | H154: 2 | I154: 1 | J154: 1 | K154: 2 | L154: 1 | M154: 1 | N154: 1 | O154: 4 | P154: 2 | Q154: 2 | R154: 4 | S154: 2 | T154: 1 | U154: 1 | V154: 3 | W154: 3 | X154: 4 | Y154: 1 | Z154: 2 | AA154: 1 | AB154: 2 | AC154: 1 | AD154: 2 | AE154: 3 | AF154: 1 | AG154: 2 | AH154: 3 | AI154: 2 | AJ154: 1 | AK154: 1 | AL154: 1 | AM154: 4 | AN154: 4 | AO154: 3 | AP154: 4 | AQ154: 1 | AR154: 3 | AS154: 2 | AT154: 4 | AU154: 1
A155: 1 | B155: 1 | C155: 2 | D155: 4 | E155: 3 | F155: 1 | G155: 2 | H155: 2 | I155: 2 | J155: 3 | K155: 2 | L155: 1 | M155: 1 | N155: 2 | O155: 4 | P155: 1 | Q155: 1 | R155: 1 | S155: 4 | T155: 1 | U155: 4 | V155: 4 | W155: 4 | X155: 4 | Y155: 4 | Z155: 1 | AA155: 2 | AB155: 2 | AC155: 4 | AD155: 1 | AE155: 4 | AF155: 1 | AG155: 1 | AH155: 3 | AI155: 4 | AJ155: 1 | AK155: 1 | AL155: 1 | AM155: 3 | AN155: 2 | AO155: 4 | AP155: 4 | AQ155: 1 | AR155: 2 | AS155: 2 | AT155: 2 | AU155: 3
A156: 1 | B156: 1 | C156: 2 | D156: 4 | E156: 3 | F156: 1 | G156: 3 | H156: 2 | I156: 2 | J156: 3 | K156: 1 | L156: 1 | M156: 1 | N156: 1 | O156: 2 | P156: 3 | Q156: 3 | R156: 4 | S156: 2 | T156: 1 | U156: 4 | V156: 4 | W156: 1 | X156: 2 | Y156: 4 | Z156: 2 | AA156: 4 | AB156: 4 | AC156: 1 | AD156: 1 | AE156: 2 | AF156: 4 | AG156: 1 | AH156: 2 | AI156: 4 | AJ156: 3 | AK156: 1 | AL156: 4 | AM156: 4 | AN156: 4 | AO156: 4 | AP156: 1 | AQ156: 1 | AR156: 2 | AS156: 3 | AT156: 4 | AU156: 3
A157: 1 | B157: 1 | C157: 2 | D157: 4 | E157: 3 | F157: 1 | G157: 3 | H157: 2 | I157: 2 | J157: 3 | K157: 2 | L157: 1 | M157: 1 | N157: 1 | O157: 2 | P157: 3 | Q157: 1 | R157: 4 | S157: 2 | T157: 1 | U157: 1 | V157: 3 | W157: 2 | X157: 1 | Y157: 4 | Z157: 2 | AA157: 1 | AB157: 2 | AC157: 4 | AD157: 2 | AE157: 3 | AF157: 4 | AG157: 2 | AH157: 4 | AI157: 4 | AJ157: 3 | AK157: 1 | AL157: 1 | AM157: 3 | AN157: 1 | AO157: 2 | AP157: 1 | AQ157: 3 | AR157: 3 | AS157: 2 | AT157: 4 | AU157: 1
A158: 1 | B158: 1 | C158: 2 | D158: 4 | E158: 3 | F158: 1 | G158: 3 | H158: 2 | I158: 2 | J158: 3 | K158: 2 | L158: 1 | M158: 1 | N158: 2 | O158: 4 | P158: 3 | Q158: 1 | R158: 4 | S158: 2 | T158: 1 | U158: 4 | V158: 3 | W158: 3 | X158: 4 | Y158: 4 | Z158: 1 | AA158: 1 | AB158: 3 | AC158: 4 | AD158: 2 | AE158: 3 | AF158: 1 | AG158: 1 | AH158: 3 | AI158: 4 | AJ158: 1 | AK158: 1 | AL158: 3 | AM158: 4 | AN158: 2 | AO158: 3 | AP158: 4 | AQ158: 1 | AR158: 2 | AS158: 3 | AT158: 2 | AU158: 3
A159: 1 | B159: 1 | C159: 2 | D159: 4 | E159: 3 | F159: 1 | G159: 3 | H159: 2 | I159: 2 | J159: 3 | K159: 2 | L159: 1 | M159: 1 | N159: 2 | O159: 4 | P159: 3 | Q159: 4 | R159: 4 | S159: 2 | T159: 3 | U159: 4 | V159: 2 | W159: 3 | X159: 2 | Y159: 4 | Z159: 1 | AA159: 1 | AB159: 3 | AC159: 4 | AD159: 2 | AE159: 2 | AF159: 4 | AG159: 1 | AH159: 3 | AI159: 4 | AJ159: 1 | AK159: 1 | AL159: 2 | AM159: 2 | AN159: 2 | AO159: 3 | AP159: 4 | AQ159: 4 | AR159: 2 | AS159: 3 | AT159: 2 | AU159: 3
A160: 1 | B160: 1 | C160: 2 | D160: 4 | E160: 3 | F160: 1 | G160: 3 | H160: 2 | I160: 2 | J160: 3 | K160: 2 | L160: 1 | M160: 1 | N160: 2 | O160: 4 | P160: 4 | Q160: 1 | R160: 3 | S160: 2 | T160: 1 | U160: 1 | V160: 3 | W160: 3 | X160: 4 | Y160: 3 | Z160: 1 | AA160: 1 | AB160: 4 | AC160: 1 | AD160: 2 | AE160: 2 | AF160: 1 | AG160: 2 | AH160: 3 | AI160: 4 | AJ160: 1 | AK160: 1 | AL160: 2 | AM160: 4 | AN160: 2 | AO160: 3 | AP160: 4 | AQ160: 1 | AR160: 2 | AS160: 3 | AT160: 4 | AU160: 3
A161: 1 | B161: 1 | C161: 2 | D161: 4 | E161: 3 | F161: 1 | G161: 3 | H161: 2 | I161: 2 | J161: 3 | K161: 2 | L161: 3 | M161: 4 | N161: 3 | O161: 2 | P161: 1 | Q161: 2 | R161: 1 | S161: 2 | T161: 2 | U161: 3 | V161: 2 | W161: 2 | X161: 4 | Y161: 4 | Z161: 2 | AA161: 1 | AB161: 3 | AC161: 4 | AD161: 2 | AE161: 2 | AF161: 4 | AG161: 2 | AH161: 3 | AI161: 4 | AJ161: 1 | AK161: 4 | AL161: 4 | AM161: 4 | AN161: 1 | AO161: 3 | AP161: 3 | AQ161: 4 | AR161: 2 | AS161: 2 | AT161: 1 | AU161: 3
A162: 1 | B162: 1 | C162: 2 | D162: 4 | E162: 3 | F162: 1 | G162: 3 | H162: 2 | I162: 2 | J162: 3 | K162: 4 | L162: 1 | M162: 3 | N162: 2 | O162: 1 | P162: 1 | Q162: 3 | R162: 4 | S162: 2 | T162: 4 | U162: 4 | V162: 1 | W162: 3 | X162: 1 | Y162: 1 | Z162: 3 | AA162: 2 | AB162: 2 | AC162: 4 | AD162: 3 | AE162: 1 | AF162: 4 | AG162: 2 | AH162: 3 | AI162: 2 | AJ162: 1 | AK162: 4 | AL162: 3 | AM162: 4 | AN162: 4 | AO162: 1 | AP162: 4 | AQ162: 2 | AR162: 3 | AS162: 4 | AT162: 2 | AU162: 3
A163: 1 | B163: 1 | C163: 2 | D163: 4 | E163: 3 | F163: 4 | G163: 2 | H163: 2 | I163: 2 | J163: 3 | K163: 2 | L163: 1 | M163: 1 | N163: 2 | O163: 2 | P163: 2 | Q163: 3 | R163: 1 | S163: 2 | T163: 2 | U163: 1 | V163: 1 | W163: 3 | X163: 2 | Y163: 3 | Z163: 4 | AA163: 2 | AB163: 3 | AC163: 2 | AD163: 2 | AE163: 2 | AF163: 4 | AG163: 2 | AH163: 1 | AI163: 4 | AJ163: 1 | AK163: 1 | AL163: 4 | AM163: 4 | AN163: 3 | AO163: 1 | AP163: 1 | AQ163: 1 | AR163: 2 | AS163: 3 | AT163: 2 | AU163: 3
A164: 1 | B164: 1 | C164: 2 | D164: 4 | E164: 4 | F164: 1 | G164: 3 | H164: 2 | I164: 2 | J164: 3 | K164: 1 | L164: 1 | M164: 4 | N164: 2 | O164: 4 | P164: 2 | Q164: 4 | R164: 4 | S164: 4 | T164: 1 | U164: 2 | V164: 2 | W164: 3 | X164: 1 | Y164: 4 | Z164: 2 | AA164: 2 | AB164: 4 | AC164: 1 | AD164: 4 | AE164: 1 | AF164: 2 | AG164: 2 | AH164: 4 | AI164: 4 | AJ164: 3 | AK164: 3 | AL164: 4 | AM164: 3 | AN164: 2 | AO164: 1 | AP164: 4 | AQ164: 4 | AR164: 4 | AS164: 4 | AT164: 4 | AU164: 3
A165: 1 | B165: 1 | C165: 2 | D165: 4 | E165: 4 | F165: 1 | G165: 3 | H165: 2 | I165: 2 | J165: 3 | K165: 2 | L165: 1 | M165: 1 | N165: 2 | O165: 2 | P165: 4 | Q165: 1 | R165: 4 | S165: 2 | T165: 1 | U165: 4 | V165: 2 | W165: 3 | X165: 4 | Y165: 4 | Z165: 4 | AA165: 1 | AB165: 3 | AC165: 4 | AD165: 2 | AE165: 3 | AF165: 4 | AG165: 4 | AH165: 3 | AI165: 4 | AJ165: 1 | AK165: 1 | AL165: 3 | AM165: 4 | AN165: 1 | AO165: 3 | AP165: 4 | AQ165: 1 | AR165: 2 | AS165: 3 | AT165: 2 | AU165: 3
A166: 1 | B166: 1 | C166: 2 | D166: 4 | E166: 4 | F166: 1 | G166: 3 | H166: 2 | I166: 2 | J166: 4 | K166: 3 | L166: 1 | M166: 4 | N166: 2 | O166: 4 | P166: 3 | Q166: 1 | R166: 1 | S166: 2 | T166: 4 | U166: 1 | V166: 1 | W166: 3 | X166: 4 | Y166: 4 | Z166: 4 | AA166: 4 | AB166: 1 | AC166: 4 | AD166: 1 | AE166: 1 | AF166: 1 | AG166: 3 | AH166: 4 | AI166: 4 | AJ166: 2 | AK166: 1 | AL166: 2 | AM166: 3 | AN166: 4 | AO166: 2 | AP166: 3 | AQ166: 4 | AR166: 3 | AS166: 3 | AT166: 2 | AU166: 3
A167: 1 | B167: 1 | C167: 2 | D167: 4 | E167: 4 | F167: 2 | G167: 4 | H167: 2 | I167: 2 | J167: 2 | K167: 3 | L167: 3 | M167: 1 | N167: 4 | O167: 2 | P167: 1 | Q167: 4 | R167: 4 | S167: 2 | T167: 1 | U167: 3 | V167: 2 | W167: 3 | X167: 4 | Y167: 2 | Z167: 3 | AA167: 2 | AB167: 3 | AC167: 4 | AD167: 1 | AE167: 1 | AF167: 2 | AG167: 4 | AH167: 2 | AI167: 1 | AJ167: 1 | AK167: 4 | AL167: 3 | AM167: 3 | AN167: 2 | AO167: 1 | AP167: 4 | AQ167: 2 | AR167: 4 | AS167: 2 | AT167: 3 | AU167: 1
A168: 1 | B168: 1 | C168: 3 | D168: (en blanco) | E168: 1 | F168: 2 | G168: 2 | H168: 2 | I168: 2 | J168: 3 | K168: 2 | L168: 4 | M168: 1 | N168: 1 | O168: 2 | P168: 2 | Q168: 1 | R168: 2 | S168: 1 | T168: 2 | U168: 3 | V168: 4 | W168: 2 | X168: 2 | Y168: 4 | Z168: 4 | AA168: 3 | AB168: 1 | AC168: 1 | AD168: 2 | AE168: 1 | AF168: 4 | AG168: 4 | AH168: 2 | AI168: 4 | AJ168: 1 | AK168: 1 | AL168: 3 | AM168: 2 | AN168: 3 | AO168: 3 | AP168: 1 | AQ168: 1 | AR168: 4 | AS168: 1 | AT168: 2 | AU168: 4
A169: 1 | B169: 1 | C169: 3 | D169: (en blanco) | E169: 1 | F169: 2 | G169: 2 | H169: 2 | I169: 2 | J169: 3 | K169: 3 | L169: 3 | M169: 1 | N169: 3 | O169: 2 | P169: 4 | Q169: 2 | R169: 4 | S169: 2 | T169: 1 | U169: 4 | V169: 2 | W169: 3 | X169: 4 | Y169: 2 | Z169: 3 | AA169: 1 | AB169: 4 | AC169: 2 | AD169: 4 | AE169: 2 | AF169: 4 | AG169: 4 | AH169: 3 | AI169: 4 | AJ169: 3 | AK169: 2 | AL169: 4 | AM169: 1 | AN169: 1 | AO169: 4 | AP169: 2 | AQ169: 4 | AR169: 2 | AS169: 4 | AT169: 4 | AU169: 3
A170: 1 | B170: 1 | C170: 3 | D170: 1 | E170: 2 | F170: 1 | G170: 1 | H170: 2 | I170: 2 | J170: 3 | K170: 2 | L170: 2 | M170: 2 | N170: 2 | O170: 2 | P170: 1 | Q170: 1 | R170: 4 | S170: 2 | T170: 1 | U170: 1 | V170: 2 | W170: 3 | X170: 4 | Y170: 3 | Z170: 1 | AA170: 1 | AB170: 3 | AC170: 4 | AD170: 1 | AE170: 2 | AF170: 1 | AG170: 2 | AH170: 3 | AI170: 4 | AJ170: 2 | AK170: 1 | AL170: 3 | AM170: 3 | AN170: 2 | AO170: 3 | AP170: 4 | AQ170: 1 | AR170: 2 | AS170: 3 | AT170: 2 | AU170: 3
A171: 1 | B171: 1 | C171: 3 | D171: 1 | E171: 2 | F171: 1 | G171: 3 | H171: 2 | I171: 2 | J171: 3 | K171: 2 | L171: 2 | M171: 1 | N171: 3 | O171: 4 | P171: 1 | Q171: 1 | R171: 4 | S171: 2 | T171: 2 | U171: 1 | V171: 2 | W171: 3 | X171: 4 | Y171: 4 | Z171: 4 | AA171: 3 | AB171: 1 | AC171: 4 | AD171: 2 | AE171: 2 | AF171: 4 | AG171: 1 | AH171: 1 | AI171: 2 | AJ171: 1 | AK171: 1 | AL171: 4 | AM171: 4 | AN171: 4 | AO171: 2 | AP171: 4 | AQ171: 1 | AR171: 2 | AS171: 3 | AT171: 4 | AU171: 3
A172: 1 | B172: 1 | C172: 3 | D172: 1 | E172: 2 | F172: 2 | G172: 3 | H172: 2 | I172: 2 | J172: 2 | K172: 2 | L172: 3 | M172: 1 | N172: 2 | O172: 1 | P172: 4 | Q172: 1 | R172: 1 | S172: 2 | T172: 2 | U172: 2 | V172: 4 | W172: 4 | X172: 2 | Y172: 2 | Z172: 4 | AA172: 2 | AB172: 2 | AC172: 4 | AD172: 4 | AE172: 4 | AF172: 1 | AG172: 2 | AH172: 4 | AI172: 1 | AJ172: 2 | AK172: 1 | AL172: 3 | AM172: 2 | AN172: 3 | AO172: 1 | AP172: 3 | AQ172: 2 | AR172: 1 | AS172: 4 | AT172: 4 | AU172: 3
A173: 1 | B173: 1 | C173: 3 | D173: 1 | E173: 3 | F173: 1 | G173: 2 | H173: 1 | I173: 2 | J173: 4 | K173: 1 | L173: 4 | M173: 2 | N173: 3 | O173: 4 | P173: 4 | Q173: 3 | R173: 1 | S173: 1 | T173: 4 | U173: 2 | V173: 2 | W173: 3 | X173: 3 | Y173: 1 | Z173: 3 | AA173: 3 | AB173: 3 | AC173: 4 | AD173: 2 | AE173: 4 | AF173: 1 | AG173: 1 | AH173: 1 | AI173: 2 | AJ173: 1 | AK173: 4 | AL173: 1 | AM173: 2 | AN173: 3 | AO173: 4 | AP173: 3 | AQ173: 2 | AR173: 3 | AS173: 2 | AT173: 4 | AU173: 1
A174: 1 | B174: 1 | C174: 3 | D174: 1 | E174: 3 | F174: 1 | G174: 3 | H174: 1 | I174: 2 | J174: 3 | K174: 2 | L174: 1 | M174: 1 | N174: 2 | O174: 2 | P174: 3 | Q174: 2 | R174: 4 | S174: 2 | T174: 4 | U174: 2 | V174: 4 | W174: 3 | X174: 1 | Y174: 3 | Z174: 3 | AA174: 1 | AB174: 1 | AC174: 2 | AD174: 1 | AE174: 3 | AF174: 4 | AG174: 1 | AH174: 3 | AI174: 4 | AJ174: 1 | AK174: 3 | AL174: 2 | AM174: 4 | AN174: 3 | AO174: 3 | AP174: 2 | AQ174: 2 | AR174: 1 | AS174: 3 | AT174: 2 | AU174: 4
A175: 1 | B175: 1 | C175: 3 | D175: 1 | E175: 3 | F175: 1 | G175: 3 | H175: 1 | I175: 2 | J175: 3 | K175: 4 | L175: 1 | M175: 1 | N175: 2 | O175: 4 | P175: 2 | Q175: 1 | R175: 4 | S175: 2 | T175: 2 | U175: 4 | V175: 4 | W175: 3 | X175: 3 | Y175: 4 | Z175: 4 | AA175: 1 | AB175: 4 | AC175: 4 | AD175: 3 | AE175: 3 | AF175: 4 | AG175: 1 | AH175: 3 | AI175: 4 | AJ175: 1 | AK175: 1 | AL175: 3 | AM175: 4 | AN175: 2 | AO175: 3 | AP175: 4 | AQ175: 1 | AR175: 2 | AS175: 3 | AT175: 2 | AU175: 3
A176: 1 | B176: 1 | C176: 3 | D176: 1 | E176: 3 | F176: 1 | G176: 3 | H176: 2 | I176: 2 | J176: 3 | K176: 2 | L176: 1 | M176: 1 | N176: 2 | O176: 4 | P176: 3 | Q176: 1 | R176: 4 | S176: 1 | T176: 2 | U176: 4 | V176: 2 | W176: 3 | X176: 4 | Y176: 4 | Z176: 4 | AA176: 1 | AB176: 3 | AC176: 4 | AD176: 1 | AE176: 3 | AF176: 4 | AG176: 4 | AH176: 4 | AI176: 4 | AJ176: 1 | AK176: 1 | AL176: 2 | AM176: 4 | AN176: 2 | AO176: 3 | AP176: 4 | AQ176: 1 | AR176: 2 | AS176: 3 | AT176: 2 | AU176: 3
A177: 1 | B177: 1 | C177: 3 | D177: 1 | E177: 3 | F177: 1 | G177: 3 | H177: 2 | I177: 2 | J177: 3 | K177: 2 | L177: 1 | M177: 1 | N177: 2 | O177: 4 | P177: 3 | Q177: 1 | R177: 4 | S177: 2 | T177: 2 | U177: 3 | V177: 3 | W177: 3 | X177: 4 | Y177: 4 | Z177: 4 | AA177: 1 | AB177: 3 | AC177: 4 | AD177: 2 | AE177: 3 | AF177: 4 | AG177: 1 | AH177: 4 | AI177: 4 | AJ177: 1 | AK177: 1 | AL177: 3 | AM177: 4 | AN177: 1 | AO177: 2 | AP177: 4 | AQ177: 1 | AR177: 2 | AS177: 3 | AT177: 2 | AU177: 3
A178: 1 | B178: 1 | C178: 3 | D178: 1 | E178: 3 | F178: 1 | G178: 3 | H178: 2 | I178: 2 | J178: 3 | K178: 2 | L178: 1 | M178: 1 | N178: 2 | O178: 4 | P178: 3 | Q178: 2 | R178: 4 | S178: 2 | T178: 4 | U178: 4 | V178: 2 | W178: 2 | X178: 4 | Y178: 4 | Z178: 4 | AA178: 4 | AB178: 2 | AC178: 4 | AD178: 2 | AE178: 2 | AF178: 3 | AG178: 2 | AH178: 3 | AI178: 4 | AJ178: 1 | AK178: 1 | AL178: 3 | AM178: 1 | AN178: 4 | AO178: 4 | AP178: 4 | AQ178: 1 | AR178: 2 | AS178: 4 | AT178: 2 | AU178: 3
A179: 1 | B179: 1 | C179: 3 | D179: 1 | E179: 3 | F179: 1 | G179: 3 | H179: 2 | I179: 2 | J179: 3 | K179: 2 | L179: 1 | M179: 1 | N179: 3 | O179: 2 | P179: 3 | Q179: 1 | R179: 1 | S179: 3 | T179: 1 | U179: 1 | V179: 2 | W179: 3 | X179: 3 | Y179: 4 | Z179: 1 | AA179: 3 | AB179: 1 | AC179: 3 | AD179: 4 | AE179: 1 | AF179: 3 | AG179: 1 | AH179: 3 | AI179: 4 | AJ179: 1 | AK179: 1 | AL179: 3 | AM179: 2 | AN179: 4 | AO179: 1 | AP179: 3 | AQ179: 3 | AR179: 2 | AS179: 1 | AT179: 2 | AU179: 1
A180: 1 | B180: 1 | C180: 3 | D180: 1 | E180: 3 | F180: 1 | G180: 3 | H180: 2 | I180: 2 | J180: 3 | K180: 2 | L180: 1 | M180: 4 | N180: 2 | O180: 2 | P180: 3 | Q180: 2 | R180: 4 | S180: 3 | T180: 2 | U180: 4 | V180: 2 | W180: 3 | X180: 3 | Y180: 3 | Z180: 2 | AA180: 1 | AB180: 3 | AC180: 1 | AD180: 1 | AE180: 3 | AF180: 4 | AG180: 4 | AH180: 3 | AI180: 4 | AJ180: 1 | AK180: 1 | AL180: 2 | AM180: 3 | AN180: 4 | AO180: 3 | AP180: 1 | AQ180: 1 | AR180: 3 | AS180: 3 | AT180: 2 | AU180: 4
A181: 1 | B181: 1 | C181: 3 | D181: 1 | E181: 3 | F181: 1 | G181: 3 | H181: 2 | I181: 2 | J181: 3 | K181: 2 | L181: 1 | M181: 4 | N181: 2 | O181: 3 | P181: 3 | Q181: 1 | R181: 4 | S181: 2 | T181: 1 | U181: 3 | V181: 2 | W181: 3 | X181: 4 | Y181: 4 | Z181: 4 | AA181: 1 | AB181: 3 | AC181: 4 | AD181: 2 | AE181: 3 | AF181: 4 | AG181: 1 | AH181: 3 | AI181: 4 | AJ181: 1 | AK181: 4 | AL181: 3 | AM181: 3 | AN181: 2 | AO181: 3 | AP181: 4 | AQ181: 1 | AR181: 2 | AS181: 3 | AT181: 4 | AU181: 3
A182: 1 | B182: 1 | C182: 3 | D182: 1 | E182: 3 | F182: 1 | G182: 3 | H182: 2 | I182: 2 | J182: 3 | K182: 2 | L182: 2 | M182: 1 | N182: 2 | O182: 4 | P182: 3 | Q182: 1 | R182: 1 | S182: 2 | T182: 1 | U182: 2 | V182: 2 | W182: 3 | X182: 4 | Y182: 4 | Z182: 4 | AA182: 1 | AB182: 3 | AC182: 4 | AD182: 1 | AE182: 1 | AF182: 4 | AG182: 4 | AH182: 3 | AI182: 4 | AJ182: 1 | AK182: 1 | AL182: 3 | AM182: 4 | AN182: 3 | AO182: 3 | AP182: 2 | AQ182: 1 | AR182: 2 | AS182: 3 | AT182: 2 | AU182: 3
A183: 1 | B183: 1 | C183: 3 | D183: 1 | E183: 3 | F183: 1 | G183: 3 | H183: 2 | I183: 2 | J183: 3 | K183: 3 | L183: 3 | M183: 1 | N183: 2 | O183: 4 | P183: 3 | Q183: 1 | R183: 1 | S183: 2 | T183: 1 | U183: 4 | V183: 3 | W183: 3 | X183: 4 | Y183: 4 | Z183: 4 | AA183: 2 | AB183: 1 | AC183: 1 | AD183: 4 | AE183: 1 | AF183: 1 | AG183: 4 | AH183: 3 | AI183: 4 | AJ183: 1 | AK183: 1 | AL183: 3 | AM183: 1 | AN183: 2 | AO183: 3 | AP183: 1 | AQ183: 1 | AR183: 2 | AS183: 2 | AT183: 4 | AU183: 3
A184: 1 | B184: 1 | C184: 3 | D184: 1 | E184: 3 | F184: 1 | G184: 4 | H184: 2 | I184: 2 | J184: 3 | K184: 1 | L184: 1 | M184: 1 | N184: 1 | O184: 3 | P184: 2 | Q184: 4 | R184: 1 | S184: 2 | T184: 1 | U184: 4 | V184: 2 | W184: 3 | X184: 4 | Y184: 4 | Z184: 4 | AA184: 3 | AB184: 3 | AC184: 2 | AD184: 2 | AE184: 3 | AF184: 4 | AG184: 2 | AH184: 3 | AI184: 4 | AJ184: 1 | AK184: 1 | AL184: 3 | AM184: 4 | AN184: 1 | AO184: 3 | AP184: 4 | AQ184: 1 | AR184: 2 | AS184: 3 | AT184: 2 | AU184: 3
A185: 1 | B185: 1 | C185: 3 | D185: 1 | E185: 3 | F185: 1 | G185: 4 | H185: 2 | I185: 2 | J185: 3 | K185: 2 | L185: 1 | M185: 1 | N185: 2 | O185: 4 | P185: 3 | Q185: 1 | R185: 4 | S185: 2 | T185: 4 | U185: 4 | V185: 2 | W185: 3 | X185: 2 | Y185: 3 | Z185: 4 | AA185: 2 | AB185: 1 | AC185: 2 | AD185: 3 | AE185: 1 | AF185: 1 | AG185: 3 | AH185: 2 | AI185: 2 | AJ185: 1 | AK185: 3 | AL185: 4 | AM185: 4 | AN185: 1 | AO185: 3 | AP185: 4 | AQ185: 1 | AR185: 2 | AS185: 2 | AT185: 1 | AU185: 3
A186: 1 | B186: 1 | C186: 3 | D186: 1 | E186: 3 | F186: 2 | G186: 2 | H186: 2 | I186: 2 | J186: 3 | K186: 1 | L186: 3 | M186: 1 | N186: 2 | O186: 4 | P186: 4 | Q186: 2 | R186: 4 | S186: 2 | T186: 1 | U186: 2 | V186: 3 | W186: 1 | X186: 4 | Y186: 4 | Z186: 3 | AA186: 2 | AB186: 3 | AC186: 2 | AD186: 1 | AE186: 3 | AF186: 4 | AG186: 1 | AH186: 3 | AI186: 4 | AJ186: 4 | AK186: 3 | AL186: 2 | AM186: 3 | AN186: 1 | AO186: 4 | AP186: 4 | AQ186: 1 | AR186: 4 | AS186: 3 | AT186: 2 | AU186: 3
A187: 1 | B187: 1 | C187: 3 | D187: 1 | E187: 3 | F187: 2 | G187: 2 | H187: 3 | I187: 4 | J187: 1 | K187: 3 | L187: 1 | M187: 1 | N187: 1 | O187: 2 | P187: 2 | Q187: 3 | R187: 1 | S187: 2 | T187: 3 | U187: 3 | V187: 3 | W187: 4 | X187: 1 | Y187: 4 | Z187: 4 | AA187: 2 | AB187: 2 | AC187: 2 | AD187: 1 | AE187: 1 | AF187: 4 | AG187: 2 | AH187: 1 | AI187: 2 | AJ187: 1 | AK187: 1 | AL187: 1 | AM187: 4 | AN187: 4 | AO187: 4 | AP187: 1 | AQ187: 1 | AR187: 2 | AS187: 4 | AT187: 1 | AU187: 1
A188: 1 | B188: 1 | C188: 3 | D188: 1 | E188: 3 | F188: 2 | G188: 3 | H188: 2 | I188: 2 | J188: 3 | K188: 1 | L188: 2 | M188: 1 | N188: 2 | O188: 4 | P188: 3 | Q188: 2 | R188: 1 | S188: 2 | T188: 2 | U188: 4 | V188: 1 | W188: 3 | X188: 3 | Y188: 4 | Z188: 4 | AA188: 1 | AB188: 1 | AC188: 4 | AD188: 1 | AE188: 3 | AF188: 1 | AG188: 2 | AH188: 3 | AI188: 4 | AJ188: 1 | AK188: 1 | AL188: 3 | AM188: 4 | AN188: 4 | AO188: 4 | AP188: 4 | AQ188: 1 | AR188: 2 | AS188: 3 | AT188: 2 | AU188: 3
A189: 1 | B189: 1 | C189: 3 | D189: 1 | E189: 4 | F189: 1 | G189: 2 | H189: 2 | I189: 4 | J189: 3 | K189: 4 | L189: 1 | M189: 1 | N189: 2 | O189: 4 | P189: 4 | Q189: 2 | R189: 4 | S189: 2 | T189: 1 | U189: 4 | V189: 2 | W189: 1 | X189: 1 | Y189: 1 | Z189: 3 | AA189: 1 | AB189: 3 | AC189: 2 | AD189: 3 | AE189: 1 | AF189: 4 | AG189: 2 | AH189: 3 | AI189: 1 | AJ189: 2 | AK189: 3 | AL189: 2 | AM189: 2 | AN189: 4 | AO189: 2 | AP189: 3 | AQ189: 1 | AR189: 3 | AS189: 2 | AT189: 1 | AU189: 1
A190: 1 | B190: 1 | C190: 3 | D190: 1 | E190: 4 | F190: 1 | G190: 3 | H190: 2 | I190: 2 | J190: 3 | K190: 3 | L190: 1 | M190: 1 | N190: 2 | O190: 4 | P190: 2 | Q190: 1 | R190: 3 | S190: 2 | T190: 1 | U190: 3 | V190: 2 | W190: 3 | X190: 2 | Y190: 3 | Z190: 4 | AA190: 1 | AB190: 1 | AC190: 4 | AD190: 2 | AE190: 3 | AF190: 4 | AG190: 1 | AH190: 4 | AI190: 4 | AJ190: 3 | AK190: 1 | AL190: 2 | AM190: 2 | AN190: 3 | AO190: 3 | AP190: 1 | AQ190: 1 | AR190: 2 | AS190: 3 | AT190: 2 | AU190: 3
A191: 1 | B191: 1 | C191: 3 | D191: 1 | E191: 4 | F191: 2 | G191: 3 | H191: 2 | I191: 2 | J191: 3 | K191: 1 | L191: 4 | M191: 1 | N191: 2 | O191: 4 | P191: 2 | Q191: 1 | R191: 4 | S191: 2 | T191: 4 | U191: 1 | V191: 2 | W191: 3 | X191: 1 | Y191: 3 | Z191: 2 | AA191: 4 | AB191: 2 | AC191: 3 | AD191: 3 | AE191: 1 | AF191: 2 | AG191: 3 | AH191: 1 | AI191: 2 | AJ191: 2 | AK191: 1 | AL191: 4 | AM191: 2 | AN191: 1 | AO191: 1 | AP191: 2 | AQ191: 4 | AR191: 1 | AS191: 4 | AT191: 2 | AU191: 3
A192: 1 | B192: 1 | C192: 3 | D192: 1 | E192: 4 | F192: 3 | G192: 2 | H192: 1 | I192: 2 | J192: 3 | K192: 1 | L192: 2 | M192: 1 | N192: 2 | O192: 4 | P192: 4 | Q192: 4 | R192: 1 | S192: 1 | T192: 4 | U192: 2 | V192: 2 | W192: 3 | X192: 4 | Y192: 4 | Z192: 3 | AA192: 1 | AB192: 3 | AC192: 1 | AD192: 2 | AE192: 1 | AF192: 2 | AG192: 3 | AH192: 3 | AI192: 2 | AJ192: 2 | AK192: 1 | AL192: 3 | AM192: 2 | AN192: 4 | AO192: 3 | AP192: 3 | AQ192: (en blanco) | AR192: (en blanco) | AS192: (en blanco) | AT192: (en blanco) | AU192: (en blanco)
A193: 1 | B193: 1 | C193: 3 | D193: 2 | E193: 1 | F193: 1 | G193: 2 | H193: 2 | I193: 2 | J193: 2 | K193: 1 | L193: 3 | M193: 4 | N193: 2 | O193: 4 | P193: 3 | Q193: 1 | R193: 4 | S193: 1 | T193: 3 | U193: 2 | V193: 3 | W193: 4 | X193: 3 | Y193: 2 | Z193: 1 | AA193: 4 | AB193: 2 | AC193: 3 | AD193: 4 | AE193: 1 | AF193: 1 | AG193: 3 | AH193: 4 | AI193: 3 | AJ193: 2 | AK193: 1 | AL193: 2 | AM193: 3 | AN193: 4 | AO193: 3 | AP193: 2 | AQ193: 1 | AR193: 4 | AS193: 1 | AT193: 2 | AU193: 4
A194: 1 | B194: 1 | C194: 3 | D194: 2 | E194: 2 | F194: 1 | G194: 3 | H194: 2 | I194: 2 | J194: 2 | K194: 1 | L194: 1 | M194: 1 | N194: 2 | O194: 4 | P194: 2 | Q194: 3 | R194: 4 | S194: 2 | T194: 1 | U194: 2 | V194: 3 | W194: 3 | X194: 2 | Y194: 1 | Z194: 4 | AA194: 3 | AB194: 2 | AC194: 4 | AD194: 2 | AE194: 2 | AF194: 3 | AG194: 2 | AH194: 3 | AI194: 1 | AJ194: 4 | AK194: 1 | AL194: 3 | AM194: 2 | AN194: 4 | AO194: 3 | AP194: 1 | AQ194: 3 | AR194: 2 | AS194: 3 | AT194: 1 | AU194: 4
A195: 1 | B195: 1 | C195: 3 | D195: 2 | E195: 2 | F195: 1 | G195: 3 | H195: 2 | I195: 2 | J195: 3 | K195: 1 | L195: 1 | M195: 4 | N195: 4 | O195: 4 | P195: 1 | Q195: 2 | R195: 1 | S195: 1 | T195: 3 | U195: 2 | V195: 1 | W195: 2 | X195: 2 | Y195: 1 | Z195: 4 | AA195: 2 | AB195: 1 | AC195: 2 | AD195: 1 | AE195: 1 | AF195: 1 | AG195: 1 | AH195: 1 | AI195: 2 | AJ195: 1 | AK195: 1 | AL195: 1 | AM195: 2 | AN195: 4 | AO195: 3 | AP195: 4 | AQ195: 1 | AR195: 1 | AS195: 2 | AT195: 4 | AU195: 2
A196: 1 | B196: 1 | C196: 3 | D196: 2 | E196: 2 | F196: 2 | G196: 1 | H196: 2 | I196: 2 | J196: 3 | K196: 1 | L196: 1 | M196: 1 | N196: 1 | O196: 4 | P196: 2 | Q196: 2 | R196: 1 | S196: 2 | T196: 2 | U196: 1 | V196: 2 | W196: 3 | X196: 4 | Y196: 1 | Z196: 2 | AA196: 1 | AB196: 2 | AC196: 3 | AD196: 2 | AE196: 2 | AF196: 2 | AG196: 2 | AH196: 1 | AI196: 1 | AJ196: 2 | AK196: 3 | AL196: 1 | AM196: 2 | AN196: 1 | AO196: 2 | AP196: 2 | AQ196: 3 | AR196: 3 | AS196: 3 | AT196: 1 | AU196: 1
A197: 1 | B197: 1 | C197: 3 | D197: 2 | E197: 2 | F197: 2 | G197: 3 | H197: 2 | I197: 4 | J197: 3 | K197: 3 | L197: 1 | M197: 1 | N197: 2 | O197: 1 | P197: 2 | Q197: 1 | R197: 2 | S197: 2 | T197: 1 | U197: 1 | V197: 1 | W197: 2 | X197: 3 | Y197: 3 | Z197: 4 | AA197: 3 | AB197: 3 | AC197: 1 | AD197: 2 | AE197: 3 | AF197: 1 | AG197: 2 | AH197: 3 | AI197: 4 | AJ197: 1 | AK197: 1 | AL197: 4 | AM197: 4 | AN197: 3 | AO197: 4 | AP197: 4 | AQ197: 4 | AR197: 3 | AS197: 3 | AT197: 2 | AU197: 3
A198: 1 | B198: 1 | C198: 3 | D198: 2 | E198: 3 | F198: 1 | G198: 1 | H198: 2 | I198: 3 | J198: 3 | K198: 2 | L198: 2 | M198: 1 | N198: 2 | O198: 4 | P198: 4 | Q198: 3 | R198: 4 | S198: 3 | T198: 1 | U198: 4 | V198: 2 | W198: 3 | X198: 4 | Y198: 4 | Z198: 1 | AA198: 1 | AB198: 4 | AC198: 4 | AD198: 4 | AE198: 3 | AF198: 4 | AG198: 1 | AH198: 2 | AI198: 4 | AJ198: 3 | AK198: 1 | AL198: 2 | AM198: 3 | AN198: 1 | AO198: 2 | AP198: 1 | AQ198: 1 | AR198: 4 | AS198: 3 | AT198: 4 | AU198: 3
A199: 1 | B199: 1 | C199: 3 | D199: 2 | E199: 3 | F199: 1 | G199: 1 | H199: 3 | I199: 2 | J199: 3 | K199: 1 | L199: 1 | M199: 1 | N199: 2 | O199: 4 | P199: 1 | Q199: 2 | R199: 2 | S199: 1 | T199: 1 | U199: 4 | V199: 1 | W199: 3 | X199: 1 | Y199: 2 | Z199: 3 | AA199: 2 | AB199: 3 | AC199: 2 | AD199: 2 | AE199: 2 | AF199: 3 | AG199: 1 | AH199: 2 | AI199: 2 | AJ199: 1 | AK199: 1 | AL199: 2 | AM199: 2 | AN199: 1 | AO199: 4 | AP199: 2 | AQ199: 4 | AR199: 1 | AS199: 2 | AT199: 4 | AU199: 2
A200: 1 | B200: 1 | C200: 3 | D200: 2 | E200: 3 | F200: 1 | G200: 2 | H200: 2 | I200: 2 | J200: 2 | K200: 1 | L200: 3 | M200: 1 | N200: 2 | O200: 4 | P200: 2 | Q200: 1 | R200: 3 | S200: 2 | T200: 1 | U200: 4 | V200: 2 | W200: 3 | X200: 4 | Y200: 4 | Z200: 4 | AA200: 2 | AB200: 2 | AC200: 4 | AD200: 2 | AE200: 3 | AF200: 4 | AG200: 3 | AH200: 3 | AI200: 4 | AJ200: 1 | AK200: 1 | AL200: 3 | AM200: 4 | AN200: 3 | AO200: 3 | AP200: 4 | AQ200: 4 | AR200: 2 | AS200: 3 | AT200: 2 | AU200: 3
A201: 1 | B201: 1 | C201: 3 | D201: 2 | E201: 3 | F201: 1 | G201: 2 | H201: 2 | I201: 2 | J201: 3 | K201: 1 | L201: 1 | M201: 2 | N201: 2 | O201: 4 | P201: 3 | Q201: 1 | R201: 4 | S201: 1 | T201: 2 | U201: 1 | V201: 1 | W201: 3 | X201: 2 | Y201: 4 | Z201: 4 | AA201: 1 | AB201: 3 | AC201: 1 | AD201: 2 | AE201: 2 | AF201: 4 | AG201: 3 | AH201: 3 | AI201: 4 | AJ201: 1 | AK201: 3 | AL201: 3 | AM201: 4 | AN201: 4 | AO201: 4 | AP201: 4 | AQ201: 1 | AR201: 2 | AS201: 2 | AT201: 4 | AU201: 3
A202: 1 | B202: 1 | C202: 3 | D202: 2 | E202: 3 | F202: 1 | G202: 2 | H202: 2 | I202: 4 | J202: 3 | K202: 2 | L202: 3 | M202: 1 | N202: 2 | O202: 4 | P202: 1 | Q202: 1 | R202: 4 | S202: 2 | T202: 4 | U202: 3 | V202: 4 | W202: 3 | X202: 4 | Y202: 4 | Z202: 1 | AA202: 1 | AB202: 3 | AC202: 1 | AD202: 2 | AE202: 3 | AF202: 1 | AG202: 1 | AH202: 3 | AI202: 4 | AJ202: 1 | AK202: 1 | AL202: 2 | AM202: 4 | AN202: 1 | AO202: 3 | AP202: 4 | AQ202: 1 | AR202: 2 | AS202: 3 | AT202: 2 | AU202: 3
... 923 more rows

Sheet REACT_LyC (hidden)
A1: REACTIVOS | B1: UNIDADES DE DIAGNÓSTICO | I1: E | L1: E | P1: E
C2: LENGUAJE Y COMUNICACIÓN
C4: REACTIVOS DE LENGUAJE Y COMUNICACIÓN
B5: 1 | C5: ANÁLISIS DEL CONTENIDO Y LA ESTRUCTURA | D5: 2 | E5: CONOCIMIENTO DE FUENTES DE INFORMACIÓN | F5: 3 | G5: DESARROLLO DE UNA COMPRENSIÓN GLOBAL | H5: 4 | I5: DESARROLLO DE UNA INTERPRETACIÓN | J5: 5 | K5: EVALUACIÓN CRÍTICA | L5: 6 | M5: REFLEXIÓN SEMÁNTICA | N5: 7 | O5: REFLEXIÓN SINTÁCTICA Y MORFOSINTÁCTICA
C6: REACTIVOS | E6: REACTIVOS | G6: REACTIVOS | I6: REACTIVOS | K6: REACTIVOS | M6: REACTIVOS | O6: REACTIVOS

Sheet DESCRIPT_LYC (hidden)
B2: DESCRIPTORES DE CADA REACTIVO
B4: Etiquetas de fila | C4: NÚMERO DE REACTIVO
B5: Reflexión semántica
B6: Identificar en un fragmento de cuento indigenismos o regionalismos o extranjerismo.
B7: La respuesta correcta es A ya que expresa la relación entre el tipo de lenguaje oral utilizado por un personaje y sus características de personalidad: “sencilla” y “amable”. Para ello, el alumno debe realizar una valoración sobre el discurso oral empleado | C7: 40
B8: Identificar las características de algunos recursos lingüísticos usados en mensajes publicitarios.
B9: La opción B es correcta ya que la frase "que no ensuciemos las calles" es la interpretación literal de la expresión en sentido figurado que aparece en el anuncio (“No manches… tus calles” ). | C9: 8
B10: Identificar los significados de una misma palabra en diferentes regiones.
B11: La opción C es correcta porque sustituye semánticamente el término de forma adecuada considerando su significado y la variante dialectal: “duros” igual a “dinero”. | C11: 5
B12: Seleccionar las conexiones lógicas que organizan un argumento diferente al anterior.
B13: La opción C es correcta ya que refleja los dos conectores discursivos que articulan el argumento lógicamente: "porque" (que da la causa) y "por ejemplo" (el cual explica esa causa). | C13: 16

Sheet UD MAT 1 (hidden)
A1: PORCENTAJES DE UNIDADES DE DIAGNÓSTICO POR ESCUELA EN MATEMÁTICAS
A3: UNIDAD DE DIAGNÓSTICO: FORMA, ESPACIO Y MEDIDA
L5: MAT11 | M5: Identificar el desarrollo plano de conos y cilindros rectos.
L6: MAT12 | M6: Resolver problemas que involucren la semejanza de triángulos.
L7: MAT13 | M7: Resolver problemas que impliquen calcular el perímetro o área del círculo o alguno de sus elementos (radio o diámetro.)
L8: MAT14 | M8: Resolver problemas que impliquen la relación entre un ángulo inscrito y central en una circunferencia, si ambos abarcan el mismo arco.
L9: MAT15 | M9: Resolver problemas que impliquen el cálculo del área de sectores circulares o de coronas.
L10: MAT16 | M10: Resolver problemas que impliquen el uso del teorema de Pitágoras.
L11: MAT17 | M11: Identificar las secciones que se obtienen al cortar un cilindro o un cono recto con un plano.
L12: MAT18 | M12: Identificar la cantidad de aumento o disminución de volumen al cambiar alguna de las dimensiones de los cuerpos geométricos (1)
L13: MAT40 | M13: Identificar el cuerpo que se genera al girar un triángulo rectángulo o un rectángulo.
L14: MAT41 | M14: Resolver problemas que involucren el teorema de Tales.
L15: MAT42 | M15: Resolver problemas que impliquen el cálculo de volumen o de cualquier término involucrado en las fórmulas de cubos, prismas o pirámides rectos.
L16: MAT43 | M16: Identificar la cantidad de aumento o disminución de volumen al cambiar alguna de las dimensiones de los cuerpos geométricos (2)

Sheet UD MAT_2 (hidden)
A1: PORCENTAJES DE DESEMPEÑO POR ESCUELA EN MATEMÁTICAS
A3: UNIDAD DE DIAGNÓSTICO: MANEJO DE LA INFORMACIÓN
M20: MAT19 | N20: Resolver problemas de reparto proporcional.
M21: MAT20 | N21: Resolver problemas de proporcionalidad directa en los que se apliquen sucesivamente dos factores constantes de proporcionalidad.
M22: MAT21 | N22: Resolver problemas que impliquen una relación inversamente proporcional entre dos conjuntos de cantidades.
M23: MAT22 | N23: Identificar la gráfica que corresponde a una relación de proporcionalidad directa.
M24: MAT23 | N24: Identificar la relación entre la pendiente y la razón de cambio.
M25: MAT24 | N25: Resolver problemas que impliquen la interpretación de información representada en polígonos de frecuencia (1)
M26: MAT25 | N26: Resolver problemas que impliquen la interpretación de información representada en polígonos de frecuencia /2)
M27: MAT44 | N27: Resolver problemas de proporcionalidad múltiple con factor de proporcionalidad entero.
M28: MAT45 | N28: Resolver problemas en los que se efectúe el cálculo de porcentajes o de cualquier término de la relación: porcentaje igual a cantidad base por tasa.
M29: MAT46 | N29: Identificar las representaciones (gráfica, tabla y expresión algebraica) que corresponde a una misma situación de proporcionalidad directa.
M30: MAT47 | N30: Identificar la relación entre la pendiente y la razón de cambio.
M31: MAT48 | N31: Resolver problemas de conteo.
M32: MAT50 | N32: Leer información contenida en tablas de frecuencia absoluta y relativa.

Sheet UD MAT 3 (hidden)
A1: PORCENTAJES DE DESEMPEÑO POR ESCUELA EN MATEMÁTICAS
A3: UNIDAD DE DIAGNÓSTICO: SENTIDO NUMÉRICO Y PENSAMIENTO ALGEBRÁICO
N18: MAT1 | O18: Ubicar en la recta numérica números fraccionarios dados dos puntos cualesquiera.
N19: MAT2 | O19: Resolver problemas aditivos con números decimales.
N20: MAT3 | O20: Resolver problemas aditivos que impliquen el uso de números enteros.
N21: MAT5 | O21: Resolver problemas multiplicativos con números enteros (1)
N22: MAT6 | O22: Identificar expresiones algebraicas equivalentes a partir de un modelo geométrico.
N23: MAT7 | O23: Traducir al lenguaje natural el significado de fórmulas geométricas o viceversa.
N24: MAT8 | O24: Resolver ecuaciones de primer grado de la forma ax+bx+c=dx+ex+f y con paréntesis en uno o ambos miembros de la ecuación utilizando coeficientes enteros o fraccionarios.
N25: MAT9 | O25: Resolver problemas que impliquen identificar un sistema de ecuaciones, con coeficientes enteros, que modela una situación.
N26: MAT10 | O26: Resolver problemas que impliquen el uso de un sistema de dos ecuaciones lineales con dos incógnitas.
N27: MAT26 | O27: Resolver problemas aditivos con números fraccionarios con distinto denominador.
N28: MAT27 | O28: Resolver problemas que impliquen la suma o resta de polinomios.
N29: MAT29 | O29: Resolver problemas que impliquen multiplicación de números decimales.
N30: MAT30 | O30: Resolver problemas multiplicativos con números enteros (2)
N31: MAT31 | O31: Resolver problemas que impliquen el planteamiento y solución de ecuaciones de primer grado de la forma x+a=b; ax=b; ax+b=c.
N32: MAT32 | O32: Identificar la sucesión a partir de una regla dada.
N33: MAT33 | O33: Resolver problemas que impliquen identificar un sistema de ecuaciones, con coeficientes enteros, que modela una situación.
N34: MAT34 | O34: Resolver problemas que involucran ecuaciones de segundo grado (1)
N35: MAT35 | O35: Resolver problemas que involucran ecuaciones de segundo grado (2)

Sheet OPCION_RESP_MAT (hidden)
A2: MAT_RESP_1 | B2: MAT_RESP_2 | C2: MAT_RESP_3 | D2: MAT_RESP_5 | E2: MAT_RESP_6 | F2: MAT_RESP_7 | G2: MAT_RESP_8 | H2: MAT_RESP_9 | I2: MAT_RESP_10 | J2: MAT_RESP_11 | K2: MAT_RESP_12 | L2: MAT_RESP_13 | M2: MAT_RESP_14 | N2: MAT_RESP_15 | O2: MAT_RESP_16 | P2: MAT_RESP_17 | Q2: MAT_RESP_18 | R2: MAT_RESP_19 | S2: MAT_RESP_20 | T2: MAT_RESP_21 | U2: MAT_RESP_22 | V2: MAT_RESP_23 | W2: MAT_RESP_24 | X2: MAT_RESP_25 | Y2: MAT_RESP_26 | Z2: MAT_RESP_27 | AA2: MAT_RESP_29 | AB2: MAT_RESP_30 | AC2: MAT_RESP_31 | AD2: MAT_RESP_32 | AE2: MAT_RESP_33 | AF2: MAT_RESP_34 | AG2: MAT_RESP_35 | AH2: MAT_RESP_36 | AI2: MAT_RESP_37 | AJ2: MAT_RESP_38 | AK2: MAT_RESP_39 | AL2: MAT_RESP_40 | AM2: MAT_RESP_41 | AN2: MAT_RESP_42 | AO2: MAT_RESP_43 | AP2: MAT_RESP_44 | AQ2: MAT_RESP_45 | AR2: MAT_RESP_46 | AS2: MAT_RESP_47 | AT2: MAT_RESP_48 | AU2: MAT_RESP_50 | BH2: C | BI2: El color verde en la tabla indica que es la opción correcta
A3: (en blanco) | B3: (en blanco) | C3: (en blanco) | D3: (en blanco) | E3: (en blanco) | F3: (en blanco) | G3: (en blanco) | H3: (en blanco) | I3: (en blanco) | J3: (en blanco) | K3: (en blanco) | L3: (en blanco) | M3: (en blanco) | N3: (en blanco) | O3: (en blanco) | P3: (en blanco) | Q3: (en blanco) | R3: (en blanco) | S3: (en blanco) | T3: (en blanco) | U3: (en blanco) | V3: (en blanco) | W3: (en blanco) | X3: (en blanco) | Y3: (en blanco) | Z3: (en blanco) | AA3: (en blanco) | AB3: (en blanco) | AC3: (en blanco) | AD3: (en blanco) | AE3: (en blanco) | AF3: (en blanco) | AG3: (en blanco) | AH3: (en blanco) | AI3: (en blanco) | AJ3: (en blanco) | AK3: (en blanco) | AL3: (en blanco) | AM3: (en blanco) | AN3: (en blanco) | AO3: (en blanco) | AP3: (en blanco) | AQ3: (en blanco) | AR3: (en blanco) | AS3: (en blanco) | AT3: (en blanco) | AU3: (en blanco)
A4: (en blanco) | B4: 3 | C4: 1 | D4: 1 | E4: 2 | F4: 4 | G4: 2 | H4: 2 | I4: 3 | J4: 3 | K4: 4 | L4: 2 | M4: 4 | N4: 3 | O4: 2 | P4: 4 | Q4: 2 | R4: 3 | S4: 4 | T4: 1 | U4: 2 | V4: 3 | W4: 1 | X4: 2 | Y4: 4 | Z4: 2 | AA4: 4 | AB4: 2 | AC4: 1 | AD4: 4 | AE4: 3 | AF4: 4 | AG4: 2 | AH4: 2 | AI4: 3 | AJ4: 3 | AK4: 4 | AL4: 3 | AM4: 2 | AN4: 4 | AO4: 3 | AP4: 4 | AQ4: 4 | AR4: 3 | AS4: 4 | AT4: 4 | AU4: 1 | BB4: SELECCIONE AQUÍ LOS REACTIVOS | BC4: PORCENTAJES POR CADA OPCIÓN DE RESPUESTA
A5: (en blanco) | B5: 3 | C5: 1 | D5: 1 | E5: 3 | F5: 4 | G5: 1 | H5: 4 | I5: 3 | J5: 4 | K5: 1 | L5: 1 | M5: 1 | N5: 2 | O5: 2 | P5: 4 | Q5: 2 | R5: 3 | S5: 4 | T5: 2 | U5: 2 | V5: 4 | W5: 4 | X5: 1 | Y5: 1 | Z5: 3 | AA5: 2 | AB5: 1 | AC5: 4 | AD5: 3 | AE5: 1 | AF5: 1 | AG5: 2 | AH5: 3 | AI5: 2 | AJ5: 2 | AK5: 4 | AL5: 1 | AM5: 1 | AN5: 1 | AO5: 4 | AP5: 2 | AQ5: 2 | AR5: 1 | AS5: 4 | AT5: 3 | AU5: 2
A6: (en blanco) | B6: 3 | C6: 3 | D6: 2 | E6: 4 | F6: 2 | G6: 4 | H6: 2 | I6: 2 | J6: 2 | K6: 1 | L6: 4 | M6: 1 | N6: 3 | O6: 2 | P6: 4 | Q6: 2 | R6: 1 | S6: 4 | T6: 2 | U6: 2 | V6: 4 | W6: 3 | X6: 1 | Y6: 1 | Z6: 3 | AA6: 4 | AB6: 4 | AC6: 1 | AD6: 4 | AE6: 3 | AF6: 3 | AG6: 4 | AH6: 4 | AI6: 2 | AJ6: 2 | AK6: 4 | AL6: 3 | AM6: 2 | AN6: 1 | AO6: 4 | AP6: 3 | AQ6: 1 | AR6: 4 | AS6: 3 | AT6: 3 | AU6: 2 | AW6: 1 | AX6: 2 | AY6: 3 | AZ6: 4 | BA6: TOTAL DE ESTUDIANTES | BC6: A | BD6: B | BE6: C | BF6: D | BG6: T
A7: (en blanco) | B7: 3 | C7: 3 | D7: 3 | E7: 3 | F7: 4 | G7: 1 | H7: 2 | I7: 3 | J7: 4 | K7: 1 | L7: 4 | M7: 1 | N7: 4 | O7: 2 | P7: 4 | Q7: 2 | R7: 3 | S7: 3 | T7: 2 | U7: 2 | V7: 4 | W7: 1 | X7: 1 | Y7: 4 | Z7: (en blanco) | AA7: 3 | AB7: 3 | AC7: 4 | AD7: 2 | AE7: 3 | AF7: 4 | AG7: 3 | AH7: 4 | AI7: 3 | AJ7: 2 | AK7: 2 | AL7: 1 | AM7: 2 | AN7: 3 | AO7: 4 | AP7: 3 | AQ7: 2 | AR7: 1 | AS7: 3 | AT7: 3 | AU7: 3 | AW7: =COUNTIF($A:$A,$AW$6) -> 1836 | AX7: =COUNTIF($A:$A,$AX$6) -> 844 | AY7: =COUNTIF($A:$A,$AY$6) -> 1084 | AZ7: =COUNTIF($A:$A,$AZ$6) -> 1094 | BA7: =SUM(AW7:AZ7) -> 4858 | BB7: P1 | BC7: =(AW7*100)/BA7 -> 37.79333059 | BD7: =(AX7*100)/BA7 -> 17.37340469 | BE7: =(AY7*100)/BA7 -> 22.31370935 | BF7: =(AZ7*100)/BA7 -> 22.51955537 | BG7: =SUM(BC7:BF7) -> 100
A8: (en blanco) | B8: 3 | C8: 4 | D8: 4 | E8: 1 | F8: 2 | G8: 2 | H8: 4 | I8: 3 | J8: 1 | K8: 1 | L8: 4 | M8: 1 | N8: 3 | O8: 2 | P8: 4 | Q8: 2 | R8: 3 | S8: 3 | T8: 2 | U8: 2 | V8: 4 | W8: 1 | X8: 1 | Y8: 4 | Z8: 3 | AA8: 3 | AB8: 4 | AC8: 4 | AD8: 2 | AE8: 1 | AF8: 1 | AG8: 2 | AH8: 3 | AI8: 2 | AJ8: 3 | AK8: 4 | AL8: 1 | AM8: 4 | AN8: 4 | AO8: 4 | AP8: 3 | AQ8: 2 | AR8: 1 | AS8: 1 | AT8: 3 | AU8: 3 | AW8: =COUNTIF($B:$B,$AW$6) -> 301 | AX8: =COUNTIF($B:$B,$AX$6) -> 509 | AY8: =COUNTIF($B:$B,$AY$6) -> 3071 | AZ8: =COUNTIF($B:$B,$AZ$6) -> 976 | BA8: 4857 | BB8: P2 | BC8: 6.197241095 | BD8: 10.47971999 | BE8: 63.22833025 | BF8: =(AZ8*100)/BA8 -> 20.09470867 | BG8: =SUM(BC8:BF8) -> 100
A9: (en blanco) | B9: 3 | C9: 4 | D9: 4 | E9: 4 | F9: 2 | G9: 2 | H9: 2 | I9: 2 | J9: 2 | K9: 4 | L9: 4 | M9: 4 | N9: 2 | O9: 1 | P9: 4 | Q9: 2 | R9: 3 | S9: 4 | T9: 2 | U9: 2 | V9: 4 | W9: 4 | X9: 1 | Y9: 4 | Z9: 3 | AA9: 4 | AB9: 4 | AC9: 4 | AD9: (en blanco) | AE9: 3 | AF9: 4 | AG9: (en blanco) | AH9: 1 | AI9: 2 | AJ9: (en blanco) | AK9: (en blanco) | AL9: 1 | AM9: 2 | AN9: 4 | AO9: 4 | AP9: 4 | AQ9: 3 | AR9: 4 | AS9: 3 | AT9: 3 | AU9: 2 | AW9: =COUNTIF($C:$C,$AW$6) -> 1007 | AX9: =COUNTIF($C:$C,$AX$6) -> 616 | AY9: =COUNTIF($C:$C,$AY$6) -> 1513 | AZ9: =COUNTIF($C:$C,$AZ$6) -> 1723 | BA9: 4859 | BB9: P3 | BC9: 20.72442889 | BD9: 12.67750566 | BE9: 31.13809426 | BF9: 35.45997119 | BG9: 100
A10: 1 | B10: (en blanco) | C10: 1 | D10: 1 | E10: 4 | F10: 2 | G10: 2 | H10: 2 | I10: 2 | J10: 3 | K10: 1 | L10: 2 | M10: 1 | N10: 3 | O10: 2 | P10: 4 | Q10: 2 | R10: 3 | S10: 2 | T10: 4 | U10: 1 | V10: 1 | W10: 3 | X10: 2 | Y10: 3 | Z10: 1 | AA10: 1 | AB10: 3 | AC10: 1 | AD10: 4 | AE10: 2 | AF10: 3 | AG10: 2 | AH10: 1 | AI10: 1 | AJ10: 3 | AK10: 1 | AL10: 2 | AM10: 3 | AN10: 1 | AO10: 2 | AP10: 2 | AQ10: 1 | AR10: 1 | AS10: 3 | AT10: 3 | AU10: 2 | AW10: =COUNTIF($D:$D,$AW$6) -> 1087 | AX10: =COUNTIF($D:$D,$AX$6) -> 1225 | AY10: =COUNTIF($D:$D,$AY$6) -> 950 | AZ10: =COUNTIF($D:$D,$AZ$6) -> 1589 | BA10: 4851 | BB10: P5 | BC10: 22.40775098 | BD10: 25.25252525 | BE10: 19.58359101 | BF10: 32.75613276 | BG10: 100
A11: 1 | B11: (en blanco) | C11: 2 | D11: 4 | E11: 3 | F11: 2 | G11: 2 | H11: 4 | I11: 2 | J11: 2 | K11: 1 | L11: 1 | M11: 2 | N11: 4 | O11: 2 | P11: 4 | Q11: 2 | R11: 3 | S11: 3 | T11: 2 | U11: 2 | V11: 4 | W11: 4 | X11: 1 | Y11: 4 | Z11: 3 | AA11: 3 | AB11: 1 | AC11: 1 | AD11: 2 | AE11: 4 | AF11: 1 | AG11: 4 | AH11: 4 | AI11: 1 | AJ11: 3 | AK11: 4 | AL11: 4 | AM11: 2 | AN11: 1 | AO11: 4 | AP11: 3 | AQ11: 3 | AR11: 4 | AS11: 3 | AT11: 3 | AU11: 3 | AW11: =COUNTIF($E:$E,$AW$6) -> 1012 | AX11: =COUNTIF($E:$E,$AX$6) -> 1098 | AY11: =COUNTIF($E:$E,$AY$6) -> 1336 | AZ11: =COUNTIF($E:$E,$AZ$6) -> 1402 | BA11: 4848 | BB11: P6 | BC11: 20.87458746 | BD11: 22.64851485 | BE11: 27.55775578 | BF11: 28.91914191 | BG11: 100
A12: 1 | B12: (en blanco) | C12: 3 | D12: 2 | E12: (en blanco) | F12: 1 | G12: 2 | H12: 3 | I12: 2 | J12: 2 | K12: 1 | L12: 4 | M12: 3 | N12: 2 | O12: 4 | P12: 4 | Q12: 2 | R12: 1 | S12: 4 | T12: 2 | U12: 3 | V12: 4 | W12: 1 | X12: 2 | Y12: 4 | Z12: 4 | AA12: 2 | AB12: 1 | AC12: 2 | AD12: 3 | AE12: 3 | AF12: 1 | AG12: 3 | AH12: 4 | AI12: 2 | AJ12: 2 | AK12: 2 | AL12: 3 | AM12: 1 | AN12: 1 | AO12: 4 | AP12: 4 | AQ12: 3 | AR12: 4 | AS12: 1 | AT12: 3 | AU12: 3 | AW12: =COUNTIF($F:$F,$AW$6) -> 625 | AX12: =COUNTIF($F:$F,$AX$6) -> 2388 | AY12: =COUNTIF($F:$F,$AY$6) -> 416 | AZ12: =COUNTIF($F:$F,$AZ$6) -> 1426 | BA12: 4855 | BB12: P7 | BC12: 12.87332647 | BD12: 49.18640577 | BE12: 8.568486097 | BF12: 29.37178167 | BG12: 100
A13: 1 | B13: 1 | C13: 1 | D13: 1 | E13: 1 | F13: 4 | G13: 4 | H13: 2 | I13: 2 | J13: 1 | K13: 1 | L13: 2 | M13: 2 | N13: 3 | O13: 2 | P13: 3 | Q13: 2 | R13: 4 | S13: 2 | T13: 4 | U13: 2 | V13: 4 | W13: 4 | X13: 2 | Y13: 1 | Z13: 4 | AA13: 1 | AB13: 4 | AC13: 3 | AD13: 3 | AE13: 4 | AF13: 1 | AG13: 3 | AH13: 3 | AI13: 2 | AJ13: 2 | AK13: 2 | AL13: 1 | AM13: 1 | AN13: 1 | AO13: 4 | AP13: 3 | AQ13: 1 | AR13: 4 | AS13: 4 | AT13: 3 | AU13: 2 | AW13: =COUNTIF($G:$G,$AW$6) -> 2074 | AX13: =COUNTIF($G:$G,$AX$6) -> 886 | AY13: =COUNTIF($G:$G,$AY$6) -> 1073 | AZ13: =COUNTIF($G:$G,$AZ$6) -> 819 | BA13: 4852 | BB13: P8 | BC13: 42.74525969 | BD13: 18.26051113 | BE13: 22.11459192 | BF13: 16.87963726 | BG13: 100
A14: 1 | B14: 1 | C14: 1 | D14: 1 | E14: 2 | F14: 2 | G14: 1 | H14: 4 | I14: 4 | J14: 3 | K14: 1 | L14: 3 | M14: 4 | N14: 4 | O14: 4 | P14: 1 | Q14: 2 | R14: 4 | S14: 2 | T14: 2 | U14: 2 | V14: 4 | W14: 2 | X14: 2 | Y14: 1 | Z14: 2 | AA14: 2 | AB14: 2 | AC14: 1 | AD14: 2 | AE14: 1 | AF14: 3 | AG14: 2 | AH14: 3 | AI14: 3 | AJ14: 2 | AK14: 1 | AL14: 1 | AM14: 2 | AN14: 3 | AO14: 4 | AP14: 3 | AQ14: 3 | AR14: 4 | AS14: 4 | AT14: 1 | AU14: 2 | AW14: =COUNTIF($H:$H,$AW$6) -> 526 | AX14: =COUNTIF($H:$H,$AX$6) -> 2171 | AY14: =COUNTIF($H:$H,$AY$6) -> 539 | AZ14: =COUNTIF($H:$H,$AZ$6) -> 1622 | BA14: 4858 | BB14: P9 | BC14: 10.82750103 | BD14: 44.6891725 | BE14: 11.09510086 | BF14: 33.38822561 | BG14: 100
A15: 1 | B15: 1 | C15: 1 | D15: 1 | E15: 2 | F15: 3 | G15: 2 | H15: 1 | I15: 2 | J15: 3 | K15: 2 | L15: 1 | M15: 1 | N15: 2 | O15: 2 | P15: 4 | Q15: 2 | R15: 3 | S15: 3 | T15: 2 | U15: 1 | V15: 1 | W15: 2 | X15: 2 | Y15: 1 | Z15: 1 | AA15: 2 | AB15: 2 | AC15: 3 | AD15: 4 | AE15: 1 | AF15: 3 | AG15: 2 | AH15: 2 | AI15: 3 | AJ15: 3 | AK15: 1 | AL15: 3 | AM15: 2 | AN15: 4 | AO15: 2 | AP15: 4 | AQ15: 1 | AR15: 3 | AS15: 1 | AT15: 3 | AU15: 1 | AW15: =COUNTIF($I:$I,$AW$6) -> 972 | AX15: =COUNTIF($I:$I,$AX$6) -> 1326 | AY15: =COUNTIF($I:$I,$AY$6) -> 2250 | AZ15: =COUNTIF($I:$I,$AZ$6) -> 305 | BA15: 4853 | BB15: P10 | BC15: 20.02884814 | BD15: 27.32330517 | BE15: 46.36307439 | BF15: 6.284772306 | BG15: 100
A16: 1 | B16: 1 | C16: 1 | D16: 1 | E16: 3 | F16: 4 | G16: 4 | H16: 3 | I16: 2 | J16: 2 | K16: 1 | L16: 1 | M16: 4 | N16: 4 | O16: 2 | P16: 1 | Q16: 2 | R16: 3 | S16: 2 | T16: 1 | U16: 3 | V16: 4 | W16: 2 | X16: 2 | Y16: 1 | Z16: 1 | AA16: 3 | AB16: 2 | AC16: 2 | AD16: 2 | AE16: 1 | AF16: 2 | AG16: 4 | AH16: 4 | AI16: 3 | AJ16: 2 | AK16: 2 | AL16: 1 | AM16: 2 | AN16: 1 | AO16: 2 | AP16: 1 | AQ16: 2 | AR16: 3 | AS16: 2 | AT16: 3 | AU16: 3 | AW16: =COUNTIF($J:$J,$AW$6) -> 2187 | AX16: =COUNTIF($J:$J,$AX$6) -> 811 | AY16: =COUNTIF($J:$J,$AY$6) -> 725 | AZ16: =COUNTIF($J:$J,$AZ$6) -> 1121 | BA16: 4844 | BB16: P11 | BC16: 45.14863749 | BD16: 16.74236168 | BE16: 14.96696945 | BF16: 23.14203138 | BG16: 100
A17: 1 | B17: 1 | C17: 1 | D17: 1 | E17: 4 | F17: 2 | G17: 3 | H17: 1 | I17: 4 | J17: 1 | K17: 3 | L17: 3 | M17: 2 | N17: 3 | O17: 3 | P17: 3 | Q17: 2 | R17: 1 | S17: 4 | T17: 3 | U17: 2 | V17: 1 | W17: 3 | X17: 2 | Y17: 4 | Z17: 4 | AA17: 3 | AB17: 2 | AC17: 2 | AD17: 3 | AE17: 1 | AF17: 4 | AG17: 1 | AH17: 1 | AI17: 4 | AJ17: 2 | AK17: (en blanco) | AL17: 4 | AM17: 2 | AN17: 2 | AO17: 3 | AP17: 2 | AQ17: 4 | AR17: 4 | AS17: 3 | AT17: 1 | AU17: 2 | AW17: =COUNTIF($K:$K,$AW$6) -> 3243 | AX17: =COUNTIF($K:$K,$AX$6) -> 707 | AY17: =COUNTIF($K:$K,$AY$6) -> 497 | AZ17: =COUNTIF($K:$K,$AZ$6) -> 407 | BA17: 4854 | BB17: P12 | BC17: 66.81087763 | BD17: 14.56530696 | BE17: 10.23897816 | BF17: 8.384837248 | BG17: 100
A18: 1 | B18: 1 | C18: 1 | D18: 1 | E18: 4 | F18: 2 | G18: 3 | H18: 3 | I18: 3 | J18: 2 | K18: 2 | L18: 2 | M18: 4 | N18: 1 | O18: 4 | P18: 4 | Q18: 2 | R18: 2 | S18: 2 | T18: 3 | U18: 2 | V18: 4 | W18: 2 | X18: 2 | Y18: 4 | Z18: 2 | AA18: 1 | AB18: 3 | AC18: 1 | AD18: 4 | AE18: 1 | AF18: 3 | AG18: 3 | AH18: 2 | AI18: 2 | AJ18: 2 | AK18: 4 | AL18: 1 | AM18: 3 | AN18: 3 | AO18: 1 | AP18: 4 | AQ18: 3 | AR18: 1 | AS18: 3 | AT18: 1 | AU18: 3 | AW18: =COUNTIF($L:$L,$AW$6) -> 887 | AX18: =COUNTIF($L:$L,$AX$6) -> 1898 | AY18: =COUNTIF($L:$L,$AY$6) -> 1071 | AZ18: =COUNTIF($L:$L,$AZ$6) -> 979 | BA18: 4835 | BB18: P13 | BC18: 18.34539814 | BD18: 39.25542916 | BE18: 22.15098242 | BF18: 20.24819028 | BG18: 100
A19: 1 | B19: 1 | C19: 1 | D19: 2 | E19: 1 | F19: 4 | G19: 1 | H19: 3 | I19: 3 | J19: 1 | K19: 1 | L19: 3 | M19: 1 | N19: 2 | O19: 2 | P19: 4 | Q19: 4 | R19: 3 | S19: 2 | T19: 2 | U19: 2 | V19: 4 | W19: 4 | X19: 1 | Y19: 4 | Z19: 3 | AA19: 2 | AB19: 4 | AC19: 4 | AD19: 4 | AE19: 1 | AF19: 1 | AG19: 2 | AH19: 1 | AI19: 2 | AJ19: 3 | AK19: 4 | AL19: 1 | AM19: 1 | AN19: 2 | AO19: 4 | AP19: 3 | AQ19: 3 | AR19: 1 | AS19: 1 | AT19: 4 | AU19: 3 | AW19: =COUNTIF($M:$M,$AW$6) -> 2340 | AX19: =COUNTIF($M:$M,$AX$6) -> 709 | AY19: =COUNTIF($M:$M,$AY$6) -> 595 | AZ19: =COUNTIF($M:$M,$AZ$6) -> 1199 | BA19: 4843 | BB19: P14 | BC19: 48.31715879 | BD19: 14.63968614 | BE19: 12.28577328 | BF19: 24.75738179 | BG19: 100
A20: 1 | B20: 1 | C20: 1 | D20: 2 | E20: 2 | F20: 1 | G20: 1 | H20: 4 | I20: 1 | J20: 1 | K20: 1 | L20: 2 | M20: 1 | N20: 1 | O20: 2 | P20: 4 | Q20: 2 | R20: 3 | S20: 2 | T20: 1 | U20: 1 | V20: 3 | W20: 2 | X20: 2 | Y20: 4 | Z20: 2 | AA20: 3 | AB20: 1 | AC20: 2 | AD20: 1 | AE20: 2 | AF20: 3 | AG20: 2 | AH20: 1 | AI20: 1 | AJ20: 2 | AK20: 1 | AL20: 4 | AM20: 1 | AN20: 1 | AO20: 2 | AP20: 3 | AQ20: 2 | AR20: 2 | AS20: 3 | AT20: 1 | AU20: 1 | AW20: =COUNTIF($N:$N,$AW$6) -> 1079 | AX20: =COUNTIF($N:$N,$AX$6) -> 817 | AY20: =COUNTIF($N:$N,$AY$6) -> 1460 | AZ20: =COUNTIF($N:$N,$AZ$6) -> 1487 | BA20: 4843 | BB20: P15 | BC20: 22.27957877 | BD20: 16.86970886 | BE20: 30.14660335 | BF20: 30.70410902 | BG20: 100
A21: 1 | B21: 1 | C21: 1 | D21: 2 | E21: 3 | F21: 4 | G21: 1 | H21: 2 | I21: 4 | J21: 3 | K21: 2 | L21: 3 | M21: 1 | N21: 4 | O21: 2 | P21: 3 | Q21: 1 | R21: 3 | S21: 1 | T21: 4 | U21: 2 | V21: 3 | W21: 1 | X21: 2 | Y21: 4 | Z21: 4 | AA21: 3 | AB21: 2 | AC21: 4 | AD21: 1 | AE21: 3 | AF21: 2 | AG21: 4 | AH21: 4 | AI21: 1 | AJ21: 3 | AK21: 1 | AL21: 2 | AM21: 4 | AN21: 1 | AO21: 3 | AP21: 1 | AQ21: 4 | AR21: 2 | AS21: 4 | AT21: 1 | AU21: 3 | AW21: =COUNTIF($O:$O,$AW$6) -> 603 | AX21: =COUNTIF($O:$O,$AX$6) -> 2841 | AY21: =COUNTIF($O:$O,$AY$6) -> 709 | AZ21: =COUNTIF($O:$O,$AZ$6) -> 701 | BA21: 4854 | BB21: P16 | BC21: 12.42274413 | BD21: 58.52904821 | BE21: 14.60651009 | BF21: 14.44169757 | BG21: 100
A22: 1 | B22: 1 | C22: 1 | D22: 2 | E22: 4 | F22: 2 | G22: 1 | H22: 2 | I22: 1 | J22: 4 | K22: 1 | L22: 2 | M22: 1 | N22: 2 | O22: 2 | P22: 3 | Q22: 2 | R22: 3 | S22: 2 | T22: 2 | U22: 2 | V22: 4 | W22: 2 | X22: 3 | Y22: 1 | Z22: 3 | AA22: 3 | AB22: 3 | AC22: 4 | AD22: 4 | AE22: 3 | AF22: 1 | AG22: 3 | AH22: 4 | AI22: 1 | AJ22: 3 | AK22: 2 | AL22: 1 | AM22: 1 | AN22: 1 | AO22: 2 | AP22: 4 | AQ22: 2 | AR22: 1 | AS22: 4 | AT22: 3 | AU22: 3 | AW22: =COUNTIF($P:$P,$AW$6) -> 882 | AX22: =COUNTIF($P:$P,$AX$6) -> 352 | AY22: =COUNTIF($P:$P,$AY$6) -> 747 | AZ22: =COUNTIF($P:$P,$AZ$6) -> 2866 | BA22: 4847 | BB22: P17 | BC22: 18.19682278 | BD22: 7.262224056 | BE22: 15.4115948 | BF22: 59.12935837 | BG22: 100
A23: 1 | B23: 1 | C23: 1 | D23: 2 | E23: 4 | F23: 3 | G23: 1 | H23: 2 | I23: 3 | J23: 1 | K23: 3 | L23: 1 | M23: 4 | N23: 1 | O23: 3 | P23: (en blanco) | Q23: 1 | R23: 3 | S23: 2 | T23: 4 | U23: 3 | V23: 4 | W23: 1 | X23: 2 | Y23: 2 | Z23: 4 | AA23: 3 | AB23: 1 | AC23: 2 | AD23: 4 | AE23: 3 | AF23: 1 | AG23: 3 | AH23: 3 | AI23: 3 | AJ23: 2 | AK23: 4 | AL23: 1 | AM23: 4 | AN23: 2 | AO23: 3 | AP23: 4 | AQ23: 1 | AR23: 1 | AS23: 4 | AT23: 2 | AU23: 3 | AW23: =COUNTIF($Q:$Q,$AW$6) -> 347 | AX23: =COUNTIF($Q:$Q,$AX$6) -> 3905 | AY23: =COUNTIF($Q:$Q,$AY$6) -> 303 | AZ23: =COUNTIF($Q:$Q,$AZ$6) -> 304 | BA23: 4859 | BB23: P18 | BC23: 7.141387117 | BD23: 80.36633052 | BE23: 6.235850998 | BF23: 6.256431364 | BG23: 100
A24: 1 | B24: 1 | C24: 1 | D24: 2 | E24: 4 | F24: 4 | G24: 3 | H24: 2 | I24: 2 | J24: 2 | K24: 1 | L24: 2 | M24: 4 | N24: 4 | O24: 4 | P24: 4 | Q24: 2 | R24: 2 | S24: 4 | T24: 4 | U24: 3 | V24: 1 | W24: 4 | X24: 2 | Y24: 1 | Z24: 1 | AA24: 1 | AB24: 1 | AC24: 1 | AD24: 2 | AE24: 3 | AF24: 3 | AG24: 3 | AH24: 4 | AI24: 3 | AJ24: 2 | AK24: 2 | AL24: 1 | AM24: 3 | AN24: 1 | AO24: 1 | AP24: 2 | AQ24: 2 | AR24: 4 | AS24: 3 | AT24: 3 | AU24: 2 | AW24: =COUNTIF($R:$R,$AW$6) -> 457 | AX24: =COUNTIF($R:$R,$AX$6) -> 901 | AY24: =COUNTIF($R:$R,$AY$6) -> 2701 | AZ24: =COUNTIF($R:$R,$AZ$6) -> 792 | BA24: 4851 | BB24: P19 | BC24: 9.420737992 | BD24: 18.57349 | BE24: 55.67924139 | BF24: 16.32653061 | BG24: 100
A25: 1 | B25: 1 | C25: 1 | D25: 3 | E25: 3 | F25: 4 | G25: 4 | H25: 4 | I25: 3 | J25: 1 | K25: 1 | L25: 2 | M25: 2 | N25: 3 | O25: 2 | P25: 4 | Q25: 2 | R25: 3 | S25: 2 | T25: 1 | U25: 2 | V25: 4 | W25: 2 | X25: 3 | Y25: 4 | Z25: 3 | AA25: 3 | AB25: 2 | AC25: 3 | AD25: 4 | AE25: 2 | AF25: 3 | AG25: 3 | AH25: 2 | AI25: 4 | AJ25: 2 | AK25: 2 | AL25: 1 | AM25: 3 | AN25: 2 | AO25: 3 | AP25: 2 | AQ25: 4 | AR25: 2 | AS25: 3 | AT25: 1 | AU25: 2 | AW25: =COUNTIF($S:$S,$AW$6) -> 286 | AX25: =COUNTIF($S:$S,$AX$6) -> 897 | AY25: =COUNTIF($S:$S,$AY$6) -> 994 | AZ25: =COUNTIF($S:$S,$AZ$6) -> 2676 | BA25: 4853 | BB25: P20 | BC25: 5.8932619 | BD25: 18.48341232 | BE25: 20.48217597 | BF25: 55.1411498 | BG25: 100
A26: 1 | B26: 1 | C26: 1 | D26: 3 | E26: 4 | F26: 1 | G26: 4 | H26: 2 | I26: 3 | J26: 2 | K26: 4 | L26: 4 | M26: 4 | N26: 3 | O26: 2 | P26: 1 | Q26: 4 | R26: 3 | S26: 2 | T26: 2 | U26: 4 | V26: 4 | W26: 2 | X26: 3 | Y26: 3 | Z26: 2 | AA26: 1 | AB26: 2 | AC26: 1 | AD26: 3 | AE26: 2 | AF26: 3 | AG26: 2 | AH26: 1 | AI26: 3 | AJ26: 3 | AK26: 1 | AL26: 1 | AM26: 4 | AN26: 1 | AO26: 3 | AP26: 1 | AQ26: 3 | AR26: 3 | AS26: 4 | AT26: 3 | AU26: 3 | AW26: =COUNTIF($T:$T,$AW$6) -> 982 | AX26: =COUNTIF($T:$T,$AX$6) -> 2895 | AY26: =COUNTIF($T:$T,$AY$6) -> 415 | AZ26: =COUNTIF($T:$T,$AZ$6) -> 565 | BA26: 4857 | BB26: P21 | BC26: 20.21824171 | BD26: 59.60469426 | BE26: 8.544368952 | BF26: 11.63269508 | BG26: 100
A27: 1 | B27: 1 | C27: 1 | D27: 3 | E27: 4 | F27: 1 | G27: 4 | H27: 4 | I27: 3 | J27: 2 | K27: 2 | L27: 2 | M27: 4 | N27: 3 | O27: 2 | P27: 1 | Q27: 2 | R27: 3 | S27: 3 | T27: 1 | U27: 1 | V27: 4 | W27: 3 | X27: 3 | Y27: 1 | Z27: 2 | AA27: 2 | AB27: 4 | AC27: 4 | AD27: 2 | AE27: 3 | AF27: 2 | AG27: 3 | AH27: 1 | AI27: 3 | AJ27: 2 | AK27: 2 | AL27: 3 | AM27: 2 | AN27: 1 | AO27: 4 | AP27: 4 | AQ27: 2 | AR27: 2 | AS27: 3 | AT27: 1 | AU27: 3 | AW27: =COUNTIF($U:$U,$AW$6) -> 487 | AX27: =COUNTIF($U:$U,$AX$6) -> 2755 | AY27: =COUNTIF($U:$U,$AY$6) -> 977 | AZ27: =COUNTIF($U:$U,$AZ$6) -> 638 | BA27: 4857 | BB27: P22 | BC27: 10.02676549 | BD27: 56.72225654 | BE27: 20.11529751 | BF27: 13.13568046 | BG27: 100
A28: 1 | B28: 1 | C28: 1 | D28: 3 | E28: 4 | F28: 2 | G28: 3 | H28: 4 | I28: 2 | J28: 1 | K28: 3 | L28: 3 | M28: 1 | N28: 4 | O28: 2 | P28: 4 | Q28: 2 | R28: 1 | S28: 4 | T28: 2 | U28: 1 | V28: 3 | W28: 3 | X28: 1 | Y28: 1 | Z28: 1 | AA28: 2 | AB28: 2 | AC28: 3 | AD28: 4 | AE28: 1 | AF28: 3 | AG28: 3 | AH28: 3 | AI28: 2 | AJ28: 3 | AK28: 4 | AL28: 4 | AM28: 3 | AN28: 1 | AO28: 1 | AP28: 1 | AQ28: 3 | AR28: 2 | AS28: 3 | AT28: 1 | AU28: 3 | AW28: =COUNTIF($V:$V,$AW$6) -> 827 | AX28: =COUNTIF($V:$V,$AX$6) -> 542 | AY28: =COUNTIF($V:$V,$AY$6) -> 661 | AZ28: =COUNTIF($V:$V,$AZ$6) -> 2827 | BA28: 4857 | BB28: P23 | BC28: 17.02697138 | BD28: 11.15915174 | BE28: 13.6092238 | BF28: 58.20465308 | BG28: 100
A29: 1 | B29: 1 | C29: 1 | D29: 4 | E29: 3 | F29: 2 | G29: 1 | H29: 2 | I29: 1 | J29: 3 | K29: 1 | L29: 3 | M29: 1 | N29: 3 | O29: 4 | P29: 4 | Q29: 2 | R29: 4 | S29: 4 | T29: 2 | U29: 4 | V29: 1 | W29: 2 | X29: 2 | Y29: 3 | Z29: 2 | AA29: 1 | AB29: 2 | AC29: 4 | AD29: 2 | AE29: 3 | AF29: 2 | AG29: 1 | AH29: 3 | AI29: 2 | AJ29: 2 | AK29: 4 | AL29: 1 | AM29: 3 | AN29: 1 | AO29: 2 | AP29: 3 | AQ29: 4 | AR29: 2 | AS29: 1 | AT29: 3 | AU29: 2 | AW29: =COUNTIF($W:$W,$AW$6) -> 834 | AX29: =COUNTIF($W:$W,$AX$6) -> 1038 | AY29: =COUNTIF($W:$W,$AY$6) -> 1183 | AZ29: =COUNTIF($W:$W,$AZ$6) -> 1794 | BA29: 4849 | BB29: P24 | BC29: 17.19942256 | BD29: 21.40647556 | BE29: 24.39678284 | BF29: 36.99731903 | BG29: 100
A30: 1 | B30: 1 | C30: 1 | D30: 4 | E30: 3 | F30: 2 | G30: 3 | H30: 2 | I30: 1 | J30: 2 | K30: 4 | L30: 2 | M30: 4 | N30: 1 | O30: 4 | P30: 4 | Q30: 2 | R30: 3 | S30: 1 | T30: 2 | U30: 4 | V30: 3 | W30: 4 | X30: 1 | Y30: 3 | Z30: 2 | AA30: 2 | AB30: 4 | AC30: 3 | AD30: 2 | AE30: 3 | AF30: 3 | AG30: 3 | AH30: 1 | AI30: 2 | AJ30: 2 | AK30: 2 | AL30: 4 | AM30: 2 | AN30: 1 | AO30: 4 | AP30: 3 | AQ30: 2 | AR30: 2 | AS30: 3 | AT30: 2 | AU30: 3 | AW30: =COUNTIF($X:$X,$AW$6) -> 2705 | AX30: =COUNTIF($X:$X,$AX$6) -> 1006 | AY30: =COUNTIF($X:$X,$AY$6) -> 775 | AZ30: =COUNTIF($X:$X,$AZ$6) -> 368 | BA30: 4854 | BB30: P25 | BC30: 55.72723527 | BD30: 20.72517511 | BE30: 15.96621343 | BF30: 7.581376185 | BG30: 100
A31: 1 | B31: 1 | C31: 1 | D31: 4 | E31: 3 | F31: 2 | G31: 3 | H31: 4 | I31: 1 | J31: 4 | K31: 1 | L31: 4 | M31: 1 | N31: 3 | O31: 4 | P31: 4 | Q31: 2 | R31: 2 | S31: 4 | T31: 4 | U31: 2 | V31: 1 | W31: 4 | X31: 2 | Y31: 3 | Z31: 2 | AA31: 4 | AB31: 2 | AC31: 1 | AD31: 3 | AE31: 4 | AF31: 1 | AG31: 1 | AH31: 1 | AI31: 3 | AJ31: 1 | AK31: 3 | AL31: 1 | AM31: 1 | AN31: 1 | AO31: 2 | AP31: 2 | AQ31: 3 | AR31: 4 | AS31: 3 | AT31: 3 | AU31: 3 | AW31: =COUNTIF($Y:$Y,$AW$6) -> 1140 | AX31: =COUNTIF($Y:$Y,$AX$6) -> 429 | AY31: =COUNTIF($Y:$Y,$AY$6) -> 1360 | AZ31: =COUNTIF($Y:$Y,$AZ$6) -> 1920 | BA31: 4849 | BB31: P26 | BC31: 23.51000206 | BD31: 8.847184987 | BE31: 28.04702 | BF31: 39.59579295 | BG31: 100
A32: 1 | B32: 1 | C32: 2 | D32: 1 | E32: 1 | F32: 1 | G32: 2 | H32: 1 | I32: 2 | J32: 3 | K32: 1 | L32: 3 | M32: 4 | N32: 3 | O32: 1 | P32: 2 | Q32: 2 | R32: 4 | S32: 2 | T32: 4 | U32: 3 | V32: 1 | W32: 2 | X32: 2 | Y32: 3 | Z32: 2 | AA32: 1 | AB32: 2 | AC32: 4 | AD32: 1 | AE32: 2 | AF32: 2 | AG32: 3 | AH32: 1 | AI32: 2 | AJ32: 2 | AK32: 4 | AL32: 3 | AM32: 4 | AN32: 1 | AO32: 3 | AP32: 1 | AQ32: 4 | AR32: 3 | AS32: 2 | AT32: 1 | AU32: 2 | AW32: =COUNTIF($Z:$Z,$AW$6) -> 663 | AX32: =COUNTIF($Z:$Z,$AX$6) -> 1498 | AY32: =COUNTIF($Z:$Z,$AY$6) -> 2256 | AZ32: =COUNTIF($Z:$Z,$AZ$6) -> 431 | BA32: 4848 | BB32: P27 | BC32: 13.67574257 | BD32: 30.89933993 | BE32: 46.53465347 | BF32: 8.890264026 | BG32: 100
A33: 1 | B33: 1 | C33: 2 | D33: 1 | E33: 3 | F33: 4 | G33: 1 | H33: 1 | I33: 1 | J33: 1 | K33: 2 | L33: 4 | M33: 4 | N33: 2 | O33: 4 | P33: 4 | Q33: 3 | R33: 3 | S33: 4 | T33: 2 | U33: 2 | V33: 1 | W33: 3 | X33: 1 | Y33: 1 | Z33: 3 | AA33: 4 | AB33: 2 | AC33: 4 | AD33: 4 | AE33: 2 | AF33: 4 | AG33: 2 | AH33: 4 | AI33: 1 | AJ33: 4 | AK33: 1 | AL33: 3 | AM33: 2 | AN33: 4 | AO33: 4 | AP33: 2 | AQ33: 4 | AR33: 4 | AS33: 1 | AT33: 4 | AU33: 3 | AW33: =COUNTIF($AA:$AA,$AW$6) -> 575 | AX33: =COUNTIF($AA:$AA,$AX$6) -> 1127 | AY33: =COUNTIF($AA:$AA,$AY$6) -> 2315 | AZ33: =COUNTIF($AA:$AA,$AZ$6) -> 834 | BA33: 4851 | BB33: P29 | BC33: 11.85322614 | BD33: 23.23232323 | BE33: 47.72211915 | BF33: 17.19233148 | BG33: 100
A34: 1 | B34: 1 | C34: 2 | D34: 1 | E34: 4 | F34: 1 | G34: 3 | H34: 1 | I34: 2 | J34: 2 | K34: 1 | L34: 1 | M34: 4 | N34: 4 | O34: 2 | P34: 3 | Q34: 1 | R34: 1 | S34: 1 | T34: 2 | U34: 4 | V34: 3 | W34: 2 | X34: 2 | Y34: 1 | Z34: 1 | AA34: 1 | AB34: 4 | AC34: 2 | AD34: 3 | AE34: 2 | AF34: 4 | AG34: 1 | AH34: 1 | AI34: 4 | AJ34: 2 | AK34: 1 | AL34: 4 | AM34: 2 | AN34: 3 | AO34: 1 | AP34: 4 | AQ34: 2 | AR34: 3 | AS34: 1 | AT34: 3 | AU34: 1 | AW34: =COUNTIF($AB:$AB,$AW$6) -> 1052 | AX34: =COUNTIF($AB:$AB,$AX$6) -> 933 | AY34: =COUNTIF($AB:$AB,$AY$6) -> 808 | AZ34: =COUNTIF($AB:$AB,$AZ$6) -> 2057 | BA34: 4850 | BB34: P30 | BC34: 21.69072165 | BD34: 19.2371134 | BE34: 16.65979381 | BF34: 42.41237113 | BG34: 100
A35: 1 | B35: 1 | C35: 2 | D35: 2 | E35: 1 | F35: 1 | G35: 1 | H35: 2 | I35: 3 | J35: 2 | K35: 1 | L35: 2 | M35: 2 | N35: 2 | O35: 2 | P35: 2 | Q35: 1 | R35: 1 | S35: 2 | T35: 1 | U35: 2 | V35: 1 | W35: 2 | X35: 1 | Y35: 3 | Z35: 3 | AA35: 2 | AB35: 1 | AC35: 2 | AD35: 2 | AE35: 3 | AF35: 1 | AG35: 1 | AH35: 2 | AI35: 1 | AJ35: 2 | AK35: 3 | AL35: 4 | AM35: 1 | AN35: 1 | AO35: 2 | AP35: 3 | AQ35: 2 | AR35: 2 | AS35: 1 | AT35: 2 | AU35: 2 | AW35: =COUNTIF($AC:$AC,$AW$6) -> 909 | AX35: =COUNTIF($AC:$AC,$AX$6) -> 1038 | AY35: =COUNTIF($AC:$AC,$AY$6) -> 927 | AZ35: =COUNTIF($AC:$AC,$AZ$6) -> 1979 | BA35: 4853 | BB35: P31 | BC35: 18.73068205 | BD35: 21.38883165 | BE35: 19.10158665 | BF35: 40.77889965 | BG35: 100
A36: 1 | B36: 1 | C36: 2 | D36: 2 | E36: 2 | F36: 2 | G36: 1 | H36: 4 | I36: 2 | J36: 1 | K36: 1 | L36: 4 | M36: 2 | N36: 3 | O36: 1 | P36: 3 | Q36: 2 | R36: 3 | S36: 3 | T36: 2 | U36: 4 | V36: 1 | W36: 4 | X36: 1 | Y36: 1 | Z36: 3 | AA36: 3 | AB36: 4 | AC36: 2 | AD36: 1 | AE36: 1 | AF36: 1 | AG36: 2 | AH36: 3 | AI36: 2 | AJ36: 3 | AK36: 1 | AL36: 3 | AM36: 3 | AN36: 4 | AO36: 2 | AP36: 3 | AQ36: 2 | AR36: 1 | AS36: 3 | AT36: 3 | AU36: 3 | AW36: =COUNTIF($AD:$AD,$AW$6) -> 768 | AX36: =COUNTIF($AD:$AD,$AX$6) -> 1491 | AY36: =COUNTIF($AD:$AD,$AY$6) -> 920 | AZ36: =COUNTIF($AD:$AD,$AZ$6) -> 1672 | BA36: 4851 | BB36: P32 | BC36: 15.83178726 | BD36: 30.73593074 | BE36: 18.96516182 | BF36: 34.46712018 | BG36: 100
A37: 1 | B37: 1 | C37: 2 | D37: 2 | E37: 3 | F37: 3 | G37: 1 | H37: 3 | I37: 3 | J37: 1 | K37: 1 | L37: 3 | M37: 1 | N37: 2 | O37: 2 | P37: 4 | Q37: 2 | R37: 4 | S37: 3 | T37: 2 | U37: 1 | V37: 1 | W37: 2 | X37: 3 | Y37: 4 | Z37: 1 | AA37: 2 | AB37: 3 | AC37: 3 | AD37: 1 | AE37: 2 | AF37: 4 | AG37: 3 | AH37: 2 | AI37: 3 | AJ37: 2 | AK37: 2 | AL37: 1 | AM37: 2 | AN37: 1 | AO37: 3 | AP37: 2 | AQ37: 3 | AR37: 3 | AS37: 1 | AT37: 3 | AU37: 2 | AW37: =COUNTIF($AE:$AE,$AW$6) -> 1864 | AX37: =COUNTIF($AE:$AE,$AX$6) -> 745 | AY37: =COUNTIF($AE:$AE,$AY$6) -> 1736 | AZ37: =COUNTIF($AE:$AE,$AZ$6) -> 506 | BA37: 4851 | BB37: P33 | BC37: 38.425067 | BD37: 15.35765821 | BE37: 35.78643579 | BF37: 10.430839 | BG37: 100
A38: 1 | B38: 1 | C38: 2 | D38: 2 | E38: 4 | F38: 2 | G38: 1 | H38: 4 | I38: 2 | J38: (en blanco) | K38: 3 | L38: 3 | M38: 2 | N38: 4 | O38: 2 | P38: 4 | Q38: 1 | R38: 3 | S38: 2 | T38: 3 | U38: 1 | V38: 3 | W38: 2 | X38: 3 | Y38: 2 | Z38: 4 | AA38: 4 | AB38: 2 | AC38: 4 | AD38: 2 | AE38: 4 | AF38: 1 | AG38: 4 | AH38: 3 | AI38: 2 | AJ38: 3 | AK38: 2 | AL38: 1 | AM38: 3 | AN38: 1 | AO38: 2 | AP38: 4 | AQ38: 2 | AR38: 1 | AS38: 3 | AT38: 2 | AU38: 4 | AW38: =COUNTIF($AF:$AF,$AW$6) -> 1559 | AX38: =COUNTIF($AF:$AF,$AX$6) -> 721 | AY38: =COUNTIF($AF:$AF,$AY$6) -> 1546 | AZ38: =COUNTIF($AF:$AF,$AZ$6) -> 1024 | BA38: 4850 | BB38: P34 | BC38: 32.1443299 | BD38: 14.86597938 | BE38: 31.87628866 | BF38: 21.11340206 | BG38: 100
A39: 1 | B39: 1 | C39: 2 | D39: 3 | E39: 1 | F39: 2 | G39: 4 | H39: 3 | I39: 2 | J39: 4 | K39: 1 | L39: 2 | M39: 4 | N39: 1 | O39: 2 | P39: 3 | Q39: 4 | R39: 2 | S39: 3 | T39: 1 | U39: 2 | V39: 4 | W39: 1 | X39: 3 | Y39: 3 | Z39: 2 | AA39: 4 | AB39: 2 | AC39: 1 | AD39: 4 | AE39: 3 | AF39: 2 | AG39: 2 | AH39: 1 | AI39: 1 | AJ39: 3 | AK39: 1 | AL39: 3 | AM39: 2 | AN39: 1 | AO39: 4 | AP39: 1 | AQ39: 2 | AR39: 4 | AS39: 3 | AT39: 2 | AU39: 1 | AW39: =COUNTIF($AG:$AG,$AW$6) -> 879 | AX39: =COUNTIF($AG:$AG,$AX$6) -> 2150 | AY39: =COUNTIF($AG:$AG,$AY$6) -> 1419 | AZ39: =COUNTIF($AG:$AG,$AZ$6) -> 403 | BA39: 4851 | BB39: P35 | BC39: 18.11997526 | BD39: 44.32075861 | BE39: 29.25170068 | BF39: 8.30756545 | BG39: 100
A40: 1 | B40: 1 | C40: 2 | D40: 3 | E40: 1 | F40: 3 | G40: 1 | H40: 2 | I40: 1 | J40: 2 | K40: 3 | L40: 1 | M40: 3 | N40: 1 | O40: 3 | P40: 1 | Q40: 1 | R40: 3 | S40: 1 | T40: 3 | U40: 1 | V40: 3 | W40: 1 | X40: 4 | Y40: 2 | Z40: 1 | AA40: 1 | AB40: 3 | AC40: 1 | AD40: 3 | AE40: 1 | AF40: 4 | AG40: 3 | AH40: 1 | AI40: 1 | AJ40: 1 | AK40: 3 | AL40: 2 | AM40: 3 | AN40: 1 | AO40: 4 | AP40: 1 | AQ40: 2 | AR40: 3 | AS40: 1 | AT40: 2 | AU40: 3 | AW40: =COUNTIF($AH:$AH,$AW$6) -> 1551 | AX40: =COUNTIF($AH:$AH,$AX$6) -> 876 | AY40: =COUNTIF($AH:$AH,$AY$6) -> 1344 | AZ40: =COUNTIF($AH:$AH,AZ$6) -> 1085 | BA40: 4856 | BB40: P36 | BC40: 31.9398682 | BD40: 18.03953871 | BE40: 27.67710049 | BF40: 22.34349259 | BG40: 100
A41: 1 | B41: 1 | C41: 2 | D41: 3 | E41: 1 | F41: 3 | G41: 2 | H41: 2 | I41: 2 | J41: 4 | K41: 3 | L41: 2 | M41: 4 | N41: 1 | O41: 2 | P41: 4 | Q41: 2 | R41: 2 | S41: 2 | T41: 1 | U41: 1 | V41: 4 | W41: 2 | X41: 2 | Y41: 4 | Z41: 2 | AA41: 1 | AB41: 1 | AC41: 2 | AD41: 3 | AE41: 3 | AF41: 1 | AG41: 3 | AH41: 3 | AI41: 1 | AJ41: 3 | AK41: 2 | AL41: 3 | AM41: 1 | AN41: 1 | AO41: 3 | AP41: 4 | AQ41: 3 | AR41: 4 | AS41: 1 | AT41: 2 | AU41: 1 | AW41: =COUNTIF($AI:$AI,$AW$6) -> 878 | AX41: =COUNTIF($AI:$AI,$AX$6) -> 2623 | AY41: =COUNTIF($AI:$AI,$AY$6) -> 1021 | AZ41: =COUNTIF($AI:$AI,$AZ$6) -> 331 | BA41: 4853 | BB41: P37 | BC41: 18.09190192 | BD41: 54.04904183 | BE41: 21.03853287 | BF41: 6.820523388 | BG41: 100
A42: 1 | B42: 1 | C42: 2 | D42: 3 | E42: 2 | F42: 2 | G42: 1 | H42: 3 | I42: 1 | J42: 2 | K42: 2 | L42: 2 | M42: 1 | N42: 3 | O42: 2 | P42: 3 | Q42: 2 | R42: 2 | S42: 1 | T42: 1 | U42: 2 | V42: 1 | W42: 4 | X42: 4 | Y42: 1 | Z42: 2 | AA42: 2 | AB42: 2 | AC42: 3 | AD42: 1 | AE42: 2 | AF42: 2 | AG42: 2 | AH42: 3 | AI42: 1 | AJ42: 2 | AK42: 1 | AL42: 4 | AM42: 4 | AN42: 1 | AO42: 4 | AP42: 4 | AQ42: 1 | AR42: 3 | AS42: 2 | AT42: 3 | AU42: 2 | AW42: =COUNTIF($AJ:$AJ,$AW$6) -> 715 | AX42: =COUNTIF($AJ:$AJ,$AX$6) -> 1663 | AY42: =COUNTIF($AJ:$AJ,$AY$6) -> 2053 | AZ42: =COUNTIF($AJ:$AJ,$AZ$6) -> 421 | BA42: 4852 | BB42: P38 | BC42: 14.73619126 | BD42: 34.27452597 | BE42: 42.31244847 | BF42: 8.676834295 | BG42: 100
A43: 1 | B43: 1 | C43: 2 | D43: 3 | E43: 2 | F43: 4 | G43: 1 | H43: 3 | I43: 1 | J43: 2 | K43: 1 | L43: 4 | M43: 2 | N43: 3 | O43: 2 | P43: 4 | Q43: 2 | R43: 1 | S43: 1 | T43: 3 | U43: 2 | V43: 4 | W43: 3 | X43: 1 | Y43: 4 | Z43: 2 | AA43: 2 | AB43: 3 | AC43: 2 | AD43: 3 | AE43: 3 | AF43: 3 | AG43: 1 | AH43: 3 | AI43: 1 | AJ43: 2 | AK43: 4 | AL43: 1 | AM43: 2 | AN43: 3 | AO43: 2 | AP43: 4 | AQ43: 4 | AR43: 3 | AS43: 4 | AT43: 3 | AU43: 2 | AW43: =COUNTIF($AK:$AK,$AW$6) -> 1000 | AX43: =COUNTIF($AK:$AK,$AX$6) -> 1266 | AY43: =COUNTIF($AK:$AK,$AY$6) -> 902 | AZ43: =COUNTIF($AK:$AK,$AZ$6) -> 1682 | BA43: 4850 | BB43: P39 | BC43: 20.6185567 | BD43: 26.10309278 | BE43: 18.59793814 | BF43: 34.68041237 | BG43: 100
A44: 1 | B44: 1 | C44: 2 | D44: 3 | E44: 3 | F44: 1 | G44: 1 | H44: 3 | I44: 3 | J44: 2 | K44: 1 | L44: 4 | M44: 2 | N44: 3 | O44: 2 | P44: 1 | Q44: 2 | R44: 2 | S44: 3 | T44: 3 | U44: 2 | V44: 2 | W44: 2 | X44: 2 | Y44: 3 | Z44: 2 | AA44: 1 | AB44: 1 | AC44: 1 | AD44: 1 | AE44: 4 | AF44: 2 | AG44: 1 | AH44: 2 | AI44: 1 | AJ44: 2 | AK44: 2 | AL44: 4 | AM44: 3 | AN44: 1 | AO44: 1 | AP44: 4 | AQ44: 1 | AR44: 1 | AS44: 4 | AT44: 3 | AU44: 2 | AW44: =COUNTIF($AL:$AL,$AW$6) -> 3136 | AX44: =COUNTIF($AL:$AL,$AX$6) -> 457 | AY44: =COUNTIF($AL:$AL,$AY$6) -> 844 | AZ44: =COUNTIF($AL:$AL,$AZ$6) -> 418 | BA44: 4855 | BB44: P40 | BC44: 64.59320288 | BD44: 9.412976313 | BE44: 17.38414006 | BF44: 8.609680742 | BG44: 100
A45: 1 | B45: 1 | C45: 2 | D45: 3 | E45: 3 | F45: 4 | G45: 3 | H45: 4 | I45: 3 | J45: 1 | K45: 1 | L45: 2 | M45: 2 | N45: 3 | O45: 2 | P45: 4 | Q45: 2 | R45: 4 | S45: 4 | T45: 2 | U45: 2 | V45: 4 | W45: 1 | X45: 3 | Y45: 3 | Z45: 3 | AA45: 4 | AB45: 4 | AC45: 2 | AD45: 4 | AE45: 3 | AF45: 4 | AG45: 3 | AH45: 3 | AI45: 2 | AJ45: 2 | AK45: 4 | AL45: 1 | AM45: 3 | AN45: 1 | AO45: 3 | AP45: 1 | AQ45: 2 | AR45: 4 | AS45: 1 | AT45: 2 | AU45: 2 | AW45: =COUNTIF($AM:$AM,$AW$6) -> 1378 | AX45: =COUNTIF($AM:$AM,$AX$6) -> 1422 | AY45: =COUNTIF($AM:$AM,$AY$6) -> 1025 | AZ45: =COUNTIF($AM:$AM,$AZ$6) -> 1017 | BA45: 4842 | BB45: P41 | BC45: 28.45931433 | BD45: 29.36802974 | BE45: 21.16893846 | BF45: 21.00371747 | BG45: 100
A46: 1 | B46: 1 | C46: 2 | D46: 3 | E46: 4 | F46: 1 | G46: 1 | H46: 2 | I46: 4 | J46: 1 | K46: 1 | L46: 1 | M46: 4 | N46: 4 | O46: 2 | P46: 1 | Q46: 2 | R46: 3 | S46: 2 | T46: 3 | U46: 4 | V46: 2 | W46: 1 | X46: 4 | Y46: 1 | Z46: 2 | AA46: 2 | AB46: 1 | AC46: 4 | AD46: 1 | AE46: 4 | AF46: 3 | AG46: 2 | AH46: 1 | AI46: 3 | AJ46: 2 | AK46: 3 | AL46: 4 | AM46: 2 | AN46: 1 | AO46: 2 | AP46: 2 | AQ46: 4 | AR46: 4 | AS46: 4 | AT46: 3 | AU46: 2 | AW46: =COUNTIF($AN:$AN,$AW$6) -> 2121 | AX46: =COUNTIF($AN:$AN,$AX$6) -> 756 | AY46: =COUNTIF($AN:$AN,$AY$6) -> 661 | AZ46: =COUNTIF($AN:$AN,$AZ$6) -> 1317 | BA46: 4855 | BB46: P42 | BC46: 43.6869207 | BD46: 15.5715757 | BE46: 13.61483007 | BF46: 27.12667353 | BG46: 100
A47: 1 | B47: 1 | C47: 2 | D47: 3 | E47: 4 | F47: 4 | G47: 2 | H47: 2 | I47: 1 | J47: 4 | K47: 2 | L47: 4 | M47: 4 | N47: 4 | O47: 2 | P47: 3 | Q47: 2 | R47: 1 | S47: 4 | T47: 2 | U47: 3 | V47: 1 | W47: 3 | X47: 1 | Y47: 1 | Z47: 2 | AA47: 1 | AB47: 2 | AC47: 1 | AD47: 2 | AE47: 4 | AF47: 3 | AG47: 3 | AH47: 4 | AI47: 3 | AJ47: 3 | AK47: 1 | AL47: 1 | AM47: 2 | AN47: 1 | AO47: 4 | AP47: 4 | AQ47: 4 | AR47: 2 | AS47: 1 | AT47: 3 | AU47: 1 | AW47: =COUNTIF($AO:$AO,$AW$6) -> 493 | AX47: =COUNTIF($AO:$AO,$AX$6) -> 724 | AY47: =COUNTIF($AO:$AO,$AY$6) -> 1253 | AZ47: =COUNTIF($AO:$AO,$AZ$6) -> 2380 | BA47: 4850 | BB47: P43 | BC47: 10.16494845 | BD47: 14.92783505 | BE47: 25.83505155 | BF47: 49.07216495 | BG47: 100
A48: 1 | B48: 1 | C48: 2 | D48: 3 | E48: 4 | F48: 4 | G48: 3 | H48: 2 | I48: 3 | J48: 4 | K48: 1 | L48: 3 | M48: 2 | N48: 3 | O48: 1 | P48: 2 | Q48: 1 | R48: 3 | S48: 4 | T48: 3 | U48: 1 | V48: 2 | W48: 3 | X48: 3 | Y48: 1 | Z48: 2 | AA48: 3 | AB48: 4 | AC48: 4 | AD48: 2 | AE48: 1 | AF48: 3 | AG48: 2 | AH48: 2 | AI48: 3 | AJ48: 3 | AK48: 2 | AL48: 3 | AM48: 2 | AN48: 1 | AO48: 3 | AP48: 1 | AQ48: 3 | AR48: 2 | AS48: 4 | AT48: 3 | AU48: 1 | AW48: =COUNTIF($AP:$AP,$AW$6) -> 485 | AX48: =COUNTIF($AP:$AP,$AX$6) -> 723 | AY48: =COUNTIF($AP:$AP,$AY$6) -> 1576 | AZ48: =COUNTIF($AP:$AP,$AZ$6) -> 2065 | BA48: 4849 | BB48: P44 | BC48: 10.00206228 | BD48: 14.91029078 | BE48: 32.50154671 | BF48: 42.58610023 | BG48: 100
A49: 1 | B49: 1 | C49: 2 | D49: 4 | E49: 2 | F49: 1 | G49: 4 | H49: 3 | I49: 3 | J49: 3 | K49: 3 | L49: 1 | M49: 2 | N49: 2 | O49: 3 | P49: 4 | Q49: 2 | R49: 3 | S49: 3 | T49: 3 | U49: 4 | V49: 3 | W49: 1 | X49: 1 | Y49: 4 | Z49: 3 | AA49: 2 | AB49: 1 | AC49: 1 | AD49: 2 | AE49: 1 | AF49: 3 | AG49: 3 | AH49: 2 | AI49: 2 | AJ49: 2 | AK49: 3 | AL49: 1 | AM49: 3 | AN49: 2 | AO49: 4 | AP49: 3 | AQ49: 3 | AR49: 1 | AS49: 1 | AT49: 4 | AU49: 2 | AW49: =COUNTIF($AQ:$AQ,$AW$6) -> 771 | AX49: =COUNTIF($AQ:$AQ,$AX$6) -> 2501 | AY49: =COUNTIF($AQ:$AQ,$AY$6) -> 1083 | AZ49: =COUNTIF($AQ:$AQ,$AZ$6) -> 486 | BA49: 4841 | BB49: P45 | BC49: 15.92646147 | BD49: 51.66287957 | BE49: 22.37141087 | BF49: 10.03924809 | BG49: 100
A50: 1 | B50: 1 | C50: 2 | D50: 4 | E50: 4 | F50: 2 | G50: 1 | H50: 3 | I50: 2 | J50: 1 | K50: 4 | L50: 1 | M50: 3 | N50: 3 | O50: 4 | P50: 4 | Q50: 2 | R50: 3 | S50: 4 | T50: 1 | U50: 2 | V50: 2 | W50: 1 | X50: 3 | Y50: 1 | Z50: 3 | AA50: 4 | AB50: 2 | AC50: 2 | AD50: 4 | AE50: 2 | AF50: 4 | AG50: 2 | AH50: 3 | AI50: 2 | AJ50: 4 | AK50: 1 | AL50: 3 | AM50: 2 | AN50: 4 | AO50: 3 | AP50: 1 | AQ50: 3 | AR50: 4 | AS50: 2 | AT50: 1 | AU50: 2 | AW50: =COUNTIF($AR:$AR,$AW$6) -> 1899 | AX50: =COUNTIF($AR:$AR,$AX$6) -> 774 | AY50: =COUNTIF($AR:$AR,$AY$6) -> 856 | AZ50: =COUNTIF($AR:$AR,$AZ$6) -> 1314 | BA50: 4843 | BB50: P46 | BC50: 39.21123271 | BD50: 15.98182944 | BE50: 17.67499484 | BF50: 27.13194301 | BG50: 100
A51: 1 | B51: 1 | C51: 3 | D51: 1 | E51: 1 | F51: 1 | G51: 3 | H51: 2 | I51: 2 | J51: 2 | K51: 1 | L51: 1 | M51: 2 | N51: 3 | O51: 2 | P51: 3 | Q51: 1 | R51: 2 | S51: 1 | T51: 2 | U51: 2 | V51: 4 | W51: 2 | X51: 1 | Y51: 1 | Z51: 2 | AA51: 1 | AB51: 2 | AC51: 1 | AD51: 3 | AE51: 2 | AF51: 3 | AG51: 2 | AH51: 1 | AI51: 1 | AJ51: 2 | AK51: 1 | AL51: 1 | AM51: 1 | AN51: 2 | AO51: 1 | AP51: 4 | AQ51: 3 | AR51: (en blanco) | AS51: 2 | AT51: 3 | AU51: 3 | AW51: =COUNTIF($AS:$AS,$AW$6) -> 865 | AX51: =COUNTIF($AS:$AS,$AX$6) -> 679 | AY51: =COUNTIF($AS:$AS,$AY$6) -> 2167 | AZ51: =COUNTIF($AS:$AS,$AZ$6) -> 1137 | BA51: 4848 | BB51: P47 | BC51: 17.84240924 | BD51: 14.00577558 | BE51: 44.69884488 | BF51: 23.4529703 | BG51: 100
A52: 1 | B52: 1 | C52: 3 | D52: 1 | E52: 1 | F52: 2 | G52: 4 | H52: 2 | I52: 2 | J52: 2 | K52: 3 | L52: 3 | M52: 4 | N52: 3 | O52: 2 | P52: 3 | Q52: 2 | R52: 3 | S52: 4 | T52: 2 | U52: 1 | V52: 2 | W52: 1 | X52: 3 | Y52: 3 | Z52: 3 | AA52: 4 | AB52: 2 | AC52: 1 | AD52: 3 | AE52: 4 | AF52: 4 | AG52: 3 | AH52: 4 | AI52: 3 | AJ52: 1 | AK52: 1 | AL52: 1 | AM52: 2 | AN52: 1 | AO52: 4 | AP52: 3 | AQ52: 2 | AR52: 4 | AS52: 3 | AT52: 2 | AU52: 2 | AW52: =COUNTIF($AT:$AT,$AW$6) -> 647 | AX52: =COUNTIF($AT:$AT,$AX$6) -> 825 | AY52: =COUNTIF($AT:$AT,$AY$6) -> 2873 | AZ52: =COUNTIF($AT:$AT,$AZ$6) -> 509 | BA52: 4854 | BB52: P48 | BC52: 13.32921302 | BD52: 16.99629172 | BE52: 59.18829831 | BF52: 10.48619695 | BG52: 100
A53: 1 | B53: 1 | C53: 3 | D53: 1 | E53: 1 | F53: 4 | G53: 2 | H53: 1 | I53: 3 | J53: 2 | K53: 2 | L53: 2 | M53: 3 | N53: 1 | O53: 4 | P53: 4 | Q53: 2 | R53: 3 | S53: 1 | T53: 2 | U53: 2 | V53: 4 | W53: 1 | X53: 4 | Y53: 1 | Z53: 3 | AA53: 3 | AB53: 2 | AC53: 1 | AD53: (en blanco) | AE53: 3 | AF53: 3 | AG53: 3 | AH53: 1 | AI53: 3 | AJ53: 2 | AK53: 1 | AL53: 2 | AM53: 3 | AN53: 1 | AO53: 2 | AP53: 3 | AQ53: 2 | AR53: 2 | AS53: 4 | AT53: 2 | AU53: 3 | AW53: =COUNTIF($AU:$AU,$AW$6) -> 604 | AX53: =COUNTIF($AU:$AU,$AX$6) -> 1575 | AY53: =COUNTIF($AU:$AU,$AY$6) -> 2171 | AZ53: =COUNTIF($AU:$AU,$AZ$6) -> 504 | BA53: 4854 | BB53: P50 | BC53: 12.44334569 | BD53: 32.44746601 | BE53: 44.72599918 | BF53: 10.38318912 | BG53: 100
A54: 1 | B54: 1 | C54: 3 | D54: 1 | E54: 2 | F54: 1 | G54: 1 | H54: 2 | I54: 2 | J54: 2 | K54: 4 | L54: 4 | M54: 3 | N54: 4 | O54: 3 | P54: 4 | Q54: 2 | R54: 4 | S54: 2 | T54: 2 | U54: 4 | V54: 2 | W54: 1 | X54: 3 | Y54: 3 | Z54: 2 | AA54: 1 | AB54: 4 | AC54: 3 | AD54: 2 | AE54: 2 | AF54: 3 | AG54: 4 | AH54: 2 | AI54: 2 | AJ54: 2 | AK54: 1 | AL54: 1 | AM54: 2 | AN54: 1 | AO54: 2 | AP54: 1 | AQ54: 2 | AR54: 3 | AS54: 3 | AT54: 2 | AU54: 2
A55: 1 | B55: 1 | C55: 3 | D55: 1 | E55: 2 | F55: 2 | G55: 4 | H55: 2 | I55: 2 | J55: 1 | K55: 4 | L55: 1 | M55: 4 | N55: 1 | O55: 1 | P55: 4 | Q55: 2 | R55: 3 | S55: 3 | T55: 4 | U55: 4 | V55: 4 | W55: 1 | X55: 2 | Y55: 3 | Z55: 4 | AA55: 3 | AB55: 2 | AC55: 3 | AD55: 1 | AE55: 1 | AF55: 3 | AG55: 2 | AH55: 2 | AI55: 3 | AJ55: 2 | AK55: 2 | AL55: 3 | AM55: 4 | AN55: 1 | AO55: 1 | AP55: 3 | AQ55: 1 | AR55: 1 | AS55: 4 | AT55: 3 | AU55: 3
A56: 1 | B56: 1 | C56: 3 | D56: 1 | E56: 2 | F56: 3 | G56: 2 | H56: 3 | I56: 1 | J56: 1 | K56: 1 | L56: 2 | M56: 4 | N56: 3 | O56: 4 | P56: 4 | Q56: 2 | R56: 3 | S56: 4 | T56: 2 | U56: 2 | V56: 4 | W56: 3 | X56: 2 | Y56: 1 | Z56: 1 | AA56: 2 | AB56: 2 | AC56: 1 | AD56: 3 | AE56: 1 | AF56: 4 | AG56: 1 | AH56: 2 | AI56: 3 | AJ56: 2 | AK56: 4 | AL56: 3 | AM56: 1 | AN56: 1 | AO56: 4 | AP56: 2 | AQ56: 3 | AR56: 1 | AS56: 4 | AT56: 3 | AU56: 3
A57: 1 | B57: 1 | C57: 3 | D57: 1 | E57: 2 | F57: 4 | G57: 2 | H57: 2 | I57: 2 | J57: 1 | K57: 1 | L57: 3 | M57: 2 | N57: 3 | O57: 2 | P57: 4 | Q57: 2 | R57: 2 | S57: 2 | T57: 4 | U57: 2 | V57: 4 | W57: 1 | X57: 2 | Y57: 3 | Z57: 1 | AA57: 2 | AB57: 1 | AC57: 2 | AD57: 2 | AE57: 3 | AF57: 3 | AG57: 2 | AH57: 1 | AI57: 1 | AJ57: 2 | AK57: 3 | AL57: 3 | AM57: 1 | AN57: 1 | AO57: 4 | AP57: 3 | AQ57: 1 | AR57: 4 | AS57: 4 | AT57: 3 | AU57: 2
A58: 1 | B58: 1 | C58: 3 | D58: 1 | E58: 3 | F58: 1 | G58: 1 | H58: 2 | I58: 2 | J58: 2 | K58: 1 | L58: 2 | M58: 3 | N58: 3 | O58: 2 | P58: 3 | Q58: 4 | R58: 4 | S58: 4 | T58: 1 | U58: 2 | V58: 1 | W58: 2 | X58: 2 | Y58: 3 | Z58: 4 | AA58: 4 | AB58: 4 | AC58: 1 | AD58: 2 | AE58: 3 | AF58: 2 | AG58: 4 | AH58: 4 | AI58: 1 | AJ58: 2 | AK58: 2 | AL58: 4 | AM58: 1 | AN58: 1 | AO58: 1 | AP58: 4 | AQ58: 4 | AR58: 2 | AS58: 3 | AT58: 3 | AU58: 2
A59: 1 | B59: 1 | C59: 3 | D59: 1 | E59: 3 | F59: 2 | G59: 3 | H59: 4 | I59: 3 | J59: 4 | K59: 4 | L59: 3 | M59: 1 | N59: 4 | O59: 2 | P59: 4 | Q59: 2 | R59: 3 | S59: 4 | T59: 2 | U59: 2 | V59: 4 | W59: 2 | X59: 1 | Y59: 1 | Z59: 3 | AA59: 4 | AB59: 1 | AC59: 2 | AD59: 1 | AE59: 3 | AF59: 4 | AG59: 1 | AH59: 2 | AI59: 2 | AJ59: 2 | AK59: 4 | AL59: 1 | AM59: 1 | AN59: 4 | AO59: 4 | AP59: 4 | AQ59: 2 | AR59: 4 | AS59: 3 | AT59: 3 | AU59: 3
A60: 1 | B60: 1 | C60: 3 | D60: 1 | E60: 3 | F60: 2 | G60: 4 | H60: 2 | I60: 3 | J60: 1 | K60: 3 | L60: 1 | M60: 1 | N60: 3 | O60: 2 | P60: 4 | Q60: 2 | R60: 2 | S60: 1 | T60: 3 | U60: 2 | V60: 1 | W60: 2 | X60: 2 | Y60: 3 | Z60: 4 | AA60: 1 | AB60: 3 | AC60: 3 | AD60: 4 | AE60: 1 | AF60: 3 | AG60: 3 | AH60: 3 | AI60: 1 | AJ60: 1 | AK60: 2 | AL60: 4 | AM60: 3 | AN60: 1 | AO60: 4 | AP60: 2 | AQ60: 2 | AR60: 4 | AS60: 3 | AT60: 3 | AU60: 2
A61: 1 | B61: 1 | C61: 3 | D61: 1 | E61: 3 | F61: 4 | G61: 2 | H61: 4 | I61: 3 | J61: 1 | K61: 2 | L61: 3 | M61: 4 | N61: 3 | O61: 1 | P61: 2 | Q61: 2 | R61: 3 | S61: 4 | T61: 2 | U61: 2 | V61: 4 | W61: 4 | X61: 1 | Y61: 3 | Z61: 4 | AA61: 3 | AB61: 4 | AC61: 1 | AD61: 2 | AE61: 3 | AF61: 2 | AG61: 1 | AH61: 2 | AI61: 4 | AJ61: 3 | AK61: 1 | AL61: 2 | AM61: 1 | AN61: 4 | AO61: 3 | AP61: 3 | AQ61: 1 | AR61: 2 | AS61: 3 | AT61: 2 | AU61: 1
A62: 1 | B62: 1 | C62: 3 | D62: 1 | E62: 4 | F62: 2 | G62: 4 | H62: 2 | I62: 2 | J62: 4 | K62: 4 | L62: 2 | M62: 1 | N62: 3 | O62: 2 | P62: 1 | Q62: 2 | R62: 3 | S62: 3 | T62: 2 | U62: 2 | V62: 4 | W62: 3 | X62: 1 | Y62: 4 | Z62: 1 | AA62: 3 | AB62: 3 | AC62: 3 | AD62: 2 | AE62: 1 | AF62: 1 | AG62: 2 | AH62: 4 | AI62: 3 | AJ62: 2 | AK62: 2 | AL62: 1 | AM62: 3 | AN62: 1 | AO62: 3 | AP62: 4 | AQ62: 1 | AR62: 4 | AS62: 3 | AT62: 4 | AU62: 2
A63: 1 | B63: 1 | C63: 3 | D63: 1 | E63: 4 | F63: 4 | G63: 2 | H63: 2 | I63: 1 | J63: 4 | K63: 1 | L63: 1 | M63: 3 | N63: 2 | O63: 3 | P63: 4 | Q63: 2 | R63: 4 | S63: 2 | T63: 2 | U63: 3 | V63: 1 | W63: 3 | X63: 2 | Y63: 1 | Z63: 2 | AA63: 3 | AB63: 2 | AC63: 1 | AD63: 1 | AE63: 3 | AF63: 1 | AG63: 2 | AH63: 2 | AI63: 2 | AJ63: 1 | AK63: 1 | AL63: 3 | AM63: 1 | AN63: 1 | AO63: 3 | AP63: 4 | AQ63: 2 | AR63: 4 | AS63: 3 | AT63: 1 | AU63: 2
A64: 1 | B64: 1 | C64: 3 | D64: 2 | E64: 1 | F64: 3 | G64: 1 | H64: 1 | I64: 1 | J64: 2 | K64: 4 | L64: 4 | M64: 3 | N64: 4 | O64: 3 | P64: 4 | Q64: 2 | R64: 4 | S64: 3 | T64: 3 | U64: 3 | V64: 4 | W64: 2 | X64: 1 | Y64: 3 | Z64: 3 | AA64: 3 | AB64: 1 | AC64: 4 | AD64: 2 | AE64: 1 | AF64: 3 | AG64: 3 | AH64: 3 | AI64: 1 | AJ64: 2 | AK64: 2 | AL64: 1 | AM64: 3 | AN64: 2 | AO64: 4 | AP64: 3 | AQ64: 2 | AR64: 1 | AS64: 4 | AT64: 4 | AU64: 3
A65: 1 | B65: 1 | C65: 3 | D65: 2 | E65: 2 | F65: 1 | G65: 3 | H65: 4 | I65: 1 | J65: 3 | K65: 2 | L65: 2 | M65: 4 | N65: 3 | O65: 4 | P65: 1 | Q65: 1 | R65: 1 | S65: 2 | T65: 4 | U65: 4 | V65: 2 | W65: 2 | X65: 2 | Y65: 4 | Z65: 3 | AA65: 1 | AB65: 1 | AC65: 4 | AD65: 2 | AE65: 3 | AF65: 3 | AG65: 3 | AH65: 3 | AI65: 2 | AJ65: 3 | AK65: 2 | AL65: 1 | AM65: 2 | AN65: 2 | AO65: 3 | AP65: 2 | AQ65: 1 | AR65: 1 | AS65: 3 | AT65: 3 | AU65: 1
A66: 1 | B66: 1 | C66: 3 | D66: 2 | E66: 2 | F66: 3 | G66: 4 | H66: 4 | I66: 2 | J66: 3 | K66: 1 | L66: 3 | M66: 1 | N66: 4 | O66: 3 | P66: 4 | Q66: 2 | R66: 3 | S66: 3 | T66: 1 | U66: 2 | V66: 4 | W66: 2 | X66: 1 | Y66: 3 | Z66: 2 | AA66: 3 | AB66: 2 | AC66: 1 | AD66: 2 | AE66: 3 | AF66: 4 | AG66: 3 | AH66: 3 | AI66: 1 | AJ66: 1 | AK66: 2 | AL66: 3 | AM66: 4 | AN66: 3 | AO66: 2 | AP66: 2 | AQ66: 3 | AR66: 1 | AS66: 4 | AT66: 3 | AU66: 3
A67: 1 | B67: 1 | C67: 3 | D67: 2 | E67: 2 | F67: 4 | G67: 3 | H67: 2 | I67: 1 | J67: 1 | K67: 2 | L67: 2 | M67: 3 | N67: 2 | O67: 3 | P67: 4 | Q67: 1 | R67: 4 | S67: 3 | T67: 2 | U67: 2 | V67: 3 | W67: 1 | X67: 1 | Y67: 1 | Z67: 2 | AA67: 2 | AB67: 3 | AC67: 2 | AD67: 4 | AE67: 2 | AF67: 3 | AG67: 2 | AH67: 3 | AI67: 1 | AJ67: 3 | AK67: 2 | AL67: 4 | AM67: 2 | AN67: 3 | AO67: 2 | AP67: 3 | AQ67: 2 | AR67: 3 | AS67: 2 | AT67: 3 | AU67: 2
A68: 1 | B68: 1 | C68: 3 | D68: 2 | E68: 2 | F68: 4 | G68: 4 | H68: 2 | I68: 1 | J68: 4 | K68: 3 | L68: 3 | M68: 4 | N68: 3 | O68: 1 | P68: 4 | Q68: 3 | R68: 2 | S68: 2 | T68: 4 | U68: 1 | V68: 3 | W68: 2 | X68: 4 | Y68: 2 | Z68: 1 | AA68: 2 | AB68: 1 | AC68: 4 | AD68: 2 | AE68: 1 | AF68: 3 | AG68: 2 | AH68: 3 | AI68: 3 | AJ68: 2 | AK68: 2 | AL68: 1 | AM68: 4 | AN68: 1 | AO68: 3 | AP68: 4 | AQ68: 2 | AR68: 3 | AS68: 1 | AT68: 2 | AU68: 1
A69: 1 | B69: 1 | C69: 3 | D69: 2 | E69: 3 | F69: 2 | G69: 3 | H69: 1 | I69: 3 | J69: 4 | K69: 2 | L69: 3 | M69: 1 | N69: 2 | O69: 1 | P69: 3 | Q69: 2 | R69: 3 | S69: 4 | T69: 1 | U69: 2 | V69: 4 | W69: 3 | X69: 1 | Y69: 3 | Z69: 2 | AA69: 2 | AB69: 1 | AC69: 4 | AD69: 3 | AE69: 1 | AF69: 3 | AG69: 1 | AH69: 1 | AI69: 1 | AJ69: 2 | AK69: 2 | AL69: 1 | AM69: 2 | AN69: 1 | AO69: 4 | AP69: 4 | AQ69: 1 | AR69: 1 | AS69: 3 | AT69: 2 | AU69: 2
A70: 1 | B70: 1 | C70: 3 | D70: 2 | E70: 3 | F70: 2 | G70: 3 | H70: 2 | I70: 4 | J70: 4 | K70: 1 | L70: 3 | M70: 2 | N70: 4 | O70: 3 | P70: 1 | Q70: 2 | R70: 4 | S70: 3 | T70: 1 | U70: 2 | V70: 4 | W70: 2 | X70: 2 | Y70: 2 | Z70: 2 | AA70: 1 | AB70: 2 | AC70: 3 | AD70: 2 | AE70: 3 | AF70: 3 | AG70: 3 | AH70: 3 | AI70: 3 | AJ70: 2 | AK70: 3 | AL70: 1 | AM70: 3 | AN70: 2 | AO70: 2 | AP70: 2 | AQ70: 4 | AR70: 1 | AS70: 3 | AT70: 3 | AU70: 4
A71: 1 | B71: 1 | C71: 3 | D71: 2 | E71: 3 | F71: 3 | G71: 2 | H71: 4 | I71: 3 | J71: 1 | K71: 1 | L71: 2 | M71: 4 | N71: 1 | O71: 1 | P71: 4 | Q71: 2 | R71: 2 | S71: 4 | T71: 2 | U71: 4 | V71: 4 | W71: 2 | X71: 2 | Y71: 3 | Z71: 2 | AA71: 2 | AB71: 4 | AC71: 1 | AD71: 4 | AE71: 2 | AF71: 1 | AG71: 2 | AH71: 1 | AI71: 2 | AJ71: 1 | AK71: 4 | AL71: 1 | AM71: 4 | AN71: 1 | AO71: 3 | AP71: 3 | AQ71: 3 | AR71: 1 | AS71: 4 | AT71: 3 | AU71: 3
A72: 1 | B72: 1 | C72: 3 | D72: 2 | E72: 3 | F72: 4 | G72: 1 | H72: 3 | I72: 2 | J72: 1 | K72: 1 | L72: 2 | M72: 4 | N72: 4 | O72: 2 | P72: 4 | Q72: 2 | R72: 4 | S72: 4 | T72: 2 | U72: 2 | V72: 4 | W72: 2 | X72: 2 | Y72: 1 | Z72: 2 | AA72: 3 | AB72: 4 | AC72: 2 | AD72: 3 | AE72: 3 | AF72: 3 | AG72: 2 | AH72: 4 | AI72: 2 | AJ72: 3 | AK72: 1 | AL72: 4 | AM72: 2 | AN72: 1 | AO72: 2 | AP72: 4 | AQ72: 1 | AR72: 4 | AS72: 4 | AT72: 2 | AU72: 2
A73: 1 | B73: 1 | C73: 3 | D73: 2 | E73: 4 | F73: 1 | G73: 2 | H73: 2 | I73: 3 | J73: 2 | K73: 1 | L73: 3 | M73: 2 | N73: 4 | O73: 3 | P73: 1 | Q73: 1 | R73: 3 | S73: 2 | T73: 4 | U73: 1 | V73: 3 | W73: 1 | X73: 3 | Y73: 2 | Z73: 4 | AA73: 2 | AB73: 1 | AC73: 4 | AD73: 2 | AE73: 3 | AF73: 2 | AG73: 4 | AH73: 2 | AI73: 1 | AJ73: 4 | AK73: 2 | AL73: 1 | AM73: 4 | AN73: 2 | AO73: 3 | AP73: 3 | AQ73: 1 | AR73: 2 | AS73: 3 | AT73: 4 | AU73: 3
A74: 1 | B74: 1 | C74: 3 | D74: 2 | E74: 4 | F74: 1 | G74: 3 | H74: 1 | I74: 2 | J74: 1 | K74: 1 | L74: 2 | M74: 3 | N74: 1 | O74: 2 | P74: 4 | Q74: 2 | R74: 2 | S74: 1 | T74: 1 | U74: 1 | V74: 2 | W74: 1 | X74: 2 | Y74: 3 | Z74: 2 | AA74: 2 | AB74: 4 | AC74: 4 | AD74: 4 | AE74: 2 | AF74: 1 | AG74: 1 | AH74: 4 | AI74: 3 | AJ74: 1 | AK74: 2 | AL74: 1 | AM74: 3 | AN74: 1 | AO74: 4 | AP74: 1 | AQ74: 4 | AR74: 4 | AS74: 3 | AT74: 3 | AU74: 2
A75: 1 | B75: 1 | C75: 3 | D75: 2 | E75: 4 | F75: 1 | G75: 3 | H75: 1 | I75: 4 | J75: 2 | K75: 3 | L75: 2 | M75: 3 | N75: 1 | O75: 2 | P75: 4 | Q75: 3 | R75: 1 | S75: 4 | T75: 1 | U75: 3 | V75: 2 | W75: 2 | X75: 1 | Y75: 1 | Z75: 3 | AA75: 4 | AB75: 4 | AC75: 3 | AD75: 2 | AE75: 1 | AF75: 4 | AG75: 2 | AH75: 4 | AI75: 3 | AJ75: 1 | AK75: 3 | AL75: 1 | AM75: 3 | AN75: 4 | AO75: 1 | AP75: 3 | AQ75: 2 | AR75: 1 | AS75: 4 | AT75: 1 | AU75: 3
A76: 1 | B76: 1 | C76: 3 | D76: 2 | E76: 4 | F76: 1 | G76: 3 | H76: 4 | I76: 3 | J76: 3 | K76: 4 | L76: 3 | M76: 1 | N76: 4 | O76: 4 | P76: 4 | Q76: 2 | R76: 3 | S76: 1 | T76: 2 | U76: 3 | V76: 2 | W76: 4 | X76: 1 | Y76: 3 | Z76: 2 | AA76: 1 | AB76: 4 | AC76: 2 | AD76: 3 | AE76: 1 | AF76: 2 | AG76: 2 | AH76: 2 | AI76: 1 | AJ76: 1 | AK76: 3 | AL76: 1 | AM76: 3 | AN76: 1 | AO76: 2 | AP76: 3 | AQ76: 1 | AR76: 2 | AS76: 1 | AT76: 3 | AU76: 3
A77: 1 | B77: 1 | C77: 3 | D77: 2 | E77: 4 | F77: 4 | G77: 1 | H77: 3 | I77: 1 | J77: 1 | K77: 4 | L77: 2 | M77: 1 | N77: 1 | O77: 2 | P77: 4 | Q77: 2 | R77: 2 | S77: 4 | T77: 2 | U77: 2 | V77: 4 | W77: 1 | X77: 3 | Y77: 3 | Z77: 2 | AA77: 1 | AB77: 3 | AC77: 1 | AD77: 2 | AE77: 3 | AF77: 1 | AG77: 3 | AH77: 1 | AI77: 1 | AJ77: 1 | AK77: 2 | AL77: 1 | AM77: 1 | AN77: 1 | AO77: 4 | AP77: 4 | AQ77: 1 | AR77: 4 | AS77: 4 | AT77: 4 | AU77: 2
A78: 1 | B78: 1 | C78: 3 | D78: 2 | E78: 4 | F78: 4 | G78: 4 | H78: 2 | I78: 2 | J78: 4 | K78: 1 | L78: 1 | M78: 1 | N78: 4 | O78: 4 | P78: 3 | Q78: 2 | R78: 2 | S78: 2 | T78: 2 | U78: 1 | V78: 1 | W78: 2 | X78: 2 | Y78: 3 | Z78: 2 | AA78: 2 | AB78: 1 | AC78: 1 | AD78: 1 | AE78: 2 | AF78: 3 | AG78: 3 | AH78: 1 | AI78: 2 | AJ78: 2 | AK78: 2 | AL78: 1 | AM78: 3 | AN78: 2 | AO78: 1 | AP78: 1 | AQ78: 1 | AR78: 1 | AS78: 1 | AT78: 3 | AU78: 3
A79: 1 | B79: 1 | C79: 3 | D79: 3 | E79: 2 | F79: 4 | G79: 1 | H79: 2 | I79: 3 | J79: 1 | K79: 1 | L79: 4 | M79: 1 | N79: 2 | O79: 2 | P79: 4 | Q79: 3 | R79: 3 | S79: 3 | T79: 2 | U79: 1 | V79: 3 | W79: 1 | X79: 1 | Y79: 3 | Z79: 2 | AA79: 4 | AB79: 4 | AC79: 3 | AD79: 3 | AE79: 1 | AF79: 3 | AG79: 3 | AH79: 3 | AI79: 1 | AJ79: 2 | AK79: 2 | AL79: 2 | AM79: 3 | AN79: 1 | AO79: 3 | AP79: 1 | AQ79: 3 | AR79: (en blanco) | AS79: 2 | AT79: 4 | AU79: 3
A80: 1 | B80: 1 | C80: 3 | D80: 3 | E80: 2 | F80: 4 | G80: 2 | H80: 1 | I80: 3 | J80: 4 | K80: 3 | L80: 1 | M80: 4 | N80: 2 | O80: 3 | P80: 2 | Q80: 2 | R80: 1 | S80: 3 | T80: 2 | U80: 4 | V80: 1 | W80: 3 | X80: 1 | Y80: 1 | Z80: 2 | AA80: 3 | AB80: 4 | AC80: 2 | AD80: 1 | AE80: 3 | AF80: 3 | AG80: 2 | AH80: 4 | AI80: 1 | AJ80: 3 | AK80: 2 | AL80: 4 | AM80: 2 | AN80: 4 | AO80: 1 | AP80: 2 | AQ80: 3 | AR80: 4 | AS80: 3 | AT80: 3 | AU80: 2
A81: 1 | B81: 1 | C81: 3 | D81: 3 | E81: 3 | F81: 1 | G81: 1 | H81: 1 | I81: 2 | J81: 1 | K81: 1 | L81: 4 | M81: 4 | N81: 3 | O81: 2 | P81: 4 | Q81: 2 | R81: 4 | S81: 2 | T81: 2 | U81: 3 | V81: 4 | W81: 2 | X81: 2 | Y81: 1 | Z81: 1 | AA81: 2 | AB81: 4 | AC81: 1 | AD81: 2 | AE81: 4 | AF81: 4 | AG81: 2 | AH81: 2 | AI81: 1 | AJ81: 1 | AK81: 2 | AL81: 3 | AM81: 1 | AN81: 1 | AO81: 4 | AP81: 1 | AQ81: 2 | AR81: 4 | AS81: 1 | AT81: 3 | AU81: 2
A82: 1 | B82: 1 | C82: 3 | D82: 3 | E82: 3 | F82: 2 | G82: 3 | H82: 4 | I82: 2 | J82: 3 | K82: 1 | L82: 2 | M82: 2 | N82: 3 | O82: 2 | P82: 4 | Q82: 2 | R82: 2 | S82: 4 | T82: 2 | U82: 2 | V82: 4 | W82: 2 | X82: 1 | Y82: 2 | Z82: 2 | AA82: 4 | AB82: 4 | AC82: 4 | AD82: 2 | AE82: 1 | AF82: 2 | AG82: 1 | AH82: 3 | AI82: 1 | AJ82: 1 | AK82: 1 | AL82: 1 | AM82: 4 | AN82: 3 | AO82: 3 | AP82: 3 | AQ82: 4 | AR82: 4 | AS82: 4 | AT82: 3 | AU82: 2
A83: 1 | B83: 1 | C83: 3 | D83: 3 | E83: 4 | F83: 2 | G83: 1 | H83: 2 | I83: 1 | J83: 4 | K83: 2 | L83: 4 | M83: 1 | N83: 3 | O83: 3 | P83: 4 | Q83: 2 | R83: 2 | S83: 4 | T83: 2 | U83: 2 | V83: 3 | W83: 2 | X83: 3 | Y83: 1 | Z83: 3 | AA83: 3 | AB83: 2 | AC83: 4 | AD83: 2 | AE83: 3 | AF83: 1 | AG83: 1 | AH83: 4 | AI83: 2 | AJ83: 1 | AK83: 2 | AL83: 1 | AM83: 3 | AN83: 1 | AO83: 3 | AP83: 2 | AQ83: 4 | AR83: 2 | AS83: 3 | AT83: 1 | AU83: 2
A84: 1 | B84: 1 | C84: 3 | D84: 4 | E84: 1 | F84: 2 | G84: 1 | H84: 3 | I84: 2 | J84: 1 | K84: 1 | L84: 3 | M84: 1 | N84: 1 | O84: 1 | P84: 4 | Q84: 2 | R84: 2 | S84: 4 | T84: 1 | U84: 2 | V84: 2 | W84: 3 | X84: 1 | Y84: 1 | Z84: 3 | AA84: 3 | AB84: 4 | AC84: 4 | AD84: 2 | AE84: 2 | AF84: 4 | AG84: 2 | AH84: 1 | AI84: 3 | AJ84: 3 | AK84: 2 | AL84: 1 | AM84: 2 | AN84: 1 | AO84: 3 | AP84: 3 | AQ84: 2 | AR84: 2 | AS84: 2 | AT84: 3 | AU84: 1
A85: 1 | B85: 1 | C85: 3 | D85: 4 | E85: 2 | F85: 1 | G85: 3 | H85: 2 | I85: 1 | J85: 4 | K85: 1 | L85: 3 | M85: 1 | N85: 2 | O85: 1 | P85: 3 | Q85: 1 | R85: 3 | S85: 4 | T85: 1 | U85: 1 | V85: 3 | W85: 2 | X85: 4 | Y85: 2 | Z85: 1 | AA85: 2 | AB85: 3 | AC85: 3 | AD85: 1 | AE85: 2 | AF85: 1 | AG85: 2 | AH85: 1 | AI85: 3 | AJ85: 2 | AK85: 4 | AL85: 1 | AM85: 1 | AN85: 3 | AO85: 4 | AP85: 2 | AQ85: 2 | AR85: 3 | AS85: 1 | AT85: 3 | AU85: 3
A86: 1 | B86: 1 | C86: 3 | D86: 4 | E86: 2 | F86: 1 | G86: 4 | H86: 2 | I86: 3 | J86: 3 | K86: 1 | L86: 1 | M86: 2 | N86: 1 | O86: 2 | P86: 4 | Q86: 2 | R86: 3 | S86: 2 | T86: 2 | U86: 3 | V86: 2 | W86: 1 | X86: 2 | Y86: 2 | Z86: 1 | AA86: 4 | AB86: 2 | AC86: (en blanco) | AD86: 2 | AE86: 3 | AF86: 4 | AG86: 1 | AH86: 1 | AI86: 2 | AJ86: 3 | AK86: 4 | AL86: 1 | AM86: 2 | AN86: 2 | AO86: 3 | AP86: 4 | AQ86: 1 | AR86: 2 | AS86: 2 | AT86: 3 | AU86: 1
A87: 1 | B87: 1 | C87: 3 | D87: 4 | E87: 3 | F87: 2 | G87: 2 | H87: 1 | I87: 1 | J87: 3 | K87: 1 | L87: 3 | M87: 2 | N87: 4 | O87: 1 | P87: 3 | Q87: 2 | R87: 1 | S87: 2 | T87: 2 | U87: 3 | V87: 1 | W87: 3 | X87: 2 | Y87: 1 | Z87: 4 | AA87: 3 | AB87: 2 | AC87: 4 | AD87: 3 | AE87: 2 | AF87: 3 | AG87: 2 | AH87: 3 | AI87: 4 | AJ87: 1 | AK87: 2 | AL87: 2 | AM87: 1 | AN87: 3 | AO87: 4 | AP87: 1 | AQ87: 1 | AR87: 3 | AS87: 2 | AT87: 4 | AU87: 1
A88: 1 | B88: 1 | C88: 3 | D88: 4 | E88: 3 | F88: 2 | G88: 4 | H88: 4 | I88: 3 | J88: 1 | K88: 2 | L88: 2 | M88: 1 | N88: 2 | O88: 3 | P88: 4 | Q88: 2 | R88: 2 | S88: 4 | T88: 2 | U88: 3 | V88: 3 | W88: 3 | X88: 1 | Y88: 3 | Z88: 4 | AA88: 2 | AB88: 4 | AC88: 4 | AD88: 4 | AE88: 1 | AF88: 1 | AG88: 2 | AH88: 3 | AI88: 2 | AJ88: 3 | AK88: 4 | AL88: 1 | AM88: 1 | AN88: 3 | AO88: 4 | AP88: 2 | AQ88: 2 | AR88: 4 | AS88: 3 | AT88: 2 | AU88: 3
A89: 1 | B89: 1 | C89: 4 | D89: 1 | E89: 2 | F89: 1 | G89: 1 | H89: 3 | I89: 3 | J89: 2 | K89: 1 | L89: 1 | M89: 4 | N89: 2 | O89: 2 | P89: 3 | Q89: 2 | R89: 3 | S89: 4 | T89: 3 | U89: 3 | V89: 4 | W89: 1 | X89: 2 | Y89: 3 | Z89: 2 | AA89: 2 | AB89: 1 | AC89: 1 | AD89: 2 | AE89: 1 | AF89: 2 | AG89: 4 | AH89: (en blanco) | AI89: 3 | AJ89: 2 | AK89: 1 | AL89: 1 | AM89: 3 | AN89: 2 | AO89: 4 | AP89: 3 | AQ89: 2 | AR89: 2 | AS89: 3 | AT89: 3 | AU89: 4
A90: 1 | B90: 1 | C90: 4 | D90: 1 | E90: 2 | F90: 1 | G90: 1 | H90: 4 | I90: 1 | J90: 4 | K90: 3 | L90: 2 | M90: 3 | N90: 2 | O90: 4 | P90: 1 | Q90: 1 | R90: 4 | S90: 2 | T90: 4 | U90: 1 | V90: 2 | W90: 2 | X90: 4 | Y90: 1 | Z90: 2 | AA90: 1 | AB90: 3 | AC90: 1 | AD90: 2 | AE90: 4 | AF90: 1 | AG90: 3 | AH90: 1 | AI90: 4 | AJ90: 2 | AK90: 2 | AL90: 1 | AM90: 1 | AN90: 3 | AO90: 3 | AP90: 1 | AQ90: 3 | AR90: 1 | AS90: 4 | AT90: 1 | AU90: 2
A91: 1 | B91: 1 | C91: 4 | D91: 1 | E91: 2 | F91: 3 | G91: 1 | H91: 2 | I91: 2 | J91: 3 | K91: 1 | L91: 1 | M91: 4 | N91: 4 | O91: 2 | P91: 2 | Q91: 3 | R91: 2 | S91: 1 | T91: 1 | U91: 2 | V91: 1 | W91: 1 | X91: 2 | Y91: 1 | Z91: 3 | AA91: 2 | AB91: 1 | AC91: 4 | AD91: 3 | AE91: 2 | AF91: 3 | AG91: 2 | AH91: 3 | AI91: 3 | AJ91: 3 | AK91: 2 | AL91: 3 | AM91: 2 | AN91: 1 | AO91: 3 | AP91: 4 | AQ91: 2 | AR91: 3 | AS91: 2 | AT91: 4 | AU91: 1
A92: 1 | B92: 1 | C92: 4 | D92: 1 | E92: 3 | F92: 4 | G92: 3 | H92: 4 | I92: 2 | J92: 3 | K92: 1 | L92: 2 | M92: 2 | N92: 3 | O92: 4 | P92: 1 | Q92: 2 | R92: 1 | S92: 1 | T92: 2 | U92: 2 | V92: 2 | W92: 4 | X92: 2 | Y92: 2 | Z92: 3 | AA92: 3 | AB92: 4 | AC92: 3 | AD92: 3 | AE92: 4 | AF92: 1 | AG92: 3 | AH92: 3 | AI92: 2 | AJ92: 1 | AK92: 3 | AL92: 4 | AM92: 3 | AN92: 1 | AO92: 3 | AP92: 1 | AQ92: 2 | AR92: 1 | AS92: 3 | AT92: 1 | AU92: 3
A93: 1 | B93: 1 | C93: 4 | D93: 1 | E93: 4 | F93: 2 | G93: 1 | H93: 2 | I93: 2 | J93: 4 | K93: 1 | L93: 1 | M93: 4 | N93: 4 | O93: 4 | P93: 2 | Q93: 2 | R93: 2 | S93: 2 | T93: 4 | U93: 2 | V93: 2 | W93: 2 | X93: 4 | Y93: 1 | Z93: 3 | AA93: 1 | AB93: 3 | AC93: 4 | AD93: 1 | AE93: 3 | AF93: 1 | AG93: 3 | AH93: 3 | AI93: 3 | AJ93: 2 | AK93: 3 | AL93: 1 | AM93: 1 | AN93: 1 | AO93: 2 | AP93: 3 | AQ93: 2 | AR93: 4 | AS93: 2 | AT93: 4 | AU93: 2
A94: 1 | B94: 1 | C94: 4 | D94: 1 | E94: 4 | F94: 4 | G94: 3 | H94: 2 | I94: 2 | J94: 4 | K94: 1 | L94: 3 | M94: 2 | N94: 3 | O94: 1 | P94: 2 | Q94: 1 | R94: 3 | S94: 4 | T94: 4 | U94: 3 | V94: 1 | W94: 2 | X94: 3 | Y94: 4 | Z94: 4 | AA94: 4 | AB94: 2 | AC94: 3 | AD94: 3 | AE94: 4 | AF94: 2 | AG94: 3 | AH94: 4 | AI94: 1 | AJ94: 3 | AK94: 4 | AL94: 2 | AM94: 3 | AN94: 4 | AO94: 1 | AP94: 3 | AQ94: 1 | AR94: 2 | AS94: 4 | AT94: 1 | AU94: 1
A95: 1 | B95: 1 | C95: 4 | D95: 2 | E95: 2 | F95: 3 | G95: 2 | H95: 4 | I95: 2 | J95: 3 | K95: 2 | L95: 3 | M95: 2 | N95: 4 | O95: 2 | P95: 4 | Q95: 4 | R95: 1 | S95: 1 | T95: 4 | U95: 3 | V95: 4 | W95: 1 | X95: 2 | Y95: 3 | Z95: 2 | AA95: 2 | AB95: 4 | AC95: 2 | AD95: 1 | AE95: 2 | AF95: 3 | AG95: 4 | AH95: 2 | AI95: 2 | AJ95: 3 | AK95: 1 | AL95: 1 | AM95: 2 | AN95: 2 | AO95: 4 | AP95: 4 | AQ95: 2 | AR95: 1 | AS95: 4 | AT95: 4 | AU95: 3
A96: 1 | B96: 1 | C96: 4 | D96: 2 | E96: 2 | F96: 4 | G96: 1 | H96: 4 | I96: 4 | J96: 3 | K96: 2 | L96: 4 | M96: 4 | N96: 3 | O96: 2 | P96: 4 | Q96: 4 | R96: 4 | S96: 1 | T96: 4 | U96: 3 | V96: 4 | W96: 1 | X96: 2 | Y96: 2 | Z96: 4 | AA96: 1 | AB96: 3 | AC96: 2 | AD96: 4 | AE96: 1 | AF96: 3 | AG96: 2 | AH96: 1 | AI96: 1 | AJ96: 1 | AK96: 3 | AL96: 1 | AM96: 3 | AN96: 1 | AO96: 4 | AP96: 4 | AQ96: 2 | AR96: 4 | AS96: 4 | AT96: 3 | AU96: 2
A97: 1 | B97: 1 | C97: 4 | D97: 2 | E97: 3 | F97: 1 | G97: 1 | H97: 4 | I97: 1 | J97: 3 | K97: 1 | L97: 2 | M97: 3 | N97: 3 | O97: 2 | P97: 2 | Q97: 1 | R97: 3 | S97: 4 | T97: 2 | U97: 2 | V97: 1 | W97: 4 | X97: 1 | Y97: 1 | Z97: 3 | AA97: 3 | AB97: 3 | AC97: 1 | AD97: 4 | AE97: 3 | AF97: 3 | AG97: 2 | AH97: 1 | AI97: 2 | AJ97: 1 | AK97: 1 | AL97: 4 | AM97: 3 | AN97: 1 | AO97: 2 | AP97: 2 | AQ97: 3 | AR97: 1 | AS97: 3 | AT97: 1 | AU97: 3
A98: 1 | B98: 1 | C98: 4 | D98: 2 | E98: 3 | F98: 1 | G98: 1 | H98: 4 | I98: 3 | J98: 1 | K98: 4 | L98: 1 | M98: 3 | N98: 4 | O98: 2 | P98: 4 | Q98: 2 | R98: 1 | S98: 4 | T98: 2 | U98: 1 | V98: 4 | W98: 3 | X98: 1 | Y98: 1 | Z98: 3 | AA98: 2 | AB98: 1 | AC98: 2 | AD98: 1 | AE98: 3 | AF98: 3 | AG98: 2 | AH98: 4 | AI98: 3 | AJ98: 4 | AK98: 2 | AL98: 3 | AM98: 1 | AN98: 1 | AO98: 3 | AP98: 3 | AQ98: 1 | AR98: 3 | AS98: 1 | AT98: 3 | AU98: 3
A99: 1 | B99: 1 | C99: 4 | D99: 3 | E99: 2 | F99: 1 | G99: 1 | H99: 3 | I99: 2 | J99: 2 | K99: 1 | L99: 3 | M99: 1 | N99: 4 | O99: 4 | P99: 1 | Q99: 2 | R99: 2 | S99: 3 | T99: 3 | U99: 2 | V99: 2 | W99: 2 | X99: 2 | Y99: 1 | Z99: 2 | AA99: 1 | AB99: 1 | AC99: 1 | AD99: 1 | AE99: 4 | AF99: 2 | AG99: 1 | AH99: 2 | AI99: 1 | AJ99: 2 | AK99: 1 | AL99: 3 | AM99: 2 | AN99: 3 | AO99: 1 | AP99: 3 | AQ99: 1 | AR99: 2 | AS99: 1 | AT99: 4 | AU99: 3
A100: 1 | B100: 1 | C100: 4 | D100: 3 | E100: 2 | F100: 2 | G100: 4 | H100: 1 | I100: 3 | J100: 3 | K100: 1 | L100: 2 | M100: 1 | N100: 4 | O100: 2 | P100: 3 | Q100: 2 | R100: 4 | S100: 3 | T100: 2 | U100: 3 | V100: 2 | W100: 1 | X100: 2 | Y100: 4 | Z100: 2 | AA100: 3 | AB100: 4 | AC100: 3 | AD100: 4 | AE100: 3 | AF100: 1 | AG100: 1 | AH100: 1 | AI100: 3 | AJ100: 2 | AK100: 2 | AL100: 2 | AM100: 1 | AN100: 4 | AO100: 3 | AP100: 3 | AQ100: 1 | AR100: 4 | AS100: 3 | AT100: 3 | AU100: 1
A101: 1 | B101: 1 | C101: 4 | D101: 3 | E101: 2 | F101: 4 | G101: 3 | H101: 1 | I101: 1 | J101: 2 | K101: 4 | L101: 3 | M101: 2 | N101: 1 | O101: 2 | P101: 4 | Q101: 2 | R101: 4 | S101: 2 | T101: 2 | U101: 1 | V101: 3 | W101: 2 | X101: 4 | Y101: 2 | Z101: 3 | AA101: 1 | AB101: 3 | AC101: 4 | AD101: 2 | AE101: 1 | AF101: 1 | AG101: 2 | AH101: 1 | AI101: 4 | AJ101: 2 | AK101: 3 | AL101: 1 | AM101: 4 | AN101: 1 | AO101: 2 | AP101: 1 | AQ101: 2 | AR101: 2 | AS101: 1 | AT101: 3 | AU101: 1
A102: 1 | B102: 1 | C102: 4 | D102: 3 | E102: 3 | F102: 2 | G102: 1 | H102: 2 | I102: 2 | J102: 3 | K102: 4 | L102: 1 | M102: 4 | N102: 3 | O102: 4 | P102: 1 | Q102: 4 | R102: 4 | S102: 3 | T102: 3 | U102: 1 | V102: 4 | W102: 4 | X102: 4 | Y102: 4 | Z102: 2 | AA102: 3 | AB102: 4 | AC102: 1 | AD102: 2 | AE102: 1 | AF102: 4 | AG102: 3 | AH102: 4 | AI102: 4 | AJ102: 1 | AK102: 2 | AL102: 2 | AM102: 3 | AN102: 4 | AO102: 3 | AP102: 1 | AQ102: 2 | AR102: 4 | AS102: 1 | AT102: 3 | AU102: 3
A103: 1 | B103: 1 | C103: 4 | D103: 4 | E103: 1 | F103: 4 | G103: 1 | H103: 1 | I103: 3 | J103: 2 | K103: 2 | L103: 1 | M103: 4 | N103: 3 | O103: 2 | P103: 4 | Q103: 3 | R103: 1 | S103: 2 | T103: 2 | U103: 4 | V103: 1 | W103: 1 | X103: 1 | Y103: 3 | Z103: 1 | AA103: 4 | AB103: 4 | AC103: 1 | AD103: 2 | AE103: 2 | AF103: 3 | AG103: 2 | AH103: 2 | AI103: 2 | AJ103: 2 | AK103: 1 | AL103: 3 | AM103: 3 | AN103: 1 | AO103: 4 | AP103: 2 | AQ103: 2 | AR103: 2 | AS103: 4 | AT103: 3 | AU103: 2
A104: 1 | B104: 1 | C104: 4 | D104: 4 | E104: 2 | F104: 3 | G104: 1 | H104: 3 | I104: 4 | J104: 2 | K104: 4 | L104: 1 | M104: 3 | N104: 4 | O104: 2 | P104: 4 | Q104: 2 | R104: 3 | S104: 1 | T104: 4 | U104: 2 | V104: 4 | W104: 2 | X104: 3 | Y104: 2 | Z104: 4 | AA104: 1 | AB104: 3 | AC104: 2 | AD104: 4 | AE104: 2 | AF104: 3 | AG104: 1 | AH104: 2 | AI104: 4 | AJ104: 3 | AK104: 4 | AL104: 2 | AM104: 3 | AN104: 1 | AO104: 4 | AP104: 2 | AQ104: 4 | AR104: 3 | AS104: 2 | AT104: 4 | AU104: 3
A105: 1 | B105: 1 | C105: 4 | D105: 4 | E105: 4 | F105: 2 | G105: 3 | H105: 1 | I105: 3 | J105: 3 | K105: 4 | L105: 1 | M105: 1 | N105: 3 | O105: 2 | P105: 4 | Q105: 2 | R105: 3 | S105: 2 | T105: 4 | U105: 3 | V105: 4 | W105: 1 | X105: 1 | Y105: 4 | Z105: 2 | AA105: 3 | AB105: 1 | AC105: 3 | AD105: 1 | AE105: 3 | AF105: 3 | AG105: 2 | AH105: 2 | AI105: 1 | AJ105: 2 | AK105: 2 | AL105: 1 | AM105: 2 | AN105: 1 | AO105: 3 | AP105: 2 | AQ105: 1 | AR105: 3 | AS105: 2 | AT105: 1 | AU105: 2
A106: 1 | B106: 2 | C106: (en blanco) | D106: 3 | E106: 1 | F106: 1 | G106: 2 | H106: 1 | I106: 1 | J106: 1 | K106: 4 | L106: 2 | M106: 3 | N106: 4 | O106: 1 | P106: 3 | Q106: 3 | R106: 2 | S106: 4 | T106: 2 | U106: 1 | V106: 4 | W106: 2 | X106: 1 | Y106: 3 | Z106: 1 | AA106: 3 | AB106: 4 | AC106: 1 | AD106: 2 | AE106: 1 | AF106: 4 | AG106: 3 | AH106: 2 | AI106: 4 | AJ106: 1 | AK106: 3 | AL106: 1 | AM106: 2 | AN106: 3 | AO106: 1 | AP106: 4 | AQ106: 3 | AR106: 1 | AS106: 2 | AT106: 4 | AU106: 1
A107: 1 | B107: 2 | C107: 1 | D107: 1 | E107: 1 | F107: 2 | G107: 1 | H107: 2 | I107: 1 | J107: 4 | K107: 1 | L107: 1 | M107: 3 | N107: 1 | O107: 4 | P107: 3 | Q107: 2 | R107: 2 | S107: 2 | T107: 1 | U107: 3 | V107: 3 | W107: 2 | X107: 1 | Y107: 2 | Z107: 2 | AA107: 4 | AB107: 3 | AC107: 2 | AD107: 3 | AE107: 1 | AF107: 2 | AG107: 3 | AH107: 2 | AI107: 2 | AJ107: 2 | AK107: 3 | AL107: 1 | AM107: 4 | AN107: 1 | AO107: 2 | AP107: 1 | AQ107: 2 | AR107: 2 | AS107: 1 | AT107: 2 | AU107: 2
A108: 1 | B108: 2 | C108: 1 | D108: 1 | E108: 1 | F108: 2 | G108: 3 | H108: 4 | I108: 1 | J108: 1 | K108: 3 | L108: 4 | M108: 1 | N108: 1 | O108: 2 | P108: 4 | Q108: 2 | R108: 3 | S108: 3 | T108: 4 | U108: 2 | V108: 4 | W108: 4 | X108: 2 | Y108: 4 | Z108: 2 | AA108: 3 | AB108: 1 | AC108: 1 | AD108: 4 | AE108: 2 | AF108: 2 | AG108: 3 | AH108: 1 | AI108: 2 | AJ108: 3 | AK108: 4 | AL108: 1 | AM108: 1 | AN108: 1 | AO108: 3 | AP108: 4 | AQ108: 2 | AR108: 1 | AS108: 3 | AT108: 3 | AU108: 3
A109: 1 | B109: 2 | C109: 1 | D109: 1 | E109: 1 | F109: 2 | G109: 3 | H109: 4 | I109: 1 | J109: 1 | K109: 3 | L109: 4 | M109: 1 | N109: 1 | O109: 2 | P109: 4 | Q109: 2 | R109: 4 | S109: 2 | T109: 3 | U109: 1 | V109: 1 | W109: 2 | X109: 4 | Y109: 1 | Z109: 2 | AA109: 3 | AB109: 2 | AC109: 4 | AD109: 1 | AE109: 3 | AF109: 2 | AG109: 1 | AH109: 3 | AI109: 2 | AJ109: 4 | AK109: 1 | AL109: 2 | AM109: 3 | AN109: 1 | AO109: 3 | AP109: 2 | AQ109: 4 | AR109: 2 | AS109: 1 | AT109: 1 | AU109: 1
A110: 1 | B110: 2 | C110: 1 | D110: 1 | E110: 1 | F110: 2 | G110: 3 | H110: 4 | I110: 4 | J110: 1 | K110: 1 | L110: 3 | M110: 4 | N110: 1 | O110: 3 | P110: 4 | Q110: 2 | R110: 3 | S110: 3 | T110: 2 | U110: 1 | V110: 4 | W110: 1 | X110: 4 | Y110: 3 | Z110: 1 | AA110: 3 | AB110: 2 | AC110: 2 | AD110: 3 | AE110: 4 | AF110: 2 | AG110: 3 | AH110: 4 | AI110: 2 | AJ110: 3 | AK110: 3 | AL110: 1 | AM110: 1 | AN110: 2 | AO110: 1 | AP110: 2 | AQ110: 3 | AR110: 1 | AS110: 2 | AT110: 1 | AU110: 3
A111: 1 | B111: 2 | C111: 1 | D111: 1 | E111: 1 | F111: 3 | G111: 1 | H111: 2 | I111: 3 | J111: 3 | K111: 1 | L111: 4 | M111: 4 | N111: 4 | O111: 2 | P111: 2 | Q111: 2 | R111: 4 | S111: 4 | T111: 2 | U111: 4 | V111: 3 | W111: 4 | X111: 3 | Y111: 4 | Z111: 2 | AA111: 3 | AB111: 2 | AC111: 4 | AD111: 1 | AE111: 3 | AF111: 1 | AG111: 3 | AH111: 1 | AI111: 3 | AJ111: 2 | AK111: 3 | AL111: 1 | AM111: 3 | AN111: 1 | AO111: 4 | AP111: 1 | AQ111: 3 | AR111: 3 | AS111: 3 | AT111: 2 | AU111: 3
A112: 1 | B112: 2 | C112: 1 | D112: 1 | E112: 1 | F112: 3 | G112: 3 | H112: 3 | I112: 3 | J112: 1 | K112: 1 | L112: 1 | M112: 1 | N112: 3 | O112: 2 | P112: 4 | Q112: 2 | R112: 2 | S112: 3 | T112: 2 | U112: 2 | V112: 1 | W112: 4 | X112: 1 | Y112: 3 | Z112: 2 | AA112: 2 | AB112: 2 | AC112: 2 | AD112: 4 | AE112: 3 | AF112: 1 | AG112: 3 | AH112: 2 | AI112: 3 | AJ112: 4 | AK112: 1 | AL112: 1 | AM112: 2 | AN112: 1 | AO112: 3 | AP112: 4 | AQ112: 1 | AR112: 4 | AS112: 3 | AT112: 3 | AU112: 2
A113: 1 | B113: 2 | C113: 1 | D113: 1 | E113: 2 | F113: 3 | G113: 3 | H113: 4 | I113: 1 | J113: 4 | K113: 1 | L113: 2 | M113: 4 | N113: 1 | O113: 2 | P113: 3 | Q113: 2 | R113: 1 | S113: 4 | T113: 3 | U113: 2 | V113: 1 | W113: 3 | X113: 1 | Y113: 2 | Z113: 3 | AA113: 4 | AB113: 2 | AC113: 3 | AD113: 1 | AE113: 3 | AF113: 4 | AG113: 2 | AH113: 3 | AI113: 1 | AJ113: 4 | AK113: 4 | AL113: 2 | AM113: 1 | AN113: 2 | AO113: 3 | AP113: 3 | AQ113: 4 | AR113: 2 | AS113: 1 | AT113: 4 | AU113: 3
A114: 1 | B114: 2 | C114: 1 | D114: 1 | E114: 2 | F114: 3 | G114: 4 | H114: 2 | I114: 2 | J114: 2 | K114: 1 | L114: 2 | M114: 4 | N114: 2 | O114: 1 | P114: 3 | Q114: 3 | R114: 4 | S114: 2 | T114: 2 | U114: 4 | V114: 2 | W114: 4 | X114: 1 | Y114: 3 | Z114: 2 | AA114: 2 | AB114: 1 | AC114: 2 | AD114: 1 | AE114: 3 | AF114: 1 | AG114: 2 | AH114: 4 | AI114: 3 | AJ114: 4 | AK114: 4 | AL114: 1 | AM114: 4 | AN114: 1 | AO114: 4 | AP114: 4 | AQ114: 1 | AR114: 2 | AS114: 4 | AT114: 3 | AU114: 2
A115: 1 | B115: 2 | C115: 1 | D115: 1 | E115: 2 | F115: 4 | G115: 3 | H115: 3 | I115: 1 | J115: 1 | K115: 1 | L115: 1 | M115: 2 | N115: 3 | O115: 1 | P115: 1 | Q115: 2 | R115: 2 | S115: 2 | T115: 1 | U115: 1 | V115: 2 | W115: 4 | X115: 1 | Y115: 1 | Z115: 3 | AA115: 3 | AB115: 1 | AC115: 2 | AD115: 4 | AE115: 3 | AF115: 3 | AG115: 3 | AH115: 1 | AI115: 2 | AJ115: 3 | AK115: 1 | AL115: 1 | AM115: 2 | AN115: 3 | AO115: 4 | AP115: 3 | AQ115: 2 | AR115: 3 | AS115: 2 | AT115: 4 | AU115: 2
A116: 1 | B116: 2 | C116: 1 | D116: 1 | E116: 3 | F116: 1 | G116: 3 | H116: 2 | I116: 1 | J116: 1 | K116: 4 | L116: 2 | M116: 4 | N116: 1 | O116: 4 | P116: 1 | Q116: 2 | R116: 3 | S116: 3 | T116: 2 | U116: 3 | V116: 1 | W116: 1 | X116: 3 | Y116: 4 | Z116: 2 | AA116: 1 | AB116: 4 | AC116: 1 | AD116: 4 | AE116: 2 | AF116: 3 | AG116: 3 | AH116: 1 | AI116: 2 | AJ116: 4 | AK116: 2 | AL116: 3 | AM116: 1 | AN116: 4 | AO116: 2 | AP116: 1 | AQ116: 2 | AR116: 2 | AS116: 3 | AT116: 1 | AU116: 1
A117: 1 | B117: 2 | C117: 1 | D117: 1 | E117: 3 | F117: 1 | G117: 3 | H117: 2 | I117: 4 | J117: 3 | K117: 1 | L117: 2 | M117: 2 | N117: 4 | O117: 2 | P117: 4 | Q117: 2 | R117: 3 | S117: 3 | T117: 2 | U117: 3 | V117: 1 | W117: 3 | X117: 1 | Y117: 4 | Z117: 3 | AA117: 1 | AB117: 2 | AC117: 2 | AD117: 1 | AE117: 2 | AF117: 3 | AG117: 1 | AH117: 1 | AI117: 2 | AJ117: 3 | AK117: 2 | AL117: 1 | AM117: 1 | AN117: 2 | AO117: 3 | AP117: 3 | AQ117: 2 | AR117: 2 | AS117: 4 | AT117: 4 | AU117: 3
A118: 1 | B118: 2 | C118: 1 | D118: 1 | E118: 3 | F118: 2 | G118: 1 | H118: 3 | I118: 2 | J118: 4 | K118: 2 | L118: 3 | M118: 1 | N118: 3 | O118: 2 | P118: 3 | Q118: 1 | R118: 1 | S118: 1 | T118: 2 | U118: 4 | V118: 3 | W118: 1 | X118: 2 | Y118: 3 | Z118: 3 | AA118: 2 | AB118: 1 | AC118: 1 | AD118: 2 | AE118: 3 | AF118: 1 | AG118: 2 | AH118: 2 | AI118: 1 | AJ118: 2 | AK118: 1 | AL118: 1 | AM118: 2 | AN118: 1 | AO118: 1 | AP118: 1 | AQ118: 3 | AR118: 3 | AS118: 2 | AT118: 3 | AU118: 1
A119: 1 | B119: 2 | C119: 1 | D119: 1 | E119: 3 | F119: 4 | G119: 1 | H119: 2 | I119: 1 | J119: 2 | K119: 1 | L119: 4 | M119: 3 | N119: 4 | O119: 3 | P119: 4 | Q119: 2 | R119: 4 | S119: 3 | T119: 1 | U119: 2 | V119: 4 | W119: 4 | X119: 1 | Y119: 3 | Z119: 4 | AA119: 3 | AB119: 4 | AC119: 2 | AD119: 1 | AE119: 3 | AF119: 3 | AG119: 1 | AH119: 3 | AI119: 2 | AJ119: 2 | AK119: 1 | AL119: 3 | AM119: 2 | AN119: 1 | AO119: 3 | AP119: 3 | AQ119: 2 | AR119: 1 | AS119: 4 | AT119: 3 | AU119: 2
A120: 1 | B120: 2 | C120: 1 | D120: 1 | E120: 3 | F120: 4 | G120: 2 | H120: 1 | I120: 3 | J120: 1 | K120: 2 | L120: 2 | M120: 3 | N120: 4 | O120: 3 | P120: 3 | Q120: 2 | R120: 2 | S120: 2 | T120: 1 | U120: 3 | V120: 1 | W120: 3 | X120: 2 | Y120: 2 | Z120: 3 | AA120: 1 | AB120: 4 | AC120: 2 | AD120: 3 | AE120: 2 | AF120: 4 | AG120: 1 | AH120: 3 | AI120: 2 | AJ120: 2 | AK120: 3 | AL120: 1 | AM120: 1 | AN120: 2 | AO120: 4 | AP120: 2 | AQ120: 3 | AR120: 1 | AS120: 4 | AT120: 3 | AU120: 2
A121: 1 | B121: 2 | C121: 1 | D121: 1 | E121: 3 | F121: 4 | G121: 3 | H121: 1 | I121: 3 | J121: 1 | K121: 1 | L121: 2 | M121: 1 | N121: 4 | O121: 4 | P121: 3 | Q121: 2 | R121: 4 | S121: 4 | T121: 1 | U121: 3 | V121: 1 | W121: 2 | X121: 1 | Y121: 1 | Z121: 2 | AA121: 3 | AB121: 2 | AC121: 1 | AD121: 1 | AE121: 2 | AF121: 3 | AG121: 2 | AH121: 1 | AI121: 2 | AJ121: 2 | AK121: 1 | AL121: 1 | AM121: 4 | AN121: 1 | AO121: 4 | AP121: 3 | AQ121: 1 | AR121: 1 | AS121: 4 | AT121: 3 | AU121: 2
A122: 1 | B122: 2 | C122: 1 | D122: 1 | E122: 4 | F122: 2 | G122: 1 | H122: 1 | I122: 1 | J122: 3 | K122: 1 | L122: 2 | M122: 4 | N122: 4 | O122: 3 | P122: 4 | Q122: 2 | R122: 4 | S122: 2 | T122: 2 | U122: 4 | V122: 4 | W122: 2 | X122: 2 | Y122: 2 | Z122: 3 | AA122: 4 | AB122: 4 | AC122: 3 | AD122: 2 | AE122: 3 | AF122: 1 | AG122: 2 | AH122: 4 | AI122: 2 | AJ122: 3 | AK122: 4 | AL122: 1 | AM122: 1 | AN122: 1 | AO122: 4 | AP122: 3 | AQ122: 2 | AR122: 1 | AS122: 1 | AT122: 4 | AU122: 2
A123: 1 | B123: 2 | C123: 1 | D123: 1 | E123: 4 | F123: 2 | G123: 1 | H123: 3 | I123: 3 | J123: 2 | K123: 1 | L123: 4 | M123: 3 | N123: 1 | O123: 3 | P123: 1 | Q123: 2 | R123: 1 | S123: 4 | T123: 1 | U123: 3 | V123: 2 | W123: 4 | X123: 1 | Y123: 2 | Z123: 4 | AA123: 2 | AB123: 4 | AC123: 1 | AD123: 1 | AE123: 4 | AF123: 2 | AG123: 4 | AH123: 1 | AI123: 3 | AJ123: 4 | AK123: 3 | AL123: 4 | AM123: 1 | AN123: 4 | AO123: 2 | AP123: 1 | AQ123: 3 | AR123: 1 | AS123: 4 | AT123: 4 | AU123: 3
A124: 1 | B124: 2 | C124: 1 | D124: 1 | E124: 4 | F124: 3 | G124: 2 | H124: 1 | I124: 2 | J124: 1 | K124: 2 | L124: 2 | M124: 3 | N124: 3 | O124: 2 | P124: 4 | Q124: 2 | R124: 2 | S124: 2 | T124: 2 | U124: 4 | V124: 4 | W124: 3 | X124: 4 | Y124: 1 | Z124: 2 | AA124: 3 | AB124: 2 | AC124: 3 | AD124: 2 | AE124: 4 | AF124: 1 | AG124: 1 | AH124: 2 | AI124: 1 | AJ124: 3 | AK124: 2 | AL124: 4 | AM124: 2 | AN124: 3 | AO124: 1 | AP124: 2 | AQ124: 3 | AR124: 2 | AS124: 4 | AT124: 1 | AU124: 2
A125: 1 | B125: 2 | C125: 1 | D125: 1 | E125: 4 | F125: 4 | G125: 3 | H125: 1 | I125: 1 | J125: 1 | K125: 1 | L125: 2 | M125: 1 | N125: 1 | O125: 2 | P125: 4 | Q125: 2 | R125: 2 | S125: 2 | T125: 4 | U125: 1 | V125: 1 | W125: 2 | X125: 2 | Y125: 3 | Z125: 2 | AA125: 3 | AB125: 2 | AC125: 2 | AD125: 2 | AE125: 1 | AF125: 4 | AG125: 3 | AH125: 1 | AI125: 3 | AJ125: 2 | AK125: 2 | AL125: 1 | AM125: 4 | AN125: 1 | AO125: 3 | AP125: 1 | AQ125: 4 | AR125: 4 | AS125: 4 | AT125: 2 | AU125: 3
A126: 1 | B126: 2 | C126: 1 | D126: 2 | E126: 1 | F126: 2 | G126: 1 | H126: 2 | I126: 3 | J126: 2 | K126: 1 | L126: 2 | M126: 4 | N126: 4 | O126: 2 | P126: 1 | Q126: 2 | R126: 4 | S126: 2 | T126: 1 | U126: 2 | V126: 4 | W126: 2 | X126: 1 | Y126: 1 | Z126: 2 | AA126: 3 | AB126: 1 | AC126: 1 | AD126: 4 | AE126: 3 | AF126: 3 | AG126: 3 | AH126: 4 | AI126: 2 | AJ126: 3 | AK126: 3 | AL126: 4 | AM126: 3 | AN126: 3 | AO126: 3 | AP126: 3 | AQ126: 2 | AR126: 2 | AS126: 3 | AT126: 4 | AU126: 2
A127: 1 | B127: 2 | C127: 1 | D127: 2 | E127: 1 | F127: 2 | G127: 2 | H127: 1 | I127: 4 | J127: 3 | K127: 2 | L127: 2 | M127: 3 | N127: 1 | O127: 2 | P127: 3 | Q127: 2 | R127: 3 | S127: 1 | T127: 2 | U127: 2 | V127: 3 | W127: 2 | X127: 3 | Y127: 1 | Z127: 2 | AA127: 2 | AB127: 4 | AC127: 3 | AD127: 3 | AE127: 1 | AF127: 1 | AG127: 1 | AH127: 3 | AI127: 2 | AJ127: 3 | AK127: 1 | AL127: 3 | AM127: 3 | AN127: 2 | AO127: 1 | AP127: 4 | AQ127: 2 | AR127: 1 | AS127: 2 | AT127: 2 | AU127: 2
A128: 1 | B128: 2 | C128: 1 | D128: 2 | E128: 1 | F128: 2 | G128: 3 | H128: 2 | I128: 1 | J128: 3 | K128: 1 | L128: 1 | M128: 3 | N128: 1 | O128: 2 | P128: 4 | Q128: 1 | R128: 2 | S128: 3 | T128: 2 | U128: 3 | V128: 1 | W128: 2 | X128: 3 | Y128: 3 | Z128: 3 | AA128: 2 | AB128: 4 | AC128: 4 | AD128: 1 | AE128: 2 | AF128: 2 | AG128: 3 | AH128: 2 | AI128: 2 | AJ128: 1 | AK128: 2 | AL128: 1 | AM128: 2 | AN128: 4 | AO128: 3 | AP128: 1 | AQ128: 3 | AR128: 1 | AS128: 2 | AT128: 3 | AU128: 3
A129: 1 | B129: 2 | C129: 1 | D129: 2 | E129: 1 | F129: 4 | G129: 1 | H129: 4 | I129: 1 | J129: 4 | K129: 1 | L129: 1 | M129: 2 | N129: 4 | O129: 4 | P129: 4 | Q129: 2 | R129: 4 | S129: 2 | T129: 1 | U129: 3 | V129: 3 | W129: 4 | X129: 1 | Y129: 3 | Z129: 1 | AA129: 3 | AB129: 1 | AC129: 4 | AD129: 2 | AE129: 3 | AF129: 1 | AG129: 3 | AH129: 2 | AI129: 4 | AJ129: 1 | AK129: 1 | AL129: 2 | AM129: 3 | AN129: 2 | AO129: 4 | AP129: 3 | AQ129: 3 | AR129: 1 | AS129: 1 | AT129: 2 | AU129: 3
A130: 1 | B130: 2 | C130: 1 | D130: 2 | E130: 1 | F130: 4 | G130: 3 | H130: 1 | I130: 2 | J130: 4 | K130: 3 | L130: 2 | M130: 2 | N130: 1 | O130: 1 | P130: 4 | Q130: 4 | R130: 2 | S130: 1 | T130: 3 | U130: 1 | V130: 2 | W130: (en blanco) | X130: 4 | Y130: 2 | Z130: 3 | AA130: 3 | AB130: 2 | AC130: 3 | AD130: 2 | AE130: 3 | AF130: 2 | AG130: 1 | AH130: 4 | AI130: 1 | AJ130: 1 | AK130: 3 | AL130: 3 | AM130: 1 | AN130: 2 | AO130: 4 | AP130: 2 | AQ130: 1 | AR130: 3 | AS130: (en blanco) | AT130: 1 | AU130: 1
A131: 1 | B131: 2 | C131: 1 | D131: 2 | E131: 2 | F131: 4 | G131: 1 | H131: 2 | I131: 1 | J131: 1 | K131: 1 | L131: 3 | M131: 3 | N131: 4 | O131: 4 | P131: 4 | Q131: 2 | R131: 3 | S131: 3 | T131: 2 | U131: 3 | V131: 1 | W131: 2 | X131: 3 | Y131: 4 | Z131: 2 | AA131: 3 | AB131: 2 | AC131: 1 | AD131: 3 | AE131: 4 | AF131: 2 | AG131: 1 | AH131: 2 | AI131: 4 | AJ131: 3 | AK131: 1 | AL131: 1 | AM131: 2 | AN131: 4 | AO131: 3 | AP131: 1 | AQ131: 2 | AR131: 4 | AS131: 3 | AT131: 1 | AU131: 2
A132: 1 | B132: 2 | C132: 1 | D132: 2 | E132: 3 | F132: 1 | G132: 2 | H132: 1 | I132: 1 | J132: 3 | K132: 1 | L132: 2 | M132: 2 | N132: 4 | O132: 2 | P132: 3 | Q132: 2 | R132: 3 | S132: 4 | T132: 2 | U132: 2 | V132: 4 | W132: 4 | X132: 1 | Y132: 4 | Z132: 2 | AA132: 3 | AB132: 2 | AC132: 4 | AD132: 2 | AE132: 3 | AF132: 1 | AG132: 3 | AH132: 2 | AI132: 3 | AJ132: 4 | AK132: 2 | AL132: 1 | AM132: 3 | AN132: 4 | AO132: 1 | AP132: 2 | AQ132: 2 | AR132: 4 | AS132: 2 | AT132: 3 | AU132: 3
A133: 1 | B133: 2 | C133: 1 | D133: 2 | E133: 3 | F133: 1 | G133: 2 | H133: 2 | I133: 1 | J133: 3 | K133: 1 | L133: 2 | M133: 3 | N133: 1 | O133: 3 | P133: 2 | Q133: 1 | R133: 2 | S133: 3 | T133: 1 | U133: 1 | V133: 1 | W133: 2 | X133: 2 | Y133: 2 | Z133: 3 | AA133: 4 | AB133: 2 | AC133: 2 | AD133: 3 | AE133: 1 | AF133: 2 | AG133: 2 | AH133: 1 | AI133: 3 | AJ133: 2 | AK133: 1 | AL133: 3 | AM133: 1 | AN133: 2 | AO133: 2 | AP133: 2 | AQ133: 1 | AR133: 3 | AS133: 1 | AT133: 1 | AU133: 2
A134: 1 | B134: 2 | C134: 1 | D134: 2 | E134: 3 | F134: 1 | G134: 3 | H134: 4 | I134: 2 | J134: 1 | K134: 3 | L134: 1 | M134: 3 | N134: 1 | O134: 3 | P134: 1 | Q134: 3 | R134: 1 | S134: 4 | T134: 3 | U134: 1 | V134: 4 | W134: 3 | X134: 1 | Y134: 3 | Z134: 1 | AA134: 1 | AB134: 3 | AC134: 2 | AD134: 4 | AE134: 1 | AF134: 2 | AG134: 3 | AH134: 4 | AI134: 2 | AJ134: 4 | AK134: 1 | AL134: 3 | AM134: 1 | AN134: 3 | AO134: 1 | AP134: 3 | AQ134: 1 | AR134: 2 | AS134: 1 | AT134: 2 | AU134: 2
A135: 1 | B135: 2 | C135: 1 | D135: 2 | E135: 3 | F135: 2 | G135: 1 | H135: 1 | I135: 3 | J135: 2 | K135: 1 | L135: 2 | M135: 4 | N135: 4 | O135: 2 | P135: 1 | Q135: 4 | R135: 4 | S135: 2 | T135: 2 | U135: 1 | V135: 1 | W135: 2 | X135: 2 | Y135: 1 | Z135: 2 | AA135: 2 | AB135: 1 | AC135: 2 | AD135: 2 | AE135: 3 | AF135: 4 | AG135: 3 | AH135: 1 | AI135: 1 | AJ135: 2 | AK135: 3 | AL135: 4 | AM135: 1 | AN135: 1 | AO135: 1 | AP135: 3 | AQ135: 3 | AR135: 2 | AS135: 4 | AT135: 2 | AU135: 2
A136: 1 | B136: 2 | C136: 1 | D136: 2 | E136: 3 | F136: 2 | G136: 1 | H136: 4 | I136: 1 | J136: 1 | K136: 3 | L136: 4 | M136: 1 | N136: 4 | O136: 2 | P136: 1 | Q136: 2 | R136: 3 | S136: 3 | T136: 1 | U136: 2 | V136: 1 | W136: 3 | X136: 2 | Y136: 1 | Z136: 4 | AA136: 2 | AB136: 3 | AC136: 1 | AD136: 2 | AE136: 1 | AF136: 3 | AG136: 4 | AH136: 4 | AI136: 3 | AJ136: 2 | AK136: 1 | AL136: 2 | AM136: 4 | AN136: 1 | AO136: 2 | AP136: 4 | AQ136: 3 | AR136: 4 | AS136: 4 | AT136: 3 | AU136: 3
A137: 1 | B137: 2 | C137: 1 | D137: 2 | E137: 3 | F137: 4 | G137: 2 | H137: 1 | I137: 2 | J137: 3 | K137: 4 | L137: 2 | M137: 1 | N137: 4 | O137: 1 | P137: 4 | Q137: 2 | R137: 2 | S137: 4 | T137: 2 | U137: 3 | V137: 4 | W137: 2 | X137: 1 | Y137: 1 | Z137: 1 | AA137: 3 | AB137: 4 | AC137: 4 | AD137: 4 | AE137: 3 | AF137: 3 | AG137: 2 | AH137: 4 | AI137: 3 | AJ137: 1 | AK137: 1 | AL137: 1 | AM137: 4 | AN137: 1 | AO137: 2 | AP137: 2 | AQ137: 1 | AR137: 2 | AS137: 4 | AT137: 1 | AU137: 4
A138: 1 | B138: 2 | C138: 1 | D138: 2 | E138: 4 | F138: 2 | G138: 3 | H138: 1 | I138: 2 | J138: 2 | K138: 3 | L138: 3 | M138: 1 | N138: 2 | O138: 1 | P138: 2 | Q138: 2 | R138: 3 | S138: 1 | T138: 2 | U138: 3 | V138: 1 | W138: 2 | X138: 2 | Y138: 4 | Z138: 3 | AA138: 3 | AB138: 4 | AC138: 2 | AD138: 3 | AE138: 4 | AF138: 3 | AG138: 3 | AH138: 2 | AI138: 3 | AJ138: 2 | AK138: 2 | AL138: 4 | AM138: 2 | AN138: 3 | AO138: 2 | AP138: 3 | AQ138: 4 | AR138: 4 | AS138: 3 | AT138: 4 | AU138: 1
A139: 1 | B139: 2 | C139: 1 | D139: 2 | E139: 4 | F139: 3 | G139: 2 | H139: 2 | I139: 3 | J139: 1 | K139: 1 | L139: 2 | M139: 2 | N139: 3 | O139: 2 | P139: 4 | Q139: 2 | R139: 2 | S139: 2 | T139: 1 | U139: 3 | V139: 3 | W139: 2 | X139: 2 | Y139: 4 | Z139: 1 | AA139: 1 | AB139: 2 | AC139: 2 | AD139: 3 | AE139: 3 | AF139: 4 | AG139: 3 | AH139: 2 | AI139: 1 | AJ139: 2 | AK139: 2 | AL139: 2 | AM139: 2 | AN139: 1 | AO139: 2 | AP139: 3 | AQ139: 3 | AR139: 2 | AS139: 2 | AT139: 4 | AU139: 3
A140: 1 | B140: 2 | C140: 1 | D140: 2 | E140: 4 | F140: 3 | G140: 3 | H140: 2 | I140: 2 | J140: 1 | K140: 1 | L140: 1 | M140: 1 | N140: 3 | O140: 2 | P140: 4 | Q140: 2 | R140: 3 | S140: 3 | T140: 2 | U140: 4 | V140: 2 | W140: 2 | X140: 2 | Y140: 3 | Z140: 2 | AA140: 3 | AB140: 3 | AC140: 2 | AD140: 2 | AE140: 3 | AF140: 3 | AG140: 3 | AH140: 2 | AI140: 3 | AJ140: 2 | AK140: 2 | AL140: 1 | AM140: 4 | AN140: 3 | AO140: 2 | AP140: 1 | AQ140: 4 | AR140: 4 | AS140: 2 | AT140: 3 | AU140: 2
A141: 1 | B141: 2 | C141: 1 | D141: 3 | E141: 1 | F141: 1 | G141: 2 | H141: 3 | I141: 2 | J141: 1 | K141: 3 | L141: 3 | M141: 1 | N141: 3 | O141: 2 | P141: 4 | Q141: 2 | R141: 4 | S141: 1 | T141: 3 | U141: 2 | V141: 4 | W141: 1 | X141: 2 | Y141: 3 | Z141: 2 | AA141: 3 | AB141: 1 | AC141: 1 | AD141: 4 | AE141: 2 | AF141: 4 | AG141: 3 | AH141: 1 | AI141: 1 | AJ141: 2 | AK141: 2 | AL141: 1 | AM141: 4 | AN141: 1 | AO141: 3 | AP141: 4 | AQ141: 3 | AR141: 1 | AS141: 4 | AT141: 2 | AU141: 4
A142: 1 | B142: 2 | C142: 1 | D142: 3 | E142: 1 | F142: 3 | G142: 3 | H142: 2 | I142: 1 | J142: 4 | K142: 4 | L142: 2 | M142: 2 | N142: 1 | O142: 4 | P142: 2 | Q142: 2 | R142: 4 | S142: 2 | T142: 4 | U142: 3 | V142: 1 | W142: 1 | X142: 3 | Y142: 1 | Z142: 4 | AA142: 3 | AB142: 4 | AC142: 3 | AD142: 3 | AE142: 2 | AF142: 4 | AG142: 1 | AH142: 1 | AI142: 1 | AJ142: 2 | AK142: 3 | AL142: 1 | AM142: 4 | AN142: 2 | AO142: 4 | AP142: 3 | AQ142: 2 | AR142: 3 | AS142: 2 | AT142: 4 | AU142: 3
A143: 1 | B143: 2 | C143: 1 | D143: 3 | E143: 1 | F143: 4 | G143: 1 | H143: 1 | I143: 1 | J143: 1 | K143: 2 | L143: 2 | M143: 4 | N143: 1 | O143: 2 | P143: 1 | Q143: 2 | R143: 4 | S143: 3 | T143: 4 | U143: 4 | V143: 1 | W143: 1 | X143: 3 | Y143: 1 | Z143: 1 | AA143: 3 | AB143: 1 | AC143: 1 | AD143: 2 | AE143: 1 | AF143: 2 | AG143: 2 | AH143: 2 | AI143: 2 | AJ143: 1 | AK143: 1 | AL143: 1 | AM143: 2 | AN143: 1 | AO143: 2 | AP143: 3 | AQ143: 1 | AR143: 4 | AS143: 4 | AT143: 1 | AU143: 3
A144: 1 | B144: 2 | C144: 1 | D144: 3 | E144: 1 | F144: 4 | G144: 1 | H144: 1 | I144: 2 | J144: 3 | K144: 1 | L144: 3 | M144: 2 | N144: 3 | O144: 4 | P144: 1 | Q144: 2 | R144: 3 | S144: 4 | T144: 2 | U144: 1 | V144: 4 | W144: 3 | X144: 1 | Y144: 4 | Z144: 2 | AA144: 3 | AB144: 4 | AC144: 1 | AD144: 2 | AE144: 3 | AF144: 4 | AG144: 2 | AH144: 1 | AI144: 3 | AJ144: 2 | AK144: 1 | AL144: 3 | AM144: 4 | AN144: 1 | AO144: 4 | AP144: 3 | AQ144: 3 | AR144: 2 | AS144: 1 | AT144: 2 | AU144: 2
A145: 1 | B145: 2 | C145: 1 | D145: 3 | E145: 1 | F145: 4 | G145: 1 | H145: 4 | I145: 3 | J145: 4 | K145: 1 | L145: 3 | M145: 1 | N145: 2 | O145: 2 | P145: 1 | Q145: 2 | R145: 3 | S145: 4 | T145: 2 | U145: 4 | V145: 4 | W145: 2 | X145: 2 | Y145: 1 | Z145: 1 | AA145: 3 | AB145: 3 | AC145: 4 | AD145: 2 | AE145: 3 | AF145: 2 | AG145: 3 | AH145: 2 | AI145: 2 | AJ145: 3 | AK145: 3 | AL145: 1 | AM145: 4 | AN145: 2 | AO145: 4 | AP145: 4 | AQ145: 3 | AR145: 2 | AS145: 3 | AT145: 3 | AU145: 2
A146: 1 | B146: 2 | C146: 1 | D146: 3 | E146: 2 | F146: 1 | G146: 2 | H146: 1 | I146: 2 | J146: 4 | K146: 1 | L146: 1 | M146: 2 | N146: 3 | O146: 4 | P146: 4 | Q146: 4 | R146: 4 | S146: 1 | T146: 2 | U146: 2 | V146: 4 | W146: 2 | X146: 1 | Y146: 3 | Z146: 2 | AA146: 1 | AB146: 2 | AC146: 4 | AD146: 3 | AE146: 2 | AF146: 2 | AG146: 3 | AH146: 2 | AI146: 1 | AJ146: 2 | AK146: 3 | AL146: 1 | AM146: 4 | AN146: 1 | AO146: 3 | AP146: 1 | AQ146: 2 | AR146: 4 | AS146: 3 | AT146: 1 | AU146: 3
A147: 1 | B147: 2 | C147: 1 | D147: 3 | E147: 2 | F147: 2 | G147: 1 | H147: 2 | I147: 3 | J147: 4 | K147: 2 | L147: 1 | M147: 1 | N147: 2 | O147: 4 | P147: 2 | Q147: 4 | R147: 1 | S147: 2 | T147: 2 | U147: 3 | V147: 1 | W147: 4 | X147: 3 | Y147: 1 | Z147: 4 | AA147: 2 | AB147: 3 | AC147: 1 | AD147: 4 | AE147: 2 | AF147: 3 | AG147: 4 | AH147: 2 | AI147: 3 | AJ147: 2 | AK147: 1 | AL147: 3 | AM147: 2 | AN147: 4 | AO147: 1 | AP147: 3 | AQ147: 2 | AR147: 4 | AS147: 3 | AT147: 3 | AU147: 1
A148: 1 | B148: 2 | C148: 1 | D148: 3 | E148: 2 | F148: 2 | G148: 1 | H148: 4 | I148: 3 | J148: 1 | K148: 1 | L148: 3 | M148: 1 | N148: 3 | O148: 2 | P148: 1 | Q148: 2 | R148: 3 | S148: 2 | T148: 2 | U148: 4 | V148: 3 | W148: 1 | X148: 1 | Y148: 3 | Z148: 2 | AA148: 3 | AB148: 3 | AC148: 2 | AD148: 1 | AE148: 2 | AF148: 4 | AG148: 2 | AH148: 4 | AI148: 1 | AJ148: 2 | AK148: 4 | AL148: 3 | AM148: 2 | AN148: 1 | AO148: 4 | AP148: 4 | AQ148: 3 | AR148: 4 | AS148: 2 | AT148: 3 | AU148: 3
A149: 1 | B149: 2 | C149: 1 | D149: 3 | E149: 2 | F149: 3 | G149: 2 | H149: 1 | I149: 3 | J149: 1 | K149: 2 | L149: 4 | M149: 2 | N149: 1 | O149: 2 | P149: 4 | Q149: 2 | R149: 1 | S149: 2 | T149: 3 | U149: 2 | V149: 1 | W149: 4 | X149: 2 | Y149: 4 | Z149: 2 | AA149: 4 | AB149: 2 | AC149: 4 | AD149: 1 | AE149: 3 | AF149: 4 | AG149: 2 | AH149: 3 | AI149: 1 | AJ149: 4 | AK149: 2 | AL149: 3 | AM149: 1 | AN149: 1 | AO149: 2 | AP149: 3 | AQ149: 2 | AR149: 4 | AS149: 2 | AT149: 3 | AU149: 4
A150: 1 | B150: 2 | C150: 1 | D150: 3 | E150: 2 | F150: 4 | G150: 2 | H150: 4 | I150: 1 | J150: 1 | K150: 1 | L150: 4 | M150: 4 | N150: 1 | O150: 1 | P150: 3 | Q150: 2 | R150: 3 | S150: 4 | T150: 2 | U150: 2 | V150: 4 | W150: 4 | X150: 1 | Y150: 3 | Z150: 4 | AA150: 4 | AB150: 4 | AC150: 1 | AD150: 4 | AE150: 3 | AF150: 1 | AG150: 2 | AH150: 1 | AI150: (en blanco) | AJ150: 1 | AK150: 1 | AL150: 4 | AM150: 1 | AN150: 1 | AO150: 4 | AP150: 4 | AQ150: 2 | AR150: 1 | AS150: 1 | AT150: 3 | AU150: 4
A151: 1 | B151: 2 | C151: 1 | D151: 3 | E151: 3 | F151: 1 | G151: 1 | H151: 2 | I151: 2 | J151: 4 | K151: 1 | L151: 1 | M151: 4 | N151: 4 | O151: 3 | P151: 4 | Q151: 2 | R151: 3 | S151: 2 | T151: 2 | U151: 1 | V151: 3 | W151: 1 | X151: 1 | Y151: 1 | Z151: 4 | AA151: 1 | AB151: 2 | AC151: 1 | AD151: 2 | AE151: 3 | AF151: 2 | AG151: 2 | AH151: 3 | AI151: 3 | AJ151: 4 | AK151: 4 | AL151: 1 | AM151: 3 | AN151: 1 | AO151: 4 | AP151: 3 | AQ151: 3 | AR151: 2 | AS151: 3 | AT151: 3 | AU151: 4
A152: 1 | B152: 2 | C152: 1 | D152: 3 | E152: 3 | F152: 2 | G152: 1 | H152: 2 | I152: 1 | J152: 3 | K152: 4 | L152: 1 | M152: 2 | N152: 3 | O152: 2 | P152: 4 | Q152: 2 | R152: 2 | S152: 4 | T152: 4 | U152: 3 | V152: 1 | W152: 2 | X152: 1 | Y152: 3 | Z152: 2 | AA152: 3 | AB152: 4 | AC152: 1 | AD152: 2 | AE152: 3 | AF152: 4 | AG152: 4 | AH152: 2 | AI152: 2 | AJ152: 4 | AK152: 1 | AL152: 1 | AM152: 1 | AN152: 1 | AO152: 3 | AP152: 3 | AQ152: 4 | AR152: 3 | AS152: 2 | AT152: 2 | AU152: 2
A153: 1 | B153: 2 | C153: 1 | D153: 3 | E153: 3 | F153: 2 | G153: 1 | H153: 3 | I153: 1 | J153: 1 | K153: 1 | L153: 2 | M153: 1 | N153: 3 | O153: 2 | P153: 3 | Q153: 2 | R153: 1 | S153: 1 | T153: 4 | U153: 3 | V153: 4 | W153: 4 | X153: 1 | Y153: 3 | Z153: 2 | AA153: 3 | AB153: 4 | AC153: 1 | AD153: 4 | AE153: 3 | AF153: 3 | AG153: 1 | AH153: 2 | AI153: 3 | AJ153: 3 | AK153: 4 | AL153: 1 | AM153: 1 | AN153: 1 | AO153: 3 | AP153: 3 | AQ153: 2 | AR153: 4 | AS153: 4 | AT153: 3 | AU153: 3
A154: 1 | B154: 2 | C154: 1 | D154: 3 | E154: 3 | F154: 4 | G154: 1 | H154: 4 | I154: 2 | J154: 4 | K154: 3 | L154: 3 | M154: 4 | N154: 4 | O154: 2 | P154: 3 | Q154: 4 | R154: 1 | S154: 2 | T154: 2 | U154: 3 | V154: 4 | W154: 2 | X154: 2 | Y154: 1 | Z154: 2 | AA154: 1 | AB154: 4 | AC154: 1 | AD154: 2 | AE154: 3 | AF154: 4 | AG154: 4 | AH154: 3 | AI154: 3 | AJ154: 2 | AK154: 1 | AL154: 3 | AM154: 3 | AN154: 1 | AO154: 1 | AP154: 4 | AQ154: 3 | AR154: 4 | AS154: 4 | AT154: 3 | AU154: 2
A155: 1 | B155: 2 | C155: 1 | D155: 3 | E155: 3 | F155: 4 | G155: 4 | H155: 1 | I155: 1 | J155: 3 | K155: 2 | L155: 2 | M155: 2 | N155: 3 | O155: 4 | P155: 4 | Q155: 2 | R155: 4 | S155: 1 | T155: 2 | U155: 4 | V155: 4 | W155: 1 | X155: 1 | Y155: 2 | Z155: 2 | AA155: 3 | AB155: 1 | AC155: 3 | AD155: 1 | AE155: 3 | AF155: 3 | AG155: 1 | AH155: 4 | AI155: 1 | AJ155: 1 | AK155: 4 | AL155: 1 | AM155: 2 | AN155: 1 | AO155: 1 | AP155: 2 | AQ155: 4 | AR155: 4 | AS155: 3 | AT155: 3 | AU155: 2
A156: 1 | B156: 2 | C156: 1 | D156: 3 | E156: 4 | F156: 1 | G156: 2 | H156: 2 | I156: 2 | J156: 4 | K156: 1 | L156: 1 | M156: 2 | N156: 3 | O156: 2 | P156: 3 | Q156: 2 | R156: 3 | S156: 3 | T156: 2 | U156: 2 | V156: 4 | W156: 1 | X156: 1 | Y156: 4 | Z156: 2 | AA156: 2 | AB156: 4 | AC156: 1 | AD156: 4 | AE156: 1 | AF156: 3 | AG156: 1 | AH156: 1 | AI156: 3 | AJ156: 2 | AK156: 1 | AL156: 4 | AM156: 1 | AN156: 2 | AO156: 4 | AP156: 3 | AQ156: 1 | AR156: 4 | AS156: 3 | AT156: 1 | AU156: 2
A157: 1 | B157: 2 | C157: 1 | D157: 3 | E157: 4 | F157: 2 | G157: 1 | H157: 2 | I157: 2 | J157: 2 | K157: 1 | L157: 4 | M157: 2 | N157: 1 | O157: 3 | P157: 1 | Q157: 2 | R157: 2 | S157: 1 | T157: 3 | U157: 3 | V157: 1 | W157: 2 | X157: 2 | Y157: 4 | Z157: 3 | AA157: 3 | AB157: 4 | AC157: 1 | AD157: 2 | AE157: 1 | AF157: 2 | AG157: 2 | AH157: 3 | AI157: 1 | AJ157: 1 | AK157: 3 | AL157: 1 | AM157: 4 | AN157: 1 | AO157: 4 | AP157: 4 | AQ157: 3 | AR157: 3 | AS157: 1 | AT157: 4 | AU157: 3
A158: 1 | B158: 2 | C158: 1 | D158: 3 | E158: 4 | F158: 2 | G158: 1 | H158: 3 | I158: 2 | J158: 1 | K158: 2 | L158: 1 | M158: 1 | N158: 4 | O158: 2 | P158: 1 | Q158: 2 | R158: 1 | S158: 4 | T158: 2 | U158: 4 | V158: 3 | W158: 2 | X158: 2 | Y158: 3 | Z158: 1 | AA158: 2 | AB158: 4 | AC158: 3 | AD158: 2 | AE158: 2 | AF158: 3 | AG158: 2 | AH158: 3 | AI158: 1 | AJ158: 1 | AK158: 2 | AL158: 3 | AM158: 1 | AN158: 1 | AO158: 3 | AP158: 4 | AQ158: 3 | AR158: 3 | AS158: 3 | AT158: 1 | AU158: 2
A159: 1 | B159: 2 | C159: 1 | D159: 3 | E159: 4 | F159: 2 | G159: 3 | H159: 2 | I159: 1 | J159: 4 | K159: 1 | L159: 1 | M159: 4 | N159: 1 | O159: 2 | P159: 4 | Q159: 2 | R159: 2 | S159: 4 | T159: 2 | U159: 3 | V159: 4 | W159: 3 | X159: 2 | Y159: 4 | Z159: 3 | AA159: 3 | AB159: 1 | AC159: 3 | AD159: 2 | AE159: 3 | AF159: 3 | AG159: 2 | AH159: 1 | AI159: 2 | AJ159: 2 | AK159: 2 | AL159: 1 | AM159: 3 | AN159: 1 | AO159: 1 | AP159: 3 | AQ159: 1 | AR159: 4 | AS159: 3 | AT159: 3 | AU159: 3
A160: 1 | B160: 2 | C160: 1 | D160: 3 | E160: 4 | F160: 2 | G160: 3 | H160: 3 | I160: 4 | J160: 4 | K160: 1 | L160: 3 | M160: 3 | N160: 1 | O160: 2 | P160: 4 | Q160: 2 | R160: 3 | S160: 3 | T160: 2 | U160: 1 | V160: 4 | W160: 3 | X160: 3 | Y160: 3 | Z160: 1 | AA160: 2 | AB160: 4 | AC160: 2 | AD160: 3 | AE160: 2 | AF160: 3 | AG160: 2 | AH160: 3 | AI160: 2 | AJ160: 4 | AK160: 2 | AL160: 3 | AM160: 2 | AN160: 4 | AO160: 2 | AP160: 1 | AQ160: 1 | AR160: 1 | AS160: 3 | AT160: 2 | AU160: 3
A161: 1 | B161: 2 | C161: 1 | D161: 3 | E161: 4 | F161: 2 | G161: 3 | H161: 4 | I161: 3 | J161: 1 | K161: 2 | L161: 2 | M161: 1 | N161: 2 | O161: 3 | P161: 1 | Q161: 2 | R161: 3 | S161: 2 | T161: 2 | U161: 3 | V161: 4 | W161: 1 | X161: 1 | Y161: 4 | Z161: 2 | AA161: 3 | AB161: 3 | AC161: 1 | AD161: 2 | AE161: 4 | AF161: 1 | AG161: 3 | AH161: 1 | AI161: 1 | AJ161: 2 | AK161: 3 | AL161: 1 | AM161: 3 | AN161: 1 | AO161: 2 | AP161: 3 | AQ161: 1 | AR161: 2 | AS161: 4 | AT161: 3 | AU161: 2
A162: 1 | B162: 2 | C162: 1 | D162: 3 | E162: 4 | F162: 2 | G162: 4 | H162: 2 | I162: 3 | J162: 1 | K162: 2 | L162: 3 | M162: 1 | N162: 1 | O162: 2 | P162: 4 | Q162: 2 | R162: 1 | S162: 3 | T162: 3 | U162: 3 | V162: 4 | W162: 2 | X162: 3 | Y162: 4 | Z162: 2 | AA162: 3 | AB162: 1 | AC162: 2 | AD162: 4 | AE162: 4 | AF162: 3 | AG162: 3 | AH162: 2 | AI162: 2 | AJ162: 3 | AK162: 2 | AL162: 4 | AM162: 1 | AN162: 2 | AO162: 1 | AP162: 3 | AQ162: 2 | AR162: 4 | AS162: 4 | AT162: 3 | AU162: 2
A163: 1 | B163: 2 | C163: 1 | D163: 3 | E163: 4 | F163: 4 | G163: 1 | H163: 4 | I163: 2 | J163: 1 | K163: 1 | L163: 3 | M163: 3 | N163: 4 | O163: 2 | P163: 3 | Q163: 2 | R163: 3 | S163: 4 | T163: 1 | U163: 4 | V163: 4 | W163: 1 | X163: 3 | Y163: 1 | Z163: 3 | AA163: 3 | AB163: 1 | AC163: 3 | AD163: 3 | AE163: 3 | AF163: 4 | AG163: 2 | AH163: 3 | AI163: 2 | AJ163: 3 | AK163: 1 | AL163: 1 | AM163: 1 | AN163: 1 | AO163: 4 | AP163: 4 | AQ163: 2 | AR163: 3 | AS163: 3 | AT163: 3 | AU163: 2
A164: 1 | B164: 2 | C164: 1 | D164: 4 | E164: 1 | F164: 2 | G164: 3 | H164: 2 | I164: 3 | J164: 1 | K164: 1 | L164: 2 | M164: 4 | N164: 3 | O164: 2 | P164: 4 | Q164: 3 | R164: 3 | S164: 2 | T164: 2 | U164: 3 | V164: 3 | W164: 3 | X164: 1 | Y164: 4 | Z164: 2 | AA164: 2 | AB164: 3 | AC164: 1 | AD164: 4 | AE164: 1 | AF164: 2 | AG164: 1 | AH164: 1 | AI164: 2 | AJ164: 2 | AK164: 1 | AL164: 1 | AM164: 4 | AN164: 1 | AO164: 4 | AP164: 4 | AQ164: 2 | AR164: 4 | AS164: 4 | AT164: 1 | AU164: 3
A165: 1 | B165: 2 | C165: 1 | D165: 4 | E165: 1 | F165: 4 | G165: 1 | H165: 4 | I165: 3 | J165: 1 | K165: 1 | L165: 3 | M165: 2 | N165: 3 | O165: 4 | P165: 4 | Q165: 2 | R165: 3 | S165: 4 | T165: 4 | U165: 2 | V165: 1 | W165: 4 | X165: 1 | Y165: 1 | Z165: 3 | AA165: 3 | AB165: 2 | AC165: 1 | AD165: 2 | AE165: 1 | AF165: 4 | AG165: 3 | AH165: 3 | AI165: 4 | AJ165: 4 | AK165: 3 | AL165: 1 | AM165: 3 | AN165: 3 | AO165: 2 | AP165: 3 | AQ165: 1 | AR165: 2 | AS165: 1 | AT165: 3 | AU165: 2
A166: 1 | B166: 2 | C166: 1 | D166: 4 | E166: 2 | F166: 1 | G166: 1 | H166: 2 | I166: 3 | J166: 1 | K166: 1 | L166: 2 | M166: 4 | N166: 3 | O166: 2 | P166: 4 | Q166: 2 | R166: 3 | S166: 4 | T166: 2 | U166: 2 | V166: 3 | W166: 4 | X166: 4 | Y166: 3 | Z166: 1 | AA166: 2 | AB166: 3 | AC166: 1 | AD166: 2 | AE166: 1 | AF166: 4 | AG166: 3 | AH166: 2 | AI166: 3 | AJ166: 2 | AK166: 3 | AL166: 2 | AM166: 1 | AN166: 3 | AO166: 4 | AP166: 4 | AQ166: 1 | AR166: 2 | AS166: 4 | AT166: 1 | AU166: 3
A167: 1 | B167: 2 | C167: 1 | D167: 4 | E167: 2 | F167: 2 | G167: 4 | H167: 1 | I167: 2 | J167: 2 | K167: 1 | L167: 1 | M167: 4 | N167: 3 | O167: 4 | P167: 4 | Q167: 2 | R167: 4 | S167: 2 | T167: 1 | U167: 3 | V167: 3 | W167: 4 | X167: 1 | Y167: 3 | Z167: 1 | AA167: 4 | AB167: 1 | AC167: 1 | AD167: 4 | AE167: 3 | AF167: 4 | AG167: 2 | AH167: 2 | AI167: 1 | AJ167: 3 | AK167: 2 | AL167: 1 | AM167: 2 | AN167: 1 | AO167: 4 | AP167: 4 | AQ167: 2 | AR167: 4 | AS167: 2 | AT167: 4 | AU167: 3
A168: 1 | B168: 2 | C168: 1 | D168: 4 | E168: 2 | F168: 4 | G168: 2 | H168: 2 | I168: 4 | J168: 2 | K168: 1 | L168: 2 | M168: 4 | N168: 4 | O168: 3 | P168: 4 | Q168: 2 | R168: 2 | S168: 4 | T168: 2 | U168: 2 | V168: 1 | W168: 3 | X168: 1 | Y168: 1 | Z168: 2 | AA168: 4 | AB168: 4 | AC168: 1 | AD168: 2 | AE168: 1 | AF168: 3 | AG168: 4 | AH168: 4 | AI168: 1 | AJ168: 2 | AK168: 1 | AL168: 1 | AM168: 1 | AN168: 1 | AO168: 3 | AP168: 3 | AQ168: 2 | AR168: 1 | AS168: 4 | AT168: 3 | AU168: 2
A169: 1 | B169: 2 | C169: 1 | D169: 4 | E169: 4 | F169: 2 | G169: 1 | H169: 4 | I169: 2 | J169: 1 | K169: 1 | L169: 2 | M169: 4 | N169: 4 | O169: 1 | P169: 4 | Q169: 2 | R169: 3 | S169: 4 | T169: 2 | U169: 2 | V169: 4 | W169: 2 | X169: 1 | Y169: 1 | Z169: 3 | AA169: 3 | AB169: 3 | AC169: 2 | AD169: 3 | AE169: 2 | AF169: 1 | AG169: 3 | AH169: 4 | AI169: 3 | AJ169: 3 | AK169: 2 | AL169: 2 | AM169: 4 | AN169: 1 | AO169: 3 | AP169: 3 | AQ169: 2 | AR169: 1 | AS169: 2 | AT169: 2 | AU169: 3
A170: 1 | B170: 2 | C170: 1 | D170: 4 | E170: 4 | F170: 2 | G170: 2 | H170: 3 | I170: 4 | J170: 4 | K170: 1 | L170: 3 | M170: 3 | N170: 2 | O170: 4 | P170: 1 | Q170: 2 | R170: 3 | S170: 2 | T170: 2 | U170: 2 | V170: 1 | W170: 3 | X170: 1 | Y170: 4 | Z170: 1 | AA170: 2 | AB170: 4 | AC170: 2 | AD170: 3 | AE170: 1 | AF170: 2 | AG170: 4 | AH170: 2 | AI170: 3 | AJ170: 1 | AK170: 4 | AL170: 2 | AM170: 3 | AN170: 1 | AO170: 2 | AP170: 2 | AQ170: 3 | AR170: 4 | AS170: 2 | AT170: 1 | AU170: 3
A171: 1 | B171: 2 | C171: 1 | D171: 4 | E171: 4 | F171: 2 | G171: 3 | H171: 1 | I171: 2 | J171: 3 | K171: 4 | L171: 2 | M171: 2 | N171: 4 | O171: 2 | P171: 1 | Q171: 2 | R171: 2 | S171: 4 | T171: 3 | U171: 4 | V171: 2 | W171: 3 | X171: 2 | Y171: 3 | Z171: 4 | AA171: 3 | AB171: 4 | AC171: 2 | AD171: 3 | AE171: 2 | AF171: 3 | AG171: 2 | AH171: 3 | AI171: 2 | AJ171: 2 | AK171: 1 | AL171: 2 | AM171: 1 | AN171: 1 | AO171: 4 | AP171: 4 | AQ171: 1 | AR171: 2 | AS171: 1 | AT171: 2 | AU171: 2
A172: 1 | B172: 2 | C172: 1 | D172: 4 | E172: 4 | F172: 3 | G172: 1 | H172: 4 | I172: 2 | J172: 4 | K172: 1 | L172: 2 | M172: 4 | N172: 4 | O172: 4 | P172: 4 | Q172: 2 | R172: 3 | S172: 2 | T172: 1 | U172: 3 | V172: 4 | W172: 2 | X172: 3 | Y172: 1 | Z172: 4 | AA172: 2 | AB172: 2 | AC172: 3 | AD172: 2 | AE172: 4 | AF172: 4 | AG172: 3 | AH172: 3 | AI172: 2 | AJ172: 2 | AK172: 4 | AL172: 1 | AM172: 3 | AN172: 1 | AO172: 4 | AP172: 3 | AQ172: 3 | AR172: 4 | AS172: 4 | AT172: 1 | AU172: 2
A173: 1 | B173: 2 | C173: 2 | D173: 1 | E173: 2 | F173: 1 | G173: 2 | H173: 4 | I173: 2 | J173: 1 | K173: 1 | L173: 3 | M173: 2 | N173: 4 | O173: 2 | P173: 1 | Q173: 2 | R173: 3 | S173: 1 | T173: 3 | U173: 1 | V173: 2 | W173: 4 | X173: 2 | Y173: 1 | Z173: 2 | AA173: 1 | AB173: 2 | AC173: 1 | AD173: 3 | AE173: 2 | AF173: 3 | AG173: 1 | AH173: 3 | AI173: 1 | AJ173: 1 | AK173: 3 | AL173: 2 | AM173: 3 | AN173: 2 | AO173: 4 | AP173: 3 | AQ173: 4 | AR173: 1 | AS173: 2 | AT173: 1 | AU173: 3
A174: 1 | B174: 2 | C174: 2 | D174: 1 | E174: 2 | F174: 3 | G174: 1 | H174: 4 | I174: 2 | J174: 1 | K174: 1 | L174: 3 | M174: 4 | N174: 3 | O174: 2 | P174: 4 | Q174: 2 | R174: 3 | S174: 3 | T174: 4 | U174: 2 | V174: 4 | W174: 4 | X174: 2 | Y174: 4 | Z174: 2 | AA174: 3 | AB174: 1 | AC174: 1 | AD174: 4 | AE174: 2 | AF174: 2 | AG174: 3 | AH174: 1 | AI174: 2 | AJ174: 3 | AK174: 4 | AL174: 1 | AM174: 1 | AN174: 1 | AO174: 3 | AP174: 4 | AQ174: 2 | AR174: 1 | AS174: 3 | AT174: 3 | AU174: 3
A175: 1 | B175: 2 | C175: 2 | D175: 1 | E175: 2 | F175: 4 | G175: 1 | H175: 2 | I175: 2 | J175: 1 | K175: 4 | L175: 2 | M175: 1 | N175: 3 | O175: 2 | P175: 3 | Q175: 2 | R175: 1 | S175: 3 | T175: 2 | U175: 1 | V175: 4 | W175: 1 | X175: 4 | Y175: 1 | Z175: 2 | AA175: 2 | AB175: 2 | AC175: 2 | AD175: 1 | AE175: 2 | AF175: 2 | AG175: 3 | AH175: 1 | AI175: 2 | AJ175: 4 | AK175: 3 | AL175: 1 | AM175: 1 | AN175: 1 | AO175: 3 | AP175: 1 | AQ175: 3 | AR175: 2 | AS175: 2 | AT175: 3 | AU175: 3
A176: 1 | B176: 2 | C176: 2 | D176: 1 | E176: 2 | F176: 4 | G176: 4 | H176: 2 | I176: 3 | J176: 1 | K176: 1 | L176: 2 | M176: 2 | N176: 1 | O176: 2 | P176: 4 | Q176: 4 | R176: 3 | S176: 2 | T176: 2 | U176: 2 | V176: 3 | W176: 4 | X176: 1 | Y176: 3 | Z176: 3 | AA176: 4 | AB176: 1 | AC176: 4 | AD176: 4 | AE176: 3 | AF176: 1 | AG176: 3 | AH176: 4 | AI176: 1 | AJ176: 2 | AK176: 3 | AL176: 1 | AM176: 2 | AN176: 1 | AO176: 3 | AP176: 4 | AQ176: 2 | AR176: 1 | AS176: 3 | AT176: 3 | AU176: 2
A177: 1 | B177: 2 | C177: 2 | D177: 1 | E177: 3 | F177: 2 | G177: 4 | H177: 1 | I177: 3 | J177: 3 | K177: 4 | L177: 2 | M177: 3 | N177: 1 | O177: 2 | P177: 3 | Q177: 1 | R177: 4 | S177: 3 | T177: 1 | U177: 2 | V177: 4 | W177: 3 | X177: 2 | Y177: 2 | Z177: 1 | AA177: 3 | AB177: 1 | AC177: 4 | AD177: 2 | AE177: 3 | AF177: 3 | AG177: 1 | AH177: 1 | AI177: 1 | AJ177: 2 | AK177: 4 | AL177: 2 | AM177: 3 | AN177: 4 | AO177: 1 | AP177: 3 | AQ177: 2 | AR177: 4 | AS177: 2 | AT177: 3 | AU177: 3
A178: 1 | B178: 2 | C178: 2 | D178: 1 | E178: 3 | F178: 2 | G178: 4 | H178: 3 | I178: 2 | J178: 4 | K178: 1 | L178: 4 | M178: 3 | N178: 4 | O178: 2 | P178: 1 | Q178: 4 | R178: 2 | S178: 2 | T178: 4 | U178: 2 | V178: 4 | W178: 1 | X178: 4 | Y178: 2 | Z178: 4 | AA178: 1 | AB178: 3 | AC178: 2 | AD178: 1 | AE178: 4 | AF178: 1 | AG178: 4 | AH178: 1 | AI178: 4 | AJ178: 2 | AK178: 4 | AL178: 2 | AM178: 1 | AN178: 3 | AO178: 4 | AP178: 3 | AQ178: 2 | AR178: 1 | AS178: 2 | AT178: 3 | AU178: 3
A179: 1 | B179: 2 | C179: 2 | D179: 1 | E179: 3 | F179: 4 | G179: 1 | H179: 3 | I179: 1 | J179: 3 | K179: 4 | L179: 2 | M179: 4 | N179: 3 | O179: 4 | P179: 4 | Q179: 2 | R179: 3 | S179: 2 | T179: 2 | U179: 2 | V179: 3 | W179: 1 | X179: 2 | Y179: 1 | Z179: 2 | AA179: 3 | AB179: 4 | AC179: 2 | AD179: 3 | AE179: 2 | AF179: 2 | AG179: 2 | AH179: 1 | AI179: 2 | AJ179: 2 | AK179: 2 | AL179: 2 | AM179: 1 | AN179: 1 | AO179: 3 | AP179: 1 | AQ179: 3 | AR179: 4 | AS179: 1 | AT179: 3 | AU179: 3
A180: 1 | B180: 2 | C180: 2 | D180: 1 | E180: 3 | F180: 4 | G180: 3 | H180: 3 | I180: 3 | J180: 4 | K180: 2 | L180: 1 | M180: 4 | N180: 4 | O180: 4 | P180: 3 | Q180: 2 | R180: 3 | S180: 2 | T180: 3 | U180: 3 | V180: 3 | W180: 1 | X180: 4 | Y180: 3 | Z180: 4 | AA180: 1 | AB180: 2 | AC180: 4 | AD180: 1 | AE180: 1 | AF180: 3 | AG180: 3 | AH180: 2 | AI180: 1 | AJ180: 2 | AK180: 1 | AL180: 3 | AM180: 1 | AN180: 2 | AO180: 4 | AP180: 3 | AQ180: 2 | AR180: 4 | AS180: 2 | AT180: 4 | AU180: 3
A181: 1 | B181: 2 | C181: 2 | D181: 1 | E181: 3 | F181: 4 | G181: 4 | H181: 2 | I181: 1 | J181: 2 | K181: 2 | L181: 2 | M181: 4 | N181: 3 | O181: 2 | P181: 4 | Q181: 2 | R181: 1 | S181: 2 | T181: 1 | U181: 4 | V181: 4 | W181: 1 | X181: 1 | Y181: 4 | Z181: 2 | AA181: 4 | AB181: 4 | AC181: 2 | AD181: 2 | AE181: 3 | AF181: 3 | AG181: 2 | AH181: 4 | AI181: 3 | AJ181: 3 | AK181: 3 | AL181: 1 | AM181: 1 | AN181: 4 | AO181: 3 | AP181: 2 | AQ181: 2 | AR181: 2 | AS181: 4 | AT181: 3 | AU181: 3
A182: 1 | B182: 2 | C182: 2 | D182: 2 | E182: 1 | F182: 2 | G182: 4 | H182: 1 | I182: 2 | J182: 3 | K182: 1 | L182: 3 | M182: 1 | N182: 1 | O182: 2 | P182: 1 | Q182: 2 | R182: 3 | S182: 3 | T182: 4 | U182: 2 | V182: 4 | W182: 2 | X182: 2 | Y182: 1 | Z182: 3 | AA182: 3 | AB182: 2 | AC182: 1 | AD182: 2 | AE182: 3 | AF182: 4 | AG182: 1 | AH182: 3 | AI182: 3 | AJ182: 1 | AK182: 4 | AL182: 1 | AM182: 2 | AN182: 2 | AO182: 3 | AP182: 3 | AQ182: 1 | AR182: 1 | AS182: 2 | AT182: 3 | AU182: 2
A183: 1 | B183: 2 | C183: 2 | D183: 2 | E183: 1 | F183: 3 | G183: 1 | H183: 2 | I183: 1 | J183: 2 | K183: 1 | L183: 2 | M183: 4 | N183: 4 | O183: 2 | P183: 3 | Q183: 2 | R183: 3 | S183: 3 | T183: 2 | U183: 3 | V183: 4 | W183: 3 | X183: 2 | Y183: 4 | Z183: 3 | AA183: 3 | AB183: 4 | AC183: 2 | AD183: 3 | AE183: 2 | AF183: 3 | AG183: 1 | AH183: 4 | AI183: 3 | AJ183: 2 | AK183: 2 | AL183: 3 | AM183: 3 | AN183: 1 | AO183: 3 | AP183: 4 | AQ183: 2 | AR183: 4 | AS183: 4 | AT183: 3 | AU183: 2
A184: 1 | B184: 2 | C184: 2 | D184: 2 | E184: 1 | F184: 3 | G184: 1 | H184: 2 | I184: 3 | J184: 2 | K184: 1 | L184: 2 | M184: 4 | N184: 4 | O184: 2 | P184: 3 | Q184: 2 | R184: 2 | S184: 4 | T184: 2 | U184: 3 | V184: 4 | W184: 3 | X184: 2 | Y184: 4 | Z184: 3 | AA184: 4 | AB184: 1 | AC184: 4 | AD184: 2 | AE184: 3 | AF184: 3 | AG184: 2 | AH184: 1 | AI184: 2 | AJ184: 2 | AK184: 2 | AL184: 1 | AM184: 1 | AN184: 1 | AO184: 4 | AP184: 3 | AQ184: 3 | AR184: 2 | AS184: 3 | AT184: 1 | AU184: 3
A185: 1 | B185: 2 | C185: 2 | D185: 2 | E185: 2 | F185: 4 | G185: 1 | H185: 4 | I185: 2 | J185: 1 | K185: 1 | L185: 4 | M185: 1 | N185: 3 | O185: 2 | P185: 4 | Q185: 2 | R185: 3 | S185: 4 | T185: 2 | U185: 4 | V185: 4 | W185: 3 | X185: 1 | Y185: 1 | Z185: 1 | AA185: 4 | AB185: 2 | AC185: 1 | AD185: 1 | AE185: 1 | AF185: 4 | AG185: 3 | AH185: 2 | AI185: 3 | AJ185: 3 | AK185: 4 | AL185: 1 | AM185: 2 | AN185: 4 | AO185: 1 | AP185: 3 | AQ185: 2 | AR185: 4 | AS185: 2 | AT185: 4 | AU185: 3
A186: 1 | B186: 2 | C186: 2 | D186: 2 | E186: 2 | F186: 4 | G186: 3 | H186: 3 | I186: 2 | J186: 3 | K186: 1 | L186: 3 | M186: 4 | N186: 3 | O186: 2 | P186: 1 | Q186: 2 | R186: 2 | S186: 3 | T186: 1 | U186: 4 | V186: 1 | W186: 2 | X186: 3 | Y186: 3 | Z186: 2 | AA186: 1 | AB186: 2 | AC186: 1 | AD186: 3 | AE186: 3 | AF186: 3 | AG186: 2 | AH186: 3 | AI186: 2 | AJ186: 3 | AK186: 4 | AL186: 1 | AM186: 4 | AN186: 2 | AO186: 4 | AP186: 1 | AQ186: 2 | AR186: 4 | AS186: 4 | AT186: 3 | AU186: 1
A187: 1 | B187: 2 | C187: 2 | D187: 2 | E187: 3 | F187: 1 | G187: 1 | H187: 2 | I187: 4 | J187: 1 | K187: 2 | L187: 2 | M187: 3 | N187: 3 | O187: 1 | P187: 1 | Q187: 2 | R187: 2 | S187: 4 | T187: 1 | U187: 2 | V187: 3 | W187: 3 | X187: 1 | Y187: 2 | Z187: 3 | AA187: 4 | AB187: 4 | AC187: 3 | AD187: 4 | AE187: 1 | AF187: 2 | AG187: 1 | AH187: 2 | AI187: 1 | AJ187: 2 | AK187: 1 | AL187: 2 | AM187: 1 | AN187: 1 | AO187: 3 | AP187: 4 | AQ187: 1 | AR187: 2 | AS187: 4 | AT187: 1 | AU187: 4
A188: 1 | B188: 2 | C188: 2 | D188: 2 | E188: 3 | F188: 2 | G188: 1 | H188: 3 | I188: 2 | J188: 2 | K188: 3 | L188: 2 | M188: 4 | N188: 2 | O188: 3 | P188: 4 | Q188: 2 | R188: 3 | S188: 2 | T188: 3 | U188: 2 | V188: 1 | W188: 4 | X188: 2 | Y188: 4 | Z188: 3 | AA188: 3 | AB188: 3 | AC188: 2 | AD188: 3 | AE188: 2 | AF188: 4 | AG188: 2 | AH188: 3 | AI188: 2 | AJ188: 4 | AK188: 2 | AL188: 3 | AM188: 2 | AN188: 1 | AO188: 1 | AP188: 2 | AQ188: 3 | AR188: 2 | AS188: 3 | AT188: 2 | AU188: 2
A189: 1 | B189: 2 | C189: 2 | D189: 2 | E189: 3 | F189: 2 | G189: 2 | H189: 2 | I189: 3 | J189: 4 | K189: 1 | L189: 2 | M189: 4 | N189: 2 | O189: 2 | P189: 4 | Q189: 1 | R189: 2 | S189: 4 | T189: 2 | U189: 3 | V189: 4 | W189: 2 | X189: 1 | Y189: 1 | Z189: 3 | AA189: 3 | AB189: 2 | AC189: 1 | AD189: 4 | AE189: 1 | AF189: 3 | AG189: 3 | AH189: 4 | AI189: 3 | AJ189: 2 | AK189: 2 | AL189: 1 | AM189: 2 | AN189: 3 | AO189: 3 | AP189: 1 | AQ189: 3 | AR189: 4 | AS189: 3 | AT189: 3 | AU189: 2
A190: 1 | B190: 2 | C190: 2 | D190: 2 | E190: 3 | F190: 4 | G190: 3 | H190: 2 | I190: 4 | J190: 1 | K190: 1 | L190: 2 | M190: 4 | N190: 2 | O190: 3 | P190: 1 | Q190: 1 | R190: 1 | S190: 2 | T190: 1 | U190: 3 | V190: 1 | W190: 3 | X190: 3 | Y190: 3 | Z190: 2 | AA190: 1 | AB190: 1 | AC190: 2 | AD190: 3 | AE190: 3 | AF190: 3 | AG190: 2 | AH190: 3 | AI190: 3 | AJ190: 2 | AK190: 3 | AL190: 2 | AM190: 3 | AN190: 3 | AO190: 2 | AP190: 3 | AQ190: 2 | AR190: 3 | AS190: 1 | AT190: 1 | AU190: 3
A191: 1 | B191: 2 | C191: 2 | D191: 2 | E191: 3 | F191: 4 | G191: 3 | H191: 4 | I191: 2 | J191: 1 | K191: 3 | L191: 4 | M191: 1 | N191: 3 | O191: 2 | P191: 3 | Q191: 2 | R191: 4 | S191: 2 | T191: 2 | U191: 3 | V191: 4 | W191: 2 | X191: 3 | Y191: 4 | Z191: 3 | AA191: 2 | AB191: 1 | AC191: 3 | AD191: 1 | AE191: 3 | AF191: 1 | AG191: 3 | AH191: 3 | AI191: 3 | AJ191: 3 | AK191: 2 | AL191: 2 | AM191: 4 | AN191: 4 | AO191: 2 | AP191: 3 | AQ191: 1 | AR191: 2 | AS191: 3 | AT191: 1 | AU191: 2
A192: 1 | B192: 2 | C192: 2 | D192: 2 | E192: 4 | F192: 3 | G192: 4 | H192: 1 | I192: 3 | J192: 2 | K192: 1 | L192: 4 | M192: 4 | N192: 3 | O192: 2 | P192: 3 | Q192: 1 | R192: 3 | S192: 2 | T192: 4 | U192: 4 | V192: 1 | W192: 1 | X192: 2 | Y192: 4 | Z192: 3 | AA192: 1 | AB192: 2 | AC192: 2 | AD192: 3 | AE192: 1 | AF192: 4 | AG192: 1 | AH192: 3 | AI192: 2 | AJ192: 4 | AK192: 2 | AL192: 4 | AM192: 3 | AN192: 1 | AO192: 3 | AP192: 3 | AQ192: 1 | AR192: 2 | AS192: 1 | AT192: 4 | AU192: 3
A193: 1 | B193: 2 | C193: 2 | D193: 3 | E193: 1 | F193: 2 | G193: 4 | H193: 4 | I193: 2 | J193: 4 | K193: 2 | L193: 2 | M193: 1 | N193: 4 | O193: 1 | P193: 3 | Q193: 2 | R193: 3 | S193: 1 | T193: 1 | U193: 4 | V193: 3 | W193: 2 | X193: 2 | Y193: 3 | Z193: 3 | AA193: 4 | AB193: 2 | AC193: 2 | AD193: 2 | AE193: 3 | AF193: 3 | AG193: 3 | AH193: 1 | AI193: 2 | AJ193: 3 | AK193: 2 | AL193: 3 | AM193: 4 | AN193: 1 | AO193: 2 | AP193: 1 | AQ193: 3 | AR193: 4 | AS193: 1 | AT193: 2 | AU193: 4
A194: 1 | B194: 2 | C194: 2 | D194: 3 | E194: 1 | F194: 4 | G194: 3 | H194: 2 | I194: 3 | J194: 1 | K194: 1 | L194: 3 | M194: 4 | N194: 3 | O194: 2 | P194: 1 | Q194: 1 | R194: 1 | S194: 2 | T194: 1 | U194: 2 | V194: 3 | W194: 3 | X194: 4 | Y194: 1 | Z194: 1 | AA194: 2 | AB194: 2 | AC194: 2 | AD194: 3 | AE194: 3 | AF194: 2 | AG194: 3 | AH194: 4 | AI194: 1 | AJ194: 2 | AK194: 1 | AL194: 3 | AM194: 2 | AN194: 1 | AO194: 1 | AP194: 2 | AQ194: 1 | AR194: 1 | AS194: 3 | AT194: 3 | AU194: 2
A195: 1 | B195: 2 | C195: 2 | D195: 3 | E195: 2 | F195: 1 | G195: 3 | H195: 2 | I195: 2 | J195: 1 | K195: 1 | L195: 3 | M195: 1 | N195: 3 | O195: 1 | P195: 4 | Q195: 1 | R195: 3 | S195: 2 | T195: 1 | U195: 2 | V195: 2 | W195: 3 | X195: 2 | Y195: 3 | Z195: 2 | AA195: 2 | AB195: 3 | AC195: 4 | AD195: 3 | AE195: 3 | AF195: 3 | AG195: 2 | AH195: 3 | AI195: 2 | AJ195: 2 | AK195: 1 | AL195: 1 | AM195: 2 | AN195: 3 | AO195: 3 | AP195: 2 | AQ195: 3 | AR195: 4 | AS195: 3 | AT195: 2 | AU195: 2
A196: 1 | B196: 2 | C196: 2 | D196: 3 | E196: 2 | F196: 4 | G196: 1 | H196: 1 | I196: 3 | J196: 2 | K196: 1 | L196: 2 | M196: 3 | N196: 4 | O196: 3 | P196: 4 | Q196: 2 | R196: 4 | S196: 4 | T196: 2 | U196: 3 | V196: 3 | W196: 2 | X196: 3 | Y196: 1 | Z196: 2 | AA196: 2 | AB196: 3 | AC196: 1 | AD196: 1 | AE196: 2 | AF196: 2 | AG196: 1 | AH196: 1 | AI196: 2 | AJ196: 3 | AK196: 2 | AL196: 1 | AM196: 3 | AN196: 2 | AO196: 3 | AP196: 2 | AQ196: 1 | AR196: 4 | AS196: 1 | AT196: 3 | AU196: 2
A197: 1 | B197: 2 | C197: 2 | D197: 3 | E197: 3 | F197: 2 | G197: 1 | H197: 2 | I197: 2 | J197: 2 | K197: 1 | L197: 3 | M197: 4 | N197: 3 | O197: 2 | P197: 1 | Q197: 4 | R197: 1 | S197: 3 | T197: 3 | U197: 1 | V197: 1 | W197: 4 | X197: 2 | Y197: 3 | Z197: 1 | AA197: 2 | AB197: 3 | AC197: 1 | AD197: 4 | AE197: 2 | AF197: 3 | AG197: 3 | AH197: 2 | AI197: 2 | AJ197: 2 | AK197: 3 | AL197: 2 | AM197: 1 | AN197: 1 | AO197: 4 | AP197: 3 | AQ197: 2 | AR197: 1 | AS197: 4 | AT197: 2 | AU197: 2
A198: 1 | B198: 2 | C198: 2 | D198: 3 | E198: 4 | F198: 1 | G198: 1 | H198: 2 | I198: 2 | J198: 1 | K198: 1 | L198: 3 | M198: 1 | N198: 3 | O198: 4 | P198: 3 | Q198: 2 | R198: 2 | S198: 3 | T198: 1 | U198: 4 | V198: 1 | W198: 2 | X198: 3 | Y198: 3 | Z198: 2 | AA198: 3 | AB198: 4 | AC198: 2 | AD198: 1 | AE198: 3 | AF198: 3 | AG198: 1 | AH198: 2 | AI198: 2 | AJ198: 3 | AK198: 1 | AL198: 1 | AM198: 3 | AN198: 1 | AO198: 4 | AP198: 2 | AQ198: 4 | AR198: 1 | AS198: 4 | AT198: 4 | AU198: 2
A199: 1 | B199: 2 | C199: 2 | D199: 3 | E199: 4 | F199: 2 | G199: 2 | H199: 2 | I199: 3 | J199: 1 | K199: 1 | L199: 2 | M199: 3 | N199: 4 | O199: 2 | P199: 4 | Q199: 2 | R199: 2 | S199: 4 | T199: 2 | U199: 3 | V199: 4 | W199: 1 | X199: 1 | Y199: 1 | Z199: 3 | AA199: 3 | AB199: 1 | AC199: 4 | AD199: 4 | AE199: 3 | AF199: 3 | AG199: 3 | AH199: 2 | AI199: 3 | AJ199: 3 | AK199: 2 | AL199: 1 | AM199: 3 | AN199: 1 | AO199: 4 | AP199: 4 | AQ199: 2 | AR199: 1 | AS199: 3 | AT199: 3 | AU199: 3
A200: 1 | B200: 2 | C200: 2 | D200: 4 | E200: 3 | F200: 1 | G200: 4 | H200: 2 | I200: 2 | J200: 2 | K200: 2 | L200: 1 | M200: 4 | N200: 4 | O200: 2 | P200: 1 | Q200: 1 | R200: 1 | S200: 2 | T200: 2 | U200: 3 | V200: 1 | W200: 4 | X200: 3 | Y200: 4 | Z200: 4 | AA200: 3 | AB200: 1 | AC200: 2 | AD200: 2 | AE200: 1 | AF200: 2 | AG200: 1 | AH200: 1 | AI200: 2 | AJ200: 2 | AK200: 1 | AL200: 1 | AM200: 3 | AN200: 1 | AO200: 3 | AP200: 1 | AQ200: 2 | AR200: 1 | AS200: 3 | AT200: 2 | AU200: 1
A201: 1 | B201: 2 | C201: 2 | D201: 4 | E201: 3 | F201: 2 | G201: 4 | H201: 2 | I201: 3 | J201: 4 | K201: 1 | L201: 1 | M201: 2 | N201: 3 | O201: 2 | P201: 2 | Q201: 4 | R201: 2 | S201: 3 | T201: 1 | U201: 2 | V201: 4 | W201: 2 | X201: 2 | Y201: 4 | Z201: 3 | AA201: 2 | AB201: 2 | AC201: 3 | AD201: 4 | AE201: 2 | AF201: 1 | AG201: 2 | AH201: 3 | AI201: 2 | AJ201: 1 | AK201: 3 | AL201: 2 | AM201: 1 | AN201: 2 | AO201: 1 | AP201: 3 | AQ201: 2 | AR201: 2 | AS201: 1 | AT201: 4 | AU201: 3
... 924 more rows

Sheet REACT_MAT (hidden)
A1: REACTIVOS POR CADA UNIDAD DE DIAGNÓSTICO EN MATEMÁTICAS
B3: Manejo de la información | F3: Forma, Espacio y medida | J3: Sentido numérico y pensamiento algebraico
C4: REACTIVOS | F4: REACTIVOS | J4: REACTIVOS
D26: E | K26: E | Q26: E

Sheet DESCRIPT_MAT (hidden)
A1: Etiquetas de fila | B1: NÚMERO DE REACTIVO
A2: Manejo de la Información
A3: Identificar la gráfica que corresponde a una relación de proporcionalidad directa.
A4: Es la respuesta correcta porque se identifica la gráfica que representa una situación de variación proporcional directa al problema que se plantea. La gráfica es una recta que pasa por el origen del plano cartesiano. | B4: 22
A5: Identificar la relación entre la pendiente y la razón de cambio.
A6: Es la respuesta correcta porque identifica una situación de proporcionalidad directa, representada en una gráfica, siendo ésta una recta que relaciona el tiempo en horas con la distancia en kilómetros. | B6: 23
A7: Es la respuesta correcta porque se identifica una situación de proporcionalidad directa en la gráfica que la representa, siendo ésta una recta que relaciona el tiempo en horas con la distancia en kilómetros que recorre un automóvil a 160 km/h. | B7: 47
A8: Identificar la tendencia de la probabilidad teórica en una gráfica.
A9: Es la respuesta correcta porque se obtiene el promedio de las probabilidades frecuenciales de extraer pelotas negras de una urna, representadas en una gráfica. | B9: 49
A10: Identificar las representaciones (gráfica, tabla y expresión algebraica) que corresponde a una misma situación de proporcionalidad directa.
A11: Es la respuesta correcta porque se identifica la gráfica que modela la relación de proporcionalidad a partir de la expresión algebraica y = 15x, de manera adecuada. La gráfica correcta pasa por el origen en el plano cartesiano. | B11: 46
A12: Leer información contenida en tablas de frecuencia absoluta y relativa.
A13: Es la respuesta correcta porque es el resultado de la lectura e interpretación de datos en una tabla con valores absolutos y relativos en forma de porcentaje, sobre la cantidad de nacimientos de niñas y niños en 4 hospitales. | B13: 50
A14: Resolver problemas de conteo.
A15: Es la respuesta correcta porque se muestra el diagrama de árbol que señala todos los resultados posibles en un problema de conteo, los cuales son 12, en la experiencia aleatoria de lanzar al aire una moneda y un dado de 6 caras. | B15: 48
A16: Resolver problemas de proporcionalidad directa en los que se apliquen sucesivamente dos factores constantes de proporcionalidad.
A17: Es la respuesta correcta porque corresponde al resultado de aplicar dos factores constantes de proporcionalidad a una cantidad inicial en un planteamiento de variación proporcional directa, cuando los dos factores constantes son enteros positivos: 10 x 2 x 4 = 80 y 12 x 2 x 4 = 96. | B17: 20
A18: Resolver problemas de proporcionalidad múltiple con factor de proporcionalidad entero.
A19: Es el resultado correcto de encontrar el valor faltante en un problema de proporcionalidad múltiple, donde a mayor cantidad de días, mayor cantidad de horas, se tiene una mayor ganancia. | B19: 44
A20: Resolver problemas de reparto proporcional.
A21: Es la respuesta correcta porque se aplica un reparto proporcional de acuerdo con las condiciones del problema, dado que 25 es el 100% de lo que costo el boleto, y el premio es de 30 000, y 8 es lo que aportó Luis, se tiene que: 30 000 / 25 x 8 = 9600. | B21: 19
A22: Resolver problemas en los que se efectúe el cálculo de porcentajes o de cualquier término de la relación: porcentaje igual a cantidad base por tasa.
A23: Es la respuesta correcta porque se establece adecuadamente la relación entre los datos y se determina el porcentaje solicitado: 475 es el 100%, y el 65 es el porcentaje, 475/100 x 65 = 308.75 | B23: 45
A24: Resolver problemas que impliquen la interpretación de información representada en polígonos de frecuencia.
A25: Es la respuesta correcta porque permite interpretar adecuadamente los datos de la gráfica de polígonos de frecuencias, así como determinar el dato que da respuesta a la pregunta planteada, en este caso sobre los resultados de una prueba escolar. | B25: 24
A26: Es la respuesta correcta porque permite interpretar adecuadamente los datos de la gráfica de polígonos de frecuencias y determinar el dato que da respuesta a la pregunta planteada, en este caso sobre el mayor problema del país según las respuestas de adolescentes y adultos encuestados. | B26: 25
A27: Resolver problemas que impliquen una relación inversamente proporcional entre dos conjuntos de cantidades.
A28: Es la respuesta correcta porque identifica la relación de proporcionalidad inversa que existe entre los datos registrados en una tabla de valores, es decir, 1 pintor pinta en 45 días un edificio, 3 lo hacen en una tercera parte del tiempo, que son 15 días y 9 en 5 días. | B28: 21

Sheet LYC_1-2-3-4 (hidden)

Sheet LYC_5 (hidden)

Sheet LYC_6-7-8-9 (hidden)

Sheet LYC_10-11-12-13 (hidden)

Sheet LYC_14-15-16-17 (hidden)

Sheet LYC_18-19-20-21 (hidden)

Sheet LYC_22-23-24-25 (hidden)
AD6: IR A REACT_LYC

Sheet LYC_26-27-28-29 (hidden)

Sheet LYC_30-31-32-33 (hidden)

Sheet LYC_34-35-36 (hidden)

Sheet LYC_37-38-39-40 (hidden)

Sheet LYC_41-42-43-44 (hidden)

Sheet LYC_45-46-47-48-49-50 (hidden)

Sheet MAT_1-2-3 (hidden)

Sheet MAT_4-5 (hidden)

Sheet MAT_6-7 (hidden)

Sheet MAT_8-9-10 (hidden)

Sheet MAT_11-12 (hidden)

Sheet MAT_13-14-15-16 (hidden)

Sheet MAT_17-18 (hidden)

Sheet MAT_19_20_21 (hidden)

Sheet MAT_22 (hidden)

Sheet MAT_23 (hidden)

Sheet MAT_24 (hidden)

Sheet MAT_25-26 (hidden)

Sheet MAT_27-28-29 (hidden)

Sheet MAT_30-31-32 (hidden)

Sheet MAT_33-34-35 (hidden)

Sheet MAT_36-37 (hidden)

Sheet MAT_38-39 (hidden)

Sheet MAT_40-41 (hidden)

Sheet MAT_42-43 (hidden)

Sheet MAT_44-45 (hidden)

Sheet MAT_46 (hidden)

Sheet MAT_47 (hidden)

Sheet MAT_48 (hidden)

Sheet MAT_49 (hidden)

Sheet MAT_50 (hidden)

Sheet DIRECTORIO (hidden)

Sheet AGRADECIMIENTO (hidden)

Sheet PLANEACIÓN (hidden)
A1: PLANEACIÓN CON BASE EN RESULTADOS | K1: E
A3: ZONA ESCOLAR No. | E3: TABLA DE MEJORA ACADÉMICA
A4: DESEMPEÑO DE LA ZONA ESCOLAR | F4: DESEMPEÑO POR ESCUELA
A5: PORCENTAJE DE ESTUDIANTES DE LA ZONA ESCOLAR EN CADA NIVEL DE DESEMPEÑO EN PLANEA 2018 | E5: NIVEL DE DESEMPEÑO DE LA ESCUELA | F5: FORTALEZAS Y DEBILIDADES ACADÉMICAS CON BASE EN LOS RESULTADOS DE PLANEA 2018 | N5: TEMÁTICAS PARA REFORZAR EN LA CURRÍCULA | V5: SUGERENCIAS DE ESTRATEGIAS PARA EL REFORZAMIENTO DE CADA TEMÁTICA | AD5: NECESIDADES INDISPENSABLES DE CAPACITACIÓN DEL DOCENTE PARA EL REFORZAMIENTO DE CADA TEMÁTICA
A6: I | B6: II | C6: III | D6: IV | F6: LENGUAJE Y COMUNICACIÓN | J6: MATEMÁTICAS | N6: LENGUAJE Y COMUNICACIÓN | R6: MATEMÁTICAS | V6: LENGUAJE Y COMUNICACIÓN | Z6: MATEMÁTICAS | AD6: LENGUAJE Y COMUNICACIÓN | AH6: MATEMÁTICAS
A7: DIAGNÓSTICO DE LA ZONA ESCOLAR | E7: ESCUELA 1 | F7: NOMBRE
A8: COMENTARIOS: | E8: Escriba los porcentajes de estudiantes en cada nivel de desempeño de acuerdo a PLANEA 2018 en LENGUAJE Y COMUNICACIÓN
E9: IV =
E10: III =
E11: II =
E12: I =
E16: Escriba los porcentajes de estudiantes en cada nivel de desempeño de acuerdo a PLANEA 2018 en MATEMÁTICAS
E17: IV =
E18: III =
E19: II =
E20: I =
E27: ESCUELA 2 | F27: NOMBRE
E28: Escriba los porcentajes de estudiantes en cada nivel de desempeño de acuerdo a PLANEA 2018 en LENGUAJE Y COMUNICACIÓN
E29: IV =
E30: III =
E31: II =
E32: I =
E36: Escriba los porcentajes de estudiantes en cada nivel de desempeño de acuerdo a PLANEA 2018 en MATEMÁTICAS
E37: IV =
E38: III =
E39: II =
E40: I =
E47: ESCUELA 3 | F47: NOMBRE
E48: Escriba los porcentajes de estudiantes en cada nivel de desempeño de acuerdo a PLANEA 2018 en LENGUAJE Y COMUNICACIÓN
E49: IV =
E50: III =
E51: II =
E52: I =
E56: Escriba los porcentajes de estudiantes en cada nivel de desempeño de acuerdo a PLANEA 2018 en MATEMÁTICAS
E57: IV =
E58: III =
E59: II =
E60: I =
E67: ESCUELA 4 | F67: NOMBRE
E68: Escriba los porcentajes de estudiantes en cada nivel de desempeño de acuerdo a PLANEA 2018 en LENGUAJE Y COMUNICACIÓN
E69: IV =
E70: III =
E71: II =
E72: I =
E76: Escriba los porcentajes de estudiantes en cada nivel de desempeño de acuerdo a PLANEA 2018 en MATEMÁTICAS
E77: IV =
E78: III =
E79: II =
E80: I =
E87: ESCUELA 5 | F87: NOMBRE
E88: Escriba los porcentajes de estudiantes en cada nivel de desempeño de acuerdo a PLANEA 2018 en LENGUAJE Y COMUNICACIÓN
E89: IV =
E90: III =
E91: II =
E92: I =
E96: Escriba los porcentajes de estudiantes en cada nivel de desempeño de acuerdo a PLANEA 2018 en MATEMÁTICAS
E97: IV =
E98: III =
E99: II =
E100: I =
E107: ESCUELA 6 | F107: NOMBRE
E108: Escriba los porcentajes de estudiantes en cada nivel de desempeño de acuerdo a PLANEA 2018 en LENGUAJE Y COMUNICACIÓN
E109: IV =
E110: III =
E111: II =
E112: I =
E116: Escriba los porcentajes de estudiantes en cada nivel de desempeño de acuerdo a PLANEA 2018 en MATEMÁTICAS
E117: IV =
E118: III =
E119: II =
E120: I =
E127: ESCUELA 7 | F127: NOMBRE
E128: Escriba los porcentajes de estudiantes en cada nivel de desempeño de acuerdo a PLANEA 2018 en LENGUAJE Y COMUNICACIÓN
E129: IV =
E130: III =
E131: II =
E132: I =
E136: Escriba los porcentajes de estudiantes en cada nivel de desempeño de acuerdo a PLANEA 2018 en MATEMÁTICAS
E137: IV =
E138: III =
E139: II =
E140: I =
E147: ESCUELA 8 | F147: NOMBRE
E148: Escriba los porcentajes de estudiantes en cada nivel de desempeño de acuerdo a PLANEA 2018 en LENGUAJE Y COMUNICACIÓN
E149: IV =
E150: III =
E151: II =
E152: I =
E156: Escriba los porcentajes de estudiantes en cada nivel de desempeño de acuerdo a PLANEA 2018 en MATEMÁTICAS
E157: IV =
E158: III =
E159: II =
E160: I =
E167: ESCUELA 9 | F167: NOMBRE
E168: Escriba los porcentajes de estudiantes en cada nivel de desempeño de acuerdo a PLANEA 2018 en LENGUAJE Y COMUNICACIÓN
E169: IV =
E170: III =
E171: II =
E172: I =
E176: Escriba los porcentajes de estudiantes en cada nivel de desempeño de acuerdo a PLANEA 2018 en MATEMÁTICAS
E177: IV =
E178: III =
E179: II =
E180: I =
E187: ESCUELA 10 | F187: NOMBRE
E188: Escriba los porcentajes de estudiantes en cada nivel de desempeño de acuerdo a PLANEA 2018 en LENGUAJE Y COMUNICACIÓN
E189: IV =
E190: III =
E191: II =
E192: I =
E196: Escriba los porcentajes de estudiantes en cada nivel de desempeño de acuerdo a PLANEA 2018 en MATEMÁTICAS
E197: IV =
E198: III =
E199: II =
E200: I =
E207: ESCUELA 11 | F207: NOMBRE
E208: Escriba los porcentajes de estudiantes en cada nivel de desempeño de acuerdo a PLANEA 2018 en LENGUAJE Y COMUNICACIÓN
E209: IV =
E210: III =
E211: II =
E212: I =
E216: Escriba los porcentajes de estudiantes en cada nivel de desempeño de acuerdo a PLANEA 2018 en MATEMÁTICAS
E217: IV =
E218: III =
E219: II =
E220: I =
E227: ESCUELA 12 | F227: NOMBRE
E228: Escriba los porcentajes de estudiantes en cada nivel de desempeño de acuerdo a PLANEA 2018 en LENGUAJE Y COMUNICACIÓN
E229: IV =
E230: III =
E231: II =
E232: I =
E236: Escriba los porcentajes de estudiantes en cada nivel de desempeño de acuerdo a PLANEA 2018 en MATEMÁTICAS
E237: IV =
E238: III =
E239: II =
E240: I =
E247: ESCUELA 13 | F247: NOMBRE
E248: Escriba los porcentajes de estudiantes en cada nivel de desempeño de acuerdo a PLANEA 2018 en LENGUAJE Y COMUNICACIÓN
E249: IV =
E250: III =
E251: II =
E252: I =
E256: Escriba los porcentajes de estudiantes en cada nivel de desempeño de acuerdo a PLANEA 2018 en MATEMÁTICAS
E257: IV =
E258: III =
E259: II =
E260: I =
E267: ESCUELA 14 | F267: NOMBRE
E268: Escriba los porcentajes de estudiantes en cada nivel de desempeño de acuerdo a PLANEA 2018 en LENGUAJE Y COMUNICACIÓN
E269: IV =
E270: III =
E271: II =
E272: I =
E276: Escriba los porcentajes de estudiantes en cada nivel de desempeño de acuerdo a PLANEA 2018 en MATEMÁTICAS
E277: IV =
E278: III =
E279: II =
E280: I =
E287: ESCUELA 15 | F287: NOMBRE
E288: Escriba los porcentajes de estudiantes en cada nivel de desempeño de acuerdo a PLANEA 2018 en LENGUAJE Y COMUNICACIÓN
E289: IV =
E290: III =
E291: II =
E292: I =
E296: Escriba los porcentajes de estudiantes en cada nivel de desempeño de acuerdo a PLANEA 2018 en MATEMÁTICAS
E297: IV =
E298: III =
E299: II =
E300: I =
